Workbook

Sheet 使い方
A1: 年齢調整・厚生労働省様式（様式５－２）ツールの使い方(Version 2.0)
A2: 令和６年度（第４期特定健診）の項目に対応しています。（第３期はVer.1.7をお使いください）
A3: （１）ＫＤＢの厚生労働省様式（様式５－２）の画面から、ＣＳＶファイルを出力・保存する。
A4: （２）（１）のCSVファイルをエクセルで開く。
A5: （３）（２）で開いたCSVファイルの内容（データのある範囲だけ※）を、このツールの「CSVデータ1」シートにコピー＆ペーストする。
A6: （４）人数が少ない等の理由で複数年を合算して計算したい場合は、同様に「CSVデータ2」～「CSVデータ4」シートに他の年度をコピー＆ペーストする。
A7: （単年度だけで分析する場合には（４）は不要です。）
A8: （５）「出力票」シートの左上にある「計算開始」をクリックすると、計算結果が表示されるので、印刷する。※※
A10: ※A1～AO213
A11: ※※「集計対象年齢」の範囲を指定することも出来ます。（通常は変える必要はありません）
A12: 見本データは全て仮想値です。
A15: このエクセルファイルは、マクロを使っています。 セキュリティの警告でマクロが無効にされた場合は、コンテンツの有効化を行って下さい。
A18: 履歴
A19: Ver.2.0 2025/7/2 第４期特定健診の項目に対応しました。第３期はVer.1.7をお使いください。
A20: Ver.1.7 2025/7/2 最新のKDBのCSVファイルを使用するとエラーが起きることがある点を修正しました。第４期はVer.2.0をお使いください。
A21: Ver.1.6 2019/12/2 複数年度を合算（プール）して計算できるようにしました。
A22: Ver.1.5 2019/6/19 様式番号（旧様式6-2～7）を変更。集計対象年齢を指定できるようにしました。
A23: Ver.1.3 2016/9/20 ALT(GOT)→ALT(GPT)に修正しました。
A24: Ver.1.2 2014/11/20 公開

Sheet CSVデータ1
A1: レコード種別 | B1: 保険者番号 | C1: 保険者名 | D1: 地区名 | E1: 作成年月 | F1: 県計・国計
A2: 共通部 | B2: 999999 | C2: 見本データ | E2: R06年度 | F2: 国保組合含む
A3: レコード種別 | B3: 集計単位 | C3: 年齢 | D3: 性別 | E3: 受診者 | F3: ＢＭＩ人数 | G3: ＢＭＩ割合 | H3: 腹囲人数 | I3: 腹囲割合 | J3: 空腹時中性脂肪人数 | K3: 空腹時中性脂肪割合 | L3: ＡＬＴ（ＧＰＴ）人数 | M3: ＡＬＴ（ＧＰＴ）割合 | N3: ＨＤＬコレステロール人数 | O3: ＨＤＬコレステロール割合 | P3: 空腹時血糖人数 | Q3: 空腹時血糖割合 | R3: ＨｂＡ１ｃ人数 | S3: ＨｂＡ１ｃ割合 | T3: 尿酸人数 | U3: 尿酸割合 | V3: 収縮期血圧人数 | W3: 収縮期血圧割合 | X3: 拡張期血圧人数 | Y3: 拡張期血圧割合 | Z3: ＬＤＬコレステロール人数 | AA3: ＬＤＬコレステロール割合 | AB3: 血清クレアチニン人数 | AC3: 血清クレアチニン割合 | AD3: 心電図人数 | AE3: 心電図割合 | AF3: 眼底検査人数 | AG3: 眼底検査割合 | AH3: 随時血糖人数 | AI3: 随時血糖割合 | AJ3: ｎｏｎ－ＨＤＬコレステロール人数 | AK3: ｎｏｎ－ＨＤＬコレステロール割合 | AL3: ｅＧＦＲ人数 | AM3: ｅＧＦＲ割合 | AN3: 随時中性脂肪人数 | AO3: 随時中性脂肪割合
A4: 明細部 | B4: 国 | C4: 40 | D4: 男 | E4: 1965 | F4: 727 | G4: 36.99745547 | H4: 948 | I4: 48.24427481 | J4: 420 | K4: 21.3740458 | L4: 722 | M4: 36.74300254 | N4: 162 | O4: 8.244274809 | P4: 267 | Q4: 13.58778626 | R4: 616 | S4: 31.34860051 | T4: 327 | U4: 16.64122137 | V4: 459 | W4: 23.35877863 | X4: 365 | Y4: 18.57506361 | Z4: 1062 | AA4: 54.04580153 | AB4: 3 | AC4: 0.1526717557 | AD4: 243 | AE4: 12.36641221 | AF4: 403 | AG4: 20.50890585 | AH4: 31 | AI4: 1.577608142 | AJ4: 151 | AK4: 7.684478372 | AL4: 32 | AM4: 1.628498728 | AN4: 121 | AO4: 6.157760814
A5: 明細部 | B5: 国 | C5: 41 | D5: 男 | E5: 1965 | F5: 723 | G5: 36.79389313 | H5: 904 | I5: 46.00508906 | J5: 404 | K5: 20.55979644 | L5: 699 | M5: 35.57251908 | N5: 153 | O5: 7.786259542 | P5: 331 | Q5: 16.84478372 | R5: 638 | S5: 32.46819338 | T5: 302 | U5: 15.36895674 | V5: 495 | W5: 25.19083969 | X5: 390 | Y5: 19.84732824 | Z5: 1049 | AA5: 53.38422392 | AB5: 6 | AC5: 0.3053435115 | AD5: 280 | AE5: 14.24936387 | AF5: 368 | AG5: 18.72773537 | AH5: 26 | AI5: 1.323155216 | AJ5: 153 | AK5: 7.786259542 | AL5: 44 | AM5: 2.239185751 | AN5: 107 | AO5: 5.445292621
A6: 明細部 | B6: 国 | C6: 42 | D6: 男 | E6: 1933 | F6: 702 | G6: 36.31660631 | H6: 902 | I6: 46.6632178 | J6: 427 | K6: 22.09001552 | L6: 679 | M6: 35.12674599 | N6: 158 | O6: 8.173823073 | P6: 291 | Q6: 15.05431971 | R6: 682 | S6: 35.28194516 | T6: 323 | U6: 16.70977755 | V6: 483 | W6: 24.98706674 | X6: 394 | Y6: 20.38282462 | Z6: 1045 | AA6: 54.06104501 | AB6: 5 | AC6: 0.2586652871 | AD6: 265 | AE6: 13.70926022 | AF6: 403 | AG6: 20.84842214 | AH6: 29 | AI6: 1.500258665 | AJ6: 169 | AK6: 8.742886705 | AL6: 54 | AM6: 2.793585101 | AN6: 94 | AO6: 4.862907398
A7: 明細部 | B7: 国 | C7: 43 | D7: 男 | E7: 2139 | F7: 776 | G7: 36.27863488 | H7: 977 | I7: 45.67554932 | J7: 447 | K7: 20.89761571 | L7: 735 | M7: 34.36185133 | N7: 161 | O7: 7.52688172 | P7: 331 | Q7: 15.4745208 | R7: 716 | S7: 33.47358579 | T7: 330 | U7: 15.42776999 | V7: 566 | W7: 26.46096307 | X7: 463 | Y7: 21.6456288 | Z7: 1091 | AA7: 51.00514259 | AB7: 6 | AC7: 0.2805049088 | AD7: 279 | AE7: 13.04347826 | AF7: 399 | AG7: 18.65357644 | AH7: 34 | AI7: 1.589527817 | AJ7: 173 | AK7: 8.087891538 | AL7: 49 | AM7: 2.290790089 | AN7: 123 | AO7: 5.750350631
A8: 明細部 | B8: 国 | C8: 44 | D8: 男 | E8: 2229 | F8: 817 | G8: 36.65320772 | H8: 1063 | I8: 47.68954688 | J8: 510 | K8: 22.88021534 | L8: 751 | M8: 33.69223867 | N8: 173 | O8: 7.76132795 | P8: 400 | Q8: 17.94526694 | R8: 771 | S8: 34.58950202 | T8: 340 | U8: 15.2534769 | V8: 593 | W8: 26.60385823 | X8: 504 | Y8: 22.61103634 | Z8: 1197 | AA8: 53.70121131 | AB8: 6 | AC8: 0.269179004 | AD8: 331 | AE8: 14.84970839 | AF8: 460 | AG8: 20.63705698 | AH8: 26 | AI8: 1.166442351 | AJ8: 206 | AK8: 9.241812472 | AL8: 55 | AM8: 2.467474204 | AN8: 104 | AO8: 4.665769403
A9: 明細部 | B9: 国 | C9: 45 | D9: 男 | E9: 2420 | F9: 878 | G9: 36.28099174 | H9: 1133 | I9: 46.81818182 | J9: 518 | K9: 21.40495868 | L9: 819 | M9: 33.84297521 | N9: 182 | O9: 7.520661157 | P9: 447 | Q9: 18.47107438 | R9: 893 | S9: 36.90082645 | T9: 352 | U9: 14.54545455 | V9: 698 | W9: 28.84297521 | X9: 612 | Y9: 25.2892562 | Z9: 1276 | AA9: 52.72727273 | AB9: 7 | AC9: 0.2892561983 | AD9: 325 | AE9: 13.42975207 | AF9: 536 | AG9: 22.14876033 | AH9: 36 | AI9: 1.487603306 | AJ9: 211 | AK9: 8.719008264 | AL9: 80 | AM9: 3.305785124 | AN9: 119 | AO9: 4.917355372
A10: 明細部 | B10: 国 | C10: 46 | D10: 男 | E10: 2490 | F10: 947 | G10: 38.03212851 | H10: 1212 | I10: 48.6746988 | J10: 542 | K10: 21.76706827 | L10: 809 | M10: 32.48995984 | N10: 176 | O10: 7.068273092 | P10: 479 | Q10: 19.23694779 | R10: 905 | S10: 36.34538153 | T10: 362 | U10: 14.53815261 | V10: 713 | W10: 28.63453815 | X10: 651 | Y10: 26.14457831 | Z10: 1343 | AA10: 53.93574297 | AB10: 6 | AC10: 0.2409638554 | AD10: 333 | AE10: 13.37349398 | AF10: 520 | AG10: 20.88353414 | AH10: 33 | AI10: 1.325301205 | AJ10: 217 | AK10: 8.714859438 | AL10: 92 | AM10: 3.694779116 | AN10: 131 | AO10: 5.261044177
A11: 明細部 | B11: 国 | C11: 47 | D11: 男 | E11: 2623 | F11: 1026 | G11: 39.11551658 | H11: 1322 | I11: 50.40030499 | J11: 583 | K11: 22.22645825 | L11: 891 | M11: 33.96873809 | N11: 200 | O11: 7.624857034 | P11: 507 | Q11: 19.32901258 | R11: 1049 | S11: 39.99237514 | T11: 403 | U11: 15.36408692 | V11: 790 | W11: 30.11818528 | X11: 708 | Y11: 26.9919939 | Z11: 1459 | AA11: 55.62333206 | AB11: 9 | AC11: 0.3431185665 | AD11: 353 | AE11: 13.45787266 | AF11: 576 | AG11: 21.95958826 | AH11: 48 | AI11: 1.829965688 | AJ11: 246 | AK11: 9.378574152 | AL11: 107 | AM11: 4.079298513 | AN11: 172 | AO11: 6.557377049
A12: 明細部 | B12: 国 | C12: 48 | D12: 男 | E12: 2703 | F12: 1080 | G12: 39.95560488 | H12: 1371 | I12: 50.72142064 | J12: 680 | K12: 25.1572327 | L12: 861 | M12: 31.85349612 | N12: 201 | O12: 7.43618202 | P12: 572 | Q12: 21.16167222 | R12: 1131 | S12: 41.84239734 | T12: 410 | U12: 15.16833148 | V12: 878 | W12: 32.48242693 | X12: 821 | Y12: 30.3736589 | Z12: 1455 | AA12: 53.8290788 | AB12: 13 | AC12: 0.4809470958 | AD12: 382 | AE12: 14.13244543 | AF12: 563 | AG12: 20.82870884 | AH12: 49 | AI12: 1.812800592 | AJ12: 241 | AK12: 8.916019238 | AL12: 134 | AM12: 4.95745468 | AN12: 159 | AO12: 5.882352941
A13: 明細部 | B13: 国 | C13: 49 | D13: 男 | E13: 2984 | F13: 1209 | G13: 40.51608579 | H13: 1497 | I13: 50.16756032 | J13: 734 | K13: 24.59785523 | L13: 951 | M13: 31.86997319 | N13: 221 | O13: 7.40616622 | P13: 627 | Q13: 21.01206434 | R13: 1274 | S13: 42.69436997 | T13: 421 | U13: 14.10857909 | V13: 1014 | W13: 33.98123324 | X13: 936 | Y13: 31.36729223 | Z13: 1640 | AA13: 54.95978552 | AB13: 12 | AC13: 0.4021447721 | AD13: 417 | AE13: 13.97453083 | AF13: 646 | AG13: 21.64879357 | AH13: 54 | AI13: 1.809651475 | AJ13: 272 | AK13: 9.115281501 | AL13: 164 | AM13: 5.495978552 | AN13: 186 | AO13: 6.233243968
A14: 明細部 | B14: 国 | C14: 50 | D14: 男 | E14: 3341 | F14: 1347 | G14: 40.31727028 | H14: 1727 | I14: 51.69111045 | J14: 797 | K14: 23.85513319 | L14: 998 | M14: 29.87129602 | N14: 247 | O14: 7.392996109 | P14: 739 | Q14: 22.11912601 | R14: 1460 | S14: 43.69949117 | T14: 464 | U14: 13.88805747 | V14: 1155 | W14: 34.57048788 | X14: 1065 | Y14: 31.87668363 | Z14: 1827 | AA14: 54.68422628 | AB14: 28 | AC14: 0.8380724334 | AD14: 496 | AE14: 14.84585453 | AF14: 738 | AG14: 22.08919485 | AH14: 63 | AI14: 1.885662975 | AJ14: 289 | AK14: 8.650104759 | AL14: 203 | AM14: 6.076025142 | AN14: 191 | AO14: 5.716851242
A15: 明細部 | B15: 国 | C15: 51 | D15: 男 | E15: 3366 | F15: 1398 | G15: 41.53297683 | H15: 1809 | I15: 53.74331551 | J15: 789 | K15: 23.4402852 | L15: 1011 | M15: 30.03565062 | N15: 258 | O15: 7.664884135 | P15: 765 | Q15: 22.72727273 | R15: 1509 | S15: 44.83065954 | T15: 478 | U15: 14.20083185 | V15: 1210 | W15: 35.94771242 | X15: 1106 | Y15: 32.85799168 | Z15: 1795 | AA15: 53.32739156 | AB15: 20 | AC15: 0.5941770648 | AD15: 515 | AE15: 15.30005942 | AF15: 681 | AG15: 20.23172906 | AH15: 66 | AI15: 1.960784314 | AJ15: 317 | AK15: 9.417706477 | AL15: 243 | AM15: 7.219251337 | AN15: 208 | AO15: 6.179441474
A16: 明細部 | B16: 国 | C16: 52 | D16: 男 | E16: 3398 | F16: 1432 | G16: 42.14243673 | H16: 1811 | I16: 53.2960565 | J16: 808 | K16: 23.77869335 | L16: 1030 | M16: 30.3119482 | N16: 226 | O16: 6.65097116 | P16: 839 | Q16: 24.6909947 | R16: 1611 | S16: 47.41024132 | T16: 499 | U16: 14.68510889 | V16: 1251 | W16: 36.81577398 | X16: 1151 | Y16: 33.87286639 | Z16: 1830 | AA16: 53.85520895 | AB16: 24 | AC16: 0.7062978222 | AD16: 523 | AE16: 15.39140671 | AF16: 785 | AG16: 23.1018246 | AH16: 68 | AI16: 2.001177163 | AJ16: 341 | AK16: 10.03531489 | AL16: 246 | AM16: 7.239552678 | AN16: 198 | AO16: 5.826957034
A17: 明細部 | B17: 国 | C17: 53 | D17: 男 | E17: 3360 | F17: 1404 | G17: 41.78571429 | H17: 1823 | I17: 54.25595238 | J17: 777 | K17: 23.125 | L17: 965 | M17: 28.7202381 | N17: 240 | O17: 7.142857143 | P17: 780 | Q17: 23.21428571 | R17: 1605 | S17: 47.76785714 | T17: 454 | U17: 13.51190476 | V17: 1298 | W17: 38.63095238 | X17: 1146 | Y17: 34.10714286 | Z17: 1807 | AA17: 53.7797619 | AB17: 34 | AC17: 1.011904762 | AD17: 565 | AE17: 16.81547619 | AF17: 758 | AG17: 22.55952381 | AH17: 51 | AI17: 1.517857143 | AJ17: 288 | AK17: 8.571428571 | AL17: 250 | AM17: 7.44047619 | AN17: 193 | AO17: 5.744047619
A18: 明細部 | B18: 国 | C18: 54 | D18: 男 | E18: 3318 | F18: 1303 | G18: 39.27064497 | H18: 1807 | I18: 54.46051838 | J18: 763 | K18: 22.99578059 | L18: 949 | M18: 28.60156721 | N18: 225 | O18: 6.78119349 | P18: 834 | Q18: 25.13562387 | R18: 1662 | S18: 50.09041591 | T18: 485 | U18: 14.6172393 | V18: 1294 | W18: 38.99939723 | X18: 1125 | Y18: 33.90596745 | Z18: 1734 | AA18: 52.26039783 | AB18: 39 | AC18: 1.175406872 | AD18: 516 | AE18: 15.55153707 | AF18: 752 | AG18: 22.66425558 | AH18: 73 | AI18: 2.200120555 | AJ18: 287 | AK18: 8.64978903 | AL18: 322 | AM18: 9.70464135 | AN18: 196 | AO18: 5.907172996
A19: 明細部 | B19: 国 | C19: 55 | D19: 男 | E19: 3340 | F19: 1327 | G19: 39.73053892 | H19: 1807 | I19: 54.10179641 | J19: 736 | K19: 22.03592814 | L19: 957 | M19: 28.65269461 | N19: 232 | O19: 6.946107784 | P19: 890 | Q19: 26.64670659 | R19: 1679 | S19: 50.26946108 | T19: 431 | U19: 12.90419162 | V19: 1316 | W19: 39.4011976 | X19: 1113 | Y19: 33.32335329 | Z19: 1775 | AA19: 53.14371257 | AB19: 28 | AC19: 0.8383233533 | AD19: 564 | AE19: 16.88622754 | AF19: 750 | AG19: 22.45508982 | AH19: 68 | AI19: 2.035928144 | AJ19: 272 | AK19: 8.143712575 | AL19: 307 | AM19: 9.191616766 | AN19: 199 | AO19: 5.958083832
A20: 明細部 | B20: 国 | C20: 56 | D20: 男 | E20: 3274 | F20: 1287 | G20: 39.30971289 | H20: 1812 | I20: 55.34514356 | J20: 729 | K20: 22.26634087 | L20: 810 | M20: 24.74037874 | N20: 241 | O20: 7.361026268 | P20: 820 | Q20: 25.04581552 | R20: 1681 | S20: 51.34392181 | T20: 463 | U20: 14.14172266 | V20: 1309 | W20: 39.98167379 | X20: 1101 | Y20: 33.62858888 | Z20: 1655 | AA20: 50.54978619 | AB20: 40 | AC20: 1.221747098 | AD20: 539 | AE20: 16.46304215 | AF20: 711 | AG20: 21.71655467 | AH20: 75 | AI20: 2.290775809 | AJ20: 252 | AK20: 7.69700672 | AL20: 336 | AM20: 10.26267563 | AN20: 194 | AO20: 5.925473427
A21: 明細部 | B21: 国 | C21: 57 | D21: 男 | E21: 3341 | F21: 1367 | G21: 40.91589345 | H21: 1878 | I21: 56.21071535 | J21: 790 | K21: 23.64561509 | L21: 887 | M21: 26.54893744 | N21: 242 | O21: 7.243340317 | P21: 917 | Q21: 27.44687219 | R21: 1816 | S21: 54.35498354 | T21: 445 | U21: 13.31936546 | V21: 1411 | W21: 42.23286441 | X21: 1169 | Y21: 34.98952409 | Z21: 1708 | AA21: 51.12241844 | AB21: 43 | AC21: 1.287039808 | AD21: 598 | AE21: 17.89883268 | AF21: 740 | AG21: 22.14905717 | AH21: 77 | AI21: 2.304699192 | AJ21: 295 | AK21: 8.829691709 | AL21: 394 | AM21: 11.79287638 | AN21: 204 | AO21: 6.105956301
A22: 明細部 | B22: 国 | C22: 58 | D22: 男 | E22: 2830 | F22: 1171 | G22: 41.37809187 | H22: 1578 | I22: 55.75971731 | J22: 629 | K22: 22.22614841 | L22: 732 | M22: 25.86572438 | N22: 219 | O22: 7.738515901 | P22: 793 | Q22: 28.02120141 | R22: 1582 | S22: 55.90106007 | T22: 375 | U22: 13.25088339 | V22: 1218 | W22: 43.03886926 | X22: 960 | Y22: 33.92226148 | Z22: 1473 | AA22: 52.04946996 | AB22: 40 | AC22: 1.413427562 | AD22: 539 | AE22: 19.0459364 | AF22: 658 | AG22: 23.25088339 | AH22: 73 | AI22: 2.5795053 | AJ22: 235 | AK22: 8.303886926 | AL22: 352 | AM22: 12.43816254 | AN22: 179 | AO22: 6.325088339
A23: 明細部 | B23: 国 | C23: 59 | D23: 男 | E23: 3125 | F23: 1228 | G23: 39.296 | H23: 1774 | I23: 56.768 | J23: 705 | K23: 22.56 | L23: 769 | M23: 24.608 | N23: 208 | O23: 6.656 | P23: 916 | Q23: 29.312 | R23: 1749 | S23: 55.968 | T23: 439 | U23: 14.048 | V23: 1370 | W23: 43.84 | X23: 1073 | Y23: 34.336 | Z23: 1607 | AA23: 51.424 | AB23: 47 | AC23: 1.504 | AD23: 550 | AE23: 17.6 | AF23: 713 | AG23: 22.816 | AH23: 86 | AI23: 2.752 | AJ23: 257 | AK23: 8.224 | AL23: 432 | AM23: 13.824 | AN23: 205 | AO23: 6.56
A24: 明細部 | B24: 国 | C24: 60 | D24: 男 | E24: 3572 | F24: 1367 | G24: 38.26987682 | H24: 1978 | I24: 55.37513998 | J24: 748 | K24: 20.9406495 | L24: 827 | M24: 23.15229563 | N24: 230 | O24: 6.438969765 | P24: 1076 | Q24: 30.12318029 | R24: 2048 | S24: 57.33482643 | T24: 473 | U24: 13.2418813 | V24: 1537 | W24: 43.02911534 | X24: 1156 | Y24: 32.36282195 | Z24: 1771 | AA24: 49.58006719 | AB24: 76 | AC24: 2.127659574 | AD24: 648 | AE24: 18.14109742 | AF24: 805 | AG24: 22.53639418 | AH24: 74 | AI24: 2.071668533 | AJ24: 280 | AK24: 7.838745801 | AL24: 514 | AM24: 14.38969765 | AN24: 207 | AO24: 5.795072788
A25: 明細部 | B25: 国 | C25: 61 | D25: 男 | E25: 3769 | F25: 1433 | G25: 38.02069514 | H25: 2041 | I25: 54.15229504 | J25: 780 | K25: 20.6951446 | L25: 883 | M25: 23.42796498 | N25: 254 | O25: 6.739188114 | P25: 1166 | Q25: 30.93658795 | R25: 2177 | S25: 57.76067923 | T25: 477 | U25: 12.65587689 | V25: 1710 | W25: 45.3701247 | X25: 1285 | Y25: 34.09392412 | Z25: 1856 | AA25: 49.24383125 | AB25: 69 | AC25: 1.83072433 | AD25: 765 | AE25: 20.29716105 | AF25: 914 | AG25: 24.25046431 | AH25: 106 | AI25: 2.812417087 | AJ25: 286 | AK25: 7.588219687 | AL25: 627 | AM25: 16.63571239 | AN25: 235 | AO25: 6.235075617
A26: 明細部 | B26: 国 | C26: 62 | D26: 男 | E26: 4116 | F26: 1560 | G26: 37.90087464 | H26: 2256 | I26: 54.81049563 | J26: 829 | K26: 20.14091351 | L26: 934 | M26: 22.69193392 | N26: 241 | O26: 5.855199223 | P26: 1287 | Q26: 31.26822157 | R26: 2437 | S26: 59.2079689 | T26: 577 | U26: 14.01846453 | V26: 1884 | W26: 45.77259475 | X26: 1384 | Y26: 33.62487852 | Z26: 1951 | AA26: 47.40038873 | AB26: 81 | AC26: 1.967930029 | AD26: 849 | AE26: 20.62682216 | AF26: 961 | AG26: 23.34791059 | AH26: 98 | AI26: 2.380952381 | AJ26: 276 | AK26: 6.705539359 | AL26: 735 | AM26: 17.85714286 | AN26: 251 | AO26: 6.098153547
A27: 明細部 | B27: 国 | C27: 63 | D27: 男 | E27: 4785 | F27: 1667 | G27: 34.83803553 | H27: 2515 | I27: 52.56008359 | J27: 911 | K27: 19.03866249 | L27: 1009 | M27: 21.08672936 | N27: 292 | O27: 6.102403344 | P27: 1480 | Q27: 30.92998955 | R27: 2728 | S27: 57.01149425 | T27: 617 | U27: 12.89446186 | V27: 2196 | W27: 45.89341693 | X27: 1518 | Y27: 31.72413793 | Z27: 2264 | AA27: 47.31452456 | AB27: 94 | AC27: 1.964472309 | AD27: 989 | AE27: 20.66875653 | AF27: 1153 | AG27: 24.09613375 | AH27: 132 | AI27: 2.75862069 | AJ27: 317 | AK27: 6.624869383 | AL27: 827 | AM27: 17.28317659 | AN27: 280 | AO27: 5.851619645
A28: 明細部 | B28: 国 | C28: 64 | D28: 男 | E28: 5199 | F28: 1813 | G28: 34.87209079 | H28: 2792 | I28: 53.70263512 | J28: 956 | K28: 18.38815157 | L28: 1108 | M28: 21.31179073 | N28: 301 | O28: 5.789574918 | P28: 1622 | Q28: 31.19830737 | R28: 3083 | S28: 59.29986536 | T28: 677 | U28: 13.02173495 | V28: 2466 | W28: 47.4321985 | X28: 1638 | Y28: 31.50605886 | Z28: 2367 | AA28: 45.52798615 | AB28: 112 | AC28: 2.154260435 | AD28: 1122 | AE28: 21.58107328 | AF28: 1209 | AG28: 23.25447201 | AH28: 145 | AI28: 2.788997884 | AJ28: 341 | AK28: 6.558953645 | AL28: 1016 | AM28: 19.54221966 | AN28: 321 | AO28: 6.174264282
A29: 明細部 | B29: 国 | C29: 65 | D29: 男 | E29: 5998 | F29: 2223 | G29: 37.06235412 | H29: 3369 | I29: 56.16872291 | J29: 1193 | K29: 19.88996332 | L29: 1255 | M29: 20.92364121 | N29: 377 | O29: 6.285428476 | P29: 2036 | Q29: 33.94464822 | R29: 3782 | S29: 63.05435145 | T29: 801 | U29: 13.35445148 | V29: 2913 | W29: 48.56618873 | X29: 1887 | Y29: 31.46048683 | Z29: 2804 | AA29: 46.74891631 | AB29: 131 | AC29: 2.184061354 | AD29: 1362 | AE29: 22.70756919 | AF29: 1493 | AG29: 24.89163054 | AH29: 151 | AI29: 2.517505835 | AJ29: 412 | AK29: 6.868956319 | AL29: 1305 | AM29: 21.75725242 | AN29: 376 | AO29: 6.268756252
A30: 明細部 | B30: 国 | C30: 66 | D30: 男 | E30: 8024 | F30: 2757 | G30: 34.35942173 | H30: 4431 | I30: 55.2218345 | J30: 1561 | K30: 19.45413759 | L30: 1602 | M30: 19.96510469 | N30: 503 | O30: 6.268693918 | P30: 2732 | Q30: 34.04785643 | R30: 5069 | S30: 63.17298106 | T30: 1018 | U30: 12.68693918 | V30: 4064 | W30: 50.64805583 | X30: 2477 | Y30: 30.86989033 | Z30: 3599 | AA30: 44.85294118 | AB30: 198 | AC30: 2.467597208 | AD30: 1939 | AE30: 24.16500499 | AF30: 2128 | AG30: 26.52043868 | AH30: 251 | AI30: 3.128115653 | AJ30: 538 | AK30: 6.704885344 | AL30: 1893 | AM30: 23.59172483 | AN30: 540 | AO30: 6.729810568
A31: 明細部 | B31: 国 | C31: 67 | D31: 男 | E31: 9381 | F31: 3281 | G31: 34.97494937 | H31: 5307 | I31: 56.57179405 | J31: 1749 | K31: 18.6440678 | L31: 1743 | M31: 18.58010873 | N31: 560 | O31: 5.969512845 | P31: 3166 | Q31: 33.74906726 | R31: 5861 | S31: 62.47734783 | T31: 1109 | U31: 11.8217674 | V31: 4690 | W31: 49.99467008 | X31: 2642 | Y31: 28.16330882 | Z31: 4210 | AA31: 44.87794478 | AB31: 226 | AC31: 2.409124827 | AD31: 2256 | AE31: 24.04860889 | AF31: 2393 | AG31: 25.50900757 | AH31: 255 | AI31: 2.718260313 | AJ31: 589 | AK31: 6.278648332 | AL31: 2280 | AM31: 24.30444516 | AN31: 581 | AO31: 6.193369577
A32: 明細部 | B32: 国 | C32: 68 | D32: 男 | E32: 11160 | F32: 3790 | G32: 33.96057348 | H32: 6148 | I32: 55.08960573 | J32: 2025 | K32: 18.14516129 | L32: 2016 | M32: 18.06451613 | N32: 687 | O32: 6.155913978 | P32: 3843 | Q32: 34.43548387 | R32: 7170 | S32: 64.24731183 | T32: 1285 | U32: 11.51433692 | V32: 5791 | W32: 51.890681 | X32: 2991 | Y32: 26.80107527 | Z32: 4937 | AA32: 44.23835125 | AB32: 311 | AC32: 2.786738351 | AD32: 2779 | AE32: 24.90143369 | AF32: 2775 | AG32: 24.8655914 | AH32: 330 | AI32: 2.956989247 | AJ32: 684 | AK32: 6.129032258 | AL32: 2812 | AM32: 25.19713262 | AN32: 696 | AO32: 6.23655914
A33: 明細部 | B33: 国 | C33: 69 | D33: 男 | E33: 12759 | F33: 4173 | G33: 32.70632495 | H33: 7048 | I33: 55.23943883 | J33: 2192 | K33: 17.18002978 | L33: 2100 | M33: 16.45897014 | N33: 755 | O33: 5.917391645 | P33: 4489 | Q33: 35.18300807 | R33: 8188 | S33: 64.17430833 | T33: 1398 | U33: 10.95697155 | V33: 6455 | W33: 50.59173916 | X33: 3172 | Y33: 24.86088251 | Z33: 5429 | AA33: 42.55035661 | AB33: 359 | AC33: 2.813700133 | AD33: 3187 | AE33: 24.97844659 | AF33: 3092 | AG33: 24.23387413 | AH33: 398 | AI33: 3.119366722 | AJ33: 752 | AK33: 5.893878831 | AL33: 3356 | AM33: 26.3030018 | AN33: 798 | AO33: 6.254408653
A34: 明細部 | B34: 国 | C34: 70 | D34: 男 | E34: 13370 | F34: 4370 | G34: 32.68511593 | H34: 7410 | I34: 55.42258788 | J34: 2272 | K34: 16.99326851 | L34: 2251 | M34: 16.83620045 | N34: 826 | O34: 6.178010471 | P34: 4731 | Q34: 35.38519073 | R34: 9118 | S34: 68.19745699 | T34: 1550 | U34: 11.59311892 | V34: 7167 | W34: 53.60508601 | X34: 3361 | Y34: 25.13836948 | Z34: 5823 | AA34: 43.55272999 | AB34: 441 | AC34: 3.298429319 | AD34: 3547 | AE34: 26.52954375 | AF34: 3397 | AG34: 25.40762902 | AH34: 443 | AI34: 3.313388182 | AJ34: 835 | AK34: 6.245325355 | AL34: 3893 | AM34: 29.11742708 | AN34: 847 | AO34: 6.335078534
A35: 明細部 | B35: 国 | C35: 71 | D35: 男 | E35: 14768 | F35: 4706 | G35: 31.86619718 | H35: 7920 | I35: 53.62946912 | J35: 2308 | K35: 15.6283857 | L35: 2303 | M35: 15.59452871 | N35: 876 | O35: 5.931744312 | P35: 5082 | Q35: 34.41224269 | R35: 9600 | S35: 65.00541712 | T35: 1515 | U35: 10.25866739 | V35: 7548 | W35: 51.11050921 | X35: 3345 | Y35: 22.65032503 | Z35: 6030 | AA35: 40.83152763 | AB35: 492 | AC35: 3.331527627 | AD35: 3822 | AE35: 25.88028169 | AF35: 3518 | AG35: 23.82177681 | AH35: 468 | AI35: 3.169014085 | AJ35: 827 | AK35: 5.599945829 | AL35: 4382 | AM35: 29.67226436 | AN35: 894 | AO35: 6.053629469
A36: 明細部 | B36: 国 | C36: 72 | D36: 男 | E36: 15940 | F36: 5185 | G36: 32.52823087 | H36: 9022 | I36: 56.59974906 | J36: 2418 | K36: 15.16938519 | L36: 2414 | M36: 15.14429109 | N36: 1044 | O36: 6.549560853 | P36: 5706 | Q36: 35.79673777 | R36: 10869 | S36: 68.18695107 | T36: 1631 | U36: 10.23212045 | V36: 8782 | W36: 55.09410289 | X36: 3545 | Y36: 22.23964868 | Z36: 6611 | AA36: 41.47427854 | AB36: 555 | AC36: 3.481806775 | AD36: 4478 | AE36: 28.09284818 | AF36: 3888 | AG36: 24.39146801 | AH36: 582 | AI36: 3.65119197 | AJ36: 866 | AK36: 5.432873275 | AL36: 4811 | AM36: 30.18193225 | AN36: 958 | AO36: 6.010037641
A37: 明細部 | B37: 国 | C37: 73 | D37: 男 | E37: 17277 | F37: 5334 | G37: 30.87341552 | H37: 9328 | I37: 53.99085489 | J37: 2579 | K37: 14.92736007 | L37: 2411 | M37: 13.95496903 | N37: 1198 | O37: 6.934074203 | P37: 6058 | Q37: 35.06395786 | R37: 12109 | S37: 70.08739943 | T37: 1861 | U37: 10.77154599 | V37: 9317 | W37: 53.92718643 | X37: 3689 | Y37: 21.35208659 | Z37: 7032 | AA37: 40.70151068 | AB37: 700 | AC37: 4.051629334 | AD37: 4990 | AE37: 28.88232911 | AF37: 4121 | AG37: 23.85252069 | AH37: 629 | AI37: 3.640678359 | AJ37: 864 | AK37: 5.000868206 | AL37: 5764 | AM37: 33.36227354 | AN37: 1035 | AO37: 5.990623372
A38: 明細部 | B38: 国 | C38: 74 | D38: 男 | E38: 19491 | F38: 5764 | G38: 29.57262326 | H38: 10426 | I38: 53.49135498 | J38: 2599 | K38: 13.33435945 | L38: 2551 | M38: 13.08809194 | N38: 1311 | O38: 6.726181314 | P38: 6649 | Q38: 34.11318044 | R38: 13115 | S38: 67.28746601 | T38: 1868 | U38: 9.583910523 | V38: 10455 | W38: 53.6401416 | X38: 3785 | Y38: 19.41921913 | Z38: 7593 | AA38: 38.95644143 | AB38: 778 | AC38: 3.99158586 | AD38: 5637 | AE38: 28.92104048 | AF38: 4588 | AG38: 23.53906931 | AH38: 685 | AI38: 3.514442563 | AJ38: 914 | AK38: 4.6893438 | AL38: 6565 | AM38: 33.6822123 | AN38: 1201 | AO38: 6.161818275
A39: 明細部 | B39: 国 | C39: 40 | D39: 女 | E39: 1680 | F39: 323 | G39: 19.22619048 | H39: 220 | I39: 13.0952381 | J39: 101 | K39: 6.011904762 | L39: 106 | M39: 6.30952381 | N39: 27 | O39: 1.607142857 | P39: 85 | Q39: 5.05952381 | R39: 366 | S39: 21.78571429 | T39: 17 | U39: 1.011904762 | V39: 146 | W39: 8.69047619 | X39: 127 | Y39: 7.55952381 | Z39: 543 | AA39: 32.32142857 | AB39: 1 | AC39: 0.05952380952 | AD39: 182 | AE39: 10.83333333 | AF39: 295 | AG39: 17.55952381 | AH39: 7 | AI39: 0.4166666667 | AJ39: 56 | AK39: 3.333333333 | AL39: 29 | AM39: 1.726190476 | AN39: 23 | AO39: 1.369047619
A40: 明細部 | B40: 国 | C40: 41 | D40: 女 | E40: 1463 | F40: 297 | G40: 20.30075188 | H40: 201 | I40: 13.73889269 | J40: 102 | K40: 6.971975393 | L40: 96 | M40: 6.561859193 | N40: 23 | O40: 1.572112098 | P40: 94 | Q40: 6.425153794 | R40: 333 | S40: 22.76144908 | T40: 15 | U40: 1.025290499 | V40: 147 | W40: 10.04784689 | X40: 121 | Y40: 8.270676692 | Z40: 500 | AA40: 34.17634997 | AB40: 0 | AC40: 0 | AD40: 167 | AE40: 11.41490089 | AF40: 279 | AG40: 19.07040328 | AH40: 9 | AI40: 0.6151742994 | AJ40: 52 | AK40: 3.554340396 | AL40: 31 | AM40: 2.118933698 | AN40: 35 | AO40: 2.392344498
A41: 明細部 | B41: 国 | C41: 42 | D41: 女 | E41: 1515 | F41: 279 | G41: 18.41584158 | H41: 180 | I41: 11.88118812 | J41: 92 | K41: 6.072607261 | L41: 97 | M41: 6.402640264 | N41: 18 | O41: 1.188118812 | P41: 82 | Q41: 5.412541254 | R41: 341 | S41: 22.50825083 | T41: 16 | U41: 1.056105611 | V41: 162 | W41: 10.69306931 | X41: 145 | Y41: 9.570957096 | Z41: 495 | AA41: 32.67326733 | AB41: 0 | AC41: 0 | AD41: 174 | AE41: 11.48514851 | AF41: 286 | AG41: 18.87788779 | AH41: 7 | AI41: 0.4620462046 | AJ41: 51 | AK41: 3.366336634 | AL41: 35 | AM41: 2.310231023 | AN41: 26 | AO41: 1.716171617
A42: 明細部 | B42: 国 | C42: 43 | D42: 女 | E42: 1517 | F42: 327 | G42: 21.55570204 | H42: 212 | I42: 13.97495056 | J42: 94 | K42: 6.196440343 | L42: 99 | M42: 6.526038233 | N42: 23 | O42: 1.516150297 | P42: 102 | Q42: 6.723796968 | R42: 411 | S42: 27.09294661 | T42: 16 | U42: 1.05471325 | V42: 177 | W42: 11.66776533 | X42: 147 | Y42: 9.690177983 | Z42: 534 | AA42: 35.20105471 | AB42: 2 | AC42: 0.1318391562 | AD42: 169 | AE42: 11.1404087 | AF42: 282 | AG42: 18.58932103 | AH42: 20 | AI42: 1.318391562 | AJ42: 57 | AK42: 3.757415953 | AL42: 50 | AM42: 3.295978906 | AN42: 27 | AO42: 1.779828609
A43: 明細部 | B43: 国 | C43: 44 | D43: 女 | E43: 1473 | F43: 281 | G43: 19.07671419 | H43: 185 | I43: 12.55940258 | J43: 87 | K43: 5.906313646 | L43: 99 | M43: 6.720977597 | N43: 14 | O43: 0.9504412763 | P43: 81 | Q43: 5.49898167 | R43: 355 | S43: 24.10047522 | T43: 12 | U43: 0.8146639511 | V43: 187 | W43: 12.6951799 | X43: 163 | Y43: 11.065852 | Z43: 577 | AA43: 39.17175832 | AB43: 2 | AC43: 0.1357773252 | AD43: 179 | AE43: 12.1520706 | AF43: 275 | AG43: 18.66938221 | AH43: 15 | AI43: 1.018329939 | AJ43: 58 | AK43: 3.93754243 | AL43: 49 | AM43: 3.326544467 | AN43: 21 | AO43: 1.425661914
A44: 明細部 | B44: 国 | C44: 45 | D44: 女 | E44: 1729 | F44: 347 | G44: 20.06940428 | H44: 228 | I44: 13.18681319 | J44: 111 | K44: 6.419895894 | L44: 112 | M44: 6.477732794 | N44: 28 | O44: 1.619433198 | P44: 123 | Q44: 7.113938693 | R44: 448 | S44: 25.91093117 | T44: 16 | U44: 0.9253903991 | V44: 250 | W44: 14.45922499 | X44: 179 | Y44: 10.35280509 | Z44: 666 | AA44: 38.51937536 | AB44: 2 | AC44: 0.1156737999 | AD44: 204 | AE44: 11.79872759 | AF44: 341 | AG44: 19.72238288 | AH44: 21 | AI44: 1.214574899 | AJ44: 83 | AK44: 4.800462695 | AL44: 68 | AM44: 3.932909196 | AN44: 27 | AO44: 1.561596298
A45: 明細部 | B45: 国 | C45: 46 | D45: 女 | E45: 1754 | F45: 367 | G45: 20.92360319 | H45: 237 | I45: 13.51197263 | J45: 126 | K45: 7.183580388 | L45: 128 | M45: 7.297605473 | N45: 26 | O45: 1.482326112 | P45: 134 | Q45: 7.63968073 | R45: 457 | S45: 26.05473204 | T45: 21 | U45: 1.197263398 | V45: 266 | W45: 15.16533637 | X45: 201 | Y45: 11.45952109 | Z45: 690 | AA45: 39.3386545 | AB45: 1 | AC45: 0.05701254276 | AD45: 200 | AE45: 11.40250855 | AF45: 331 | AG45: 18.87115165 | AH45: 13 | AI45: 0.7411630559 | AJ45: 89 | AK45: 5.074116306 | AL45: 88 | AM45: 5.017103763 | AN45: 36 | AO45: 2.052451539
A46: 明細部 | B46: 国 | C46: 47 | D46: 女 | E46: 1826 | F46: 382 | G46: 20.92004381 | H46: 235 | I46: 12.86966046 | J46: 127 | K46: 6.9550931 | L46: 138 | M46: 7.557502738 | N46: 31 | O46: 1.69769989 | P46: 147 | Q46: 8.050383352 | R46: 523 | S46: 28.64184009 | T46: 22 | U46: 1.204819277 | V46: 313 | W46: 17.14129244 | X46: 237 | Y46: 12.97918949 | Z46: 726 | AA46: 39.75903614 | AB46: 1 | AC46: 0.0547645126 | AD46: 209 | AE46: 11.44578313 | AF46: 339 | AG46: 18.56516977 | AH46: 12 | AI46: 0.6571741512 | AJ46: 82 | AK46: 4.490690033 | AL46: 70 | AM46: 3.833515882 | AN46: 40 | AO46: 2.190580504
A47: 明細部 | B47: 国 | C47: 48 | D47: 女 | E47: 1842 | F47: 421 | G47: 22.85559175 | H47: 281 | I47: 15.25515744 | J47: 137 | K47: 7.437567861 | L47: 138 | M47: 7.491856678 | N47: 24 | O47: 1.302931596 | P47: 178 | Q47: 9.663409338 | R47: 564 | S47: 30.61889251 | T47: 25 | U47: 1.357220413 | V47: 324 | W47: 17.58957655 | X47: 240 | Y47: 13.02931596 | Z47: 809 | AA47: 43.91965255 | AB47: 0 | AC47: 0 | AD47: 244 | AE47: 13.24647123 | AF47: 342 | AG47: 18.56677524 | AH47: 14 | AI47: 0.7600434311 | AJ47: 99 | AK47: 5.374592834 | AL47: 83 | AM47: 4.50597177 | AN47: 48 | AO47: 2.605863192
A48: 明細部 | B48: 国 | C48: 49 | D48: 女 | E48: 2066 | F48: 440 | G48: 21.29719264 | H48: 294 | I48: 14.2303969 | J48: 177 | K48: 8.567279768 | L48: 162 | M48: 7.841239109 | N48: 30 | O48: 1.452081317 | P48: 161 | Q48: 7.792836399 | R48: 651 | S48: 31.51016457 | T48: 26 | U48: 1.258470474 | V48: 393 | W48: 19.02226525 | X48: 292 | Y48: 14.13359148 | Z48: 936 | AA48: 45.30493708 | AB48: 4 | AC48: 0.1936108422 | AD48: 243 | AE48: 11.76185866 | AF48: 382 | AG48: 18.48983543 | AH48: 18 | AI48: 0.8712487899 | AJ48: 103 | AK48: 4.985479187 | AL48: 127 | AM48: 6.14714424 | AN48: 46 | AO48: 2.226524685
A49: 明細部 | B49: 国 | C49: 50 | D49: 女 | E49: 2252 | F49: 480 | G49: 21.31438721 | H49: 332 | I49: 14.74245115 | J49: 193 | K49: 8.570159858 | L49: 196 | M49: 8.703374778 | N49: 26 | O49: 1.154529307 | P49: 230 | Q49: 10.21314387 | R49: 793 | S49: 35.21314387 | T49: 28 | U49: 1.243339254 | V49: 466 | W49: 20.69271758 | X49: 316 | Y49: 14.03197158 | Z49: 1053 | AA49: 46.75843694 | AB49: 2 | AC49: 0.08880994671 | AD49: 289 | AE49: 12.8330373 | AF49: 412 | AG49: 18.29484902 | AH49: 14 | AI49: 0.621669627 | AJ49: 155 | AK49: 6.88277087 | AL49: 143 | AM49: 6.34991119 | AN49: 47 | AO49: 2.087033748
A50: 明細部 | B50: 国 | C50: 51 | D50: 女 | E50: 2243 | F50: 488 | G50: 21.75657601 | H50: 363 | I50: 16.18368257 | J50: 219 | K50: 9.763709318 | L50: 204 | M50: 9.094962104 | N50: 35 | O50: 1.560410165 | P50: 232 | Q50: 10.34329024 | R50: 839 | S50: 37.40526081 | T50: 39 | U50: 1.738742755 | V50: 463 | W50: 20.64199733 | X50: 324 | Y50: 14.44493981 | Z50: 1161 | AA50: 51.76103433 | AB50: 3 | AC50: 0.1337494427 | AD50: 294 | AE50: 13.10744539 | AF50: 434 | AG50: 19.34908605 | AH50: 26 | AI50: 1.159161837 | AJ50: 161 | AK50: 7.177886759 | AL50: 156 | AM50: 6.954971021 | AN50: 63 | AO50: 2.808738297
A51: 明細部 | B51: 国 | C51: 52 | D51: 女 | E51: 2344 | F51: 517 | G51: 22.05631399 | H51: 398 | I51: 16.97952218 | J51: 229 | K51: 9.769624573 | L51: 220 | M51: 9.385665529 | N51: 23 | O51: 0.9812286689 | P51: 261 | Q51: 11.13481229 | R51: 939 | S51: 40.05972696 | T51: 39 | U51: 1.663822526 | V51: 548 | W51: 23.37883959 | X51: 361 | Y51: 15.40102389 | Z51: 1291 | AA51: 55.07679181 | AB51: 1 | AC51: 0.04266211604 | AD51: 286 | AE51: 12.20136519 | AF51: 414 | AG51: 17.66211604 | AH51: 32 | AI51: 1.365187713 | AJ51: 169 | AK51: 7.209897611 | AL51: 174 | AM51: 7.423208191 | AN51: 73 | AO51: 3.114334471
A52: 明細部 | B52: 国 | C52: 53 | D52: 女 | E52: 2402 | F52: 517 | G52: 21.52373022 | H52: 413 | I52: 17.194005 | J52: 229 | K52: 9.533721898 | L52: 263 | M52: 10.94920899 | N52: 31 | O52: 1.290591174 | P52: 282 | Q52: 11.74021649 | R52: 1007 | S52: 41.92339717 | T52: 40 | U52: 1.665278934 | V52: 592 | W52: 24.64612823 | X52: 395 | Y52: 16.44462948 | Z52: 1380 | AA52: 57.45212323 | AB52: 5 | AC52: 0.2081598668 | AD52: 311 | AE52: 12.94754371 | AF52: 451 | AG52: 18.77601998 | AH52: 23 | AI52: 0.9575353872 | AJ52: 180 | AK52: 7.493755204 | AL52: 221 | AM52: 9.200666112 | AN52: 79 | AO52: 3.288925895
A53: 明細部 | B53: 国 | C53: 54 | D53: 女 | E53: 2536 | F53: 552 | G53: 21.76656151 | H53: 433 | I53: 17.07413249 | J53: 255 | K53: 10.05520505 | L53: 299 | M53: 11.79022082 | N53: 31 | O53: 1.222397476 | P53: 326 | Q53: 12.85488959 | R53: 1180 | S53: 46.52996845 | T53: 51 | U53: 2.011041009 | V53: 634 | W53: 25 | X53: 432 | Y53: 17.03470032 | Z53: 1451 | AA53: 57.21608833 | AB53: 5 | AC53: 0.1971608833 | AD53: 333 | AE53: 13.13091483 | AF53: 483 | AG53: 19.04574132 | AH53: 26 | AI53: 1.025236593 | AJ53: 211 | AK53: 8.320189274 | AL53: 246 | AM53: 9.700315457 | AN53: 69 | AO53: 2.720820189
A54: 明細部 | B54: 国 | C54: 55 | D54: 女 | E54: 2565 | F54: 585 | G54: 22.80701754 | H54: 458 | I54: 17.85575049 | J54: 264 | K54: 10.29239766 | L54: 321 | M54: 12.51461988 | N54: 36 | O54: 1.403508772 | P54: 360 | Q54: 14.03508772 | R54: 1260 | S54: 49.12280702 | T54: 50 | U54: 1.949317739 | V54: 698 | W54: 27.21247563 | X54: 431 | Y54: 16.80311891 | Z54: 1521 | AA54: 59.29824561 | AB54: 3 | AC54: 0.1169590643 | AD54: 369 | AE54: 14.38596491 | AF54: 503 | AG54: 19.61013645 | AH54: 29 | AI54: 1.130604288 | AJ54: 215 | AK54: 8.382066277 | AL54: 290 | AM54: 11.30604288 | AN54: 94 | AO54: 3.664717349
A55: 明細部 | B55: 国 | C55: 56 | D55: 女 | E55: 2658 | F55: 587 | G55: 22.08427389 | H55: 475 | I55: 17.87057938 | J55: 264 | K55: 9.93227991 | L55: 280 | M55: 10.53423627 | N55: 32 | O55: 1.203912716 | P55: 385 | Q55: 14.48457487 | R55: 1346 | S55: 50.63957863 | T55: 50 | U55: 1.881113619 | V55: 690 | W55: 25.95936795 | X55: 435 | Y55: 16.36568849 | Z55: 1620 | AA55: 60.94808126 | AB55: 10 | AC55: 0.3762227239 | AD55: 378 | AE55: 14.22121896 | AF55: 543 | AG55: 20.42889391 | AH55: 37 | AI55: 1.392024078 | AJ55: 240 | AK55: 9.029345372 | AL55: 286 | AM55: 10.7599699 | AN55: 99 | AO55: 3.724604966
A56: 明細部 | B56: 国 | C56: 57 | D56: 女 | E56: 2621 | F56: 573 | G56: 21.86188478 | H56: 502 | I56: 19.15299504 | J56: 281 | K56: 10.72109882 | L56: 297 | M56: 11.33155284 | N56: 27 | O56: 1.030141167 | P56: 396 | Q56: 15.10873712 | R56: 1383 | S56: 52.7661198 | T56: 61 | U56: 2.327355971 | V56: 733 | W56: 27.96642503 | X56: 469 | Y56: 17.89393361 | Z56: 1574 | AA56: 60.05341473 | AB56: 5 | AC56: 0.1907668829 | AD56: 396 | AE56: 15.10873712 | AF56: 523 | AG56: 19.95421595 | AH56: 34 | AI56: 1.297214804 | AJ56: 212 | AK56: 8.088515834 | AL56: 329 | AM56: 12.55246089 | AN56: 76 | AO56: 2.89965662
A57: 明細部 | B57: 国 | C57: 58 | D57: 女 | E57: 2508 | F57: 542 | G57: 21.6108453 | H57: 461 | I57: 18.38118022 | J57: 233 | K57: 9.290271132 | L57: 294 | M57: 11.72248804 | N57: 26 | O57: 1.036682616 | P57: 378 | Q57: 15.07177033 | R57: 1295 | S57: 51.63476874 | T57: 55 | U57: 2.192982456 | V57: 756 | W57: 30.14354067 | X57: 434 | Y57: 17.3046252 | Z57: 1504 | AA57: 59.96810207 | AB57: 8 | AC57: 0.3189792663 | AD57: 355 | AE57: 14.15470494 | AF57: 516 | AG57: 20.57416268 | AH57: 38 | AI57: 1.515151515 | AJ57: 201 | AK57: 8.014354067 | AL57: 343 | AM57: 13.67623604 | AN57: 86 | AO57: 3.429027113
A58: 明細部 | B58: 国 | C58: 59 | D58: 女 | E58: 2877 | F58: 596 | G58: 20.71602364 | H58: 506 | I58: 17.58776503 | J58: 287 | K58: 9.9756691 | L58: 301 | M58: 10.4622871 | N58: 28 | O58: 0.9732360097 | P58: 453 | Q58: 15.7455683 | R58: 1530 | S58: 53.18039625 | T58: 57 | U58: 1.981230448 | V58: 909 | W58: 31.59541189 | X58: 501 | Y58: 17.41397289 | Z58: 1749 | AA58: 60.79249218 | AB58: 11 | AC58: 0.3823427181 | AD58: 459 | AE58: 15.95411887 | AF58: 584 | AG58: 20.29892249 | AH58: 44 | AI58: 1.529370872 | AJ58: 254 | AK58: 8.828640945 | AL58: 421 | AM58: 14.63329857 | AN58: 84 | AO58: 2.919708029
A59: 明細部 | B59: 国 | C59: 60 | D59: 女 | E59: 3460 | F59: 703 | G59: 20.31791908 | H59: 615 | I59: 17.77456647 | J59: 348 | K59: 10.05780347 | L59: 349 | M59: 10.0867052 | N59: 43 | O59: 1.242774566 | P59: 574 | Q59: 16.58959538 | R59: 1934 | S59: 55.89595376 | T59: 69 | U59: 1.994219653 | V59: 1026 | W59: 29.65317919 | X59: 563 | Y59: 16.2716763 | Z59: 2161 | AA59: 62.4566474 | AB59: 7 | AC59: 0.2023121387 | AD59: 546 | AE59: 15.78034682 | AF59: 710 | AG59: 20.52023121 | AH59: 54 | AI59: 1.560693642 | AJ59: 299 | AK59: 8.641618497 | AL59: 541 | AM59: 15.63583815 | AN59: 118 | AO59: 3.410404624
A60: 明細部 | B60: 国 | C60: 61 | D60: 女 | E60: 3632 | F60: 768 | G60: 21.14537445 | H60: 680 | I60: 18.72246696 | J60: 384 | K60: 10.57268722 | L60: 402 | M60: 11.06828194 | N60: 32 | O60: 0.8810572687 | P60: 609 | Q60: 16.76762115 | R60: 2084 | S60: 57.37885463 | T60: 76 | U60: 2.092511013 | V60: 1218 | W60: 33.53524229 | X60: 664 | Y60: 18.28193833 | Z60: 2204 | AA60: 60.68281938 | AB60: 8 | AC60: 0.2202643172 | AD60: 567 | AE60: 15.61123348 | AF60: 785 | AG60: 21.61343612 | AH60: 42 | AI60: 1.156387665 | AJ60: 292 | AK60: 8.039647577 | AL60: 581 | AM60: 15.99669604 | AN60: 105 | AO60: 2.890969163
A61: 明細部 | B61: 国 | C61: 62 | D61: 女 | E61: 4486 | F61: 888 | G61: 19.79491752 | H61: 766 | I61: 17.07534552 | J61: 407 | K61: 9.072670531 | L61: 393 | M61: 8.760588498 | N61: 40 | O61: 0.8916629514 | P61: 736 | Q61: 16.40659831 | R61: 2580 | S61: 57.51226037 | T61: 76 | U61: 1.694159608 | V61: 1473 | W61: 32.83548819 | X61: 736 | Y61: 16.40659831 | Z61: 2681 | AA61: 59.76370932 | AB61: 12 | AC61: 0.2674988854 | AD61: 701 | AE61: 15.62639322 | AF61: 992 | AG61: 22.11324119 | AH61: 69 | AI61: 1.538118591 | AJ61: 349 | AK61: 7.779759251 | AL61: 735 | AM61: 16.38430673 | AN61: 138 | AO61: 3.076237182
A62: 明細部 | B62: 国 | C62: 63 | D62: 女 | E62: 5077 | F62: 1028 | G62: 20.24817806 | H62: 864 | I62: 17.01792397 | J62: 492 | K62: 9.690762261 | L62: 466 | M62: 9.178648808 | N62: 45 | O62: 0.8863502068 | P62: 902 | Q62: 17.76639748 | R62: 3037 | S62: 59.81879062 | T62: 97 | U62: 1.910577112 | V62: 1832 | W62: 36.08430175 | X62: 879 | Y62: 17.31337404 | Z62: 3112 | AA62: 61.29604097 | AB62: 9 | AC62: 0.1772700414 | AD62: 841 | AE62: 16.56490053 | AF62: 1145 | AG62: 22.5526886 | AH62: 81 | AI62: 1.595430372 | AJ62: 415 | AK62: 8.174118574 | AL62: 869 | AM62: 17.11640733 | AN62: 164 | AO62: 3.230254087
A63: 明細部 | B63: 国 | C63: 64 | D63: 女 | E63: 5967 | F63: 1180 | G63: 19.77543154 | H63: 1082 | I63: 18.13306519 | J63: 581 | K63: 9.736886207 | L63: 570 | M63: 9.552538964 | N63: 56 | O63: 0.9384950561 | P63: 1095 | Q63: 18.35093012 | R63: 3642 | S63: 61.03569633 | T63: 114 | U63: 1.910507793 | V63: 2290 | W63: 38.37774426 | X63: 1094 | Y63: 18.33417128 | Z63: 3554 | AA63: 59.56091838 | AB63: 12 | AC63: 0.2011060835 | AD63: 1111 | AE63: 18.61907156 | AF63: 1418 | AG63: 23.76403553 | AH63: 91 | AI63: 1.525054466 | AJ63: 472 | AK63: 7.910172616 | AL63: 1197 | AM63: 20.06033183 | AN63: 207 | AO63: 3.46907994
A64: 明細部 | B64: 国 | C64: 65 | D64: 女 | E64: 7432 | F64: 1437 | G64: 19.33530678 | H64: 1275 | I64: 17.1555436 | J64: 651 | K64: 8.75941873 | L64: 598 | M64: 8.046286329 | N64: 63 | O64: 0.8476856835 | P64: 1395 | Q64: 18.77018299 | R64: 4545 | S64: 61.15446717 | T64: 122 | U64: 1.641550054 | V64: 2905 | W64: 39.08772874 | X64: 1279 | Y64: 17.20936491 | Z64: 4252 | AA64: 57.21205597 | AB64: 16 | AC64: 0.215285253 | AD64: 1294 | AE64: 17.41119483 | AF64: 1702 | AG64: 22.90096878 | AH64: 130 | AI64: 1.74919268 | AJ64: 578 | AK64: 7.777179763 | AL64: 1416 | AM64: 19.05274489 | AN64: 256 | AO64: 3.444564047
A65: 明細部 | B65: 国 | C65: 66 | D65: 女 | E65: 9001 | F65: 1853 | G65: 20.58660149 | H65: 1547 | I65: 17.18697922 | J65: 847 | K65: 9.410065548 | L65: 799 | M65: 8.876791468 | N65: 82 | O65: 0.9110098878 | P65: 1822 | Q65: 20.24219531 | R65: 5717 | S65: 63.51516498 | T65: 165 | U65: 1.833129652 | V65: 3877 | W65: 43.07299189 | X65: 1600 | Y65: 17.77580269 | Z65: 5189 | AA65: 57.64915009 | AB65: 22 | AC65: 0.244417287 | AD65: 1746 | AE65: 19.39784468 | AF65: 2226 | AG65: 24.73058549 | AH65: 148 | AI65: 1.644261749 | AJ65: 710 | AK65: 7.888012443 | AL65: 1908 | AM65: 21.19764471 | AN65: 348 | AO65: 3.866237085
A66: 明細部 | B66: 国 | C66: 67 | D66: 女 | E66: 9838 | F66: 1940 | G66: 19.71945517 | H66: 1731 | I66: 17.59503964 | J66: 880 | K66: 8.944907502 | L66: 804 | M66: 8.172392763 | N66: 105 | O66: 1.0672901 | P66: 2007 | Q66: 20.4004879 | R66: 6280 | S66: 63.83411262 | T66: 173 | U66: 1.758487497 | V66: 4272 | W66: 43.42346005 | X66: 1648 | Y66: 16.75137223 | Z66: 5569 | AA66: 56.60703395 | AB66: 22 | AC66: 0.2236226875 | AD66: 1827 | AE66: 18.57084773 | AF66: 2307 | AG66: 23.44988819 | AH66: 138 | AI66: 1.402724131 | AJ66: 665 | AK66: 6.759503964 | AL66: 2152 | AM66: 21.87436471 | AN66: 355 | AO66: 3.608457003
A67: 明細部 | B67: 国 | C67: 68 | D67: 女 | E67: 11171 | F67: 2317 | G67: 20.74120491 | H67: 2041 | I67: 18.27052189 | J67: 1074 | K67: 9.614179572 | L67: 877 | M67: 7.850684809 | N67: 108 | O67: 0.9667890073 | P67: 2444 | Q67: 21.87807716 | R67: 7347 | S67: 65.76850774 | T67: 201 | U67: 1.799301763 | V67: 5020 | W67: 44.93778534 | X67: 1919 | Y67: 17.17840838 | Z67: 6303 | AA67: 56.42288067 | AB67: 17 | AC67: 0.1521797511 | AD67: 2224 | AE67: 19.90869215 | AF67: 2714 | AG67: 24.29504968 | AH67: 203 | AI67: 1.817205264 | AJ67: 821 | AK67: 7.349386805 | AL67: 2524 | AM67: 22.59421717 | AN67: 379 | AO67: 3.392713275
A68: 明細部 | B68: 国 | C68: 69 | D68: 女 | E68: 12721 | F68: 2633 | G68: 20.69805833 | H68: 2321 | I68: 18.24542096 | J68: 1207 | K68: 9.488247779 | L68: 966 | M68: 7.59374263 | N68: 158 | O68: 1.24204072 | P68: 2715 | Q68: 21.34266174 | R68: 8388 | S68: 65.9382124 | T68: 252 | U68: 1.980976338 | V68: 6224 | W68: 48.92697115 | X68: 2142 | Y68: 16.83829888 | Z68: 7194 | AA68: 56.55215785 | AB68: 44 | AC68: 0.3458847575 | AD68: 2567 | AE68: 20.17923119 | AF68: 3114 | AG68: 24.47920761 | AH68: 261 | AI68: 2.051725493 | AJ68: 842 | AK68: 6.618976496 | AL68: 2998 | AM68: 23.56732961 | AN68: 520 | AO68: 4.087728952
A69: 明細部 | B69: 国 | C69: 70 | D69: 女 | E69: 14146 | F69: 2979 | G69: 21.0589566 | H69: 2566 | I69: 18.13940336 | J69: 1268 | K69: 8.96366464 | L69: 1047 | M69: 7.401385551 | N69: 135 | O69: 0.9543333805 | P69: 3088 | Q69: 21.82949244 | R69: 9457 | S69: 66.85282059 | T69: 234 | U69: 1.654177859 | V69: 6851 | W69: 48.43065177 | X69: 2332 | Y69: 16.48522551 | Z69: 7732 | AA69: 54.65856072 | AB69: 37 | AC69: 0.2615580376 | AD69: 2881 | AE69: 20.36618125 | AF69: 3346 | AG69: 23.65332956 | AH69: 284 | AI69: 2.007634667 | AJ69: 974 | AK69: 6.885338612 | AL69: 3510 | AM69: 24.81266789 | AN69: 560 | AO69: 3.958716245
A70: 明細部 | B70: 国 | C70: 71 | D70: 女 | E70: 15419 | F70: 3263 | G70: 21.16220248 | H70: 2963 | I70: 19.21655101 | J70: 1367 | K70: 8.865685194 | L70: 1066 | M70: 6.91354822 | N70: 153 | O70: 0.9922822492 | P70: 3534 | Q70: 22.9197743 | R70: 10173 | S70: 65.97704131 | T70: 281 | U70: 1.822426876 | V70: 7954 | W70: 51.58570595 | X70: 2516 | Y70: 16.31753032 | Z70: 8296 | AA70: 53.80374862 | AB70: 60 | AC70: 0.3891302938 | AD70: 3230 | AE70: 20.94818082 | AF70: 3556 | AG70: 23.06245541 | AH70: 356 | AI70: 2.308839743 | AJ70: 947 | AK70: 6.141773137 | AL70: 4121 | AM70: 26.72676568 | AN70: 643 | AO70: 4.170179648
A71: 明細部 | B71: 国 | C71: 72 | D71: 女 | E71: 17175 | F71: 3659 | G71: 21.30422125 | H71: 3239 | I71: 18.8588064 | J71: 1505 | K71: 8.762736536 | L71: 1202 | M71: 6.998544396 | N71: 179 | O71: 1.042212518 | P71: 3962 | Q71: 23.06841339 | R71: 11656 | S71: 67.86608443 | T71: 313 | U71: 1.822416303 | V71: 8781 | W71: 51.12663755 | X71: 2651 | Y71: 15.43522562 | Z71: 9146 | AA71: 53.25181951 | AB71: 52 | AC71: 0.3027656477 | AD71: 3683 | AE71: 21.44395924 | AF71: 3796 | AG71: 22.10189229 | AH71: 373 | AI71: 2.171761281 | AJ71: 1121 | AK71: 6.526928675 | AL71: 4735 | AM71: 27.56914119 | AN71: 672 | AO71: 3.912663755
A72: 明細部 | B72: 国 | C72: 73 | D72: 女 | E72: 18738 | F72: 3882 | G72: 20.71725905 | H72: 3494 | I72: 18.64660049 | J72: 1693 | K72: 9.035115807 | L72: 1197 | M72: 6.388088377 | N72: 201 | O72: 1.072686519 | P72: 4275 | Q72: 22.81460134 | R72: 12775 | S72: 68.17696659 | T72: 343 | U72: 1.830504856 | V72: 10172 | W72: 54.28540933 | X72: 2856 | Y72: 15.24175472 | Z72: 9713 | AA72: 51.83584161 | AB72: 72 | AC72: 0.3842459174 | AD72: 4153 | AE72: 22.16351798 | AF72: 4102 | AG72: 21.89134379 | AH72: 469 | AI72: 2.502935212 | AJ72: 1066 | AK72: 5.688974277 | AL72: 5533 | AM72: 29.5282314 | AN72: 802 | AO72: 4.28007258
A73: 明細部 | B73: 国 | C73: 74 | D73: 女 | E73: 20734 | F73: 4397 | G73: 21.20671361 | H73: 3924 | I73: 18.92543648 | J73: 1815 | K73: 8.753737822 | L73: 1282 | M73: 6.18308093 | N73: 249 | O73: 1.200926015 | P73: 4828 | Q73: 23.28542491 | R73: 14354 | S73: 69.22928523 | T73: 391 | U73: 1.885791454 | V73: 11471 | W73: 55.32458763 | X73: 3139 | Y73: 15.13938459 | Z73: 10683 | AA73: 51.52406675 | AB73: 88 | AC73: 0.424423652 | AD73: 4707 | AE73: 22.70184238 | AF73: 4469 | AG73: 21.55396933 | AH73: 564 | AI73: 2.720169769 | AJ73: 1246 | AK73: 6.009453072 | AL73: 6469 | AM73: 31.19996142 | AN73: 939 | AO73: 4.528793286
A74: 明細部 | B74: 県 | C74: 40 | D74: 男 | E74: 96 | F74: 41 | G74: 42.70833333 | H74: 52 | I74: 54.16666667 | J74: 27 | K74: 28.125 | L74: 34 | M74: 35.41666667 | N74: 11 | O74: 11.45833333 | P74: 14 | Q74: 14.58333333 | R74: 31 | S74: 32.29166667 | T74: 21 | U74: 21.875 | V74: 33 | W74: 34.375 | X74: 21 | Y74: 21.875 | Z74: 52 | AA74: 54.16666667 | AB74: 0 | AC74: 0 | AD74: 15 | AE74: 15.625 | AF74: 9 | AG74: 9.375 | AH74: 0 | AI74: 0 | AJ74: 4 | AK74: 4.166666667 | AL74: 1 | AM74: 1.041666667 | AN74: 0 | AO74: 0
A75: 明細部 | B75: 県 | C75: 41 | D75: 男 | E75: 106 | F75: 42 | G75: 39.62264151 | H75: 54 | I75: 50.94339623 | J75: 24 | K75: 22.64150943 | L75: 33 | M75: 31.13207547 | N75: 8 | O75: 7.547169811 | P75: 20 | Q75: 18.86792453 | R75: 34 | S75: 32.0754717 | T75: 22 | U75: 20.75471698 | V75: 30 | W75: 28.30188679 | X75: 16 | Y75: 15.09433962 | Z75: 50 | AA75: 47.16981132 | AB75: 0 | AC75: 0 | AD75: 35 | AE75: 33.01886792 | AF75: 8 | AG75: 7.547169811 | AH75: 0 | AI75: 0 | AJ75: 5 | AK75: 4.716981132 | AL75: 3 | AM75: 2.830188679 | AN75: 3 | AO75: 2.830188679
A76: 明細部 | B76: 県 | C76: 42 | D76: 男 | E76: 98 | F76: 32 | G76: 32.65306122 | H76: 53 | I76: 54.08163265 | J76: 30 | K76: 30.6122449 | L76: 31 | M76: 31.63265306 | N76: 12 | O76: 12.24489796 | P76: 14 | Q76: 14.28571429 | R76: 35 | S76: 35.71428571 | T76: 24 | U76: 24.48979592 | V76: 24 | W76: 24.48979592 | X76: 17 | Y76: 17.34693878 | Z76: 51 | AA76: 52.04081633 | AB76: 0 | AC76: 0 | AD76: 20 | AE76: 20.40816327 | AF76: 6 | AG76: 6.12244898 | AH76: 0 | AI76: 0 | AJ76: 2 | AK76: 2.040816327 | AL76: 2 | AM76: 2.040816327 | AN76: 2 | AO76: 2.040816327
A77: 明細部 | B77: 県 | C77: 43 | D77: 男 | E77: 110 | F77: 43 | G77: 39.09090909 | H77: 54 | I77: 49.09090909 | J77: 24 | K77: 21.81818182 | L77: 29 | M77: 26.36363636 | N77: 3 | O77: 2.727272727 | P77: 12 | Q77: 10.90909091 | R77: 36 | S77: 32.72727273 | T77: 20 | U77: 18.18181818 | V77: 34 | W77: 30.90909091 | X77: 27 | Y77: 24.54545455 | Z77: 62 | AA77: 56.36363636 | AB77: 0 | AC77: 0 | AD77: 20 | AE77: 18.18181818 | AF77: 11 | AG77: 10 | AH77: 0 | AI77: 0 | AJ77: 5 | AK77: 4.545454545 | AL77: 3 | AM77: 2.727272727 | AN77: 3 | AO77: 2.727272727
A78: 明細部 | B78: 県 | C78: 44 | D78: 男 | E78: 129 | F78: 48 | G78: 37.20930233 | H78: 63 | I78: 48.8372093 | J78: 25 | K78: 19.37984496 | L78: 35 | M78: 27.13178295 | N78: 12 | O78: 9.302325581 | P78: 26 | Q78: 20.15503876 | R78: 44 | S78: 34.10852713 | T78: 22 | U78: 17.05426357 | V78: 41 | W78: 31.78294574 | X78: 36 | Y78: 27.90697674 | Z78: 63 | AA78: 48.8372093 | AB78: 0 | AC78: 0 | AD78: 30 | AE78: 23.25581395 | AF78: 10 | AG78: 7.751937984 | AH78: 0 | AI78: 0 | AJ78: 2 | AK78: 1.550387597 | AL78: 5 | AM78: 3.875968992 | AN78: 2 | AO78: 1.550387597
A79: 明細部 | B79: 県 | C79: 45 | D79: 男 | E79: 131 | F79: 45 | G79: 34.35114504 | H79: 64 | I79: 48.85496183 | J79: 32 | K79: 24.42748092 | L79: 40 | M79: 30.53435115 | N79: 13 | O79: 9.923664122 | P79: 27 | Q79: 20.61068702 | R79: 46 | S79: 35.11450382 | T79: 19 | U79: 14.50381679 | V79: 36 | W79: 27.48091603 | X79: 31 | Y79: 23.66412214 | Z79: 71 | AA79: 54.19847328 | AB79: 0 | AC79: 0 | AD79: 26 | AE79: 19.84732824 | AF79: 12 | AG79: 9.160305344 | AH79: 0 | AI79: 0 | AJ79: 4 | AK79: 3.053435115 | AL79: 2 | AM79: 1.526717557 | AN79: 2 | AO79: 1.526717557
A80: 明細部 | B80: 県 | C80: 46 | D80: 男 | E80: 126 | F80: 57 | G80: 45.23809524 | H80: 71 | I80: 56.34920635 | J80: 29 | K80: 23.01587302 | L80: 50 | M80: 39.68253968 | N80: 9 | O80: 7.142857143 | P80: 27 | Q80: 21.42857143 | R80: 50 | S80: 39.68253968 | T80: 24 | U80: 19.04761905 | V80: 45 | W80: 35.71428571 | X80: 38 | Y80: 30.15873016 | Z80: 80 | AA80: 63.49206349 | AB80: 0 | AC80: 0 | AD80: 29 | AE80: 23.01587302 | AF80: 9 | AG80: 7.142857143 | AH80: 0 | AI80: 0 | AJ80: 4 | AK80: 3.174603175 | AL80: 5 | AM80: 3.968253968 | AN80: 3 | AO80: 2.380952381
A81: 明細部 | B81: 県 | C81: 47 | D81: 男 | E81: 154 | F81: 68 | G81: 44.15584416 | H81: 96 | I81: 62.33766234 | J81: 43 | K81: 27.92207792 | L81: 57 | M81: 37.01298701 | N81: 17 | O81: 11.03896104 | P81: 32 | Q81: 20.77922078 | R81: 61 | S81: 39.61038961 | T81: 33 | U81: 21.42857143 | V81: 46 | W81: 29.87012987 | X81: 44 | Y81: 28.57142857 | Z81: 85 | AA81: 55.19480519 | AB81: 0 | AC81: 0 | AD81: 33 | AE81: 21.42857143 | AF81: 9 | AG81: 5.844155844 | AH81: 0 | AI81: 0 | AJ81: 4 | AK81: 2.597402597 | AL81: 5 | AM81: 3.246753247 | AN81: 2 | AO81: 1.298701299
A82: 明細部 | B82: 県 | C82: 48 | D82: 男 | E82: 146 | F82: 65 | G82: 44.52054795 | H82: 79 | I82: 54.10958904 | J82: 54 | K82: 36.98630137 | L82: 47 | M82: 32.19178082 | N82: 11 | O82: 7.534246575 | P82: 42 | Q82: 28.76712329 | R82: 77 | S82: 52.73972603 | T82: 31 | U82: 21.23287671 | V82: 58 | W82: 39.7260274 | X82: 47 | Y82: 32.19178082 | Z82: 84 | AA82: 57.53424658 | AB82: 1 | AC82: 0.6849315068 | AD82: 29 | AE82: 19.8630137 | AF82: 7 | AG82: 4.794520548 | AH82: 1 | AI82: 0.6849315068 | AJ82: 4 | AK82: 2.739726027 | AL82: 8 | AM82: 5.479452055 | AN82: 0 | AO82: 0
A83: 明細部 | B83: 県 | C83: 49 | D83: 男 | E83: 145 | F83: 61 | G83: 42.06896552 | H83: 76 | I83: 52.4137931 | J83: 41 | K83: 28.27586207 | L83: 50 | M83: 34.48275862 | N83: 7 | O83: 4.827586207 | P83: 31 | Q83: 21.37931034 | R83: 67 | S83: 46.20689655 | T83: 32 | U83: 22.06896552 | V83: 49 | W83: 33.79310345 | X83: 54 | Y83: 37.24137931 | Z83: 90 | AA83: 62.06896552 | AB83: 2 | AC83: 1.379310345 | AD83: 29 | AE83: 20 | AF83: 12 | AG83: 8.275862069 | AH83: 1 | AI83: 0.6896551724 | AJ83: 7 | AK83: 4.827586207 | AL83: 17 | AM83: 11.72413793 | AN83: 4 | AO83: 2.75862069
A84: 明細部 | B84: 県 | C84: 50 | D84: 男 | E84: 173 | F84: 71 | G84: 41.04046243 | H84: 96 | I84: 55.49132948 | J84: 39 | K84: 22.5433526 | L84: 50 | M84: 28.9017341 | N84: 14 | O84: 8.092485549 | P84: 46 | Q84: 26.58959538 | R84: 85 | S84: 49.13294798 | T84: 32 | U84: 18.49710983 | V84: 69 | W84: 39.88439306 | X84: 64 | Y84: 36.99421965 | Z84: 99 | AA84: 57.22543353 | AB84: 4 | AC84: 2.312138728 | AD84: 40 | AE84: 23.12138728 | AF84: 15 | AG84: 8.670520231 | AH84: 3 | AI84: 1.734104046 | AJ84: 3 | AK84: 1.734104046 | AL84: 11 | AM84: 6.358381503 | AN84: 6 | AO84: 3.468208092
A85: 明細部 | B85: 県 | C85: 51 | D85: 男 | E85: 161 | F85: 68 | G85: 42.23602484 | H85: 93 | I85: 57.76397516 | J85: 44 | K85: 27.32919255 | L85: 37 | M85: 22.98136646 | N85: 13 | O85: 8.074534161 | P85: 38 | Q85: 23.60248447 | R85: 71 | S85: 44.09937888 | T85: 35 | U85: 21.73913043 | V85: 72 | W85: 44.72049689 | X85: 65 | Y85: 40.37267081 | Z85: 87 | AA85: 54.03726708 | AB85: 0 | AC85: 0 | AD85: 31 | AE85: 19.25465839 | AF85: 9 | AG85: 5.590062112 | AH85: 0 | AI85: 0 | AJ85: 5 | AK85: 3.105590062 | AL85: 11 | AM85: 6.832298137 | AN85: 5 | AO85: 3.105590062
A86: 明細部 | B86: 県 | C86: 52 | D86: 男 | E86: 176 | F86: 84 | G86: 47.72727273 | H86: 101 | I86: 57.38636364 | J86: 51 | K86: 28.97727273 | L86: 54 | M86: 30.68181818 | N86: 14 | O86: 7.954545455 | P86: 51 | Q86: 28.97727273 | R86: 100 | S86: 56.81818182 | T86: 30 | U86: 17.04545455 | V86: 66 | W86: 37.5 | X86: 56 | Y86: 31.81818182 | Z86: 90 | AA86: 51.13636364 | AB86: 0 | AC86: 0 | AD86: 46 | AE86: 26.13636364 | AF86: 13 | AG86: 7.386363636 | AH86: 2 | AI86: 1.136363636 | AJ86: 3 | AK86: 1.704545455 | AL86: 12 | AM86: 6.818181818 | AN86: 6 | AO86: 3.409090909
A87: 明細部 | B87: 県 | C87: 53 | D87: 男 | E87: 183 | F87: 76 | G87: 41.53005464 | H87: 93 | I87: 50.81967213 | J87: 37 | K87: 20.21857923 | L87: 51 | M87: 27.86885246 | N87: 10 | O87: 5.464480874 | P87: 52 | Q87: 28.41530055 | R87: 90 | S87: 49.18032787 | T87: 23 | U87: 12.56830601 | V87: 91 | W87: 49.72677596 | X87: 73 | Y87: 39.89071038 | Z87: 92 | AA87: 50.27322404 | AB87: 1 | AC87: 0.5464480874 | AD87: 49 | AE87: 26.77595628 | AF87: 12 | AG87: 6.557377049 | AH87: 2 | AI87: 1.092896175 | AJ87: 2 | AK87: 1.092896175 | AL87: 15 | AM87: 8.196721311 | AN87: 4 | AO87: 2.18579235
A88: 明細部 | B88: 県 | C88: 54 | D88: 男 | E88: 177 | F88: 71 | G88: 40.11299435 | H88: 102 | I88: 57.62711864 | J88: 53 | K88: 29.94350282 | L88: 56 | M88: 31.63841808 | N88: 11 | O88: 6.214689266 | P88: 58 | Q88: 32.76836158 | R88: 94 | S88: 53.10734463 | T88: 36 | U88: 20.33898305 | V88: 83 | W88: 46.89265537 | X88: 78 | Y88: 44.06779661 | Z88: 84 | AA88: 47.45762712 | AB88: 5 | AC88: 2.824858757 | AD88: 41 | AE88: 23.16384181 | AF88: 15 | AG88: 8.474576271 | AH88: 3 | AI88: 1.694915254 | AJ88: 3 | AK88: 1.694915254 | AL88: 14 | AM88: 7.90960452 | AN88: 6 | AO88: 3.389830508
A89: 明細部 | B89: 県 | C89: 55 | D89: 男 | E89: 200 | F89: 85 | G89: 42.5 | H89: 111 | I89: 55.5 | J89: 49 | K89: 24.5 | L89: 57 | M89: 28.5 | N89: 20 | O89: 10 | P89: 47 | Q89: 23.5 | R89: 110 | S89: 55 | T89: 30 | U89: 15 | V89: 83 | W89: 41.5 | X89: 69 | Y89: 34.5 | Z89: 99 | AA89: 49.5 | AB89: 0 | AC89: 0 | AD89: 48 | AE89: 24 | AF89: 20 | AG89: 10 | AH89: 4 | AI89: 2 | AJ89: 3 | AK89: 1.5 | AL89: 22 | AM89: 11 | AN89: 6 | AO89: 3
A90: 明細部 | B90: 県 | C90: 56 | D90: 男 | E90: 185 | F90: 72 | G90: 38.91891892 | H90: 103 | I90: 55.67567568 | J90: 44 | K90: 23.78378378 | L90: 38 | M90: 20.54054054 | N90: 12 | O90: 6.486486486 | P90: 49 | Q90: 26.48648649 | R90: 99 | S90: 53.51351351 | T90: 36 | U90: 19.45945946 | V90: 69 | W90: 37.2972973 | X90: 59 | Y90: 31.89189189 | Z90: 92 | AA90: 49.72972973 | AB90: 1 | AC90: 0.5405405405 | AD90: 53 | AE90: 28.64864865 | AF90: 16 | AG90: 8.648648649 | AH90: 1 | AI90: 0.5405405405 | AJ90: 3 | AK90: 1.621621622 | AL90: 23 | AM90: 12.43243243 | AN90: 3 | AO90: 1.621621622
A91: 明細部 | B91: 県 | C91: 57 | D91: 男 | E91: 196 | F91: 74 | G91: 37.75510204 | H91: 109 | I91: 55.6122449 | J91: 54 | K91: 27.55102041 | L91: 61 | M91: 31.12244898 | N91: 12 | O91: 6.12244898 | P91: 60 | Q91: 30.6122449 | R91: 118 | S91: 60.20408163 | T91: 30 | U91: 15.30612245 | V91: 88 | W91: 44.89795918 | X91: 76 | Y91: 38.7755102 | Z91: 95 | AA91: 48.46938776 | AB91: 1 | AC91: 0.5102040816 | AD91: 51 | AE91: 26.02040816 | AF91: 17 | AG91: 8.673469388 | AH91: 3 | AI91: 1.530612245 | AJ91: 4 | AK91: 2.040816327 | AL91: 28 | AM91: 14.28571429 | AN91: 5 | AO91: 2.551020408
A92: 明細部 | B92: 県 | C92: 58 | D92: 男 | E92: 139 | F92: 55 | G92: 39.56834532 | H92: 77 | I92: 55.39568345 | J92: 28 | K92: 20.14388489 | L92: 41 | M92: 29.49640288 | N92: 12 | O92: 8.633093525 | P92: 42 | Q92: 30.21582734 | R92: 78 | S92: 56.11510791 | T92: 22 | U92: 15.82733813 | V92: 59 | W92: 42.44604317 | X92: 44 | Y92: 31.65467626 | Z92: 70 | AA92: 50.35971223 | AB92: 1 | AC92: 0.7194244604 | AD92: 37 | AE92: 26.61870504 | AF92: 8 | AG92: 5.755395683 | AH92: 3 | AI92: 2.158273381 | AJ92: 4 | AK92: 2.877697842 | AL92: 24 | AM92: 17.26618705 | AN92: 6 | AO92: 4.316546763
A93: 明細部 | B93: 県 | C93: 59 | D93: 男 | E93: 166 | F93: 62 | G93: 37.34939759 | H93: 103 | I93: 62.04819277 | J93: 37 | K93: 22.28915663 | L93: 37 | M93: 22.28915663 | N93: 11 | O93: 6.626506024 | P93: 45 | Q93: 27.10843373 | R93: 93 | S93: 56.02409639 | T93: 28 | U93: 16.86746988 | V93: 78 | W93: 46.98795181 | X93: 59 | Y93: 35.54216867 | Z93: 82 | AA93: 49.39759036 | AB93: 3 | AC93: 1.807228916 | AD93: 42 | AE93: 25.30120482 | AF93: 15 | AG93: 9.036144578 | AH93: 4 | AI93: 2.409638554 | AJ93: 2 | AK93: 1.204819277 | AL93: 24 | AM93: 14.45783133 | AN93: 5 | AO93: 3.012048193
A94: 明細部 | B94: 県 | C94: 60 | D94: 男 | E94: 181 | F94: 71 | G94: 39.22651934 | H94: 107 | I94: 59.1160221 | J94: 43 | K94: 23.75690608 | L94: 42 | M94: 23.20441989 | N94: 11 | O94: 6.077348066 | P94: 59 | Q94: 32.59668508 | R94: 108 | S94: 59.66850829 | T94: 34 | U94: 18.78453039 | V94: 80 | W94: 44.19889503 | X94: 62 | Y94: 34.25414365 | Z94: 93 | AA94: 51.38121547 | AB94: 7 | AC94: 3.867403315 | AD94: 43 | AE94: 23.75690608 | AF94: 20 | AG94: 11.04972376 | AH94: 3 | AI94: 1.657458564 | AJ94: 4 | AK94: 2.209944751 | AL94: 33 | AM94: 18.2320442 | AN94: 5 | AO94: 2.762430939
A95: 明細部 | B95: 県 | C95: 61 | D95: 男 | E95: 181 | F95: 65 | G95: 35.91160221 | H95: 96 | I95: 53.03867403 | J95: 40 | K95: 22.09944751 | L95: 32 | M95: 17.67955801 | N95: 15 | O95: 8.287292818 | P95: 49 | Q95: 27.0718232 | R95: 108 | S95: 59.66850829 | T95: 33 | U95: 18.2320442 | V95: 79 | W95: 43.64640884 | X95: 50 | Y95: 27.62430939 | Z95: 91 | AA95: 50.27624309 | AB95: 3 | AC95: 1.657458564 | AD95: 53 | AE95: 29.28176796 | AF95: 19 | AG95: 10.49723757 | AH95: 7 | AI95: 3.867403315 | AJ95: 4 | AK95: 2.209944751 | AL95: 29 | AM95: 16.02209945 | AN95: 8 | AO95: 4.419889503
A96: 明細部 | B96: 県 | C96: 62 | D96: 男 | E96: 201 | F96: 73 | G96: 36.31840796 | H96: 116 | I96: 57.71144279 | J96: 53 | K96: 26.3681592 | L96: 47 | M96: 23.38308458 | N96: 12 | O96: 5.970149254 | P96: 68 | Q96: 33.83084577 | R96: 128 | S96: 63.68159204 | T96: 37 | U96: 18.4079602 | V96: 96 | W96: 47.76119403 | X96: 76 | Y96: 37.81094527 | Z96: 95 | AA96: 47.26368159 | AB96: 2 | AC96: 0.9950248756 | AD96: 50 | AE96: 24.87562189 | AF96: 19 | AG96: 9.452736318 | AH96: 4 | AI96: 1.990049751 | AJ96: 6 | AK96: 2.985074627 | AL96: 44 | AM96: 21.89054726 | AN96: 6 | AO96: 2.985074627
A97: 明細部 | B97: 県 | C97: 63 | D97: 男 | E97: 230 | F97: 79 | G97: 34.34782609 | H97: 122 | I97: 53.04347826 | J97: 45 | K97: 19.56521739 | L97: 45 | M97: 19.56521739 | N97: 13 | O97: 5.652173913 | P97: 72 | Q97: 31.30434783 | R97: 130 | S97: 56.52173913 | T97: 39 | U97: 16.95652174 | V97: 91 | W97: 39.56521739 | X97: 71 | Y97: 30.86956522 | Z97: 108 | AA97: 46.95652174 | AB97: 6 | AC97: 2.608695652 | AD97: 68 | AE97: 29.56521739 | AF97: 39 | AG97: 16.95652174 | AH97: 3 | AI97: 1.304347826 | AJ97: 7 | AK97: 3.043478261 | AL97: 46 | AM97: 20 | AN97: 4 | AO97: 1.739130435
A98: 明細部 | B98: 県 | C98: 64 | D98: 男 | E98: 250 | F98: 84 | G98: 33.6 | H98: 143 | I98: 57.2 | J98: 52 | K98: 20.8 | L98: 56 | M98: 22.4 | N98: 12 | O98: 4.8 | P98: 84 | Q98: 33.6 | R98: 155 | S98: 62 | T98: 37 | U98: 14.8 | V98: 131 | W98: 52.4 | X98: 77 | Y98: 30.8 | Z98: 117 | AA98: 46.8 | AB98: 6 | AC98: 2.4 | AD98: 69 | AE98: 27.6 | AF98: 30 | AG98: 12 | AH98: 8 | AI98: 3.2 | AJ98: 5 | AK98: 2 | AL98: 59 | AM98: 23.6 | AN98: 9 | AO98: 3.6
A99: 明細部 | B99: 県 | C99: 65 | D99: 男 | E99: 287 | F99: 93 | G99: 32.40418118 | H99: 158 | I99: 55.05226481 | J99: 58 | K99: 20.20905923 | L99: 64 | M99: 22.29965157 | N99: 17 | O99: 5.923344948 | P99: 101 | Q99: 35.19163763 | R99: 187 | S99: 65.15679443 | T99: 46 | U99: 16.02787456 | V99: 133 | W99: 46.34146341 | X99: 87 | Y99: 30.31358885 | Z99: 134 | AA99: 46.68989547 | AB99: 7 | AC99: 2.43902439 | AD99: 88 | AE99: 30.66202091 | AF99: 43 | AG99: 14.9825784 | AH99: 7 | AI99: 2.43902439 | AJ99: 9 | AK99: 3.135888502 | AL99: 70 | AM99: 24.3902439 | AN99: 8 | AO99: 2.787456446
A100: 明細部 | B100: 県 | C100: 66 | D100: 男 | E100: 386 | F100: 128 | G100: 33.16062176 | H100: 205 | I100: 53.10880829 | J100: 88 | K100: 22.79792746 | L100: 66 | M100: 17.0984456 | N100: 31 | O100: 8.031088083 | P100: 125 | Q100: 32.38341969 | R100: 259 | S100: 67.0984456 | T100: 71 | U100: 18.39378238 | V100: 216 | W100: 55.95854922 | X100: 135 | Y100: 34.97409326 | Z100: 184 | AA100: 47.66839378 | AB100: 9 | AC100: 2.331606218 | AD100: 109 | AE100: 28.23834197 | AF100: 48 | AG100: 12.43523316 | AH100: 18 | AI100: 4.663212435 | AJ100: 12 | AK100: 3.10880829 | AL100: 89 | AM100: 23.05699482 | AN100: 11 | AO100: 2.849740933
A101: 明細部 | B101: 県 | C101: 67 | D101: 男 | E101: 461 | F101: 167 | G101: 36.22559653 | H101: 280 | I101: 60.73752711 | J101: 99 | K101: 21.47505423 | L101: 86 | M101: 18.65509761 | N101: 23 | O101: 4.989154013 | P101: 156 | Q101: 33.83947939 | R101: 283 | S101: 61.38828633 | T101: 73 | U101: 15.835141 | V101: 221 | W101: 47.93926247 | X101: 133 | Y101: 28.85032538 | Z101: 226 | AA101: 49.02386117 | AB101: 12 | AC101: 2.603036876 | AD101: 151 | AE101: 32.75488069 | AF101: 72 | AG101: 15.61822126 | AH101: 13 | AI101: 2.819956616 | AJ101: 18 | AK101: 3.904555315 | AL101: 132 | AM101: 28.63340564 | AN101: 17 | AO101: 3.687635575
A102: 明細部 | B102: 県 | C102: 68 | D102: 男 | E102: 546 | F102: 162 | G102: 29.67032967 | H102: 297 | I102: 54.3956044 | J102: 123 | K102: 22.52747253 | L102: 77 | M102: 14.1025641 | N102: 31 | O102: 5.677655678 | P102: 178 | Q102: 32.6007326 | R102: 353 | S102: 64.65201465 | T102: 84 | U102: 15.38461538 | V102: 276 | W102: 50.54945055 | X102: 140 | Y102: 25.64102564 | Z102: 229 | AA102: 41.94139194 | AB102: 21 | AC102: 3.846153846 | AD102: 173 | AE102: 31.68498168 | AF102: 58 | AG102: 10.62271062 | AH102: 13 | AI102: 2.380952381 | AJ102: 9 | AK102: 1.648351648 | AL102: 166 | AM102: 30.4029304 | AN102: 14 | AO102: 2.564102564
A103: 明細部 | B103: 県 | C103: 69 | D103: 男 | E103: 658 | F103: 201 | G103: 30.54711246 | H103: 365 | I103: 55.47112462 | J103: 135 | K103: 20.51671733 | L103: 90 | M103: 13.67781155 | N103: 47 | O103: 7.142857143 | P103: 233 | Q103: 35.41033435 | R103: 448 | S103: 68.08510638 | T103: 99 | U103: 15.04559271 | V103: 331 | W103: 50.30395137 | X103: 166 | Y103: 25.22796353 | Z103: 312 | AA103: 47.41641337 | AB103: 14 | AC103: 2.127659574 | AD103: 197 | AE103: 29.93920973 | AF103: 76 | AG103: 11.55015198 | AH103: 22 | AI103: 3.343465046 | AJ103: 18 | AK103: 2.73556231 | AL103: 194 | AM103: 29.48328267 | AN103: 21 | AO103: 3.191489362
A104: 明細部 | B104: 県 | C104: 70 | D104: 男 | E104: 706 | F104: 208 | G104: 29.46175637 | H104: 406 | I104: 57.50708215 | J104: 130 | K104: 18.41359773 | L104: 107 | M104: 15.15580737 | N104: 43 | O104: 6.090651558 | P104: 238 | Q104: 33.71104816 | R104: 487 | S104: 68.98016997 | T104: 88 | U104: 12.46458924 | V104: 363 | W104: 51.41643059 | X104: 158 | Y104: 22.3796034 | Z104: 292 | AA104: 41.35977337 | AB104: 23 | AC104: 3.257790368 | AD104: 228 | AE104: 32.29461756 | AF104: 89 | AG104: 12.60623229 | AH104: 19 | AI104: 2.69121813 | AJ104: 18 | AK104: 2.549575071 | AL104: 211 | AM104: 29.88668555 | AN104: 18 | AO104: 2.549575071
A105: 明細部 | B105: 県 | C105: 71 | D105: 男 | E105: 723 | F105: 209 | G105: 28.90733057 | H105: 404 | I105: 55.87828492 | J105: 136 | K105: 18.81051176 | L105: 89 | M105: 12.30982019 | N105: 36 | O105: 4.979253112 | P105: 238 | Q105: 32.91839557 | R105: 503 | S105: 69.57123098 | T105: 90 | U105: 12.44813278 | V105: 381 | W105: 52.69709544 | X105: 173 | Y105: 23.92807746 | Z105: 301 | AA105: 41.63208852 | AB105: 26 | AC105: 3.596127248 | AD105: 241 | AE105: 33.33333333 | AF105: 94 | AG105: 13.00138313 | AH105: 26 | AI105: 3.596127248 | AJ105: 18 | AK105: 2.489626556 | AL105: 228 | AM105: 31.53526971 | AN105: 25 | AO105: 3.457814661
A106: 明細部 | B106: 県 | C106: 72 | D106: 男 | E106: 848 | F106: 280 | G106: 33.01886792 | H106: 509 | I106: 60.02358491 | J106: 146 | K106: 17.21698113 | L106: 115 | M106: 13.56132075 | N106: 53 | O106: 6.25 | P106: 294 | Q106: 34.66981132 | R106: 606 | S106: 71.46226415 | T106: 109 | U106: 12.85377358 | V106: 463 | W106: 54.5990566 | X106: 180 | Y106: 21.22641509 | Z106: 378 | AA106: 44.5754717 | AB106: 30 | AC106: 3.537735849 | AD106: 286 | AE106: 33.72641509 | AF106: 118 | AG106: 13.91509434 | AH106: 30 | AI106: 3.537735849 | AJ106: 15 | AK106: 1.768867925 | AL106: 273 | AM106: 32.19339623 | AN106: 24 | AO106: 2.830188679
A107: 明細部 | B107: 県 | C107: 73 | D107: 男 | E107: 946 | F107: 272 | G107: 28.75264271 | H107: 508 | I107: 53.69978858 | J107: 167 | K107: 17.65327696 | L107: 129 | M107: 13.63636364 | N107: 69 | O107: 7.293868922 | P107: 335 | Q107: 35.41226216 | R107: 695 | S107: 73.46723044 | T107: 137 | U107: 14.4820296 | V107: 513 | W107: 54.22832981 | X107: 180 | Y107: 19.02748414 | Z107: 401 | AA107: 42.38900634 | AB107: 51 | AC107: 5.391120507 | AD107: 331 | AE107: 34.98942918 | AF107: 122 | AG107: 12.89640592 | AH107: 36 | AI107: 3.805496829 | AJ107: 26 | AK107: 2.748414376 | AL107: 323 | AM107: 34.14376321 | AN107: 35 | AO107: 3.699788584
A108: 明細部 | B108: 県 | C108: 74 | D108: 男 | E108: 1027 | F108: 296 | G108: 28.8218111 | H108: 567 | I108: 55.20934761 | J108: 148 | K108: 14.41090555 | L108: 125 | M108: 12.17137293 | N108: 68 | O108: 6.621226874 | P108: 356 | Q108: 34.66407011 | R108: 767 | S108: 74.6835443 | T108: 124 | U108: 12.07400195 | V108: 556 | W108: 54.1382668 | X108: 213 | Y108: 20.74001947 | Z108: 409 | AA108: 39.82473223 | AB108: 39 | AC108: 3.797468354 | AD108: 377 | AE108: 36.70886076 | AF108: 121 | AG108: 11.781889 | AH108: 34 | AI108: 3.310613437 | AJ108: 18 | AK108: 1.752677702 | AL108: 378 | AM108: 36.80623174 | AN108: 35 | AO108: 3.407984421
A109: 明細部 | B109: 県 | C109: 40 | D109: 女 | E109: 75 | F109: 19 | G109: 25.33333333 | H109: 12 | I109: 16 | J109: 3 | K109: 4 | L109: 9 | M109: 12 | N109: 1 | O109: 1.333333333 | P109: 2 | Q109: 2.666666667 | R109: 25 | S109: 33.33333333 | T109: 0 | U109: 0 | V109: 6 | W109: 8 | X109: 3 | Y109: 4 | Z109: 31 | AA109: 41.33333333 | AB109: 0 | AC109: 0 | AD109: 15 | AE109: 20 | AF109: 4 | AG109: 5.333333333 | AH109: 0 | AI109: 0 | AJ109: 0 | AK109: 0 | AL109: 0 | AM109: 0 | AN109: 0 | AO109: 0
A110: 明細部 | B110: 県 | C110: 41 | D110: 女 | E110: 65 | F110: 16 | G110: 24.61538462 | H110: 12 | I110: 18.46153846 | J110: 9 | K110: 13.84615385 | L110: 3 | M110: 4.615384615 | N110: 2 | O110: 3.076923077 | P110: 6 | Q110: 9.230769231 | R110: 16 | S110: 24.61538462 | T110: 0 | U110: 0 | V110: 6 | W110: 9.230769231 | X110: 6 | Y110: 9.230769231 | Z110: 20 | AA110: 30.76923077 | AB110: 0 | AC110: 0 | AD110: 9 | AE110: 13.84615385 | AF110: 6 | AG110: 9.230769231 | AH110: 0 | AI110: 0 | AJ110: 1 | AK110: 1.538461538 | AL110: 0 | AM110: 0 | AN110: 0 | AO110: 0
A111: 明細部 | B111: 県 | C111: 42 | D111: 女 | E111: 71 | F111: 12 | G111: 16.90140845 | H111: 6 | I111: 8.450704225 | J111: 4 | K111: 5.633802817 | L111: 5 | M111: 7.042253521 | N111: 0 | O111: 0 | P111: 3 | Q111: 4.225352113 | R111: 17 | S111: 23.94366197 | T111: 1 | U111: 1.408450704 | V111: 6 | W111: 8.450704225 | X111: 7 | Y111: 9.85915493 | Z111: 23 | AA111: 32.3943662 | AB111: 0 | AC111: 0 | AD111: 14 | AE111: 19.71830986 | AF111: 6 | AG111: 8.450704225 | AH111: 0 | AI111: 0 | AJ111: 0 | AK111: 0 | AL111: 3 | AM111: 4.225352113 | AN111: 0 | AO111: 0
A112: 明細部 | B112: 県 | C112: 43 | D112: 女 | E112: 85 | F112: 18 | G112: 21.17647059 | H112: 12 | I112: 14.11764706 | J112: 3 | K112: 3.529411765 | L112: 6 | M112: 7.058823529 | N112: 1 | O112: 1.176470588 | P112: 6 | Q112: 7.058823529 | R112: 19 | S112: 22.35294118 | T112: 1 | U112: 1.176470588 | V112: 12 | W112: 14.11764706 | X112: 9 | Y112: 10.58823529 | Z112: 26 | AA112: 30.58823529 | AB112: 0 | AC112: 0 | AD112: 17 | AE112: 20 | AF112: 8 | AG112: 9.411764706 | AH112: 0 | AI112: 0 | AJ112: 1 | AK112: 1.176470588 | AL112: 1 | AM112: 1.176470588 | AN112: 1 | AO112: 1.176470588
A113: 明細部 | B113: 県 | C113: 44 | D113: 女 | E113: 69 | F113: 16 | G113: 23.1884058 | H113: 11 | I113: 15.94202899 | J113: 2 | K113: 2.898550725 | L113: 6 | M113: 8.695652174 | N113: 0 | O113: 0 | P113: 3 | Q113: 4.347826087 | R113: 14 | S113: 20.28985507 | T113: 0 | U113: 0 | V113: 9 | W113: 13.04347826 | X113: 9 | Y113: 13.04347826 | Z113: 24 | AA113: 34.7826087 | AB113: 0 | AC113: 0 | AD113: 7 | AE113: 10.14492754 | AF113: 6 | AG113: 8.695652174 | AH113: 0 | AI113: 0 | AJ113: 0 | AK113: 0 | AL113: 1 | AM113: 1.449275362 | AN113: 1 | AO113: 1.449275362
A114: 明細部 | B114: 県 | C114: 45 | D114: 女 | E114: 69 | F114: 19 | G114: 27.53623188 | H114: 14 | I114: 20.28985507 | J114: 4 | K114: 5.797101449 | L114: 6 | M114: 8.695652174 | N114: 1 | O114: 1.449275362 | P114: 5 | Q114: 7.246376812 | R114: 16 | S114: 23.1884058 | T114: 0 | U114: 0 | V114: 14 | W114: 20.28985507 | X114: 8 | Y114: 11.5942029 | Z114: 34 | AA114: 49.27536232 | AB114: 0 | AC114: 0 | AD114: 12 | AE114: 17.39130435 | AF114: 8 | AG114: 11.5942029 | AH114: 0 | AI114: 0 | AJ114: 4 | AK114: 5.797101449 | AL114: 5 | AM114: 7.246376812 | AN114: 0 | AO114: 0
A115: 明細部 | B115: 県 | C115: 46 | D115: 女 | E115: 84 | F115: 19 | G115: 22.61904762 | H115: 11 | I115: 13.0952381 | J115: 5 | K115: 5.952380952 | L115: 7 | M115: 8.333333333 | N115: 1 | O115: 1.19047619 | P115: 9 | Q115: 10.71428571 | R115: 23 | S115: 27.38095238 | T115: 0 | U115: 0 | V115: 17 | W115: 20.23809524 | X115: 12 | Y115: 14.28571429 | Z115: 33 | AA115: 39.28571429 | AB115: 0 | AC115: 0 | AD115: 16 | AE115: 19.04761905 | AF115: 6 | AG115: 7.142857143 | AH115: 0 | AI115: 0 | AJ115: 1 | AK115: 1.19047619 | AL115: 6 | AM115: 7.142857143 | AN115: 1 | AO115: 1.19047619
A116: 明細部 | B116: 県 | C116: 47 | D116: 女 | E116: 88 | F116: 20 | G116: 22.72727273 | H116: 13 | I116: 14.77272727 | J116: 8 | K116: 9.090909091 | L116: 3 | M116: 3.409090909 | N116: 0 | O116: 0 | P116: 8 | Q116: 9.090909091 | R116: 31 | S116: 35.22727273 | T116: 1 | U116: 1.136363636 | V116: 16 | W116: 18.18181818 | X116: 15 | Y116: 17.04545455 | Z116: 40 | AA116: 45.45454545 | AB116: 0 | AC116: 0 | AD116: 16 | AE116: 18.18181818 | AF116: 6 | AG116: 6.818181818 | AH116: 0 | AI116: 0 | AJ116: 0 | AK116: 0 | AL116: 8 | AM116: 9.090909091 | AN116: 0 | AO116: 0
A117: 明細部 | B117: 県 | C117: 48 | D117: 女 | E117: 92 | F117: 19 | G117: 20.65217391 | H117: 12 | I117: 13.04347826 | J117: 6 | K117: 6.52173913 | L117: 5 | M117: 5.434782609 | N117: 2 | O117: 2.173913043 | P117: 9 | Q117: 9.782608696 | R117: 35 | S117: 38.04347826 | T117: 2 | U117: 2.173913043 | V117: 21 | W117: 22.82608696 | X117: 16 | Y117: 17.39130435 | Z117: 36 | AA117: 39.13043478 | AB117: 0 | AC117: 0 | AD117: 18 | AE117: 19.56521739 | AF117: 6 | AG117: 6.52173913 | AH117: 0 | AI117: 0 | AJ117: 3 | AK117: 3.260869565 | AL117: 4 | AM117: 4.347826087 | AN117: 1 | AO117: 1.086956522
A118: 明細部 | B118: 県 | C118: 49 | D118: 女 | E118: 94 | F118: 12 | G118: 12.76595745 | H118: 9 | I118: 9.574468085 | J118: 11 | K118: 11.70212766 | L118: 6 | M118: 6.382978723 | N118: 0 | O118: 0 | P118: 5 | Q118: 5.319148936 | R118: 37 | S118: 39.36170213 | T118: 2 | U118: 2.127659574 | V118: 17 | W118: 18.08510638 | X118: 13 | Y118: 13.82978723 | Z118: 34 | AA118: 36.17021277 | AB118: 0 | AC118: 0 | AD118: 17 | AE118: 18.08510638 | AF118: 7 | AG118: 7.446808511 | AH118: 0 | AI118: 0 | AJ118: 1 | AK118: 1.063829787 | AL118: 4 | AM118: 4.255319149 | AN118: 0 | AO118: 0
A119: 明細部 | B119: 県 | C119: 50 | D119: 女 | E119: 106 | F119: 13 | G119: 12.26415094 | H119: 9 | I119: 8.490566038 | J119: 12 | K119: 11.32075472 | L119: 10 | M119: 9.433962264 | N119: 1 | O119: 0.9433962264 | P119: 6 | Q119: 5.660377358 | R119: 38 | S119: 35.8490566 | T119: 1 | U119: 0.9433962264 | V119: 22 | W119: 20.75471698 | X119: 18 | Y119: 16.98113208 | Z119: 53 | AA119: 50 | AB119: 0 | AC119: 0 | AD119: 17 | AE119: 16.03773585 | AF119: 14 | AG119: 13.20754717 | AH119: 0 | AI119: 0 | AJ119: 1 | AK119: 0.9433962264 | AL119: 6 | AM119: 5.660377358 | AN119: 0 | AO119: 0
A120: 明細部 | B120: 県 | C120: 51 | D120: 女 | E120: 121 | F120: 18 | G120: 14.87603306 | H120: 12 | I120: 9.917355372 | J120: 11 | K120: 9.090909091 | L120: 9 | M120: 7.438016529 | N120: 2 | O120: 1.652892562 | P120: 8 | Q120: 6.611570248 | R120: 52 | S120: 42.97520661 | T120: 1 | U120: 0.826446281 | V120: 22 | W120: 18.18181818 | X120: 18 | Y120: 14.87603306 | Z120: 66 | AA120: 54.54545455 | AB120: 0 | AC120: 0 | AD120: 23 | AE120: 19.00826446 | AF120: 10 | AG120: 8.26446281 | AH120: 2 | AI120: 1.652892562 | AJ120: 7 | AK120: 5.785123967 | AL120: 8 | AM120: 6.611570248 | AN120: 2 | AO120: 1.652892562
A121: 明細部 | B121: 県 | C121: 52 | D121: 女 | E121: 125 | F121: 25 | G121: 20 | H121: 22 | I121: 17.6 | J121: 10 | K121: 8 | L121: 10 | M121: 8 | N121: 3 | O121: 2.4 | P121: 17 | Q121: 13.6 | R121: 50 | S121: 40 | T121: 2 | U121: 1.6 | V121: 34 | W121: 27.2 | X121: 20 | Y121: 16 | Z121: 67 | AA121: 53.6 | AB121: 0 | AC121: 0 | AD121: 23 | AE121: 18.4 | AF121: 8 | AG121: 6.4 | AH121: 2 | AI121: 1.6 | AJ121: 4 | AK121: 3.2 | AL121: 10 | AM121: 8 | AN121: 2 | AO121: 1.6
A122: 明細部 | B122: 県 | C122: 53 | D122: 女 | E122: 116 | F122: 28 | G122: 24.13793103 | H122: 20 | I122: 17.24137931 | J122: 21 | K122: 18.10344828 | L122: 9 | M122: 7.75862069 | N122: 0 | O122: 0 | P122: 14 | Q122: 12.06896552 | R122: 55 | S122: 47.4137931 | T122: 0 | U122: 0 | V122: 35 | W122: 30.17241379 | X122: 24 | Y122: 20.68965517 | Z122: 65 | AA122: 56.03448276 | AB122: 0 | AC122: 0 | AD122: 16 | AE122: 13.79310345 | AF122: 4 | AG122: 3.448275862 | AH122: 0 | AI122: 0 | AJ122: 2 | AK122: 1.724137931 | AL122: 9 | AM122: 7.75862069 | AN122: 0 | AO122: 0
A123: 明細部 | B123: 県 | C123: 54 | D123: 女 | E123: 149 | F123: 28 | G123: 18.79194631 | H123: 23 | I123: 15.43624161 | J123: 20 | K123: 13.42281879 | L123: 18 | M123: 12.08053691 | N123: 4 | O123: 2.684563758 | P123: 21 | Q123: 14.09395973 | R123: 79 | S123: 53.02013423 | T123: 3 | U123: 2.013422819 | V123: 35 | W123: 23.48993289 | X123: 25 | Y123: 16.77852349 | Z123: 86 | AA123: 57.71812081 | AB123: 0 | AC123: 0 | AD123: 33 | AE123: 22.14765101 | AF123: 15 | AG123: 10.06711409 | AH123: 0 | AI123: 0 | AJ123: 4 | AK123: 2.684563758 | AL123: 18 | AM123: 12.08053691 | AN123: 2 | AO123: 1.342281879
A124: 明細部 | B124: 県 | C124: 55 | D124: 女 | E124: 140 | F124: 27 | G124: 19.28571429 | H124: 19 | I124: 13.57142857 | J124: 11 | K124: 7.857142857 | L124: 15 | M124: 10.71428571 | N124: 1 | O124: 0.7142857143 | P124: 19 | Q124: 13.57142857 | R124: 66 | S124: 47.14285714 | T124: 1 | U124: 0.7142857143 | V124: 38 | W124: 27.14285714 | X124: 26 | Y124: 18.57142857 | Z124: 87 | AA124: 62.14285714 | AB124: 0 | AC124: 0 | AD124: 27 | AE124: 19.28571429 | AF124: 11 | AG124: 7.857142857 | AH124: 2 | AI124: 1.428571429 | AJ124: 3 | AK124: 2.142857143 | AL124: 15 | AM124: 10.71428571 | AN124: 3 | AO124: 2.142857143
A125: 明細部 | B125: 県 | C125: 56 | D125: 女 | E125: 129 | F125: 26 | G125: 20.15503876 | H125: 19 | I125: 14.72868217 | J125: 14 | K125: 10.85271318 | L125: 12 | M125: 9.302325581 | N125: 0 | O125: 0 | P125: 19 | Q125: 14.72868217 | R125: 80 | S125: 62.01550388 | T125: 4 | U125: 3.100775194 | V125: 40 | W125: 31.00775194 | X125: 20 | Y125: 15.50387597 | Z125: 83 | AA125: 64.34108527 | AB125: 0 | AC125: 0 | AD125: 34 | AE125: 26.35658915 | AF125: 13 | AG125: 10.07751938 | AH125: 0 | AI125: 0 | AJ125: 3 | AK125: 2.325581395 | AL125: 23 | AM125: 17.82945736 | AN125: 2 | AO125: 1.550387597
A126: 明細部 | B126: 県 | C126: 57 | D126: 女 | E126: 137 | F126: 31 | G126: 22.62773723 | H126: 30 | I126: 21.89781022 | J126: 16 | K126: 11.67883212 | L126: 14 | M126: 10.2189781 | N126: 0 | O126: 0 | P126: 21 | Q126: 15.32846715 | R126: 70 | S126: 51.09489051 | T126: 6 | U126: 4.379562044 | V126: 38 | W126: 27.73722628 | X126: 27 | Y126: 19.7080292 | Z126: 84 | AA126: 61.31386861 | AB126: 0 | AC126: 0 | AD126: 29 | AE126: 21.16788321 | AF126: 13 | AG126: 9.489051095 | AH126: 0 | AI126: 0 | AJ126: 0 | AK126: 0 | AL126: 21 | AM126: 15.32846715 | AN126: 0 | AO126: 0
A127: 明細部 | B127: 県 | C127: 58 | D127: 女 | E127: 132 | F127: 28 | G127: 21.21212121 | H127: 23 | I127: 17.42424242 | J127: 14 | K127: 10.60606061 | L127: 10 | M127: 7.575757576 | N127: 1 | O127: 0.7575757576 | P127: 20 | Q127: 15.15151515 | R127: 70 | S127: 53.03030303 | T127: 1 | U127: 0.7575757576 | V127: 43 | W127: 32.57575758 | X127: 24 | Y127: 18.18181818 | Z127: 84 | AA127: 63.63636364 | AB127: 0 | AC127: 0 | AD127: 29 | AE127: 21.96969697 | AF127: 6 | AG127: 4.545454545 | AH127: 3 | AI127: 2.272727273 | AJ127: 4 | AK127: 3.03030303 | AL127: 21 | AM127: 15.90909091 | AN127: 2 | AO127: 1.515151515
A128: 明細部 | B128: 県 | C128: 59 | D128: 女 | E128: 154 | F128: 28 | G128: 18.18181818 | H128: 22 | I128: 14.28571429 | J128: 17 | K128: 11.03896104 | L128: 17 | M128: 11.03896104 | N128: 0 | O128: 0 | P128: 26 | Q128: 16.88311688 | R128: 84 | S128: 54.54545455 | T128: 2 | U128: 1.298701299 | V128: 50 | W128: 32.46753247 | X128: 24 | Y128: 15.58441558 | Z128: 100 | AA128: 64.93506494 | AB128: 0 | AC128: 0 | AD128: 37 | AE128: 24.02597403 | AF128: 12 | AG128: 7.792207792 | AH128: 1 | AI128: 0.6493506494 | AJ128: 4 | AK128: 2.597402597 | AL128: 30 | AM128: 19.48051948 | AN128: 5 | AO128: 3.246753247
A129: 明細部 | B129: 県 | C129: 60 | D129: 女 | E129: 177 | F129: 31 | G129: 17.51412429 | H129: 32 | I129: 18.07909605 | J129: 22 | K129: 12.42937853 | L129: 18 | M129: 10.16949153 | N129: 1 | O129: 0.5649717514 | P129: 30 | Q129: 16.94915254 | R129: 112 | S129: 63.27683616 | T129: 6 | U129: 3.389830508 | V129: 52 | W129: 29.37853107 | X129: 29 | Y129: 16.38418079 | Z129: 103 | AA129: 58.1920904 | AB129: 0 | AC129: 0 | AD129: 32 | AE129: 18.07909605 | AF129: 16 | AG129: 9.039548023 | AH129: 3 | AI129: 1.694915254 | AJ129: 6 | AK129: 3.389830508 | AL129: 34 | AM129: 19.20903955 | AN129: 2 | AO129: 1.129943503
A130: 明細部 | B130: 県 | C130: 61 | D130: 女 | E130: 192 | F130: 38 | G130: 19.79166667 | H130: 32 | I130: 16.66666667 | J130: 21 | K130: 10.9375 | L130: 21 | M130: 10.9375 | N130: 1 | O130: 0.5208333333 | P130: 27 | Q130: 14.0625 | R130: 117 | S130: 60.9375 | T130: 5 | U130: 2.604166667 | V130: 60 | W130: 31.25 | X130: 31 | Y130: 16.14583333 | Z130: 106 | AA130: 55.20833333 | AB130: 0 | AC130: 0 | AD130: 35 | AE130: 18.22916667 | AF130: 20 | AG130: 10.41666667 | AH130: 5 | AI130: 2.604166667 | AJ130: 9 | AK130: 4.6875 | AL130: 32 | AM130: 16.66666667 | AN130: 1 | AO130: 0.5208333333
A131: 明細部 | B131: 県 | C131: 62 | D131: 女 | E131: 215 | F131: 44 | G131: 20.46511628 | H131: 41 | I131: 19.06976744 | J131: 25 | K131: 11.62790698 | L131: 17 | M131: 7.906976744 | N131: 1 | O131: 0.4651162791 | P131: 33 | Q131: 15.34883721 | R131: 131 | S131: 60.93023256 | T131: 5 | U131: 2.325581395 | V131: 65 | W131: 30.23255814 | X131: 34 | Y131: 15.81395349 | Z131: 133 | AA131: 61.86046512 | AB131: 0 | AC131: 0 | AD131: 47 | AE131: 21.86046512 | AF131: 32 | AG131: 14.88372093 | AH131: 3 | AI131: 1.395348837 | AJ131: 9 | AK131: 4.186046512 | AL131: 53 | AM131: 24.65116279 | AN131: 3 | AO131: 1.395348837
A132: 明細部 | B132: 県 | C132: 63 | D132: 女 | E132: 246 | F132: 48 | G132: 19.51219512 | H132: 38 | I132: 15.44715447 | J132: 25 | K132: 10.16260163 | L132: 17 | M132: 6.910569106 | N132: 2 | O132: 0.8130081301 | P132: 36 | Q132: 14.63414634 | R132: 152 | S132: 61.78861789 | T132: 3 | U132: 1.219512195 | V132: 80 | W132: 32.5203252 | X132: 45 | Y132: 18.29268293 | Z132: 154 | AA132: 62.60162602 | AB132: 0 | AC132: 0 | AD132: 59 | AE132: 23.98373984 | AF132: 29 | AG132: 11.78861789 | AH132: 3 | AI132: 1.219512195 | AJ132: 6 | AK132: 2.43902439 | AL132: 58 | AM132: 23.57723577 | AN132: 5 | AO132: 2.032520325
A133: 明細部 | B133: 県 | C133: 64 | D133: 女 | E133: 320 | F133: 59 | G133: 18.4375 | H133: 58 | I133: 18.125 | J133: 32 | K133: 10 | L133: 31 | M133: 9.6875 | N133: 1 | O133: 0.3125 | P133: 52 | Q133: 16.25 | R133: 203 | S133: 63.4375 | T133: 7 | U133: 2.1875 | V133: 110 | W133: 34.375 | X133: 59 | Y133: 18.4375 | Z133: 177 | AA133: 55.3125 | AB133: 0 | AC133: 0 | AD133: 65 | AE133: 20.3125 | AF133: 37 | AG133: 11.5625 | AH133: 3 | AI133: 0.9375 | AJ133: 6 | AK133: 1.875 | AL133: 64 | AM133: 20 | AN133: 5 | AO133: 1.5625
A134: 明細部 | B134: 県 | C134: 65 | D134: 女 | E134: 334 | F134: 49 | G134: 14.67065868 | H134: 48 | I134: 14.37125749 | J134: 43 | K134: 12.8742515 | L134: 23 | M134: 6.886227545 | N134: 1 | O134: 0.2994011976 | P134: 66 | Q134: 19.76047904 | R134: 212 | S134: 63.47305389 | T134: 8 | U134: 2.395209581 | V134: 134 | W134: 40.11976048 | X134: 61 | Y134: 18.26347305 | Z134: 207 | AA134: 61.9760479 | AB134: 0 | AC134: 0 | AD134: 77 | AE134: 23.05389222 | AF134: 42 | AG134: 12.5748503 | AH134: 4 | AI134: 1.19760479 | AJ134: 8 | AK134: 2.395209581 | AL134: 74 | AM134: 22.15568862 | AN134: 2 | AO134: 0.5988023952
A135: 明細部 | B135: 県 | C135: 66 | D135: 女 | E135: 407 | F135: 72 | G135: 17.69041769 | H135: 62 | I135: 15.23341523 | J135: 33 | K135: 8.108108108 | L135: 33 | M135: 8.108108108 | N135: 0 | O135: 0 | P135: 74 | Q135: 18.18181818 | R135: 272 | S135: 66.83046683 | T135: 5 | U135: 1.228501229 | V135: 168 | W135: 41.27764128 | X135: 83 | Y135: 20.39312039 | Z135: 248 | AA135: 60.93366093 | AB135: 0 | AC135: 0 | AD135: 102 | AE135: 25.06142506 | AF135: 59 | AG135: 14.4963145 | AH135: 8 | AI135: 1.965601966 | AJ135: 11 | AK135: 2.702702703 | AL135: 98 | AM135: 24.07862408 | AN135: 9 | AO135: 2.211302211
A136: 明細部 | B136: 県 | C136: 67 | D136: 女 | E136: 496 | F136: 89 | G136: 17.94354839 | H136: 82 | I136: 16.53225806 | J136: 53 | K136: 10.68548387 | L136: 36 | M136: 7.258064516 | N136: 6 | O136: 1.209677419 | P136: 94 | Q136: 18.9516129 | R136: 328 | S136: 66.12903226 | T136: 8 | U136: 1.612903226 | V136: 219 | W136: 44.15322581 | X136: 88 | Y136: 17.74193548 | Z136: 297 | AA136: 59.87903226 | AB136: 3 | AC136: 0.6048387097 | AD136: 127 | AE136: 25.60483871 | AF136: 53 | AG136: 10.68548387 | AH136: 6 | AI136: 1.209677419 | AJ136: 15 | AK136: 3.024193548 | AL136: 132 | AM136: 26.61290323 | AN136: 11 | AO136: 2.217741935
A137: 明細部 | B137: 県 | C137: 68 | D137: 女 | E137: 570 | F137: 110 | G137: 19.29824561 | H137: 101 | I137: 17.71929825 | J137: 70 | K137: 12.28070175 | L137: 36 | M137: 6.315789474 | N137: 8 | O137: 1.403508772 | P137: 104 | Q137: 18.24561404 | R137: 387 | S137: 67.89473684 | T137: 15 | U137: 2.631578947 | V137: 252 | W137: 44.21052632 | X137: 90 | Y137: 15.78947368 | Z137: 304 | AA137: 53.33333333 | AB137: 0 | AC137: 0 | AD137: 127 | AE137: 22.28070175 | AF137: 64 | AG137: 11.22807018 | AH137: 13 | AI137: 2.280701754 | AJ137: 19 | AK137: 3.333333333 | AL137: 143 | AM137: 25.0877193 | AN137: 12 | AO137: 2.105263158
A138: 明細部 | B138: 県 | C138: 69 | D138: 女 | E138: 648 | F138: 104 | G138: 16.04938272 | H138: 107 | I138: 16.51234568 | J138: 72 | K138: 11.11111111 | L138: 46 | M138: 7.098765432 | N138: 5 | O138: 0.7716049383 | P138: 144 | Q138: 22.22222222 | R138: 463 | S138: 71.45061728 | T138: 9 | U138: 1.388888889 | V138: 324 | W138: 50 | X138: 109 | Y138: 16.82098765 | Z138: 384 | AA138: 59.25925926 | AB138: 1 | AC138: 0.1543209877 | AD138: 155 | AE138: 23.91975309 | AF138: 70 | AG138: 10.80246914 | AH138: 10 | AI138: 1.543209877 | AJ138: 11 | AK138: 1.697530864 | AL138: 161 | AM138: 24.84567901 | AN138: 9 | AO138: 1.388888889
A139: 明細部 | B139: 県 | C139: 70 | D139: 女 | E139: 723 | F139: 131 | G139: 18.11894882 | H139: 132 | I139: 18.25726141 | J139: 74 | K139: 10.2351314 | L139: 54 | M139: 7.468879668 | N139: 12 | O139: 1.659751037 | P139: 166 | Q139: 22.95988935 | R139: 495 | S139: 68.46473029 | T139: 15 | U139: 2.074688797 | V139: 334 | W139: 46.19640387 | X139: 106 | Y139: 14.66113416 | Z139: 396 | AA139: 54.77178423 | AB139: 0 | AC139: 0 | AD139: 158 | AE139: 21.85338866 | AF139: 70 | AG139: 9.681881051 | AH139: 17 | AI139: 2.35131397 | AJ139: 13 | AK139: 1.798063624 | AL139: 200 | AM139: 27.66251729 | AN139: 12 | AO139: 1.659751037
A140: 明細部 | B140: 県 | C140: 71 | D140: 女 | E140: 765 | F140: 127 | G140: 16.60130719 | H140: 144 | I140: 18.82352941 | J140: 80 | K140: 10.45751634 | L140: 55 | M140: 7.189542484 | N140: 8 | O140: 1.045751634 | P140: 176 | Q140: 23.00653595 | R140: 529 | S140: 69.1503268 | T140: 12 | U140: 1.568627451 | V140: 396 | W140: 51.76470588 | X140: 124 | Y140: 16.20915033 | Z140: 425 | AA140: 55.55555556 | AB140: 3 | AC140: 0.3921568627 | AD140: 173 | AE140: 22.61437908 | AF140: 83 | AG140: 10.8496732 | AH140: 13 | AI140: 1.699346405 | AJ140: 18 | AK140: 2.352941176 | AL140: 210 | AM140: 27.45098039 | AN140: 18 | AO140: 2.352941176
A141: 明細部 | B141: 県 | C141: 72 | D141: 女 | E141: 840 | F141: 148 | G141: 17.61904762 | H141: 143 | I141: 17.02380952 | J141: 107 | K141: 12.73809524 | L141: 50 | M141: 5.952380952 | N141: 6 | O141: 0.7142857143 | P141: 189 | Q141: 22.5 | R141: 621 | S141: 73.92857143 | T141: 15 | U141: 1.785714286 | V141: 467 | W141: 55.5952381 | X141: 139 | Y141: 16.54761905 | Z141: 448 | AA141: 53.33333333 | AB141: 0 | AC141: 0 | AD141: 219 | AE141: 26.07142857 | AF141: 78 | AG141: 9.285714286 | AH141: 23 | AI141: 2.738095238 | AJ141: 26 | AK141: 3.095238095 | AL141: 235 | AM141: 27.97619048 | AN141: 11 | AO141: 1.30952381
A142: 明細部 | B142: 県 | C142: 73 | D142: 女 | E142: 984 | F142: 180 | G142: 18.29268293 | H142: 187 | I142: 19.00406504 | J142: 103 | K142: 10.46747967 | L142: 54 | M142: 5.487804878 | N142: 9 | O142: 0.9146341463 | P142: 215 | Q142: 21.8495935 | R142: 717 | S142: 72.86585366 | T142: 17 | U142: 1.727642276 | V142: 537 | W142: 54.57317073 | X142: 156 | Y142: 15.85365854 | Z142: 557 | AA142: 56.60569106 | AB142: 5 | AC142: 0.5081300813 | AD142: 249 | AE142: 25.30487805 | AF142: 100 | AG142: 10.16260163 | AH142: 31 | AI142: 3.150406504 | AJ142: 12 | AK142: 1.219512195 | AL142: 308 | AM142: 31.30081301 | AN142: 17 | AO142: 1.727642276
A143: 明細部 | B143: 県 | C143: 74 | D143: 女 | E143: 1075 | F143: 192 | G143: 17.86046512 | H143: 201 | I143: 18.69767442 | J143: 107 | K143: 9.953488372 | L143: 66 | M143: 6.139534884 | N143: 9 | O143: 0.8372093023 | P143: 245 | Q143: 22.79069767 | R143: 763 | S143: 70.97674419 | T143: 23 | U143: 2.139534884 | V143: 585 | W143: 54.41860465 | X143: 166 | Y143: 15.44186047 | Z143: 582 | AA143: 54.13953488 | AB143: 3 | AC143: 0.2790697674 | AD143: 299 | AE143: 27.81395349 | AF143: 88 | AG143: 8.186046512 | AH143: 23 | AI143: 2.139534884 | AJ143: 24 | AK143: 2.23255814 | AL143: 362 | AM143: 33.6744186 | AN143: 18 | AO143: 1.674418605
A144: 明細部 | B144: 保険者（地区） | C144: 40 | D144: 男 | E144: 3 | F144: 1 | G144: 33.33333333 | H144: 1 | I144: 33.33333333 | J144: 0 | K144: 0 | L144: 0 | M144: 0 | N144: 0 | O144: 0 | P144: 0 | Q144: 0 | R144: 0 | S144: 0 | T144: 0 | U144: 0 | V144: 0 | W144: 0 | X144: 0 | Y144: 0 | Z144: 0 | AA144: 0 | AB144: 0 | AC144: 0 | AD144: 0 | AE144: 0 | AF144: 0 | AG144: 0 | AH144: 0 | AI144: 0 | AJ144: 0 | AK144: 0 | AL144: 0 | AM144: 0 | AN144: 0 | AO144: 0
A145: 明細部 | B145: 保険者（地区） | C145: 41 | D145: 男 | E145: 5 | F145: 0 | G145: 0 | H145: 2 | I145: 40 | J145: 0 | K145: 0 | L145: 1 | M145: 20 | N145: 0 | O145: 0 | P145: 0 | Q145: 0 | R145: 0 | S145: 0 | T145: 0 | U145: 0 | V145: 0 | W145: 0 | X145: 0 | Y145: 0 | Z145: 1 | AA145: 20 | AB145: 0 | AC145: 0 | AD145: 2 | AE145: 40 | AF145: 0 | AG145: 0 | AH145: 0 | AI145: 0 | AJ145: 0 | AK145: 0 | AL145: 0 | AM145: 0 | AN145: 0 | AO145: 0
A146: 明細部 | B146: 保険者（地区） | C146: 42 | D146: 男 | E146: 3 | F146: 1 | G146: 33.33333333 | H146: 1 | I146: 33.33333333 | J146: 1 | K146: 33.33333333 | L146: 0 | M146: 0 | N146: 1 | O146: 33.33333333 | P146: 2 | Q146: 66.66666667 | R146: 0 | S146: 0 | T146: 0 | U146: 0 | V146: 0 | W146: 0 | X146: 0 | Y146: 0 | Z146: 0 | AA146: 0 | AB146: 0 | AC146: 0 | AD146: 0 | AE146: 0 | AF146: 0 | AG146: 0 | AH146: 0 | AI146: 0 | AJ146: 0 | AK146: 0 | AL146: 0 | AM146: 0 | AN146: 0 | AO146: 0
A147: 明細部 | B147: 保険者（地区） | C147: 43 | D147: 男 | E147: 2 | F147: 1 | G147: 50 | H147: 0 | I147: 0 | J147: 0 | K147: 0 | L147: 0 | M147: 0 | N147: 0 | O147: 0 | P147: 0 | Q147: 0 | R147: 0 | S147: 0 | T147: 0 | U147: 0 | V147: 0 | W147: 0 | X147: 0 | Y147: 0 | Z147: 1 | AA147: 50 | AB147: 0 | AC147: 0 | AD147: 0 | AE147: 0 | AF147: 0 | AG147: 0 | AH147: 0 | AI147: 0 | AJ147: 0 | AK147: 0 | AL147: 0 | AM147: 0 | AN147: 0 | AO147: 0
A148: 明細部 | B148: 保険者（地区） | C148: 44 | D148: 男 | E148: 8 | F148: 1 | G148: 12.5 | H148: 2 | I148: 25 | J148: 0 | K148: 0 | L148: 0 | M148: 0 | N148: 0 | O148: 0 | P148: 0 | Q148: 0 | R148: 1 | S148: 12.5 | T148: 1 | U148: 12.5 | V148: 0 | W148: 0 | X148: 2 | Y148: 25 | Z148: 3 | AA148: 37.5 | AB148: 0 | AC148: 0 | AD148: 3 | AE148: 37.5 | AF148: 1 | AG148: 12.5 | AH148: 0 | AI148: 0 | AJ148: 0 | AK148: 0 | AL148: 0 | AM148: 0 | AN148: 0 | AO148: 0
A149: 明細部 | B149: 保険者（地区） | C149: 45 | D149: 男 | E149: 2 | F149: 1 | G149: 50 | H149: 2 | I149: 100 | J149: 0 | K149: 0 | L149: 1 | M149: 50 | N149: 0 | O149: 0 | P149: 0 | Q149: 0 | R149: 0 | S149: 0 | T149: 0 | U149: 0 | V149: 0 | W149: 0 | X149: 0 | Y149: 0 | Z149: 2 | AA149: 100 | AB149: 0 | AC149: 0 | AD149: 0 | AE149: 0 | AF149: 0 | AG149: 0 | AH149: 0 | AI149: 0 | AJ149: 0 | AK149: 0 | AL149: 0 | AM149: 0 | AN149: 0 | AO149: 0
A150: 明細部 | B150: 保険者（地区） | C150: 46 | D150: 男 | E150: 6 | F150: 2 | G150: 33.33333333 | H150: 3 | I150: 50 | J150: 0 | K150: 0 | L150: 3 | M150: 50 | N150: 0 | O150: 0 | P150: 0 | Q150: 0 | R150: 2 | S150: 33.33333333 | T150: 0 | U150: 0 | V150: 3 | W150: 50 | X150: 0 | Y150: 0 | Z150: 3 | AA150: 50 | AB150: 0 | AC150: 0 | AD150: 2 | AE150: 33.33333333 | AF150: 0 | AG150: 0 | AH150: 0 | AI150: 0 | AJ150: 0 | AK150: 0 | AL150: 0 | AM150: 0 | AN150: 0 | AO150: 0
A151: 明細部 | B151: 保険者（地区） | C151: 47 | D151: 男 | E151: 6 | F151: 2 | G151: 33.33333333 | H151: 5 | I151: 83.33333333 | J151: 0 | K151: 0 | L151: 2 | M151: 33.33333333 | N151: 0 | O151: 0 | P151: 1 | Q151: 16.66666667 | R151: 2 | S151: 33.33333333 | T151: 1 | U151: 16.66666667 | V151: 2 | W151: 33.33333333 | X151: 2 | Y151: 33.33333333 | Z151: 4 | AA151: 66.66666667 | AB151: 0 | AC151: 0 | AD151: 0 | AE151: 0 | AF151: 0 | AG151: 0 | AH151: 0 | AI151: 0 | AJ151: 0 | AK151: 0 | AL151: 0 | AM151: 0 | AN151: 0 | AO151: 0
A152: 明細部 | B152: 保険者（地区） | C152: 48 | D152: 男 | E152: 5 | F152: 0 | G152: 0 | H152: 1 | I152: 20 | J152: 0 | K152: 0 | L152: 2 | M152: 40 | N152: 0 | O152: 0 | P152: 1 | Q152: 20 | R152: 2 | S152: 40 | T152: 1 | U152: 20 | V152: 0 | W152: 0 | X152: 0 | Y152: 0 | Z152: 3 | AA152: 60 | AB152: 0 | AC152: 0 | AD152: 2 | AE152: 40 | AF152: 0 | AG152: 0 | AH152: 0 | AI152: 0 | AJ152: 0 | AK152: 0 | AL152: 0 | AM152: 0 | AN152: 0 | AO152: 0
A153: 明細部 | B153: 保険者（地区） | C153: 49 | D153: 男 | E153: 0 | F153: 0 | H153: 0 | J153: 0 | L153: 0 | N153: 0 | P153: 0 | R153: 0 | T153: 0 | V153: 0 | X153: 0 | Z153: 0 | AB153: 0 | AD153: 0 | AF153: 0 | AH153: 0 | AJ153: 0 | AL153: 0 | AN153: 0
A154: 明細部 | B154: 保険者（地区） | C154: 50 | D154: 男 | E154: 4 | F154: 1 | G154: 25 | H154: 2 | I154: 50 | J154: 1 | K154: 25 | L154: 3 | M154: 75 | N154: 0 | O154: 0 | P154: 0 | Q154: 0 | R154: 2 | S154: 50 | T154: 1 | U154: 25 | V154: 1 | W154: 25 | X154: 0 | Y154: 0 | Z154: 2 | AA154: 50 | AB154: 0 | AC154: 0 | AD154: 0 | AE154: 0 | AF154: 0 | AG154: 0 | AH154: 0 | AI154: 0 | AJ154: 0 | AK154: 0 | AL154: 0 | AM154: 0 | AN154: 0 | AO154: 0
A155: 明細部 | B155: 保険者（地区） | C155: 51 | D155: 男 | E155: 8 | F155: 6 | G155: 75 | H155: 5 | I155: 62.5 | J155: 6 | K155: 75 | L155: 3 | M155: 37.5 | N155: 0 | O155: 0 | P155: 2 | Q155: 25 | R155: 1 | S155: 12.5 | T155: 1 | U155: 12.5 | V155: 1 | W155: 12.5 | X155: 2 | Y155: 25 | Z155: 3 | AA155: 37.5 | AB155: 0 | AC155: 0 | AD155: 3 | AE155: 37.5 | AF155: 0 | AG155: 0 | AH155: 0 | AI155: 0 | AJ155: 0 | AK155: 0 | AL155: 0 | AM155: 0 | AN155: 0 | AO155: 0
A156: 明細部 | B156: 保険者（地区） | C156: 52 | D156: 男 | E156: 6 | F156: 4 | G156: 66.66666667 | H156: 5 | I156: 83.33333333 | J156: 2 | K156: 33.33333333 | L156: 3 | M156: 50 | N156: 0 | O156: 0 | P156: 3 | Q156: 50 | R156: 2 | S156: 33.33333333 | T156: 0 | U156: 0 | V156: 2 | W156: 33.33333333 | X156: 1 | Y156: 16.66666667 | Z156: 2 | AA156: 33.33333333 | AB156: 0 | AC156: 0 | AD156: 2 | AE156: 33.33333333 | AF156: 0 | AG156: 0 | AH156: 0 | AI156: 0 | AJ156: 0 | AK156: 0 | AL156: 0 | AM156: 0 | AN156: 0 | AO156: 0
A157: 明細部 | B157: 保険者（地区） | C157: 53 | D157: 男 | E157: 6 | F157: 2 | G157: 33.33333333 | H157: 3 | I157: 50 | J157: 2 | K157: 33.33333333 | L157: 2 | M157: 33.33333333 | N157: 0 | O157: 0 | P157: 0 | Q157: 0 | R157: 2 | S157: 33.33333333 | T157: 0 | U157: 0 | V157: 3 | W157: 50 | X157: 2 | Y157: 33.33333333 | Z157: 0 | AA157: 0 | AB157: 0 | AC157: 0 | AD157: 2 | AE157: 33.33333333 | AF157: 0 | AG157: 0 | AH157: 0 | AI157: 0 | AJ157: 0 | AK157: 0 | AL157: 0 | AM157: 0 | AN157: 0 | AO157: 0
A158: 明細部 | B158: 保険者（地区） | C158: 54 | D158: 男 | E158: 12 | F158: 6 | G158: 50 | H158: 8 | I158: 66.66666667 | J158: 3 | K158: 25 | L158: 2 | M158: 16.66666667 | N158: 1 | O158: 8.333333333 | P158: 2 | Q158: 16.66666667 | R158: 6 | S158: 50 | T158: 4 | U158: 33.33333333 | V158: 4 | W158: 33.33333333 | X158: 4 | Y158: 33.33333333 | Z158: 6 | AA158: 50 | AB158: 0 | AC158: 0 | AD158: 4 | AE158: 33.33333333 | AF158: 0 | AG158: 0 | AH158: 0 | AI158: 0 | AJ158: 0 | AK158: 0 | AL158: 0 | AM158: 0 | AN158: 0 | AO158: 0
A159: 明細部 | B159: 保険者（地区） | C159: 55 | D159: 男 | E159: 7 | F159: 3 | G159: 42.85714286 | H159: 5 | I159: 71.42857143 | J159: 2 | K159: 28.57142857 | L159: 2 | M159: 28.57142857 | N159: 0 | O159: 0 | P159: 0 | Q159: 0 | R159: 3 | S159: 42.85714286 | T159: 0 | U159: 0 | V159: 2 | W159: 28.57142857 | X159: 0 | Y159: 0 | Z159: 4 | AA159: 57.14285714 | AB159: 0 | AC159: 0 | AD159: 2 | AE159: 28.57142857 | AF159: 0 | AG159: 0 | AH159: 0 | AI159: 0 | AJ159: 0 | AK159: 0 | AL159: 0 | AM159: 0 | AN159: 0 | AO159: 0
A160: 明細部 | B160: 保険者（地区） | C160: 56 | D160: 男 | E160: 5 | F160: 2 | G160: 40 | H160: 2 | I160: 40 | J160: 0 | K160: 0 | L160: 1 | M160: 20 | N160: 0 | O160: 0 | P160: 1 | Q160: 20 | R160: 2 | S160: 40 | T160: 1 | U160: 20 | V160: 0 | W160: 0 | X160: 1 | Y160: 20 | Z160: 2 | AA160: 40 | AB160: 0 | AC160: 0 | AD160: 3 | AE160: 60 | AF160: 0 | AG160: 0 | AH160: 0 | AI160: 0 | AJ160: 0 | AK160: 0 | AL160: 0 | AM160: 0 | AN160: 0 | AO160: 0
A161: 明細部 | B161: 保険者（地区） | C161: 57 | D161: 男 | E161: 5 | F161: 1 | G161: 20 | H161: 3 | I161: 60 | J161: 0 | K161: 0 | L161: 3 | M161: 60 | N161: 0 | O161: 0 | P161: 2 | Q161: 40 | R161: 3 | S161: 60 | T161: 0 | U161: 0 | V161: 3 | W161: 60 | X161: 1 | Y161: 20 | Z161: 1 | AA161: 20 | AB161: 0 | AC161: 0 | AD161: 3 | AE161: 60 | AF161: 0 | AG161: 0 | AH161: 0 | AI161: 0 | AJ161: 0 | AK161: 0 | AL161: 1 | AM161: 20 | AN161: 0 | AO161: 0
A162: 明細部 | B162: 保険者（地区） | C162: 58 | D162: 男 | E162: 5 | F162: 3 | G162: 60 | H162: 3 | I162: 60 | J162: 0 | K162: 0 | L162: 3 | M162: 60 | N162: 0 | O162: 0 | P162: 1 | Q162: 20 | R162: 2 | S162: 40 | T162: 1 | U162: 20 | V162: 2 | W162: 40 | X162: 1 | Y162: 20 | Z162: 2 | AA162: 40 | AB162: 0 | AC162: 0 | AD162: 3 | AE162: 60 | AF162: 0 | AG162: 0 | AH162: 0 | AI162: 0 | AJ162: 0 | AK162: 0 | AL162: 0 | AM162: 0 | AN162: 0 | AO162: 0
A163: 明細部 | B163: 保険者（地区） | C163: 59 | D163: 男 | E163: 15 | F163: 6 | G163: 40 | H163: 11 | I163: 73.33333333 | J163: 4 | K163: 26.66666667 | L163: 4 | M163: 26.66666667 | N163: 0 | O163: 0 | P163: 5 | Q163: 33.33333333 | R163: 6 | S163: 40 | T163: 3 | U163: 20 | V163: 8 | W163: 53.33333333 | X163: 7 | Y163: 46.66666667 | Z163: 6 | AA163: 40 | AB163: 0 | AC163: 0 | AD163: 4 | AE163: 26.66666667 | AF163: 0 | AG163: 0 | AH163: 0 | AI163: 0 | AJ163: 0 | AK163: 0 | AL163: 0 | AM163: 0 | AN163: 0 | AO163: 0
A164: 明細部 | B164: 保険者（地区） | C164: 60 | D164: 男 | E164: 8 | F164: 3 | G164: 37.5 | H164: 5 | I164: 62.5 | J164: 0 | K164: 0 | L164: 1 | M164: 12.5 | N164: 0 | O164: 0 | P164: 0 | Q164: 0 | R164: 2 | S164: 25 | T164: 2 | U164: 25 | V164: 2 | W164: 25 | X164: 3 | Y164: 37.5 | Z164: 4 | AA164: 50 | AB164: 0 | AC164: 0 | AD164: 1 | AE164: 12.5 | AF164: 0 | AG164: 0 | AH164: 0 | AI164: 0 | AJ164: 0 | AK164: 0 | AL164: 0 | AM164: 0 | AN164: 0 | AO164: 0
A165: 明細部 | B165: 保険者（地区） | C165: 61 | D165: 男 | E165: 9 | F165: 2 | G165: 22.22222222 | H165: 3 | I165: 33.33333333 | J165: 0 | K165: 0 | L165: 0 | M165: 0 | N165: 2 | O165: 22.22222222 | P165: 0 | Q165: 0 | R165: 3 | S165: 33.33333333 | T165: 1 | U165: 11.11111111 | V165: 5 | W165: 55.55555556 | X165: 1 | Y165: 11.11111111 | Z165: 3 | AA165: 33.33333333 | AB165: 0 | AC165: 0 | AD165: 1 | AE165: 11.11111111 | AF165: 0 | AG165: 0 | AH165: 0 | AI165: 0 | AJ165: 0 | AK165: 0 | AL165: 1 | AM165: 11.11111111 | AN165: 1 | AO165: 11.11111111
A166: 明細部 | B166: 保険者（地区） | C166: 62 | D166: 男 | E166: 4 | F166: 2 | G166: 50 | H166: 3 | I166: 75 | J166: 1 | K166: 25 | L166: 0 | M166: 0 | N166: 0 | O166: 0 | P166: 1 | Q166: 25 | R166: 3 | S166: 75 | T166: 1 | U166: 25 | V166: 2 | W166: 50 | X166: 0 | Y166: 0 | Z166: 0 | AA166: 0 | AB166: 0 | AC166: 0 | AD166: 1 | AE166: 25 | AF166: 0 | AG166: 0 | AH166: 0 | AI166: 0 | AJ166: 0 | AK166: 0 | AL166: 1 | AM166: 25 | AN166: 1 | AO166: 25
A167: 明細部 | B167: 保険者（地区） | C167: 63 | D167: 男 | E167: 7 | F167: 3 | G167: 42.85714286 | H167: 5 | I167: 71.42857143 | J167: 3 | K167: 42.85714286 | L167: 2 | M167: 28.57142857 | N167: 0 | O167: 0 | P167: 4 | Q167: 57.14285714 | R167: 3 | S167: 42.85714286 | T167: 1 | U167: 14.28571429 | V167: 2 | W167: 28.57142857 | X167: 1 | Y167: 14.28571429 | Z167: 3 | AA167: 42.85714286 | AB167: 0 | AC167: 0 | AD167: 1 | AE167: 14.28571429 | AF167: 0 | AG167: 0 | AH167: 0 | AI167: 0 | AJ167: 0 | AK167: 0 | AL167: 0 | AM167: 0 | AN167: 0 | AO167: 0
A168: 明細部 | B168: 保険者（地区） | C168: 64 | D168: 男 | E168: 13 | F168: 3 | G168: 23.07692308 | H168: 8 | I168: 61.53846154 | J168: 1 | K168: 7.692307692 | L168: 2 | M168: 15.38461538 | N168: 0 | O168: 0 | P168: 3 | Q168: 23.07692308 | R168: 5 | S168: 38.46153846 | T168: 1 | U168: 7.692307692 | V168: 6 | W168: 46.15384615 | X168: 3 | Y168: 23.07692308 | Z168: 3 | AA168: 23.07692308 | AB168: 0 | AC168: 0 | AD168: 6 | AE168: 46.15384615 | AF168: 0 | AG168: 0 | AH168: 0 | AI168: 0 | AJ168: 0 | AK168: 0 | AL168: 3 | AM168: 23.07692308 | AN168: 0 | AO168: 0
A169: 明細部 | B169: 保険者（地区） | C169: 65 | D169: 男 | E169: 8 | F169: 3 | G169: 37.5 | H169: 3 | I169: 37.5 | J169: 0 | K169: 0 | L169: 3 | M169: 37.5 | N169: 2 | O169: 25 | P169: 2 | Q169: 25 | R169: 4 | S169: 50 | T169: 0 | U169: 0 | V169: 3 | W169: 37.5 | X169: 2 | Y169: 25 | Z169: 3 | AA169: 37.5 | AB169: 0 | AC169: 0 | AD169: 2 | AE169: 25 | AF169: 0 | AG169: 0 | AH169: 2 | AI169: 25 | AJ169: 0 | AK169: 0 | AL169: 0 | AM169: 0 | AN169: 0 | AO169: 0
A170: 明細部 | B170: 保険者（地区） | C170: 66 | D170: 男 | E170: 12 | F170: 4 | G170: 33.33333333 | H170: 6 | I170: 50 | J170: 5 | K170: 41.66666667 | L170: 4 | M170: 33.33333333 | N170: 0 | O170: 0 | P170: 5 | Q170: 41.66666667 | R170: 7 | S170: 58.33333333 | T170: 3 | U170: 25 | V170: 8 | W170: 66.66666667 | X170: 4 | Y170: 33.33333333 | Z170: 5 | AA170: 41.66666667 | AB170: 0 | AC170: 0 | AD170: 3 | AE170: 25 | AF170: 0 | AG170: 0 | AH170: 0 | AI170: 0 | AJ170: 0 | AK170: 0 | AL170: 2 | AM170: 16.66666667 | AN170: 0 | AO170: 0
A171: 明細部 | B171: 保険者（地区） | C171: 67 | D171: 男 | E171: 13 | F171: 6 | G171: 46.15384615 | H171: 8 | I171: 61.53846154 | J171: 2 | K171: 15.38461538 | L171: 3 | M171: 23.07692308 | N171: 0 | O171: 0 | P171: 7 | Q171: 53.84615385 | R171: 6 | S171: 46.15384615 | T171: 2 | U171: 15.38461538 | V171: 5 | W171: 38.46153846 | X171: 3 | Y171: 23.07692308 | Z171: 5 | AA171: 38.46153846 | AB171: 0 | AC171: 0 | AD171: 7 | AE171: 53.84615385 | AF171: 0 | AG171: 0 | AH171: 0 | AI171: 0 | AJ171: 0 | AK171: 0 | AL171: 3 | AM171: 23.07692308 | AN171: 0 | AO171: 0
A172: 明細部 | B172: 保険者（地区） | C172: 68 | D172: 男 | E172: 15 | F172: 2 | G172: 13.33333333 | H172: 3 | I172: 20 | J172: 3 | K172: 20 | L172: 0 | M172: 0 | N172: 0 | O172: 0 | P172: 3 | Q172: 20 | R172: 3 | S172: 20 | T172: 3 | U172: 20 | V172: 8 | W172: 53.33333333 | X172: 6 | Y172: 40 | Z172: 7 | AA172: 46.66666667 | AB172: 0 | AC172: 0 | AD172: 6 | AE172: 40 | AF172: 0 | AG172: 0 | AH172: 0 | AI172: 0 | AJ172: 0 | AK172: 0 | AL172: 4 | AM172: 26.66666667 | AN172: 1 | AO172: 6.666666667
A173: 明細部 | B173: 保険者（地区） | C173: 69 | D173: 男 | E173: 23 | F173: 6 | G173: 26.08695652 | H173: 12 | I173: 52.17391304 | J173: 5 | K173: 21.73913043 | L173: 3 | M173: 13.04347826 | N173: 1 | O173: 4.347826087 | P173: 10 | Q173: 43.47826087 | R173: 10 | S173: 43.47826087 | T173: 4 | U173: 17.39130435 | V173: 12 | W173: 52.17391304 | X173: 4 | Y173: 17.39130435 | Z173: 5 | AA173: 21.73913043 | AB173: 0 | AC173: 0 | AD173: 10 | AE173: 43.47826087 | AF173: 0 | AG173: 0 | AH173: 0 | AI173: 0 | AJ173: 0 | AK173: 0 | AL173: 3 | AM173: 13.04347826 | AN173: 2 | AO173: 8.695652174
A174: 明細部 | B174: 保険者（地区） | C174: 70 | D174: 男 | E174: 19 | F174: 8 | G174: 42.10526316 | H174: 13 | I174: 68.42105263 | J174: 4 | K174: 21.05263158 | L174: 3 | M174: 15.78947368 | N174: 0 | O174: 0 | P174: 5 | Q174: 26.31578947 | R174: 10 | S174: 52.63157895 | T174: 1 | U174: 5.263157895 | V174: 9 | W174: 47.36842105 | X174: 2 | Y174: 10.52631579 | Z174: 8 | AA174: 42.10526316 | AB174: 0 | AC174: 0 | AD174: 7 | AE174: 36.84210526 | AF174: 1 | AG174: 5.263157895 | AH174: 0 | AI174: 0 | AJ174: 0 | AK174: 0 | AL174: 5 | AM174: 26.31578947 | AN174: 0 | AO174: 0
A175: 明細部 | B175: 保険者（地区） | C175: 71 | D175: 男 | E175: 13 | F175: 5 | G175: 38.46153846 | H175: 6 | I175: 46.15384615 | J175: 1 | K175: 7.692307692 | L175: 3 | M175: 23.07692308 | N175: 0 | O175: 0 | P175: 4 | Q175: 30.76923077 | R175: 6 | S175: 46.15384615 | T175: 0 | U175: 0 | V175: 6 | W175: 46.15384615 | X175: 2 | Y175: 15.38461538 | Z175: 9 | AA175: 69.23076923 | AB175: 0 | AC175: 0 | AD175: 8 | AE175: 61.53846154 | AF175: 0 | AG175: 0 | AH175: 0 | AI175: 0 | AJ175: 0 | AK175: 0 | AL175: 4 | AM175: 30.76923077 | AN175: 0 | AO175: 0
A176: 明細部 | B176: 保険者（地区） | C176: 72 | D176: 男 | E176: 27 | F176: 11 | G176: 40.74074074 | H176: 16 | I176: 59.25925926 | J176: 3 | K176: 11.11111111 | L176: 5 | M176: 18.51851852 | N176: 3 | O176: 11.11111111 | P176: 4 | Q176: 14.81481481 | R176: 11 | S176: 40.74074074 | T176: 3 | U176: 11.11111111 | V176: 18 | W176: 66.66666667 | X176: 5 | Y176: 18.51851852 | Z176: 13 | AA176: 48.14814815 | AB176: 0 | AC176: 0 | AD176: 10 | AE176: 37.03703704 | AF176: 0 | AG176: 0 | AH176: 0 | AI176: 0 | AJ176: 0 | AK176: 0 | AL176: 9 | AM176: 33.33333333 | AN176: 0 | AO176: 0
A177: 明細部 | B177: 保険者（地区） | C177: 73 | D177: 男 | E177: 23 | F177: 7 | G177: 30.43478261 | H177: 12 | I177: 52.17391304 | J177: 5 | K177: 21.73913043 | L177: 3 | M177: 13.04347826 | N177: 1 | O177: 4.347826087 | P177: 10 | Q177: 43.47826087 | R177: 12 | S177: 52.17391304 | T177: 3 | U177: 13.04347826 | V177: 13 | W177: 56.52173913 | X177: 5 | Y177: 21.73913043 | Z177: 9 | AA177: 39.13043478 | AB177: 0 | AC177: 0 | AD177: 12 | AE177: 52.17391304 | AF177: 0 | AG177: 0 | AH177: 1 | AI177: 4.347826087 | AJ177: 0 | AK177: 0 | AL177: 7 | AM177: 30.43478261 | AN177: 0 | AO177: 0
A178: 明細部 | B178: 保険者（地区） | C178: 74 | D178: 男 | E178: 31 | F178: 10 | G178: 32.25806452 | H178: 18 | I178: 58.06451613 | J178: 5 | K178: 16.12903226 | L178: 2 | M178: 6.451612903 | N178: 1 | O178: 3.225806452 | P178: 13 | Q178: 41.93548387 | R178: 16 | S178: 51.61290323 | T178: 3 | U178: 9.677419355 | V178: 16 | W178: 51.61290323 | X178: 8 | Y178: 25.80645161 | Z178: 9 | AA178: 29.03225806 | AB178: 0 | AC178: 0 | AD178: 19 | AE178: 61.29032258 | AF178: 0 | AG178: 0 | AH178: 0 | AI178: 0 | AJ178: 0 | AK178: 0 | AL178: 9 | AM178: 29.03225806 | AN178: 1 | AO178: 3.225806452
A179: 明細部 | B179: 保険者（地区） | C179: 40 | D179: 女 | E179: 6 | F179: 2 | G179: 33.33333333 | H179: 1 | I179: 16.66666667 | J179: 0 | K179: 0 | L179: 0 | M179: 0 | N179: 0 | O179: 0 | P179: 0 | Q179: 0 | R179: 0 | S179: 0 | T179: 0 | U179: 0 | V179: 0 | W179: 0 | X179: 0 | Y179: 0 | Z179: 2 | AA179: 33.33333333 | AB179: 0 | AC179: 0 | AD179: 0 | AE179: 0 | AF179: 0 | AG179: 0 | AH179: 0 | AI179: 0 | AJ179: 0 | AK179: 0 | AL179: 0 | AM179: 0 | AN179: 0 | AO179: 0
A180: 明細部 | B180: 保険者（地区） | C180: 41 | D180: 女 | E180: 4 | F180: 1 | G180: 25 | H180: 2 | I180: 50 | J180: 1 | K180: 25 | L180: 0 | M180: 0 | N180: 0 | O180: 0 | P180: 0 | Q180: 0 | R180: 1 | S180: 25 | T180: 0 | U180: 0 | V180: 0 | W180: 0 | X180: 1 | Y180: 25 | Z180: 2 | AA180: 50 | AB180: 0 | AC180: 0 | AD180: 0 | AE180: 0 | AF180: 0 | AG180: 0 | AH180: 0 | AI180: 0 | AJ180: 0 | AK180: 0 | AL180: 0 | AM180: 0 | AN180: 0 | AO180: 0
A181: 明細部 | B181: 保険者（地区） | C181: 42 | D181: 女 | E181: 1 | F181: 0 | G181: 0 | H181: 0 | I181: 0 | J181: 0 | K181: 0 | L181: 0 | M181: 0 | N181: 0 | O181: 0 | P181: 0 | Q181: 0 | R181: 0 | S181: 0 | T181: 0 | U181: 0 | V181: 0 | W181: 0 | X181: 0 | Y181: 0 | Z181: 0 | AA181: 0 | AB181: 0 | AC181: 0 | AD181: 0 | AE181: 0 | AF181: 0 | AG181: 0 | AH181: 0 | AI181: 0 | AJ181: 0 | AK181: 0 | AL181: 0 | AM181: 0 | AN181: 0 | AO181: 0
A182: 明細部 | B182: 保険者（地区） | C182: 43 | D182: 女 | E182: 3 | F182: 1 | G182: 33.33333333 | H182: 0 | I182: 0 | J182: 0 | K182: 0 | L182: 0 | M182: 0 | N182: 0 | O182: 0 | P182: 0 | Q182: 0 | R182: 1 | S182: 33.33333333 | T182: 0 | U182: 0 | V182: 0 | W182: 0 | X182: 0 | Y182: 0 | Z182: 1 | AA182: 33.33333333 | AB182: 0 | AC182: 0 | AD182: 0 | AE182: 0 | AF182: 0 | AG182: 0 | AH182: 0 | AI182: 0 | AJ182: 0 | AK182: 0 | AL182: 0 | AM182: 0 | AN182: 0 | AO182: 0
A183: 明細部 | B183: 保険者（地区） | C183: 44 | D183: 女 | E183: 2 | F183: 0 | G183: 0 | H183: 1 | I183: 50 | J183: 0 | K183: 0 | L183: 0 | M183: 0 | N183: 0 | O183: 0 | P183: 0 | Q183: 0 | R183: 0 | S183: 0 | T183: 0 | U183: 0 | V183: 0 | W183: 0 | X183: 0 | Y183: 0 | Z183: 2 | AA183: 100 | AB183: 0 | AC183: 0 | AD183: 0 | AE183: 0 | AF183: 0 | AG183: 0 | AH183: 0 | AI183: 0 | AJ183: 0 | AK183: 0 | AL183: 0 | AM183: 0 | AN183: 0 | AO183: 0
A184: 明細部 | B184: 保険者（地区） | C184: 45 | D184: 女 | E184: 1 | F184: 1 | G184: 100 | H184: 0 | I184: 0 | J184: 0 | K184: 0 | L184: 0 | M184: 0 | N184: 0 | O184: 0 | P184: 0 | Q184: 0 | R184: 0 | S184: 0 | T184: 0 | U184: 0 | V184: 0 | W184: 0 | X184: 0 | Y184: 0 | Z184: 0 | AA184: 0 | AB184: 0 | AC184: 0 | AD184: 0 | AE184: 0 | AF184: 0 | AG184: 0 | AH184: 0 | AI184: 0 | AJ184: 0 | AK184: 0 | AL184: 0 | AM184: 0 | AN184: 0 | AO184: 0
A185: 明細部 | B185: 保険者（地区） | C185: 46 | D185: 女 | E185: 1 | F185: 0 | G185: 0 | H185: 0 | I185: 0 | J185: 0 | K185: 0 | L185: 0 | M185: 0 | N185: 0 | O185: 0 | P185: 0 | Q185: 0 | R185: 0 | S185: 0 | T185: 0 | U185: 0 | V185: 0 | W185: 0 | X185: 0 | Y185: 0 | Z185: 0 | AA185: 0 | AB185: 0 | AC185: 0 | AD185: 0 | AE185: 0 | AF185: 0 | AG185: 0 | AH185: 0 | AI185: 0 | AJ185: 0 | AK185: 0 | AL185: 0 | AM185: 0 | AN185: 0 | AO185: 0
A186: 明細部 | B186: 保険者（地区） | C186: 47 | D186: 女 | E186: 3 | F186: 0 | G186: 0 | H186: 0 | I186: 0 | J186: 1 | K186: 33.33333333 | L186: 0 | M186: 0 | N186: 0 | O186: 0 | P186: 0 | Q186: 0 | R186: 0 | S186: 0 | T186: 0 | U186: 0 | V186: 2 | W186: 66.66666667 | X186: 1 | Y186: 33.33333333 | Z186: 0 | AA186: 0 | AB186: 0 | AC186: 0 | AD186: 0 | AE186: 0 | AF186: 0 | AG186: 0 | AH186: 0 | AI186: 0 | AJ186: 0 | AK186: 0 | AL186: 0 | AM186: 0 | AN186: 0 | AO186: 0
A187: 明細部 | B187: 保険者（地区） | C187: 48 | D187: 女 | E187: 3 | F187: 1 | G187: 33.33333333 | H187: 0 | I187: 0 | J187: 0 | K187: 0 | L187: 0 | M187: 0 | N187: 0 | O187: 0 | P187: 0 | Q187: 0 | R187: 0 | S187: 0 | T187: 0 | U187: 0 | V187: 1 | W187: 33.33333333 | X187: 0 | Y187: 0 | Z187: 1 | AA187: 33.33333333 | AB187: 0 | AC187: 0 | AD187: 1 | AE187: 33.33333333 | AF187: 0 | AG187: 0 | AH187: 0 | AI187: 0 | AJ187: 0 | AK187: 0 | AL187: 0 | AM187: 0 | AN187: 0 | AO187: 0
A188: 明細部 | B188: 保険者（地区） | C188: 49 | D188: 女 | E188: 3 | F188: 0 | G188: 0 | H188: 0 | I188: 0 | J188: 0 | K188: 0 | L188: 0 | M188: 0 | N188: 0 | O188: 0 | P188: 0 | Q188: 0 | R188: 0 | S188: 0 | T188: 0 | U188: 0 | V188: 0 | W188: 0 | X188: 0 | Y188: 0 | Z188: 2 | AA188: 66.66666667 | AB188: 0 | AC188: 0 | AD188: 0 | AE188: 0 | AF188: 0 | AG188: 0 | AH188: 0 | AI188: 0 | AJ188: 0 | AK188: 0 | AL188: 0 | AM188: 0 | AN188: 0 | AO188: 0
A189: 明細部 | B189: 保険者（地区） | C189: 50 | D189: 女 | E189: 5 | F189: 0 | G189: 0 | H189: 0 | I189: 0 | J189: 0 | K189: 0 | L189: 0 | M189: 0 | N189: 0 | O189: 0 | P189: 0 | Q189: 0 | R189: 1 | S189: 20 | T189: 0 | U189: 0 | V189: 1 | W189: 20 | X189: 1 | Y189: 20 | Z189: 1 | AA189: 20 | AB189: 0 | AC189: 0 | AD189: 2 | AE189: 40 | AF189: 0 | AG189: 0 | AH189: 0 | AI189: 0 | AJ189: 0 | AK189: 0 | AL189: 0 | AM189: 0 | AN189: 0 | AO189: 0
A190: 明細部 | B190: 保険者（地区） | C190: 51 | D190: 女 | E190: 6 | F190: 1 | G190: 16.66666667 | H190: 1 | I190: 16.66666667 | J190: 0 | K190: 0 | L190: 0 | M190: 0 | N190: 0 | O190: 0 | P190: 0 | Q190: 0 | R190: 1 | S190: 16.66666667 | T190: 0 | U190: 0 | V190: 0 | W190: 0 | X190: 0 | Y190: 0 | Z190: 2 | AA190: 33.33333333 | AB190: 0 | AC190: 0 | AD190: 1 | AE190: 16.66666667 | AF190: 0 | AG190: 0 | AH190: 0 | AI190: 0 | AJ190: 0 | AK190: 0 | AL190: 0 | AM190: 0 | AN190: 0 | AO190: 0
A191: 明細部 | B191: 保険者（地区） | C191: 52 | D191: 女 | E191: 6 | F191: 1 | G191: 16.66666667 | H191: 1 | I191: 16.66666667 | J191: 0 | K191: 0 | L191: 0 | M191: 0 | N191: 0 | O191: 0 | P191: 0 | Q191: 0 | R191: 0 | S191: 0 | T191: 0 | U191: 0 | V191: 0 | W191: 0 | X191: 1 | Y191: 16.66666667 | Z191: 2 | AA191: 33.33333333 | AB191: 0 | AC191: 0 | AD191: 2 | AE191: 33.33333333 | AF191: 0 | AG191: 0 | AH191: 0 | AI191: 0 | AJ191: 0 | AK191: 0 | AL191: 0 | AM191: 0 | AN191: 0 | AO191: 0
A192: 明細部 | B192: 保険者（地区） | C192: 53 | D192: 女 | E192: 8 | F192: 2 | G192: 25 | H192: 1 | I192: 12.5 | J192: 0 | K192: 0 | L192: 0 | M192: 0 | N192: 0 | O192: 0 | P192: 0 | Q192: 0 | R192: 2 | S192: 25 | T192: 0 | U192: 0 | V192: 0 | W192: 0 | X192: 0 | Y192: 0 | Z192: 2 | AA192: 25 | AB192: 0 | AC192: 0 | AD192: 2 | AE192: 25 | AF192: 0 | AG192: 0 | AH192: 0 | AI192: 0 | AJ192: 0 | AK192: 0 | AL192: 1 | AM192: 12.5 | AN192: 0 | AO192: 0
A193: 明細部 | B193: 保険者（地区） | C193: 54 | D193: 女 | E193: 5 | F193: 1 | G193: 20 | H193: 1 | I193: 20 | J193: 2 | K193: 40 | L193: 1 | M193: 20 | N193: 0 | O193: 0 | P193: 1 | Q193: 20 | R193: 0 | S193: 0 | T193: 0 | U193: 0 | V193: 3 | W193: 60 | X193: 0 | Y193: 0 | Z193: 2 | AA193: 40 | AB193: 0 | AC193: 0 | AD193: 0 | AE193: 0 | AF193: 0 | AG193: 0 | AH193: 0 | AI193: 0 | AJ193: 0 | AK193: 0 | AL193: 0 | AM193: 0 | AN193: 0 | AO193: 0
A194: 明細部 | B194: 保険者（地区） | C194: 55 | D194: 女 | E194: 3 | F194: 1 | G194: 33.33333333 | H194: 0 | I194: 0 | J194: 0 | K194: 0 | L194: 0 | M194: 0 | N194: 0 | O194: 0 | P194: 0 | Q194: 0 | R194: 0 | S194: 0 | T194: 0 | U194: 0 | V194: 0 | W194: 0 | X194: 0 | Y194: 0 | Z194: 2 | AA194: 66.66666667 | AB194: 0 | AC194: 0 | AD194: 0 | AE194: 0 | AF194: 0 | AG194: 0 | AH194: 0 | AI194: 0 | AJ194: 0 | AK194: 0 | AL194: 0 | AM194: 0 | AN194: 0 | AO194: 0
A195: 明細部 | B195: 保険者（地区） | C195: 56 | D195: 女 | E195: 9 | F195: 1 | G195: 11.11111111 | H195: 1 | I195: 11.11111111 | J195: 0 | K195: 0 | L195: 2 | M195: 22.22222222 | N195: 0 | O195: 0 | P195: 1 | Q195: 11.11111111 | R195: 4 | S195: 44.44444444 | T195: 0 | U195: 0 | V195: 2 | W195: 22.22222222 | X195: 2 | Y195: 22.22222222 | Z195: 5 | AA195: 55.55555556 | AB195: 0 | AC195: 0 | AD195: 2 | AE195: 22.22222222 | AF195: 0 | AG195: 0 | AH195: 0 | AI195: 0 | AJ195: 0 | AK195: 0 | AL195: 1 | AM195: 11.11111111 | AN195: 0 | AO195: 0
A196: 明細部 | B196: 保険者（地区） | C196: 57 | D196: 女 | E196: 7 | F196: 3 | G196: 42.85714286 | H196: 2 | I196: 28.57142857 | J196: 0 | K196: 0 | L196: 0 | M196: 0 | N196: 0 | O196: 0 | P196: 2 | Q196: 28.57142857 | R196: 2 | S196: 28.57142857 | T196: 0 | U196: 0 | V196: 4 | W196: 57.14285714 | X196: 3 | Y196: 42.85714286 | Z196: 6 | AA196: 85.71428571 | AB196: 0 | AC196: 0 | AD196: 1 | AE196: 14.28571429 | AF196: 0 | AG196: 0 | AH196: 0 | AI196: 0 | AJ196: 0 | AK196: 0 | AL196: 0 | AM196: 0 | AN196: 0 | AO196: 0
A197: 明細部 | B197: 保険者（地区） | C197: 58 | D197: 女 | E197: 8 | F197: 2 | G197: 25 | H197: 0 | I197: 0 | J197: 0 | K197: 0 | L197: 0 | M197: 0 | N197: 0 | O197: 0 | P197: 2 | Q197: 25 | R197: 3 | S197: 37.5 | T197: 0 | U197: 0 | V197: 3 | W197: 37.5 | X197: 1 | Y197: 12.5 | Z197: 4 | AA197: 50 | AB197: 0 | AC197: 0 | AD197: 1 | AE197: 12.5 | AF197: 0 | AG197: 0 | AH197: 0 | AI197: 0 | AJ197: 0 | AK197: 0 | AL197: 0 | AM197: 0 | AN197: 0 | AO197: 0
A198: 明細部 | B198: 保険者（地区） | C198: 59 | D198: 女 | E198: 9 | F198: 3 | G198: 33.33333333 | H198: 2 | I198: 22.22222222 | J198: 1 | K198: 11.11111111 | L198: 0 | M198: 0 | N198: 0 | O198: 0 | P198: 3 | Q198: 33.33333333 | R198: 4 | S198: 44.44444444 | T198: 0 | U198: 0 | V198: 5 | W198: 55.55555556 | X198: 3 | Y198: 33.33333333 | Z198: 6 | AA198: 66.66666667 | AB198: 0 | AC198: 0 | AD198: 4 | AE198: 44.44444444 | AF198: 0 | AG198: 0 | AH198: 0 | AI198: 0 | AJ198: 0 | AK198: 0 | AL198: 1 | AM198: 11.11111111 | AN198: 0 | AO198: 0
A199: 明細部 | B199: 保険者（地区） | C199: 60 | D199: 女 | E199: 8 | F199: 0 | G199: 0 | H199: 0 | I199: 0 | J199: 0 | K199: 0 | L199: 0 | M199: 0 | N199: 0 | O199: 0 | P199: 2 | Q199: 25 | R199: 3 | S199: 37.5 | T199: 0 | U199: 0 | V199: 3 | W199: 37.5 | X199: 1 | Y199: 12.5 | Z199: 2 | AA199: 25 | AB199: 0 | AC199: 0 | AD199: 2 | AE199: 25 | AF199: 0 | AG199: 0 | AH199: 0 | AI199: 0 | AJ199: 0 | AK199: 0 | AL199: 0 | AM199: 0 | AN199: 0 | AO199: 0
A200: 明細部 | B200: 保険者（地区） | C200: 61 | D200: 女 | E200: 11 | F200: 4 | G200: 36.36363636 | H200: 4 | I200: 36.36363636 | J200: 2 | K200: 18.18181818 | L200: 0 | M200: 0 | N200: 0 | O200: 0 | P200: 1 | Q200: 9.090909091 | R200: 6 | S200: 54.54545455 | T200: 1 | U200: 9.090909091 | V200: 5 | W200: 45.45454545 | X200: 2 | Y200: 18.18181818 | Z200: 6 | AA200: 54.54545455 | AB200: 0 | AC200: 0 | AD200: 2 | AE200: 18.18181818 | AF200: 0 | AG200: 0 | AH200: 0 | AI200: 0 | AJ200: 0 | AK200: 0 | AL200: 3 | AM200: 27.27272727 | AN200: 0 | AO200: 0
... 13 more rows

Sheet CSVデータ2
A1: レコード種別 | B1: 保険者番号 | C1: 保険者名 | D1: 地区名 | E1: 作成年月 | F1: 県計・国計
A2: 共通部
A3: レコード種別 | B3: 集計単位 | C3: 年齢 | D3: 性別 | E3: 受診者 | F3: ＢＭＩ人数 | G3: ＢＭＩ割合 | H3: 腹囲人数 | I3: 腹囲割合 | J3: 空腹時中性脂肪人数 | K3: 空腹時中性脂肪割合 | L3: ＡＬＴ（ＧＰＴ）人数 | M3: ＡＬＴ（ＧＰＴ）割合 | N3: ＨＤＬコレステロール人数 | O3: ＨＤＬコレステロール割合 | P3: 空腹時血糖人数 | Q3: 空腹時血糖割合 | R3: ＨｂＡ１ｃ人数 | S3: ＨｂＡ１ｃ割合 | T3: 尿酸人数 | U3: 尿酸割合 | V3: 収縮期血圧人数 | W3: 収縮期血圧割合 | X3: 拡張期血圧人数 | Y3: 拡張期血圧割合 | Z3: ＬＤＬコレステロール人数 | AA3: ＬＤＬコレステロール割合 | AB3: 血清クレアチニン人数 | AC3: 血清クレアチニン割合 | AD3: 心電図人数 | AE3: 心電図割合 | AF3: 眼底検査人数 | AG3: 眼底検査割合 | AH3: 随時血糖人数 | AI3: 随時血糖割合 | AJ3: ｎｏｎ－ＨＤＬコレステロール人数 | AK3: ｎｏｎ－ＨＤＬコレステロール割合 | AL3: ｅＧＦＲ人数 | AM3: ｅＧＦＲ割合 | AN3: 随時中性脂肪人数 | AO3: 随時中性脂肪割合
A4: 明細部 | B4: 国 | C4: 40 | D4: 男
A5: 明細部 | B5: 国 | C5: 41 | D5: 男
A6: 明細部 | B6: 国 | C6: 42 | D6: 男
A7: 明細部 | B7: 国 | C7: 43 | D7: 男
A8: 明細部 | B8: 国 | C8: 44 | D8: 男
A9: 明細部 | B9: 国 | C9: 45 | D9: 男
A10: 明細部 | B10: 国 | C10: 46 | D10: 男
A11: 明細部 | B11: 国 | C11: 47 | D11: 男
A12: 明細部 | B12: 国 | C12: 48 | D12: 男
A13: 明細部 | B13: 国 | C13: 49 | D13: 男
A14: 明細部 | B14: 国 | C14: 50 | D14: 男
A15: 明細部 | B15: 国 | C15: 51 | D15: 男
A16: 明細部 | B16: 国 | C16: 52 | D16: 男
A17: 明細部 | B17: 国 | C17: 53 | D17: 男
A18: 明細部 | B18: 国 | C18: 54 | D18: 男
A19: 明細部 | B19: 国 | C19: 55 | D19: 男
A20: 明細部 | B20: 国 | C20: 56 | D20: 男
A21: 明細部 | B21: 国 | C21: 57 | D21: 男
A22: 明細部 | B22: 国 | C22: 58 | D22: 男
A23: 明細部 | B23: 国 | C23: 59 | D23: 男
A24: 明細部 | B24: 国 | C24: 60 | D24: 男
A25: 明細部 | B25: 国 | C25: 61 | D25: 男
A26: 明細部 | B26: 国 | C26: 62 | D26: 男
A27: 明細部 | B27: 国 | C27: 63 | D27: 男
A28: 明細部 | B28: 国 | C28: 64 | D28: 男
A29: 明細部 | B29: 国 | C29: 65 | D29: 男
A30: 明細部 | B30: 国 | C30: 66 | D30: 男
A31: 明細部 | B31: 国 | C31: 67 | D31: 男
A32: 明細部 | B32: 国 | C32: 68 | D32: 男
A33: 明細部 | B33: 国 | C33: 69 | D33: 男
A34: 明細部 | B34: 国 | C34: 70 | D34: 男
A35: 明細部 | B35: 国 | C35: 71 | D35: 男
A36: 明細部 | B36: 国 | C36: 72 | D36: 男
A37: 明細部 | B37: 国 | C37: 73 | D37: 男
A38: 明細部 | B38: 国 | C38: 74 | D38: 男
A39: 明細部 | B39: 国 | C39: 40 | D39: 女
A40: 明細部 | B40: 国 | C40: 41 | D40: 女
A41: 明細部 | B41: 国 | C41: 42 | D41: 女
A42: 明細部 | B42: 国 | C42: 43 | D42: 女
A43: 明細部 | B43: 国 | C43: 44 | D43: 女
A44: 明細部 | B44: 国 | C44: 45 | D44: 女
A45: 明細部 | B45: 国 | C45: 46 | D45: 女
A46: 明細部 | B46: 国 | C46: 47 | D46: 女
A47: 明細部 | B47: 国 | C47: 48 | D47: 女
A48: 明細部 | B48: 国 | C48: 49 | D48: 女
A49: 明細部 | B49: 国 | C49: 50 | D49: 女
A50: 明細部 | B50: 国 | C50: 51 | D50: 女
A51: 明細部 | B51: 国 | C51: 52 | D51: 女
A52: 明細部 | B52: 国 | C52: 53 | D52: 女
A53: 明細部 | B53: 国 | C53: 54 | D53: 女
A54: 明細部 | B54: 国 | C54: 55 | D54: 女
A55: 明細部 | B55: 国 | C55: 56 | D55: 女
A56: 明細部 | B56: 国 | C56: 57 | D56: 女
A57: 明細部 | B57: 国 | C57: 58 | D57: 女
A58: 明細部 | B58: 国 | C58: 59 | D58: 女
A59: 明細部 | B59: 国 | C59: 60 | D59: 女
A60: 明細部 | B60: 国 | C60: 61 | D60: 女
A61: 明細部 | B61: 国 | C61: 62 | D61: 女
A62: 明細部 | B62: 国 | C62: 63 | D62: 女
A63: 明細部 | B63: 国 | C63: 64 | D63: 女
A64: 明細部 | B64: 国 | C64: 65 | D64: 女
A65: 明細部 | B65: 国 | C65: 66 | D65: 女
A66: 明細部 | B66: 国 | C66: 67 | D66: 女
A67: 明細部 | B67: 国 | C67: 68 | D67: 女
A68: 明細部 | B68: 国 | C68: 69 | D68: 女
A69: 明細部 | B69: 国 | C69: 70 | D69: 女
A70: 明細部 | B70: 国 | C70: 71 | D70: 女
A71: 明細部 | B71: 国 | C71: 72 | D71: 女
A72: 明細部 | B72: 国 | C72: 73 | D72: 女
A73: 明細部 | B73: 国 | C73: 74 | D73: 女
A74: 明細部 | B74: 県 | C74: 40 | D74: 男
A75: 明細部 | B75: 県 | C75: 41 | D75: 男
A76: 明細部 | B76: 県 | C76: 42 | D76: 男
A77: 明細部 | B77: 県 | C77: 43 | D77: 男
A78: 明細部 | B78: 県 | C78: 44 | D78: 男
A79: 明細部 | B79: 県 | C79: 45 | D79: 男
A80: 明細部 | B80: 県 | C80: 46 | D80: 男
A81: 明細部 | B81: 県 | C81: 47 | D81: 男
A82: 明細部 | B82: 県 | C82: 48 | D82: 男
A83: 明細部 | B83: 県 | C83: 49 | D83: 男
A84: 明細部 | B84: 県 | C84: 50 | D84: 男
A85: 明細部 | B85: 県 | C85: 51 | D85: 男
A86: 明細部 | B86: 県 | C86: 52 | D86: 男
A87: 明細部 | B87: 県 | C87: 53 | D87: 男
A88: 明細部 | B88: 県 | C88: 54 | D88: 男
A89: 明細部 | B89: 県 | C89: 55 | D89: 男
A90: 明細部 | B90: 県 | C90: 56 | D90: 男
A91: 明細部 | B91: 県 | C91: 57 | D91: 男
A92: 明細部 | B92: 県 | C92: 58 | D92: 男
A93: 明細部 | B93: 県 | C93: 59 | D93: 男
A94: 明細部 | B94: 県 | C94: 60 | D94: 男
A95: 明細部 | B95: 県 | C95: 61 | D95: 男
A96: 明細部 | B96: 県 | C96: 62 | D96: 男
A97: 明細部 | B97: 県 | C97: 63 | D97: 男
A98: 明細部 | B98: 県 | C98: 64 | D98: 男
A99: 明細部 | B99: 県 | C99: 65 | D99: 男
A100: 明細部 | B100: 県 | C100: 66 | D100: 男
A101: 明細部 | B101: 県 | C101: 67 | D101: 男
A102: 明細部 | B102: 県 | C102: 68 | D102: 男
A103: 明細部 | B103: 県 | C103: 69 | D103: 男
A104: 明細部 | B104: 県 | C104: 70 | D104: 男
A105: 明細部 | B105: 県 | C105: 71 | D105: 男
A106: 明細部 | B106: 県 | C106: 72 | D106: 男
A107: 明細部 | B107: 県 | C107: 73 | D107: 男
A108: 明細部 | B108: 県 | C108: 74 | D108: 男
A109: 明細部 | B109: 県 | C109: 40 | D109: 女
A110: 明細部 | B110: 県 | C110: 41 | D110: 女
A111: 明細部 | B111: 県 | C111: 42 | D111: 女
A112: 明細部 | B112: 県 | C112: 43 | D112: 女
A113: 明細部 | B113: 県 | C113: 44 | D113: 女
A114: 明細部 | B114: 県 | C114: 45 | D114: 女
A115: 明細部 | B115: 県 | C115: 46 | D115: 女
A116: 明細部 | B116: 県 | C116: 47 | D116: 女
A117: 明細部 | B117: 県 | C117: 48 | D117: 女
A118: 明細部 | B118: 県 | C118: 49 | D118: 女
A119: 明細部 | B119: 県 | C119: 50 | D119: 女
A120: 明細部 | B120: 県 | C120: 51 | D120: 女
A121: 明細部 | B121: 県 | C121: 52 | D121: 女
A122: 明細部 | B122: 県 | C122: 53 | D122: 女
A123: 明細部 | B123: 県 | C123: 54 | D123: 女
A124: 明細部 | B124: 県 | C124: 55 | D124: 女
A125: 明細部 | B125: 県 | C125: 56 | D125: 女
A126: 明細部 | B126: 県 | C126: 57 | D126: 女
A127: 明細部 | B127: 県 | C127: 58 | D127: 女
A128: 明細部 | B128: 県 | C128: 59 | D128: 女
A129: 明細部 | B129: 県 | C129: 60 | D129: 女
A130: 明細部 | B130: 県 | C130: 61 | D130: 女
A131: 明細部 | B131: 県 | C131: 62 | D131: 女
A132: 明細部 | B132: 県 | C132: 63 | D132: 女
A133: 明細部 | B133: 県 | C133: 64 | D133: 女
A134: 明細部 | B134: 県 | C134: 65 | D134: 女
A135: 明細部 | B135: 県 | C135: 66 | D135: 女
A136: 明細部 | B136: 県 | C136: 67 | D136: 女
A137: 明細部 | B137: 県 | C137: 68 | D137: 女
A138: 明細部 | B138: 県 | C138: 69 | D138: 女
A139: 明細部 | B139: 県 | C139: 70 | D139: 女
A140: 明細部 | B140: 県 | C140: 71 | D140: 女
A141: 明細部 | B141: 県 | C141: 72 | D141: 女
A142: 明細部 | B142: 県 | C142: 73 | D142: 女
A143: 明細部 | B143: 県 | C143: 74 | D143: 女
A144: 明細部 | B144: 保険者（地区） | C144: 40 | D144: 男
A145: 明細部 | B145: 保険者（地区） | C145: 41 | D145: 男
A146: 明細部 | B146: 保険者（地区） | C146: 42 | D146: 男
A147: 明細部 | B147: 保険者（地区） | C147: 43 | D147: 男
A148: 明細部 | B148: 保険者（地区） | C148: 44 | D148: 男
A149: 明細部 | B149: 保険者（地区） | C149: 45 | D149: 男
A150: 明細部 | B150: 保険者（地区） | C150: 46 | D150: 男
A151: 明細部 | B151: 保険者（地区） | C151: 47 | D151: 男
A152: 明細部 | B152: 保険者（地区） | C152: 48 | D152: 男
A153: 明細部 | B153: 保険者（地区） | C153: 49 | D153: 男
A154: 明細部 | B154: 保険者（地区） | C154: 50 | D154: 男
A155: 明細部 | B155: 保険者（地区） | C155: 51 | D155: 男
A156: 明細部 | B156: 保険者（地区） | C156: 52 | D156: 男
A157: 明細部 | B157: 保険者（地区） | C157: 53 | D157: 男
A158: 明細部 | B158: 保険者（地区） | C158: 54 | D158: 男
A159: 明細部 | B159: 保険者（地区） | C159: 55 | D159: 男
A160: 明細部 | B160: 保険者（地区） | C160: 56 | D160: 男
A161: 明細部 | B161: 保険者（地区） | C161: 57 | D161: 男
A162: 明細部 | B162: 保険者（地区） | C162: 58 | D162: 男
A163: 明細部 | B163: 保険者（地区） | C163: 59 | D163: 男
A164: 明細部 | B164: 保険者（地区） | C164: 60 | D164: 男
A165: 明細部 | B165: 保険者（地区） | C165: 61 | D165: 男
A166: 明細部 | B166: 保険者（地区） | C166: 62 | D166: 男
A167: 明細部 | B167: 保険者（地区） | C167: 63 | D167: 男
A168: 明細部 | B168: 保険者（地区） | C168: 64 | D168: 男
A169: 明細部 | B169: 保険者（地区） | C169: 65 | D169: 男
A170: 明細部 | B170: 保険者（地区） | C170: 66 | D170: 男
A171: 明細部 | B171: 保険者（地区） | C171: 67 | D171: 男
A172: 明細部 | B172: 保険者（地区） | C172: 68 | D172: 男
A173: 明細部 | B173: 保険者（地区） | C173: 69 | D173: 男
A174: 明細部 | B174: 保険者（地区） | C174: 70 | D174: 男
A175: 明細部 | B175: 保険者（地区） | C175: 71 | D175: 男
A176: 明細部 | B176: 保険者（地区） | C176: 72 | D176: 男
A177: 明細部 | B177: 保険者（地区） | C177: 73 | D177: 男
A178: 明細部 | B178: 保険者（地区） | C178: 74 | D178: 男
A179: 明細部 | B179: 保険者（地区） | C179: 40 | D179: 女
A180: 明細部 | B180: 保険者（地区） | C180: 41 | D180: 女
A181: 明細部 | B181: 保険者（地区） | C181: 42 | D181: 女
A182: 明細部 | B182: 保険者（地区） | C182: 43 | D182: 女
A183: 明細部 | B183: 保険者（地区） | C183: 44 | D183: 女
A184: 明細部 | B184: 保険者（地区） | C184: 45 | D184: 女
A185: 明細部 | B185: 保険者（地区） | C185: 46 | D185: 女
A186: 明細部 | B186: 保険者（地区） | C186: 47 | D186: 女
A187: 明細部 | B187: 保険者（地区） | C187: 48 | D187: 女
A188: 明細部 | B188: 保険者（地区） | C188: 49 | D188: 女
A189: 明細部 | B189: 保険者（地区） | C189: 50 | D189: 女
A190: 明細部 | B190: 保険者（地区） | C190: 51 | D190: 女
A191: 明細部 | B191: 保険者（地区） | C191: 52 | D191: 女
A192: 明細部 | B192: 保険者（地区） | C192: 53 | D192: 女
A193: 明細部 | B193: 保険者（地区） | C193: 54 | D193: 女
A194: 明細部 | B194: 保険者（地区） | C194: 55 | D194: 女
A195: 明細部 | B195: 保険者（地区） | C195: 56 | D195: 女
A196: 明細部 | B196: 保険者（地区） | C196: 57 | D196: 女
A197: 明細部 | B197: 保険者（地区） | C197: 58 | D197: 女
A198: 明細部 | B198: 保険者（地区） | C198: 59 | D198: 女
A199: 明細部 | B199: 保険者（地区） | C199: 60 | D199: 女
A200: 明細部 | B200: 保険者（地区） | C200: 61 | D200: 女
... 13 more rows

Sheet CSVデータ3
A1: レコード種別 | B1: 保険者番号 | C1: 保険者名 | D1: 地区名 | E1: 作成年月 | F1: 県計・国計
A2: 共通部
A3: レコード種別 | B3: 集計単位 | C3: 年齢 | D3: 性別 | E3: 受診者 | F3: ＢＭＩ人数 | G3: ＢＭＩ割合 | H3: 腹囲人数 | I3: 腹囲割合 | J3: 空腹時中性脂肪人数 | K3: 空腹時中性脂肪割合 | L3: ＡＬＴ（ＧＰＴ）人数 | M3: ＡＬＴ（ＧＰＴ）割合 | N3: ＨＤＬコレステロール人数 | O3: ＨＤＬコレステロール割合 | P3: 空腹時血糖人数 | Q3: 空腹時血糖割合 | R3: ＨｂＡ１ｃ人数 | S3: ＨｂＡ１ｃ割合 | T3: 尿酸人数 | U3: 尿酸割合 | V3: 収縮期血圧人数 | W3: 収縮期血圧割合 | X3: 拡張期血圧人数 | Y3: 拡張期血圧割合 | Z3: ＬＤＬコレステロール人数 | AA3: ＬＤＬコレステロール割合 | AB3: 血清クレアチニン人数 | AC3: 血清クレアチニン割合 | AD3: 心電図人数 | AE3: 心電図割合 | AF3: 眼底検査人数 | AG3: 眼底検査割合 | AH3: 随時血糖人数 | AI3: 随時血糖割合 | AJ3: ｎｏｎ－ＨＤＬコレステロール人数 | AK3: ｎｏｎ－ＨＤＬコレステロール割合 | AL3: ｅＧＦＲ人数 | AM3: ｅＧＦＲ割合 | AN3: 随時中性脂肪人数 | AO3: 随時中性脂肪割合
A4: 明細部 | B4: 国 | C4: 40 | D4: 男
A5: 明細部 | B5: 国 | C5: 41 | D5: 男
A6: 明細部 | B6: 国 | C6: 42 | D6: 男
A7: 明細部 | B7: 国 | C7: 43 | D7: 男
A8: 明細部 | B8: 国 | C8: 44 | D8: 男
A9: 明細部 | B9: 国 | C9: 45 | D9: 男
A10: 明細部 | B10: 国 | C10: 46 | D10: 男
A11: 明細部 | B11: 国 | C11: 47 | D11: 男
A12: 明細部 | B12: 国 | C12: 48 | D12: 男
A13: 明細部 | B13: 国 | C13: 49 | D13: 男
A14: 明細部 | B14: 国 | C14: 50 | D14: 男
A15: 明細部 | B15: 国 | C15: 51 | D15: 男
A16: 明細部 | B16: 国 | C16: 52 | D16: 男
A17: 明細部 | B17: 国 | C17: 53 | D17: 男
A18: 明細部 | B18: 国 | C18: 54 | D18: 男
A19: 明細部 | B19: 国 | C19: 55 | D19: 男
A20: 明細部 | B20: 国 | C20: 56 | D20: 男
A21: 明細部 | B21: 国 | C21: 57 | D21: 男
A22: 明細部 | B22: 国 | C22: 58 | D22: 男
A23: 明細部 | B23: 国 | C23: 59 | D23: 男
A24: 明細部 | B24: 国 | C24: 60 | D24: 男
A25: 明細部 | B25: 国 | C25: 61 | D25: 男
A26: 明細部 | B26: 国 | C26: 62 | D26: 男
A27: 明細部 | B27: 国 | C27: 63 | D27: 男
A28: 明細部 | B28: 国 | C28: 64 | D28: 男
A29: 明細部 | B29: 国 | C29: 65 | D29: 男
A30: 明細部 | B30: 国 | C30: 66 | D30: 男
A31: 明細部 | B31: 国 | C31: 67 | D31: 男
A32: 明細部 | B32: 国 | C32: 68 | D32: 男
A33: 明細部 | B33: 国 | C33: 69 | D33: 男
A34: 明細部 | B34: 国 | C34: 70 | D34: 男
A35: 明細部 | B35: 国 | C35: 71 | D35: 男
A36: 明細部 | B36: 国 | C36: 72 | D36: 男
A37: 明細部 | B37: 国 | C37: 73 | D37: 男
A38: 明細部 | B38: 国 | C38: 74 | D38: 男
A39: 明細部 | B39: 国 | C39: 40 | D39: 女
A40: 明細部 | B40: 国 | C40: 41 | D40: 女
A41: 明細部 | B41: 国 | C41: 42 | D41: 女
A42: 明細部 | B42: 国 | C42: 43 | D42: 女
A43: 明細部 | B43: 国 | C43: 44 | D43: 女
A44: 明細部 | B44: 国 | C44: 45 | D44: 女
A45: 明細部 | B45: 国 | C45: 46 | D45: 女
A46: 明細部 | B46: 国 | C46: 47 | D46: 女
A47: 明細部 | B47: 国 | C47: 48 | D47: 女
A48: 明細部 | B48: 国 | C48: 49 | D48: 女
A49: 明細部 | B49: 国 | C49: 50 | D49: 女
A50: 明細部 | B50: 国 | C50: 51 | D50: 女
A51: 明細部 | B51: 国 | C51: 52 | D51: 女
A52: 明細部 | B52: 国 | C52: 53 | D52: 女
A53: 明細部 | B53: 国 | C53: 54 | D53: 女
A54: 明細部 | B54: 国 | C54: 55 | D54: 女
A55: 明細部 | B55: 国 | C55: 56 | D55: 女
A56: 明細部 | B56: 国 | C56: 57 | D56: 女
A57: 明細部 | B57: 国 | C57: 58 | D57: 女
A58: 明細部 | B58: 国 | C58: 59 | D58: 女
A59: 明細部 | B59: 国 | C59: 60 | D59: 女
A60: 明細部 | B60: 国 | C60: 61 | D60: 女
A61: 明細部 | B61: 国 | C61: 62 | D61: 女
A62: 明細部 | B62: 国 | C62: 63 | D62: 女
A63: 明細部 | B63: 国 | C63: 64 | D63: 女
A64: 明細部 | B64: 国 | C64: 65 | D64: 女
A65: 明細部 | B65: 国 | C65: 66 | D65: 女
A66: 明細部 | B66: 国 | C66: 67 | D66: 女
A67: 明細部 | B67: 国 | C67: 68 | D67: 女
A68: 明細部 | B68: 国 | C68: 69 | D68: 女
A69: 明細部 | B69: 国 | C69: 70 | D69: 女
A70: 明細部 | B70: 国 | C70: 71 | D70: 女
A71: 明細部 | B71: 国 | C71: 72 | D71: 女
A72: 明細部 | B72: 国 | C72: 73 | D72: 女
A73: 明細部 | B73: 国 | C73: 74 | D73: 女
A74: 明細部 | B74: 県 | C74: 40 | D74: 男
A75: 明細部 | B75: 県 | C75: 41 | D75: 男
A76: 明細部 | B76: 県 | C76: 42 | D76: 男
A77: 明細部 | B77: 県 | C77: 43 | D77: 男
A78: 明細部 | B78: 県 | C78: 44 | D78: 男
A79: 明細部 | B79: 県 | C79: 45 | D79: 男
A80: 明細部 | B80: 県 | C80: 46 | D80: 男
A81: 明細部 | B81: 県 | C81: 47 | D81: 男
A82: 明細部 | B82: 県 | C82: 48 | D82: 男
A83: 明細部 | B83: 県 | C83: 49 | D83: 男
A84: 明細部 | B84: 県 | C84: 50 | D84: 男
A85: 明細部 | B85: 県 | C85: 51 | D85: 男
A86: 明細部 | B86: 県 | C86: 52 | D86: 男
A87: 明細部 | B87: 県 | C87: 53 | D87: 男
A88: 明細部 | B88: 県 | C88: 54 | D88: 男
A89: 明細部 | B89: 県 | C89: 55 | D89: 男
A90: 明細部 | B90: 県 | C90: 56 | D90: 男
A91: 明細部 | B91: 県 | C91: 57 | D91: 男
A92: 明細部 | B92: 県 | C92: 58 | D92: 男
A93: 明細部 | B93: 県 | C93: 59 | D93: 男
A94: 明細部 | B94: 県 | C94: 60 | D94: 男
A95: 明細部 | B95: 県 | C95: 61 | D95: 男
A96: 明細部 | B96: 県 | C96: 62 | D96: 男
A97: 明細部 | B97: 県 | C97: 63 | D97: 男
A98: 明細部 | B98: 県 | C98: 64 | D98: 男
A99: 明細部 | B99: 県 | C99: 65 | D99: 男
A100: 明細部 | B100: 県 | C100: 66 | D100: 男
A101: 明細部 | B101: 県 | C101: 67 | D101: 男
A102: 明細部 | B102: 県 | C102: 68 | D102: 男
A103: 明細部 | B103: 県 | C103: 69 | D103: 男
A104: 明細部 | B104: 県 | C104: 70 | D104: 男
A105: 明細部 | B105: 県 | C105: 71 | D105: 男
A106: 明細部 | B106: 県 | C106: 72 | D106: 男
A107: 明細部 | B107: 県 | C107: 73 | D107: 男
A108: 明細部 | B108: 県 | C108: 74 | D108: 男
A109: 明細部 | B109: 県 | C109: 40 | D109: 女
A110: 明細部 | B110: 県 | C110: 41 | D110: 女
A111: 明細部 | B111: 県 | C111: 42 | D111: 女
A112: 明細部 | B112: 県 | C112: 43 | D112: 女
A113: 明細部 | B113: 県 | C113: 44 | D113: 女
A114: 明細部 | B114: 県 | C114: 45 | D114: 女
A115: 明細部 | B115: 県 | C115: 46 | D115: 女
A116: 明細部 | B116: 県 | C116: 47 | D116: 女
A117: 明細部 | B117: 県 | C117: 48 | D117: 女
A118: 明細部 | B118: 県 | C118: 49 | D118: 女
A119: 明細部 | B119: 県 | C119: 50 | D119: 女
A120: 明細部 | B120: 県 | C120: 51 | D120: 女
A121: 明細部 | B121: 県 | C121: 52 | D121: 女
A122: 明細部 | B122: 県 | C122: 53 | D122: 女
A123: 明細部 | B123: 県 | C123: 54 | D123: 女
A124: 明細部 | B124: 県 | C124: 55 | D124: 女
A125: 明細部 | B125: 県 | C125: 56 | D125: 女
A126: 明細部 | B126: 県 | C126: 57 | D126: 女
A127: 明細部 | B127: 県 | C127: 58 | D127: 女
A128: 明細部 | B128: 県 | C128: 59 | D128: 女
A129: 明細部 | B129: 県 | C129: 60 | D129: 女
A130: 明細部 | B130: 県 | C130: 61 | D130: 女
A131: 明細部 | B131: 県 | C131: 62 | D131: 女
A132: 明細部 | B132: 県 | C132: 63 | D132: 女
A133: 明細部 | B133: 県 | C133: 64 | D133: 女
A134: 明細部 | B134: 県 | C134: 65 | D134: 女
A135: 明細部 | B135: 県 | C135: 66 | D135: 女
A136: 明細部 | B136: 県 | C136: 67 | D136: 女
A137: 明細部 | B137: 県 | C137: 68 | D137: 女
A138: 明細部 | B138: 県 | C138: 69 | D138: 女
A139: 明細部 | B139: 県 | C139: 70 | D139: 女
A140: 明細部 | B140: 県 | C140: 71 | D140: 女
A141: 明細部 | B141: 県 | C141: 72 | D141: 女
A142: 明細部 | B142: 県 | C142: 73 | D142: 女
A143: 明細部 | B143: 県 | C143: 74 | D143: 女
A144: 明細部 | B144: 保険者（地区） | C144: 40 | D144: 男
A145: 明細部 | B145: 保険者（地区） | C145: 41 | D145: 男
A146: 明細部 | B146: 保険者（地区） | C146: 42 | D146: 男
A147: 明細部 | B147: 保険者（地区） | C147: 43 | D147: 男
A148: 明細部 | B148: 保険者（地区） | C148: 44 | D148: 男
A149: 明細部 | B149: 保険者（地区） | C149: 45 | D149: 男
A150: 明細部 | B150: 保険者（地区） | C150: 46 | D150: 男
A151: 明細部 | B151: 保険者（地区） | C151: 47 | D151: 男
A152: 明細部 | B152: 保険者（地区） | C152: 48 | D152: 男
A153: 明細部 | B153: 保険者（地区） | C153: 49 | D153: 男
A154: 明細部 | B154: 保険者（地区） | C154: 50 | D154: 男
A155: 明細部 | B155: 保険者（地区） | C155: 51 | D155: 男
A156: 明細部 | B156: 保険者（地区） | C156: 52 | D156: 男
A157: 明細部 | B157: 保険者（地区） | C157: 53 | D157: 男
A158: 明細部 | B158: 保険者（地区） | C158: 54 | D158: 男
A159: 明細部 | B159: 保険者（地区） | C159: 55 | D159: 男
A160: 明細部 | B160: 保険者（地区） | C160: 56 | D160: 男
A161: 明細部 | B161: 保険者（地区） | C161: 57 | D161: 男
A162: 明細部 | B162: 保険者（地区） | C162: 58 | D162: 男
A163: 明細部 | B163: 保険者（地区） | C163: 59 | D163: 男
A164: 明細部 | B164: 保険者（地区） | C164: 60 | D164: 男
A165: 明細部 | B165: 保険者（地区） | C165: 61 | D165: 男
A166: 明細部 | B166: 保険者（地区） | C166: 62 | D166: 男
A167: 明細部 | B167: 保険者（地区） | C167: 63 | D167: 男
A168: 明細部 | B168: 保険者（地区） | C168: 64 | D168: 男
A169: 明細部 | B169: 保険者（地区） | C169: 65 | D169: 男
A170: 明細部 | B170: 保険者（地区） | C170: 66 | D170: 男
A171: 明細部 | B171: 保険者（地区） | C171: 67 | D171: 男
A172: 明細部 | B172: 保険者（地区） | C172: 68 | D172: 男
A173: 明細部 | B173: 保険者（地区） | C173: 69 | D173: 男
A174: 明細部 | B174: 保険者（地区） | C174: 70 | D174: 男
A175: 明細部 | B175: 保険者（地区） | C175: 71 | D175: 男
A176: 明細部 | B176: 保険者（地区） | C176: 72 | D176: 男
A177: 明細部 | B177: 保険者（地区） | C177: 73 | D177: 男
A178: 明細部 | B178: 保険者（地区） | C178: 74 | D178: 男
A179: 明細部 | B179: 保険者（地区） | C179: 40 | D179: 女
A180: 明細部 | B180: 保険者（地区） | C180: 41 | D180: 女
A181: 明細部 | B181: 保険者（地区） | C181: 42 | D181: 女
A182: 明細部 | B182: 保険者（地区） | C182: 43 | D182: 女
A183: 明細部 | B183: 保険者（地区） | C183: 44 | D183: 女
A184: 明細部 | B184: 保険者（地区） | C184: 45 | D184: 女
A185: 明細部 | B185: 保険者（地区） | C185: 46 | D185: 女
A186: 明細部 | B186: 保険者（地区） | C186: 47 | D186: 女
A187: 明細部 | B187: 保険者（地区） | C187: 48 | D187: 女
A188: 明細部 | B188: 保険者（地区） | C188: 49 | D188: 女
A189: 明細部 | B189: 保険者（地区） | C189: 50 | D189: 女
A190: 明細部 | B190: 保険者（地区） | C190: 51 | D190: 女
A191: 明細部 | B191: 保険者（地区） | C191: 52 | D191: 女
A192: 明細部 | B192: 保険者（地区） | C192: 53 | D192: 女
A193: 明細部 | B193: 保険者（地区） | C193: 54 | D193: 女
A194: 明細部 | B194: 保険者（地区） | C194: 55 | D194: 女
A195: 明細部 | B195: 保険者（地区） | C195: 56 | D195: 女
A196: 明細部 | B196: 保険者（地区） | C196: 57 | D196: 女
A197: 明細部 | B197: 保険者（地区） | C197: 58 | D197: 女
A198: 明細部 | B198: 保険者（地区） | C198: 59 | D198: 女
A199: 明細部 | B199: 保険者（地区） | C199: 60 | D199: 女
A200: 明細部 | B200: 保険者（地区） | C200: 61 | D200: 女
... 13 more rows

Sheet CSVデータ4
A1: レコード種別 | B1: 保険者番号 | C1: 保険者名 | D1: 地区名 | E1: 作成年月 | F1: 県計・国計
A2: 共通部
A3: レコード種別 | B3: 集計単位 | C3: 年齢 | D3: 性別 | E3: 受診者 | F3: ＢＭＩ人数 | G3: ＢＭＩ割合 | H3: 腹囲人数 | I3: 腹囲割合 | J3: 空腹時中性脂肪人数 | K3: 空腹時中性脂肪割合 | L3: ＡＬＴ（ＧＰＴ）人数 | M3: ＡＬＴ（ＧＰＴ）割合 | N3: ＨＤＬコレステロール人数 | O3: ＨＤＬコレステロール割合 | P3: 空腹時血糖人数 | Q3: 空腹時血糖割合 | R3: ＨｂＡ１ｃ人数 | S3: ＨｂＡ１ｃ割合 | T3: 尿酸人数 | U3: 尿酸割合 | V3: 収縮期血圧人数 | W3: 収縮期血圧割合 | X3: 拡張期血圧人数 | Y3: 拡張期血圧割合 | Z3: ＬＤＬコレステロール人数 | AA3: ＬＤＬコレステロール割合 | AB3: 血清クレアチニン人数 | AC3: 血清クレアチニン割合 | AD3: 心電図人数 | AE3: 心電図割合 | AF3: 眼底検査人数 | AG3: 眼底検査割合 | AH3: 随時血糖人数 | AI3: 随時血糖割合 | AJ3: ｎｏｎ－ＨＤＬコレステロール人数 | AK3: ｎｏｎ－ＨＤＬコレステロール割合 | AL3: ｅＧＦＲ人数 | AM3: ｅＧＦＲ割合 | AN3: 随時中性脂肪人数 | AO3: 随時中性脂肪割合
A4: 明細部 | B4: 国 | C4: 40 | D4: 男
A5: 明細部 | B5: 国 | C5: 41 | D5: 男
A6: 明細部 | B6: 国 | C6: 42 | D6: 男
A7: 明細部 | B7: 国 | C7: 43 | D7: 男
A8: 明細部 | B8: 国 | C8: 44 | D8: 男
A9: 明細部 | B9: 国 | C9: 45 | D9: 男
A10: 明細部 | B10: 国 | C10: 46 | D10: 男
A11: 明細部 | B11: 国 | C11: 47 | D11: 男
A12: 明細部 | B12: 国 | C12: 48 | D12: 男
A13: 明細部 | B13: 国 | C13: 49 | D13: 男
A14: 明細部 | B14: 国 | C14: 50 | D14: 男
A15: 明細部 | B15: 国 | C15: 51 | D15: 男
A16: 明細部 | B16: 国 | C16: 52 | D16: 男
A17: 明細部 | B17: 国 | C17: 53 | D17: 男
A18: 明細部 | B18: 国 | C18: 54 | D18: 男
A19: 明細部 | B19: 国 | C19: 55 | D19: 男
A20: 明細部 | B20: 国 | C20: 56 | D20: 男
A21: 明細部 | B21: 国 | C21: 57 | D21: 男
A22: 明細部 | B22: 国 | C22: 58 | D22: 男
A23: 明細部 | B23: 国 | C23: 59 | D23: 男
A24: 明細部 | B24: 国 | C24: 60 | D24: 男
A25: 明細部 | B25: 国 | C25: 61 | D25: 男
A26: 明細部 | B26: 国 | C26: 62 | D26: 男
A27: 明細部 | B27: 国 | C27: 63 | D27: 男
A28: 明細部 | B28: 国 | C28: 64 | D28: 男
A29: 明細部 | B29: 国 | C29: 65 | D29: 男
A30: 明細部 | B30: 国 | C30: 66 | D30: 男
A31: 明細部 | B31: 国 | C31: 67 | D31: 男
A32: 明細部 | B32: 国 | C32: 68 | D32: 男
A33: 明細部 | B33: 国 | C33: 69 | D33: 男
A34: 明細部 | B34: 国 | C34: 70 | D34: 男
A35: 明細部 | B35: 国 | C35: 71 | D35: 男
A36: 明細部 | B36: 国 | C36: 72 | D36: 男
A37: 明細部 | B37: 国 | C37: 73 | D37: 男
A38: 明細部 | B38: 国 | C38: 74 | D38: 男
A39: 明細部 | B39: 国 | C39: 40 | D39: 女
A40: 明細部 | B40: 国 | C40: 41 | D40: 女
A41: 明細部 | B41: 国 | C41: 42 | D41: 女
A42: 明細部 | B42: 国 | C42: 43 | D42: 女
A43: 明細部 | B43: 国 | C43: 44 | D43: 女
A44: 明細部 | B44: 国 | C44: 45 | D44: 女
A45: 明細部 | B45: 国 | C45: 46 | D45: 女
A46: 明細部 | B46: 国 | C46: 47 | D46: 女
A47: 明細部 | B47: 国 | C47: 48 | D47: 女
A48: 明細部 | B48: 国 | C48: 49 | D48: 女
A49: 明細部 | B49: 国 | C49: 50 | D49: 女
A50: 明細部 | B50: 国 | C50: 51 | D50: 女
A51: 明細部 | B51: 国 | C51: 52 | D51: 女
A52: 明細部 | B52: 国 | C52: 53 | D52: 女
A53: 明細部 | B53: 国 | C53: 54 | D53: 女
A54: 明細部 | B54: 国 | C54: 55 | D54: 女
A55: 明細部 | B55: 国 | C55: 56 | D55: 女
A56: 明細部 | B56: 国 | C56: 57 | D56: 女
A57: 明細部 | B57: 国 | C57: 58 | D57: 女
A58: 明細部 | B58: 国 | C58: 59 | D58: 女
A59: 明細部 | B59: 国 | C59: 60 | D59: 女
A60: 明細部 | B60: 国 | C60: 61 | D60: 女
A61: 明細部 | B61: 国 | C61: 62 | D61: 女
A62: 明細部 | B62: 国 | C62: 63 | D62: 女
A63: 明細部 | B63: 国 | C63: 64 | D63: 女
A64: 明細部 | B64: 国 | C64: 65 | D64: 女
A65: 明細部 | B65: 国 | C65: 66 | D65: 女
A66: 明細部 | B66: 国 | C66: 67 | D66: 女
A67: 明細部 | B67: 国 | C67: 68 | D67: 女
A68: 明細部 | B68: 国 | C68: 69 | D68: 女
A69: 明細部 | B69: 国 | C69: 70 | D69: 女
A70: 明細部 | B70: 国 | C70: 71 | D70: 女
A71: 明細部 | B71: 国 | C71: 72 | D71: 女
A72: 明細部 | B72: 国 | C72: 73 | D72: 女
A73: 明細部 | B73: 国 | C73: 74 | D73: 女
A74: 明細部 | B74: 県 | C74: 40 | D74: 男
A75: 明細部 | B75: 県 | C75: 41 | D75: 男
A76: 明細部 | B76: 県 | C76: 42 | D76: 男
A77: 明細部 | B77: 県 | C77: 43 | D77: 男
A78: 明細部 | B78: 県 | C78: 44 | D78: 男
A79: 明細部 | B79: 県 | C79: 45 | D79: 男
A80: 明細部 | B80: 県 | C80: 46 | D80: 男
A81: 明細部 | B81: 県 | C81: 47 | D81: 男
A82: 明細部 | B82: 県 | C82: 48 | D82: 男
A83: 明細部 | B83: 県 | C83: 49 | D83: 男
A84: 明細部 | B84: 県 | C84: 50 | D84: 男
A85: 明細部 | B85: 県 | C85: 51 | D85: 男
A86: 明細部 | B86: 県 | C86: 52 | D86: 男
A87: 明細部 | B87: 県 | C87: 53 | D87: 男
A88: 明細部 | B88: 県 | C88: 54 | D88: 男
A89: 明細部 | B89: 県 | C89: 55 | D89: 男
A90: 明細部 | B90: 県 | C90: 56 | D90: 男
A91: 明細部 | B91: 県 | C91: 57 | D91: 男
A92: 明細部 | B92: 県 | C92: 58 | D92: 男
A93: 明細部 | B93: 県 | C93: 59 | D93: 男
A94: 明細部 | B94: 県 | C94: 60 | D94: 男
A95: 明細部 | B95: 県 | C95: 61 | D95: 男
A96: 明細部 | B96: 県 | C96: 62 | D96: 男
A97: 明細部 | B97: 県 | C97: 63 | D97: 男
A98: 明細部 | B98: 県 | C98: 64 | D98: 男
A99: 明細部 | B99: 県 | C99: 65 | D99: 男
A100: 明細部 | B100: 県 | C100: 66 | D100: 男
A101: 明細部 | B101: 県 | C101: 67 | D101: 男
A102: 明細部 | B102: 県 | C102: 68 | D102: 男
A103: 明細部 | B103: 県 | C103: 69 | D103: 男
A104: 明細部 | B104: 県 | C104: 70 | D104: 男
A105: 明細部 | B105: 県 | C105: 71 | D105: 男
A106: 明細部 | B106: 県 | C106: 72 | D106: 男
A107: 明細部 | B107: 県 | C107: 73 | D107: 男
A108: 明細部 | B108: 県 | C108: 74 | D108: 男
A109: 明細部 | B109: 県 | C109: 40 | D109: 女
A110: 明細部 | B110: 県 | C110: 41 | D110: 女
A111: 明細部 | B111: 県 | C111: 42 | D111: 女
A112: 明細部 | B112: 県 | C112: 43 | D112: 女
A113: 明細部 | B113: 県 | C113: 44 | D113: 女
A114: 明細部 | B114: 県 | C114: 45 | D114: 女
A115: 明細部 | B115: 県 | C115: 46 | D115: 女
A116: 明細部 | B116: 県 | C116: 47 | D116: 女
A117: 明細部 | B117: 県 | C117: 48 | D117: 女
A118: 明細部 | B118: 県 | C118: 49 | D118: 女
A119: 明細部 | B119: 県 | C119: 50 | D119: 女
A120: 明細部 | B120: 県 | C120: 51 | D120: 女
A121: 明細部 | B121: 県 | C121: 52 | D121: 女
A122: 明細部 | B122: 県 | C122: 53 | D122: 女
A123: 明細部 | B123: 県 | C123: 54 | D123: 女
A124: 明細部 | B124: 県 | C124: 55 | D124: 女
A125: 明細部 | B125: 県 | C125: 56 | D125: 女
A126: 明細部 | B126: 県 | C126: 57 | D126: 女
A127: 明細部 | B127: 県 | C127: 58 | D127: 女
A128: 明細部 | B128: 県 | C128: 59 | D128: 女
A129: 明細部 | B129: 県 | C129: 60 | D129: 女
A130: 明細部 | B130: 県 | C130: 61 | D130: 女
A131: 明細部 | B131: 県 | C131: 62 | D131: 女
A132: 明細部 | B132: 県 | C132: 63 | D132: 女
A133: 明細部 | B133: 県 | C133: 64 | D133: 女
A134: 明細部 | B134: 県 | C134: 65 | D134: 女
A135: 明細部 | B135: 県 | C135: 66 | D135: 女
A136: 明細部 | B136: 県 | C136: 67 | D136: 女
A137: 明細部 | B137: 県 | C137: 68 | D137: 女
A138: 明細部 | B138: 県 | C138: 69 | D138: 女
A139: 明細部 | B139: 県 | C139: 70 | D139: 女
A140: 明細部 | B140: 県 | C140: 71 | D140: 女
A141: 明細部 | B141: 県 | C141: 72 | D141: 女
A142: 明細部 | B142: 県 | C142: 73 | D142: 女
A143: 明細部 | B143: 県 | C143: 74 | D143: 女
A144: 明細部 | B144: 保険者（地区） | C144: 40 | D144: 男
A145: 明細部 | B145: 保険者（地区） | C145: 41 | D145: 男
A146: 明細部 | B146: 保険者（地区） | C146: 42 | D146: 男
A147: 明細部 | B147: 保険者（地区） | C147: 43 | D147: 男
A148: 明細部 | B148: 保険者（地区） | C148: 44 | D148: 男
A149: 明細部 | B149: 保険者（地区） | C149: 45 | D149: 男
A150: 明細部 | B150: 保険者（地区） | C150: 46 | D150: 男
A151: 明細部 | B151: 保険者（地区） | C151: 47 | D151: 男
A152: 明細部 | B152: 保険者（地区） | C152: 48 | D152: 男
A153: 明細部 | B153: 保険者（地区） | C153: 49 | D153: 男
A154: 明細部 | B154: 保険者（地区） | C154: 50 | D154: 男
A155: 明細部 | B155: 保険者（地区） | C155: 51 | D155: 男
A156: 明細部 | B156: 保険者（地区） | C156: 52 | D156: 男
A157: 明細部 | B157: 保険者（地区） | C157: 53 | D157: 男
A158: 明細部 | B158: 保険者（地区） | C158: 54 | D158: 男
A159: 明細部 | B159: 保険者（地区） | C159: 55 | D159: 男
A160: 明細部 | B160: 保険者（地区） | C160: 56 | D160: 男
A161: 明細部 | B161: 保険者（地区） | C161: 57 | D161: 男
A162: 明細部 | B162: 保険者（地区） | C162: 58 | D162: 男
A163: 明細部 | B163: 保険者（地区） | C163: 59 | D163: 男
A164: 明細部 | B164: 保険者（地区） | C164: 60 | D164: 男
A165: 明細部 | B165: 保険者（地区） | C165: 61 | D165: 男
A166: 明細部 | B166: 保険者（地区） | C166: 62 | D166: 男
A167: 明細部 | B167: 保険者（地区） | C167: 63 | D167: 男
A168: 明細部 | B168: 保険者（地区） | C168: 64 | D168: 男
A169: 明細部 | B169: 保険者（地区） | C169: 65 | D169: 男
A170: 明細部 | B170: 保険者（地区） | C170: 66 | D170: 男
A171: 明細部 | B171: 保険者（地区） | C171: 67 | D171: 男
A172: 明細部 | B172: 保険者（地区） | C172: 68 | D172: 男
A173: 明細部 | B173: 保険者（地区） | C173: 69 | D173: 男
A174: 明細部 | B174: 保険者（地区） | C174: 70 | D174: 男
A175: 明細部 | B175: 保険者（地区） | C175: 71 | D175: 男
A176: 明細部 | B176: 保険者（地区） | C176: 72 | D176: 男
A177: 明細部 | B177: 保険者（地区） | C177: 73 | D177: 男
A178: 明細部 | B178: 保険者（地区） | C178: 74 | D178: 男
A179: 明細部 | B179: 保険者（地区） | C179: 40 | D179: 女
A180: 明細部 | B180: 保険者（地区） | C180: 41 | D180: 女
A181: 明細部 | B181: 保険者（地区） | C181: 42 | D181: 女
A182: 明細部 | B182: 保険者（地区） | C182: 43 | D182: 女
A183: 明細部 | B183: 保険者（地区） | C183: 44 | D183: 女
A184: 明細部 | B184: 保険者（地区） | C184: 45 | D184: 女
A185: 明細部 | B185: 保険者（地区） | C185: 46 | D185: 女
A186: 明細部 | B186: 保険者（地区） | C186: 47 | D186: 女
A187: 明細部 | B187: 保険者（地区） | C187: 48 | D187: 女
A188: 明細部 | B188: 保険者（地区） | C188: 49 | D188: 女
A189: 明細部 | B189: 保険者（地区） | C189: 50 | D189: 女
A190: 明細部 | B190: 保険者（地区） | C190: 51 | D190: 女
A191: 明細部 | B191: 保険者（地区） | C191: 52 | D191: 女
A192: 明細部 | B192: 保険者（地区） | C192: 53 | D192: 女
A193: 明細部 | B193: 保険者（地区） | C193: 54 | D193: 女
A194: 明細部 | B194: 保険者（地区） | C194: 55 | D194: 女
A195: 明細部 | B195: 保険者（地区） | C195: 56 | D195: 女
A196: 明細部 | B196: 保険者（地区） | C196: 57 | D196: 女
A197: 明細部 | B197: 保険者（地区） | C197: 58 | D197: 女
A198: 明細部 | B198: 保険者（地区） | C198: 59 | D198: 女
A199: 明細部 | B199: 保険者（地区） | C199: 60 | D199: 女
A200: 明細部 | B200: 保険者（地区） | C200: 61 | D200: 女
... 13 more rows

Sheet CSVデータ (hidden)
A1: =CSVデータ1!A1 -> レコード種別 | B1: =CSVデータ1!B1 -> 保険者番号 | C1: =CSVデータ1!C1 -> 保険者名 | D1: =CSVデータ1!D1 -> 地区名 | E1: =CSVデータ1!E1 -> 作成年月
A2: =CSVデータ1!A2 -> 共通部 | B2: =CSVデータ1!B2 -> 999999 | C2: =CSVデータ1!C2 -> 見本データ | D2: =CSVデータ1!D2 -> 0 | E2: =CSVデータ1!E2&CSVデータ2!E2&CSVデータ3!E2&CSVデータ4!E2 -> R06年度
A3: =CSVデータ1!A3 -> レコード種別 | B3: =CSVデータ1!B3 -> 集計単位 | C3: =CSVデータ1!C3 -> 年齢 | D3: =CSVデータ1!D3 -> 性別 | E3: =CSVデータ1!E3 -> 受診者 | F3: =CSVデータ1!F3 -> ＢＭＩ人数 | G3: =CSVデータ1!G3 -> ＢＭＩ割合 | H3: =CSVデータ1!H3 -> 腹囲人数 | I3: =CSVデータ1!I3 -> 腹囲割合 | J3: =CSVデータ1!J3 -> 空腹時中性脂肪人数 | K3: =CSVデータ1!K3 -> 空腹時中性脂肪割合 | L3: =CSVデータ1!L3 -> ＡＬＴ（ＧＰＴ）人数 | M3: =CSVデータ1!M3 -> ＡＬＴ（ＧＰＴ）割合 | N3: =CSVデータ1!N3 -> ＨＤＬコレステロール人数 | O3: =CSVデータ1!O3 -> ＨＤＬコレステロール割合 | P3: =CSVデータ1!P3 -> 空腹時血糖人数 | Q3: =CSVデータ1!Q3 -> 空腹時血糖割合 | R3: =CSVデータ1!R3 -> ＨｂＡ１ｃ人数 | S3: =CSVデータ1!S3 -> ＨｂＡ１ｃ割合 | T3: =CSVデータ1!T3 -> 尿酸人数 | U3: =CSVデータ1!U3 -> 尿酸割合 | V3: =CSVデータ1!V3 -> 収縮期血圧人数 | W3: =CSVデータ1!W3 -> 収縮期血圧割合 | X3: =CSVデータ1!X3 -> 拡張期血圧人数 | Y3: =CSVデータ1!Y3 -> 拡張期血圧割合 | Z3: =CSVデータ1!Z3 -> ＬＤＬコレステロール人数 | AA3: =CSVデータ1!AA3 -> ＬＤＬコレステロール割合 | AB3: =CSVデータ1!AB3 -> 血清クレアチニン人数 | AC3: =CSVデータ1!AC3 -> 血清クレアチニン割合 | AD3: =CSVデータ1!AD3 -> 心電図人数 | AE3: =CSVデータ1!AE3 -> 心電図割合 | AF3: =CSVデータ1!AF3 -> 眼底検査人数 | AG3: =CSVデータ1!AG3 -> 眼底検査割合 | AH3: =CSVデータ1!AH3 -> 随時血糖人数 | AI3: =CSVデータ1!AI3 -> 随時血糖割合 | AJ3: =CSVデータ1!AJ3 -> ｎｏｎ－ＨＤＬコレステロール人数 | AK3: =CSVデータ1!AK3 -> ｎｏｎ－ＨＤＬコレステロール割合 | AL3: =CSVデータ1!AL3 -> ｅＧＦＲ人数 | AM3: =CSVデータ1!AM3 -> ｅＧＦＲ割合 | AN3: =CSVデータ1!AN3 -> 随時中性脂肪人数 | AO3: =CSVデータ1!AO3 -> 随時中性脂肪割合
A4: =CSVデータ1!A4 -> 明細部 | B4: =CSVデータ1!B4 -> 国 | C4: =CSVデータ1!C4 -> 40 | D4: =CSVデータ1!D4 -> 男 | E4: =IF(ISNUMBER(CSVデータ1!E4),CSVデータ1!E4,0)+IF(ISNUMBER(CSVデータ2!E4),CSVデータ2!E4,0)+IF(ISNUMBER(CSVデータ3!E4),CSVデータ3!E4,0)+IF(ISNUMBER(CSVデータ4!E4),CSVデータ4!E4,0) -> 1965 | F4: =IF(ISNUMBER(CSVデータ1!F4),CSVデータ1!F4,0)+IF(ISNUMBER(CSVデータ2!F4),CSVデータ2!F4,0)+IF(ISNUMBER(CSVデータ3!F4),CSVデータ3!F4,0)+IF(ISNUMBER(CSVデータ4!F4),CSVデータ4!F4,0) -> 727 | H4: =IF(ISNUMBER(CSVデータ1!H4),CSVデータ1!H4,0)+IF(ISNUMBER(CSVデータ2!H4),CSVデータ2!H4,0)+IF(ISNUMBER(CSVデータ3!H4),CSVデータ3!H4,0)+IF(ISNUMBER(CSVデータ4!H4),CSVデータ4!H4,0) -> 948 | J4: =IF(ISNUMBER(CSVデータ1!J4),CSVデータ1!J4,0)+IF(ISNUMBER(CSVデータ2!J4),CSVデータ2!J4,0)+IF(ISNUMBER(CSVデータ3!J4),CSVデータ3!J4,0)+IF(ISNUMBER(CSVデータ4!J4),CSVデータ4!J4,0) -> 420 | L4: =IF(ISNUMBER(CSVデータ1!L4),CSVデータ1!L4,0)+IF(ISNUMBER(CSVデータ2!L4),CSVデータ2!L4,0)+IF(ISNUMBER(CSVデータ3!L4),CSVデータ3!L4,0)+IF(ISNUMBER(CSVデータ4!L4),CSVデータ4!L4,0) -> 722 | N4: =IF(ISNUMBER(CSVデータ1!N4),CSVデータ1!N4,0)+IF(ISNUMBER(CSVデータ2!N4),CSVデータ2!N4,0)+IF(ISNUMBER(CSVデータ3!N4),CSVデータ3!N4,0)+IF(ISNUMBER(CSVデータ4!N4),CSVデータ4!N4,0) -> 162 | P4: =IF(ISNUMBER(CSVデータ1!P4),CSVデータ1!P4,0)+IF(ISNUMBER(CSVデータ2!P4),CSVデータ2!P4,0)+IF(ISNUMBER(CSVデータ3!P4),CSVデータ3!P4,0)+IF(ISNUMBER(CSVデータ4!P4),CSVデータ4!P4,0) -> 267 | R4: =IF(ISNUMBER(CSVデータ1!R4),CSVデータ1!R4,0)+IF(ISNUMBER(CSVデータ2!R4),CSVデータ2!R4,0)+IF(ISNUMBER(CSVデータ3!R4),CSVデータ3!R4,0)+IF(ISNUMBER(CSVデータ4!R4),CSVデータ4!R4,0) -> 616 | T4: =IF(ISNUMBER(CSVデータ1!T4),CSVデータ1!T4,0)+IF(ISNUMBER(CSVデータ2!T4),CSVデータ2!T4,0)+IF(ISNUMBER(CSVデータ3!T4),CSVデータ3!T4,0)+IF(ISNUMBER(CSVデータ4!T4),CSVデータ4!T4,0) -> 327 | V4: =IF(ISNUMBER(CSVデータ1!V4),CSVデータ1!V4,0)+IF(ISNUMBER(CSVデータ2!V4),CSVデータ2!V4,0)+IF(ISNUMBER(CSVデータ3!V4),CSVデータ3!V4,0)+IF(ISNUMBER(CSVデータ4!V4),CSVデータ4!V4,0) -> 459 | X4: =IF(ISNUMBER(CSVデータ1!X4),CSVデータ1!X4,0)+IF(ISNUMBER(CSVデータ2!X4),CSVデータ2!X4,0)+IF(ISNUMBER(CSVデータ3!X4),CSVデータ3!X4,0)+IF(ISNUMBER(CSVデータ4!X4),CSVデータ4!X4,0) -> 365 | Z4: =IF(ISNUMBER(CSVデータ1!Z4),CSVデータ1!Z4,0)+IF(ISNUMBER(CSVデータ2!Z4),CSVデータ2!Z4,0)+IF(ISNUMBER(CSVデータ3!Z4),CSVデータ3!Z4,0)+IF(ISNUMBER(CSVデータ4!Z4),CSVデータ4!Z4,0) -> 1062 | AB4: =IF(ISNUMBER(CSVデータ1!AB4),CSVデータ1!AB4,0)+IF(ISNUMBER(CSVデータ2!AB4),CSVデータ2!AB4,0)+IF(ISNUMBER(CSVデータ3!AB4),CSVデータ3!AB4,0)+IF(ISNUMBER(CSVデータ4!AB4),CSVデータ4!AB4,0) -> 3 | AD4: =IF(ISNUMBER(CSVデータ1!AD4),CSVデータ1!AD4,0)+IF(ISNUMBER(CSVデータ2!AD4),CSVデータ2!AD4,0)+IF(ISNUMBER(CSVデータ3!AD4),CSVデータ3!AD4,0)+IF(ISNUMBER(CSVデータ4!AD4),CSVデータ4!AD4,0) -> 243 | AF4: =IF(ISNUMBER(CSVデータ1!AF4),CSVデータ1!AF4,0)+IF(ISNUMBER(CSVデータ2!AF4),CSVデータ2!AF4,0)+IF(ISNUMBER(CSVデータ3!AF4),CSVデータ3!AF4,0)+IF(ISNUMBER(CSVデータ4!AF4),CSVデータ4!AF4,0) -> 403 | AH4: =IF(ISNUMBER(CSVデータ1!AH4),CSVデータ1!AH4,0)+IF(ISNUMBER(CSVデータ2!AH4),CSVデータ2!AH4,0)+IF(ISNUMBER(CSVデータ3!AH4),CSVデータ3!AH4,0)+IF(ISNUMBER(CSVデータ4!AH4),CSVデータ4!AH4,0) -> 31 | AJ4: =IF(ISNUMBER(CSVデータ1!AJ4),CSVデータ1!AJ4,0)+IF(ISNUMBER(CSVデータ2!AJ4),CSVデータ2!AJ4,0)+IF(ISNUMBER(CSVデータ3!AJ4),CSVデータ3!AJ4,0)+IF(ISNUMBER(CSVデータ4!AJ4),CSVデータ4!AJ4,0) -> 151 | AL4: =IF(ISNUMBER(CSVデータ1!AL4),CSVデータ1!AL4,0)+IF(ISNUMBER(CSVデータ2!AL4),CSVデータ2!AL4,0)+IF(ISNUMBER(CSVデータ3!AL4),CSVデータ3!AL4,0)+IF(ISNUMBER(CSVデータ4!AL4),CSVデータ4!AL4,0) -> 32 | AN4: =IF(ISNUMBER(CSVデータ1!AN4),CSVデータ1!AN4,0)+IF(ISNUMBER(CSVデータ2!AN4),CSVデータ2!AN4,0)+IF(ISNUMBER(CSVデータ3!AN4),CSVデータ3!AN4,0)+IF(ISNUMBER(CSVデータ4!AN4),CSVデータ4!AN4,0) -> 121
A5: =CSVデータ1!A5 -> 明細部 | B5: =CSVデータ1!B5 -> 国 | C5: =CSVデータ1!C5 -> 41 | D5: =CSVデータ1!D5 -> 男 | E5: =IF(ISNUMBER(CSVデータ1!E5),CSVデータ1!E5,0)+IF(ISNUMBER(CSVデータ2!E5),CSVデータ2!E5,0)+IF(ISNUMBER(CSVデータ3!E5),CSVデータ3!E5,0)+IF(ISNUMBER(CSVデータ4!E5),CSVデータ4!E5,0) -> 1965 | F5: =IF(ISNUMBER(CSVデータ1!F5),CSVデータ1!F5,0)+IF(ISNUMBER(CSVデータ2!F5),CSVデータ2!F5,0)+IF(ISNUMBER(CSVデータ3!F5),CSVデータ3!F5,0)+IF(ISNUMBER(CSVデータ4!F5),CSVデータ4!F5,0) -> 723 | H5: =IF(ISNUMBER(CSVデータ1!H5),CSVデータ1!H5,0)+IF(ISNUMBER(CSVデータ2!H5),CSVデータ2!H5,0)+IF(ISNUMBER(CSVデータ3!H5),CSVデータ3!H5,0)+IF(ISNUMBER(CSVデータ4!H5),CSVデータ4!H5,0) -> 904 | J5: =IF(ISNUMBER(CSVデータ1!J5),CSVデータ1!J5,0)+IF(ISNUMBER(CSVデータ2!J5),CSVデータ2!J5,0)+IF(ISNUMBER(CSVデータ3!J5),CSVデータ3!J5,0)+IF(ISNUMBER(CSVデータ4!J5),CSVデータ4!J5,0) -> 404 | L5: =IF(ISNUMBER(CSVデータ1!L5),CSVデータ1!L5,0)+IF(ISNUMBER(CSVデータ2!L5),CSVデータ2!L5,0)+IF(ISNUMBER(CSVデータ3!L5),CSVデータ3!L5,0)+IF(ISNUMBER(CSVデータ4!L5),CSVデータ4!L5,0) -> 699 | N5: =IF(ISNUMBER(CSVデータ1!N5),CSVデータ1!N5,0)+IF(ISNUMBER(CSVデータ2!N5),CSVデータ2!N5,0)+IF(ISNUMBER(CSVデータ3!N5),CSVデータ3!N5,0)+IF(ISNUMBER(CSVデータ4!N5),CSVデータ4!N5,0) -> 153 | P5: =IF(ISNUMBER(CSVデータ1!P5),CSVデータ1!P5,0)+IF(ISNUMBER(CSVデータ2!P5),CSVデータ2!P5,0)+IF(ISNUMBER(CSVデータ3!P5),CSVデータ3!P5,0)+IF(ISNUMBER(CSVデータ4!P5),CSVデータ4!P5,0) -> 331 | R5: =IF(ISNUMBER(CSVデータ1!R5),CSVデータ1!R5,0)+IF(ISNUMBER(CSVデータ2!R5),CSVデータ2!R5,0)+IF(ISNUMBER(CSVデータ3!R5),CSVデータ3!R5,0)+IF(ISNUMBER(CSVデータ4!R5),CSVデータ4!R5,0) -> 638 | T5: =IF(ISNUMBER(CSVデータ1!T5),CSVデータ1!T5,0)+IF(ISNUMBER(CSVデータ2!T5),CSVデータ2!T5,0)+IF(ISNUMBER(CSVデータ3!T5),CSVデータ3!T5,0)+IF(ISNUMBER(CSVデータ4!T5),CSVデータ4!T5,0) -> 302 | V5: =IF(ISNUMBER(CSVデータ1!V5),CSVデータ1!V5,0)+IF(ISNUMBER(CSVデータ2!V5),CSVデータ2!V5,0)+IF(ISNUMBER(CSVデータ3!V5),CSVデータ3!V5,0)+IF(ISNUMBER(CSVデータ4!V5),CSVデータ4!V5,0) -> 495 | X5: =IF(ISNUMBER(CSVデータ1!X5),CSVデータ1!X5,0)+IF(ISNUMBER(CSVデータ2!X5),CSVデータ2!X5,0)+IF(ISNUMBER(CSVデータ3!X5),CSVデータ3!X5,0)+IF(ISNUMBER(CSVデータ4!X5),CSVデータ4!X5,0) -> 390 | Z5: =IF(ISNUMBER(CSVデータ1!Z5),CSVデータ1!Z5,0)+IF(ISNUMBER(CSVデータ2!Z5),CSVデータ2!Z5,0)+IF(ISNUMBER(CSVデータ3!Z5),CSVデータ3!Z5,0)+IF(ISNUMBER(CSVデータ4!Z5),CSVデータ4!Z5,0) -> 1049 | AB5: =IF(ISNUMBER(CSVデータ1!AB5),CSVデータ1!AB5,0)+IF(ISNUMBER(CSVデータ2!AB5),CSVデータ2!AB5,0)+IF(ISNUMBER(CSVデータ3!AB5),CSVデータ3!AB5,0)+IF(ISNUMBER(CSVデータ4!AB5),CSVデータ4!AB5,0) -> 6 | AD5: =IF(ISNUMBER(CSVデータ1!AD5),CSVデータ1!AD5,0)+IF(ISNUMBER(CSVデータ2!AD5),CSVデータ2!AD5,0)+IF(ISNUMBER(CSVデータ3!AD5),CSVデータ3!AD5,0)+IF(ISNUMBER(CSVデータ4!AD5),CSVデータ4!AD5,0) -> 280 | AF5: =IF(ISNUMBER(CSVデータ1!AF5),CSVデータ1!AF5,0)+IF(ISNUMBER(CSVデータ2!AF5),CSVデータ2!AF5,0)+IF(ISNUMBER(CSVデータ3!AF5),CSVデータ3!AF5,0)+IF(ISNUMBER(CSVデータ4!AF5),CSVデータ4!AF5,0) -> 368 | AH5: =IF(ISNUMBER(CSVデータ1!AH5),CSVデータ1!AH5,0)+IF(ISNUMBER(CSVデータ2!AH5),CSVデータ2!AH5,0)+IF(ISNUMBER(CSVデータ3!AH5),CSVデータ3!AH5,0)+IF(ISNUMBER(CSVデータ4!AH5),CSVデータ4!AH5,0) -> 26 | AJ5: =IF(ISNUMBER(CSVデータ1!AJ5),CSVデータ1!AJ5,0)+IF(ISNUMBER(CSVデータ2!AJ5),CSVデータ2!AJ5,0)+IF(ISNUMBER(CSVデータ3!AJ5),CSVデータ3!AJ5,0)+IF(ISNUMBER(CSVデータ4!AJ5),CSVデータ4!AJ5,0) -> 153 | AL5: =IF(ISNUMBER(CSVデータ1!AL5),CSVデータ1!AL5,0)+IF(ISNUMBER(CSVデータ2!AL5),CSVデータ2!AL5,0)+IF(ISNUMBER(CSVデータ3!AL5),CSVデータ3!AL5,0)+IF(ISNUMBER(CSVデータ4!AL5),CSVデータ4!AL5,0) -> 44 | AN5: =IF(ISNUMBER(CSVデータ1!AN5),CSVデータ1!AN5,0)+IF(ISNUMBER(CSVデータ2!AN5),CSVデータ2!AN5,0)+IF(ISNUMBER(CSVデータ3!AN5),CSVデータ3!AN5,0)+IF(ISNUMBER(CSVデータ4!AN5),CSVデータ4!AN5,0) -> 107
A6: =CSVデータ1!A6 -> 明細部 | B6: =CSVデータ1!B6 -> 国 | C6: =CSVデータ1!C6 -> 42 | D6: =CSVデータ1!D6 -> 男 | E6: =IF(ISNUMBER(CSVデータ1!E6),CSVデータ1!E6,0)+IF(ISNUMBER(CSVデータ2!E6),CSVデータ2!E6,0)+IF(ISNUMBER(CSVデータ3!E6),CSVデータ3!E6,0)+IF(ISNUMBER(CSVデータ4!E6),CSVデータ4!E6,0) -> 1933 | F6: =IF(ISNUMBER(CSVデータ1!F6),CSVデータ1!F6,0)+IF(ISNUMBER(CSVデータ2!F6),CSVデータ2!F6,0)+IF(ISNUMBER(CSVデータ3!F6),CSVデータ3!F6,0)+IF(ISNUMBER(CSVデータ4!F6),CSVデータ4!F6,0) -> 702 | H6: =IF(ISNUMBER(CSVデータ1!H6),CSVデータ1!H6,0)+IF(ISNUMBER(CSVデータ2!H6),CSVデータ2!H6,0)+IF(ISNUMBER(CSVデータ3!H6),CSVデータ3!H6,0)+IF(ISNUMBER(CSVデータ4!H6),CSVデータ4!H6,0) -> 902 | J6: =IF(ISNUMBER(CSVデータ1!J6),CSVデータ1!J6,0)+IF(ISNUMBER(CSVデータ2!J6),CSVデータ2!J6,0)+IF(ISNUMBER(CSVデータ3!J6),CSVデータ3!J6,0)+IF(ISNUMBER(CSVデータ4!J6),CSVデータ4!J6,0) -> 427 | L6: =IF(ISNUMBER(CSVデータ1!L6),CSVデータ1!L6,0)+IF(ISNUMBER(CSVデータ2!L6),CSVデータ2!L6,0)+IF(ISNUMBER(CSVデータ3!L6),CSVデータ3!L6,0)+IF(ISNUMBER(CSVデータ4!L6),CSVデータ4!L6,0) -> 679 | N6: =IF(ISNUMBER(CSVデータ1!N6),CSVデータ1!N6,0)+IF(ISNUMBER(CSVデータ2!N6),CSVデータ2!N6,0)+IF(ISNUMBER(CSVデータ3!N6),CSVデータ3!N6,0)+IF(ISNUMBER(CSVデータ4!N6),CSVデータ4!N6,0) -> 158 | P6: =IF(ISNUMBER(CSVデータ1!P6),CSVデータ1!P6,0)+IF(ISNUMBER(CSVデータ2!P6),CSVデータ2!P6,0)+IF(ISNUMBER(CSVデータ3!P6),CSVデータ3!P6,0)+IF(ISNUMBER(CSVデータ4!P6),CSVデータ4!P6,0) -> 291 | R6: =IF(ISNUMBER(CSVデータ1!R6),CSVデータ1!R6,0)+IF(ISNUMBER(CSVデータ2!R6),CSVデータ2!R6,0)+IF(ISNUMBER(CSVデータ3!R6),CSVデータ3!R6,0)+IF(ISNUMBER(CSVデータ4!R6),CSVデータ4!R6,0) -> 682 | T6: =IF(ISNUMBER(CSVデータ1!T6),CSVデータ1!T6,0)+IF(ISNUMBER(CSVデータ2!T6),CSVデータ2!T6,0)+IF(ISNUMBER(CSVデータ3!T6),CSVデータ3!T6,0)+IF(ISNUMBER(CSVデータ4!T6),CSVデータ4!T6,0) -> 323 | V6: =IF(ISNUMBER(CSVデータ1!V6),CSVデータ1!V6,0)+IF(ISNUMBER(CSVデータ2!V6),CSVデータ2!V6,0)+IF(ISNUMBER(CSVデータ3!V6),CSVデータ3!V6,0)+IF(ISNUMBER(CSVデータ4!V6),CSVデータ4!V6,0) -> 483 | X6: =IF(ISNUMBER(CSVデータ1!X6),CSVデータ1!X6,0)+IF(ISNUMBER(CSVデータ2!X6),CSVデータ2!X6,0)+IF(ISNUMBER(CSVデータ3!X6),CSVデータ3!X6,0)+IF(ISNUMBER(CSVデータ4!X6),CSVデータ4!X6,0) -> 394 | Z6: =IF(ISNUMBER(CSVデータ1!Z6),CSVデータ1!Z6,0)+IF(ISNUMBER(CSVデータ2!Z6),CSVデータ2!Z6,0)+IF(ISNUMBER(CSVデータ3!Z6),CSVデータ3!Z6,0)+IF(ISNUMBER(CSVデータ4!Z6),CSVデータ4!Z6,0) -> 1045 | AB6: =IF(ISNUMBER(CSVデータ1!AB6),CSVデータ1!AB6,0)+IF(ISNUMBER(CSVデータ2!AB6),CSVデータ2!AB6,0)+IF(ISNUMBER(CSVデータ3!AB6),CSVデータ3!AB6,0)+IF(ISNUMBER(CSVデータ4!AB6),CSVデータ4!AB6,0) -> 5 | AD6: =IF(ISNUMBER(CSVデータ1!AD6),CSVデータ1!AD6,0)+IF(ISNUMBER(CSVデータ2!AD6),CSVデータ2!AD6,0)+IF(ISNUMBER(CSVデータ3!AD6),CSVデータ3!AD6,0)+IF(ISNUMBER(CSVデータ4!AD6),CSVデータ4!AD6,0) -> 265 | AF6: =IF(ISNUMBER(CSVデータ1!AF6),CSVデータ1!AF6,0)+IF(ISNUMBER(CSVデータ2!AF6),CSVデータ2!AF6,0)+IF(ISNUMBER(CSVデータ3!AF6),CSVデータ3!AF6,0)+IF(ISNUMBER(CSVデータ4!AF6),CSVデータ4!AF6,0) -> 403 | AH6: =IF(ISNUMBER(CSVデータ1!AH6),CSVデータ1!AH6,0)+IF(ISNUMBER(CSVデータ2!AH6),CSVデータ2!AH6,0)+IF(ISNUMBER(CSVデータ3!AH6),CSVデータ3!AH6,0)+IF(ISNUMBER(CSVデータ4!AH6),CSVデータ4!AH6,0) -> 29 | AJ6: =IF(ISNUMBER(CSVデータ1!AJ6),CSVデータ1!AJ6,0)+IF(ISNUMBER(CSVデータ2!AJ6),CSVデータ2!AJ6,0)+IF(ISNUMBER(CSVデータ3!AJ6),CSVデータ3!AJ6,0)+IF(ISNUMBER(CSVデータ4!AJ6),CSVデータ4!AJ6,0) -> 169 | AL6: =IF(ISNUMBER(CSVデータ1!AL6),CSVデータ1!AL6,0)+IF(ISNUMBER(CSVデータ2!AL6),CSVデータ2!AL6,0)+IF(ISNUMBER(CSVデータ3!AL6),CSVデータ3!AL6,0)+IF(ISNUMBER(CSVデータ4!AL6),CSVデータ4!AL6,0) -> 54 | AN6: =IF(ISNUMBER(CSVデータ1!AN6),CSVデータ1!AN6,0)+IF(ISNUMBER(CSVデータ2!AN6),CSVデータ2!AN6,0)+IF(ISNUMBER(CSVデータ3!AN6),CSVデータ3!AN6,0)+IF(ISNUMBER(CSVデータ4!AN6),CSVデータ4!AN6,0) -> 94
A7: =CSVデータ1!A7 -> 明細部 | B7: =CSVデータ1!B7 -> 国 | C7: =CSVデータ1!C7 -> 43 | D7: =CSVデータ1!D7 -> 男 | E7: =IF(ISNUMBER(CSVデータ1!E7),CSVデータ1!E7,0)+IF(ISNUMBER(CSVデータ2!E7),CSVデータ2!E7,0)+IF(ISNUMBER(CSVデータ3!E7),CSVデータ3!E7,0)+IF(ISNUMBER(CSVデータ4!E7),CSVデータ4!E7,0) -> 2139 | F7: =IF(ISNUMBER(CSVデータ1!F7),CSVデータ1!F7,0)+IF(ISNUMBER(CSVデータ2!F7),CSVデータ2!F7,0)+IF(ISNUMBER(CSVデータ3!F7),CSVデータ3!F7,0)+IF(ISNUMBER(CSVデータ4!F7),CSVデータ4!F7,0) -> 776 | H7: =IF(ISNUMBER(CSVデータ1!H7),CSVデータ1!H7,0)+IF(ISNUMBER(CSVデータ2!H7),CSVデータ2!H7,0)+IF(ISNUMBER(CSVデータ3!H7),CSVデータ3!H7,0)+IF(ISNUMBER(CSVデータ4!H7),CSVデータ4!H7,0) -> 977 | J7: =IF(ISNUMBER(CSVデータ1!J7),CSVデータ1!J7,0)+IF(ISNUMBER(CSVデータ2!J7),CSVデータ2!J7,0)+IF(ISNUMBER(CSVデータ3!J7),CSVデータ3!J7,0)+IF(ISNUMBER(CSVデータ4!J7),CSVデータ4!J7,0) -> 447 | L7: =IF(ISNUMBER(CSVデータ1!L7),CSVデータ1!L7,0)+IF(ISNUMBER(CSVデータ2!L7),CSVデータ2!L7,0)+IF(ISNUMBER(CSVデータ3!L7),CSVデータ3!L7,0)+IF(ISNUMBER(CSVデータ4!L7),CSVデータ4!L7,0) -> 735 | N7: =IF(ISNUMBER(CSVデータ1!N7),CSVデータ1!N7,0)+IF(ISNUMBER(CSVデータ2!N7),CSVデータ2!N7,0)+IF(ISNUMBER(CSVデータ3!N7),CSVデータ3!N7,0)+IF(ISNUMBER(CSVデータ4!N7),CSVデータ4!N7,0) -> 161 | P7: =IF(ISNUMBER(CSVデータ1!P7),CSVデータ1!P7,0)+IF(ISNUMBER(CSVデータ2!P7),CSVデータ2!P7,0)+IF(ISNUMBER(CSVデータ3!P7),CSVデータ3!P7,0)+IF(ISNUMBER(CSVデータ4!P7),CSVデータ4!P7,0) -> 331 | R7: =IF(ISNUMBER(CSVデータ1!R7),CSVデータ1!R7,0)+IF(ISNUMBER(CSVデータ2!R7),CSVデータ2!R7,0)+IF(ISNUMBER(CSVデータ3!R7),CSVデータ3!R7,0)+IF(ISNUMBER(CSVデータ4!R7),CSVデータ4!R7,0) -> 716 | T7: =IF(ISNUMBER(CSVデータ1!T7),CSVデータ1!T7,0)+IF(ISNUMBER(CSVデータ2!T7),CSVデータ2!T7,0)+IF(ISNUMBER(CSVデータ3!T7),CSVデータ3!T7,0)+IF(ISNUMBER(CSVデータ4!T7),CSVデータ4!T7,0) -> 330 | V7: =IF(ISNUMBER(CSVデータ1!V7),CSVデータ1!V7,0)+IF(ISNUMBER(CSVデータ2!V7),CSVデータ2!V7,0)+IF(ISNUMBER(CSVデータ3!V7),CSVデータ3!V7,0)+IF(ISNUMBER(CSVデータ4!V7),CSVデータ4!V7,0) -> 566 | X7: =IF(ISNUMBER(CSVデータ1!X7),CSVデータ1!X7,0)+IF(ISNUMBER(CSVデータ2!X7),CSVデータ2!X7,0)+IF(ISNUMBER(CSVデータ3!X7),CSVデータ3!X7,0)+IF(ISNUMBER(CSVデータ4!X7),CSVデータ4!X7,0) -> 463 | Z7: =IF(ISNUMBER(CSVデータ1!Z7),CSVデータ1!Z7,0)+IF(ISNUMBER(CSVデータ2!Z7),CSVデータ2!Z7,0)+IF(ISNUMBER(CSVデータ3!Z7),CSVデータ3!Z7,0)+IF(ISNUMBER(CSVデータ4!Z7),CSVデータ4!Z7,0) -> 1091 | AB7: =IF(ISNUMBER(CSVデータ1!AB7),CSVデータ1!AB7,0)+IF(ISNUMBER(CSVデータ2!AB7),CSVデータ2!AB7,0)+IF(ISNUMBER(CSVデータ3!AB7),CSVデータ3!AB7,0)+IF(ISNUMBER(CSVデータ4!AB7),CSVデータ4!AB7,0) -> 6 | AD7: =IF(ISNUMBER(CSVデータ1!AD7),CSVデータ1!AD7,0)+IF(ISNUMBER(CSVデータ2!AD7),CSVデータ2!AD7,0)+IF(ISNUMBER(CSVデータ3!AD7),CSVデータ3!AD7,0)+IF(ISNUMBER(CSVデータ4!AD7),CSVデータ4!AD7,0) -> 279 | AF7: =IF(ISNUMBER(CSVデータ1!AF7),CSVデータ1!AF7,0)+IF(ISNUMBER(CSVデータ2!AF7),CSVデータ2!AF7,0)+IF(ISNUMBER(CSVデータ3!AF7),CSVデータ3!AF7,0)+IF(ISNUMBER(CSVデータ4!AF7),CSVデータ4!AF7,0) -> 399 | AH7: =IF(ISNUMBER(CSVデータ1!AH7),CSVデータ1!AH7,0)+IF(ISNUMBER(CSVデータ2!AH7),CSVデータ2!AH7,0)+IF(ISNUMBER(CSVデータ3!AH7),CSVデータ3!AH7,0)+IF(ISNUMBER(CSVデータ4!AH7),CSVデータ4!AH7,0) -> 34 | AJ7: =IF(ISNUMBER(CSVデータ1!AJ7),CSVデータ1!AJ7,0)+IF(ISNUMBER(CSVデータ2!AJ7),CSVデータ2!AJ7,0)+IF(ISNUMBER(CSVデータ3!AJ7),CSVデータ3!AJ7,0)+IF(ISNUMBER(CSVデータ4!AJ7),CSVデータ4!AJ7,0) -> 173 | AL7: =IF(ISNUMBER(CSVデータ1!AL7),CSVデータ1!AL7,0)+IF(ISNUMBER(CSVデータ2!AL7),CSVデータ2!AL7,0)+IF(ISNUMBER(CSVデータ3!AL7),CSVデータ3!AL7,0)+IF(ISNUMBER(CSVデータ4!AL7),CSVデータ4!AL7,0) -> 49 | AN7: =IF(ISNUMBER(CSVデータ1!AN7),CSVデータ1!AN7,0)+IF(ISNUMBER(CSVデータ2!AN7),CSVデータ2!AN7,0)+IF(ISNUMBER(CSVデータ3!AN7),CSVデータ3!AN7,0)+IF(ISNUMBER(CSVデータ4!AN7),CSVデータ4!AN7,0) -> 123
A8: =CSVデータ1!A8 -> 明細部 | B8: =CSVデータ1!B8 -> 国 | C8: =CSVデータ1!C8 -> 44 | D8: =CSVデータ1!D8 -> 男 | E8: =IF(ISNUMBER(CSVデータ1!E8),CSVデータ1!E8,0)+IF(ISNUMBER(CSVデータ2!E8),CSVデータ2!E8,0)+IF(ISNUMBER(CSVデータ3!E8),CSVデータ3!E8,0)+IF(ISNUMBER(CSVデータ4!E8),CSVデータ4!E8,0) -> 2229 | F8: =IF(ISNUMBER(CSVデータ1!F8),CSVデータ1!F8,0)+IF(ISNUMBER(CSVデータ2!F8),CSVデータ2!F8,0)+IF(ISNUMBER(CSVデータ3!F8),CSVデータ3!F8,0)+IF(ISNUMBER(CSVデータ4!F8),CSVデータ4!F8,0) -> 817 | H8: =IF(ISNUMBER(CSVデータ1!H8),CSVデータ1!H8,0)+IF(ISNUMBER(CSVデータ2!H8),CSVデータ2!H8,0)+IF(ISNUMBER(CSVデータ3!H8),CSVデータ3!H8,0)+IF(ISNUMBER(CSVデータ4!H8),CSVデータ4!H8,0) -> 1063 | J8: =IF(ISNUMBER(CSVデータ1!J8),CSVデータ1!J8,0)+IF(ISNUMBER(CSVデータ2!J8),CSVデータ2!J8,0)+IF(ISNUMBER(CSVデータ3!J8),CSVデータ3!J8,0)+IF(ISNUMBER(CSVデータ4!J8),CSVデータ4!J8,0) -> 510 | L8: =IF(ISNUMBER(CSVデータ1!L8),CSVデータ1!L8,0)+IF(ISNUMBER(CSVデータ2!L8),CSVデータ2!L8,0)+IF(ISNUMBER(CSVデータ3!L8),CSVデータ3!L8,0)+IF(ISNUMBER(CSVデータ4!L8),CSVデータ4!L8,0) -> 751 | N8: =IF(ISNUMBER(CSVデータ1!N8),CSVデータ1!N8,0)+IF(ISNUMBER(CSVデータ2!N8),CSVデータ2!N8,0)+IF(ISNUMBER(CSVデータ3!N8),CSVデータ3!N8,0)+IF(ISNUMBER(CSVデータ4!N8),CSVデータ4!N8,0) -> 173 | P8: =IF(ISNUMBER(CSVデータ1!P8),CSVデータ1!P8,0)+IF(ISNUMBER(CSVデータ2!P8),CSVデータ2!P8,0)+IF(ISNUMBER(CSVデータ3!P8),CSVデータ3!P8,0)+IF(ISNUMBER(CSVデータ4!P8),CSVデータ4!P8,0) -> 400 | R8: =IF(ISNUMBER(CSVデータ1!R8),CSVデータ1!R8,0)+IF(ISNUMBER(CSVデータ2!R8),CSVデータ2!R8,0)+IF(ISNUMBER(CSVデータ3!R8),CSVデータ3!R8,0)+IF(ISNUMBER(CSVデータ4!R8),CSVデータ4!R8,0) -> 771 | T8: =IF(ISNUMBER(CSVデータ1!T8),CSVデータ1!T8,0)+IF(ISNUMBER(CSVデータ2!T8),CSVデータ2!T8,0)+IF(ISNUMBER(CSVデータ3!T8),CSVデータ3!T8,0)+IF(ISNUMBER(CSVデータ4!T8),CSVデータ4!T8,0) -> 340 | V8: =IF(ISNUMBER(CSVデータ1!V8),CSVデータ1!V8,0)+IF(ISNUMBER(CSVデータ2!V8),CSVデータ2!V8,0)+IF(ISNUMBER(CSVデータ3!V8),CSVデータ3!V8,0)+IF(ISNUMBER(CSVデータ4!V8),CSVデータ4!V8,0) -> 593 | X8: =IF(ISNUMBER(CSVデータ1!X8),CSVデータ1!X8,0)+IF(ISNUMBER(CSVデータ2!X8),CSVデータ2!X8,0)+IF(ISNUMBER(CSVデータ3!X8),CSVデータ3!X8,0)+IF(ISNUMBER(CSVデータ4!X8),CSVデータ4!X8,0) -> 504 | Z8: =IF(ISNUMBER(CSVデータ1!Z8),CSVデータ1!Z8,0)+IF(ISNUMBER(CSVデータ2!Z8),CSVデータ2!Z8,0)+IF(ISNUMBER(CSVデータ3!Z8),CSVデータ3!Z8,0)+IF(ISNUMBER(CSVデータ4!Z8),CSVデータ4!Z8,0) -> 1197 | AB8: =IF(ISNUMBER(CSVデータ1!AB8),CSVデータ1!AB8,0)+IF(ISNUMBER(CSVデータ2!AB8),CSVデータ2!AB8,0)+IF(ISNUMBER(CSVデータ3!AB8),CSVデータ3!AB8,0)+IF(ISNUMBER(CSVデータ4!AB8),CSVデータ4!AB8,0) -> 6 | AD8: =IF(ISNUMBER(CSVデータ1!AD8),CSVデータ1!AD8,0)+IF(ISNUMBER(CSVデータ2!AD8),CSVデータ2!AD8,0)+IF(ISNUMBER(CSVデータ3!AD8),CSVデータ3!AD8,0)+IF(ISNUMBER(CSVデータ4!AD8),CSVデータ4!AD8,0) -> 331 | AF8: =IF(ISNUMBER(CSVデータ1!AF8),CSVデータ1!AF8,0)+IF(ISNUMBER(CSVデータ2!AF8),CSVデータ2!AF8,0)+IF(ISNUMBER(CSVデータ3!AF8),CSVデータ3!AF8,0)+IF(ISNUMBER(CSVデータ4!AF8),CSVデータ4!AF8,0) -> 460 | AH8: =IF(ISNUMBER(CSVデータ1!AH8),CSVデータ1!AH8,0)+IF(ISNUMBER(CSVデータ2!AH8),CSVデータ2!AH8,0)+IF(ISNUMBER(CSVデータ3!AH8),CSVデータ3!AH8,0)+IF(ISNUMBER(CSVデータ4!AH8),CSVデータ4!AH8,0) -> 26 | AJ8: =IF(ISNUMBER(CSVデータ1!AJ8),CSVデータ1!AJ8,0)+IF(ISNUMBER(CSVデータ2!AJ8),CSVデータ2!AJ8,0)+IF(ISNUMBER(CSVデータ3!AJ8),CSVデータ3!AJ8,0)+IF(ISNUMBER(CSVデータ4!AJ8),CSVデータ4!AJ8,0) -> 206 | AL8: =IF(ISNUMBER(CSVデータ1!AL8),CSVデータ1!AL8,0)+IF(ISNUMBER(CSVデータ2!AL8),CSVデータ2!AL8,0)+IF(ISNUMBER(CSVデータ3!AL8),CSVデータ3!AL8,0)+IF(ISNUMBER(CSVデータ4!AL8),CSVデータ4!AL8,0) -> 55 | AN8: =IF(ISNUMBER(CSVデータ1!AN8),CSVデータ1!AN8,0)+IF(ISNUMBER(CSVデータ2!AN8),CSVデータ2!AN8,0)+IF(ISNUMBER(CSVデータ3!AN8),CSVデータ3!AN8,0)+IF(ISNUMBER(CSVデータ4!AN8),CSVデータ4!AN8,0) -> 104
A9: =CSVデータ1!A9 -> 明細部 | B9: =CSVデータ1!B9 -> 国 | C9: =CSVデータ1!C9 -> 45 | D9: =CSVデータ1!D9 -> 男 | E9: =IF(ISNUMBER(CSVデータ1!E9),CSVデータ1!E9,0)+IF(ISNUMBER(CSVデータ2!E9),CSVデータ2!E9,0)+IF(ISNUMBER(CSVデータ3!E9),CSVデータ3!E9,0)+IF(ISNUMBER(CSVデータ4!E9),CSVデータ4!E9,0) -> 2420 | F9: =IF(ISNUMBER(CSVデータ1!F9),CSVデータ1!F9,0)+IF(ISNUMBER(CSVデータ2!F9),CSVデータ2!F9,0)+IF(ISNUMBER(CSVデータ3!F9),CSVデータ3!F9,0)+IF(ISNUMBER(CSVデータ4!F9),CSVデータ4!F9,0) -> 878 | H9: =IF(ISNUMBER(CSVデータ1!H9),CSVデータ1!H9,0)+IF(ISNUMBER(CSVデータ2!H9),CSVデータ2!H9,0)+IF(ISNUMBER(CSVデータ3!H9),CSVデータ3!H9,0)+IF(ISNUMBER(CSVデータ4!H9),CSVデータ4!H9,0) -> 1133 | J9: =IF(ISNUMBER(CSVデータ1!J9),CSVデータ1!J9,0)+IF(ISNUMBER(CSVデータ2!J9),CSVデータ2!J9,0)+IF(ISNUMBER(CSVデータ3!J9),CSVデータ3!J9,0)+IF(ISNUMBER(CSVデータ4!J9),CSVデータ4!J9,0) -> 518 | L9: =IF(ISNUMBER(CSVデータ1!L9),CSVデータ1!L9,0)+IF(ISNUMBER(CSVデータ2!L9),CSVデータ2!L9,0)+IF(ISNUMBER(CSVデータ3!L9),CSVデータ3!L9,0)+IF(ISNUMBER(CSVデータ4!L9),CSVデータ4!L9,0) -> 819 | N9: =IF(ISNUMBER(CSVデータ1!N9),CSVデータ1!N9,0)+IF(ISNUMBER(CSVデータ2!N9),CSVデータ2!N9,0)+IF(ISNUMBER(CSVデータ3!N9),CSVデータ3!N9,0)+IF(ISNUMBER(CSVデータ4!N9),CSVデータ4!N9,0) -> 182 | P9: =IF(ISNUMBER(CSVデータ1!P9),CSVデータ1!P9,0)+IF(ISNUMBER(CSVデータ2!P9),CSVデータ2!P9,0)+IF(ISNUMBER(CSVデータ3!P9),CSVデータ3!P9,0)+IF(ISNUMBER(CSVデータ4!P9),CSVデータ4!P9,0) -> 447 | R9: =IF(ISNUMBER(CSVデータ1!R9),CSVデータ1!R9,0)+IF(ISNUMBER(CSVデータ2!R9),CSVデータ2!R9,0)+IF(ISNUMBER(CSVデータ3!R9),CSVデータ3!R9,0)+IF(ISNUMBER(CSVデータ4!R9),CSVデータ4!R9,0) -> 893 | T9: =IF(ISNUMBER(CSVデータ1!T9),CSVデータ1!T9,0)+IF(ISNUMBER(CSVデータ2!T9),CSVデータ2!T9,0)+IF(ISNUMBER(CSVデータ3!T9),CSVデータ3!T9,0)+IF(ISNUMBER(CSVデータ4!T9),CSVデータ4!T9,0) -> 352 | V9: =IF(ISNUMBER(CSVデータ1!V9),CSVデータ1!V9,0)+IF(ISNUMBER(CSVデータ2!V9),CSVデータ2!V9,0)+IF(ISNUMBER(CSVデータ3!V9),CSVデータ3!V9,0)+IF(ISNUMBER(CSVデータ4!V9),CSVデータ4!V9,0) -> 698 | X9: =IF(ISNUMBER(CSVデータ1!X9),CSVデータ1!X9,0)+IF(ISNUMBER(CSVデータ2!X9),CSVデータ2!X9,0)+IF(ISNUMBER(CSVデータ3!X9),CSVデータ3!X9,0)+IF(ISNUMBER(CSVデータ4!X9),CSVデータ4!X9,0) -> 612 | Z9: =IF(ISNUMBER(CSVデータ1!Z9),CSVデータ1!Z9,0)+IF(ISNUMBER(CSVデータ2!Z9),CSVデータ2!Z9,0)+IF(ISNUMBER(CSVデータ3!Z9),CSVデータ3!Z9,0)+IF(ISNUMBER(CSVデータ4!Z9),CSVデータ4!Z9,0) -> 1276 | AB9: =IF(ISNUMBER(CSVデータ1!AB9),CSVデータ1!AB9,0)+IF(ISNUMBER(CSVデータ2!AB9),CSVデータ2!AB9,0)+IF(ISNUMBER(CSVデータ3!AB9),CSVデータ3!AB9,0)+IF(ISNUMBER(CSVデータ4!AB9),CSVデータ4!AB9,0) -> 7 | AD9: =IF(ISNUMBER(CSVデータ1!AD9),CSVデータ1!AD9,0)+IF(ISNUMBER(CSVデータ2!AD9),CSVデータ2!AD9,0)+IF(ISNUMBER(CSVデータ3!AD9),CSVデータ3!AD9,0)+IF(ISNUMBER(CSVデータ4!AD9),CSVデータ4!AD9,0) -> 325 | AF9: =IF(ISNUMBER(CSVデータ1!AF9),CSVデータ1!AF9,0)+IF(ISNUMBER(CSVデータ2!AF9),CSVデータ2!AF9,0)+IF(ISNUMBER(CSVデータ3!AF9),CSVデータ3!AF9,0)+IF(ISNUMBER(CSVデータ4!AF9),CSVデータ4!AF9,0) -> 536 | AH9: =IF(ISNUMBER(CSVデータ1!AH9),CSVデータ1!AH9,0)+IF(ISNUMBER(CSVデータ2!AH9),CSVデータ2!AH9,0)+IF(ISNUMBER(CSVデータ3!AH9),CSVデータ3!AH9,0)+IF(ISNUMBER(CSVデータ4!AH9),CSVデータ4!AH9,0) -> 36 | AJ9: =IF(ISNUMBER(CSVデータ1!AJ9),CSVデータ1!AJ9,0)+IF(ISNUMBER(CSVデータ2!AJ9),CSVデータ2!AJ9,0)+IF(ISNUMBER(CSVデータ3!AJ9),CSVデータ3!AJ9,0)+IF(ISNUMBER(CSVデータ4!AJ9),CSVデータ4!AJ9,0) -> 211 | AL9: =IF(ISNUMBER(CSVデータ1!AL9),CSVデータ1!AL9,0)+IF(ISNUMBER(CSVデータ2!AL9),CSVデータ2!AL9,0)+IF(ISNUMBER(CSVデータ3!AL9),CSVデータ3!AL9,0)+IF(ISNUMBER(CSVデータ4!AL9),CSVデータ4!AL9,0) -> 80 | AN9: =IF(ISNUMBER(CSVデータ1!AN9),CSVデータ1!AN9,0)+IF(ISNUMBER(CSVデータ2!AN9),CSVデータ2!AN9,0)+IF(ISNUMBER(CSVデータ3!AN9),CSVデータ3!AN9,0)+IF(ISNUMBER(CSVデータ4!AN9),CSVデータ4!AN9,0) -> 119
A10: =CSVデータ1!A10 -> 明細部 | B10: =CSVデータ1!B10 -> 国 | C10: =CSVデータ1!C10 -> 46 | D10: =CSVデータ1!D10 -> 男 | E10: =IF(ISNUMBER(CSVデータ1!E10),CSVデータ1!E10,0)+IF(ISNUMBER(CSVデータ2!E10),CSVデータ2!E10,0)+IF(ISNUMBER(CSVデータ3!E10),CSVデータ3!E10,0)+IF(ISNUMBER(CSVデータ4!E10),CSVデータ4!E10,0) -> 2490 | F10: =IF(ISNUMBER(CSVデータ1!F10),CSVデータ1!F10,0)+IF(ISNUMBER(CSVデータ2!F10),CSVデータ2!F10,0)+IF(ISNUMBER(CSVデータ3!F10),CSVデータ3!F10,0)+IF(ISNUMBER(CSVデータ4!F10),CSVデータ4!F10,0) -> 947 | H10: =IF(ISNUMBER(CSVデータ1!H10),CSVデータ1!H10,0)+IF(ISNUMBER(CSVデータ2!H10),CSVデータ2!H10,0)+IF(ISNUMBER(CSVデータ3!H10),CSVデータ3!H10,0)+IF(ISNUMBER(CSVデータ4!H10),CSVデータ4!H10,0) -> 1212 | J10: =IF(ISNUMBER(CSVデータ1!J10),CSVデータ1!J10,0)+IF(ISNUMBER(CSVデータ2!J10),CSVデータ2!J10,0)+IF(ISNUMBER(CSVデータ3!J10),CSVデータ3!J10,0)+IF(ISNUMBER(CSVデータ4!J10),CSVデータ4!J10,0) -> 542 | L10: =IF(ISNUMBER(CSVデータ1!L10),CSVデータ1!L10,0)+IF(ISNUMBER(CSVデータ2!L10),CSVデータ2!L10,0)+IF(ISNUMBER(CSVデータ3!L10),CSVデータ3!L10,0)+IF(ISNUMBER(CSVデータ4!L10),CSVデータ4!L10,0) -> 809 | N10: =IF(ISNUMBER(CSVデータ1!N10),CSVデータ1!N10,0)+IF(ISNUMBER(CSVデータ2!N10),CSVデータ2!N10,0)+IF(ISNUMBER(CSVデータ3!N10),CSVデータ3!N10,0)+IF(ISNUMBER(CSVデータ4!N10),CSVデータ4!N10,0) -> 176 | P10: =IF(ISNUMBER(CSVデータ1!P10),CSVデータ1!P10,0)+IF(ISNUMBER(CSVデータ2!P10),CSVデータ2!P10,0)+IF(ISNUMBER(CSVデータ3!P10),CSVデータ3!P10,0)+IF(ISNUMBER(CSVデータ4!P10),CSVデータ4!P10,0) -> 479 | R10: =IF(ISNUMBER(CSVデータ1!R10),CSVデータ1!R10,0)+IF(ISNUMBER(CSVデータ2!R10),CSVデータ2!R10,0)+IF(ISNUMBER(CSVデータ3!R10),CSVデータ3!R10,0)+IF(ISNUMBER(CSVデータ4!R10),CSVデータ4!R10,0) -> 905 | T10: =IF(ISNUMBER(CSVデータ1!T10),CSVデータ1!T10,0)+IF(ISNUMBER(CSVデータ2!T10),CSVデータ2!T10,0)+IF(ISNUMBER(CSVデータ3!T10),CSVデータ3!T10,0)+IF(ISNUMBER(CSVデータ4!T10),CSVデータ4!T10,0) -> 362 | V10: =IF(ISNUMBER(CSVデータ1!V10),CSVデータ1!V10,0)+IF(ISNUMBER(CSVデータ2!V10),CSVデータ2!V10,0)+IF(ISNUMBER(CSVデータ3!V10),CSVデータ3!V10,0)+IF(ISNUMBER(CSVデータ4!V10),CSVデータ4!V10,0) -> 713 | X10: =IF(ISNUMBER(CSVデータ1!X10),CSVデータ1!X10,0)+IF(ISNUMBER(CSVデータ2!X10),CSVデータ2!X10,0)+IF(ISNUMBER(CSVデータ3!X10),CSVデータ3!X10,0)+IF(ISNUMBER(CSVデータ4!X10),CSVデータ4!X10,0) -> 651 | Z10: =IF(ISNUMBER(CSVデータ1!Z10),CSVデータ1!Z10,0)+IF(ISNUMBER(CSVデータ2!Z10),CSVデータ2!Z10,0)+IF(ISNUMBER(CSVデータ3!Z10),CSVデータ3!Z10,0)+IF(ISNUMBER(CSVデータ4!Z10),CSVデータ4!Z10,0) -> 1343 | AB10: =IF(ISNUMBER(CSVデータ1!AB10),CSVデータ1!AB10,0)+IF(ISNUMBER(CSVデータ2!AB10),CSVデータ2!AB10,0)+IF(ISNUMBER(CSVデータ3!AB10),CSVデータ3!AB10,0)+IF(ISNUMBER(CSVデータ4!AB10),CSVデータ4!AB10,0) -> 6 | AD10: =IF(ISNUMBER(CSVデータ1!AD10),CSVデータ1!AD10,0)+IF(ISNUMBER(CSVデータ2!AD10),CSVデータ2!AD10,0)+IF(ISNUMBER(CSVデータ3!AD10),CSVデータ3!AD10,0)+IF(ISNUMBER(CSVデータ4!AD10),CSVデータ4!AD10,0) -> 333 | AF10: =IF(ISNUMBER(CSVデータ1!AF10),CSVデータ1!AF10,0)+IF(ISNUMBER(CSVデータ2!AF10),CSVデータ2!AF10,0)+IF(ISNUMBER(CSVデータ3!AF10),CSVデータ3!AF10,0)+IF(ISNUMBER(CSVデータ4!AF10),CSVデータ4!AF10,0) -> 520 | AH10: =IF(ISNUMBER(CSVデータ1!AH10),CSVデータ1!AH10,0)+IF(ISNUMBER(CSVデータ2!AH10),CSVデータ2!AH10,0)+IF(ISNUMBER(CSVデータ3!AH10),CSVデータ3!AH10,0)+IF(ISNUMBER(CSVデータ4!AH10),CSVデータ4!AH10,0) -> 33 | AJ10: =IF(ISNUMBER(CSVデータ1!AJ10),CSVデータ1!AJ10,0)+IF(ISNUMBER(CSVデータ2!AJ10),CSVデータ2!AJ10,0)+IF(ISNUMBER(CSVデータ3!AJ10),CSVデータ3!AJ10,0)+IF(ISNUMBER(CSVデータ4!AJ10),CSVデータ4!AJ10,0) -> 217 | AL10: =IF(ISNUMBER(CSVデータ1!AL10),CSVデータ1!AL10,0)+IF(ISNUMBER(CSVデータ2!AL10),CSVデータ2!AL10,0)+IF(ISNUMBER(CSVデータ3!AL10),CSVデータ3!AL10,0)+IF(ISNUMBER(CSVデータ4!AL10),CSVデータ4!AL10,0) -> 92 | AN10: =IF(ISNUMBER(CSVデータ1!AN10),CSVデータ1!AN10,0)+IF(ISNUMBER(CSVデータ2!AN10),CSVデータ2!AN10,0)+IF(ISNUMBER(CSVデータ3!AN10),CSVデータ3!AN10,0)+IF(ISNUMBER(CSVデータ4!AN10),CSVデータ4!AN10,0) -> 131
A11: =CSVデータ1!A11 -> 明細部 | B11: =CSVデータ1!B11 -> 国 | C11: =CSVデータ1!C11 -> 47 | D11: =CSVデータ1!D11 -> 男 | E11: =IF(ISNUMBER(CSVデータ1!E11),CSVデータ1!E11,0)+IF(ISNUMBER(CSVデータ2!E11),CSVデータ2!E11,0)+IF(ISNUMBER(CSVデータ3!E11),CSVデータ3!E11,0)+IF(ISNUMBER(CSVデータ4!E11),CSVデータ4!E11,0) -> 2623 | F11: =IF(ISNUMBER(CSVデータ1!F11),CSVデータ1!F11,0)+IF(ISNUMBER(CSVデータ2!F11),CSVデータ2!F11,0)+IF(ISNUMBER(CSVデータ3!F11),CSVデータ3!F11,0)+IF(ISNUMBER(CSVデータ4!F11),CSVデータ4!F11,0) -> 1026 | H11: =IF(ISNUMBER(CSVデータ1!H11),CSVデータ1!H11,0)+IF(ISNUMBER(CSVデータ2!H11),CSVデータ2!H11,0)+IF(ISNUMBER(CSVデータ3!H11),CSVデータ3!H11,0)+IF(ISNUMBER(CSVデータ4!H11),CSVデータ4!H11,0) -> 1322 | J11: =IF(ISNUMBER(CSVデータ1!J11),CSVデータ1!J11,0)+IF(ISNUMBER(CSVデータ2!J11),CSVデータ2!J11,0)+IF(ISNUMBER(CSVデータ3!J11),CSVデータ3!J11,0)+IF(ISNUMBER(CSVデータ4!J11),CSVデータ4!J11,0) -> 583 | L11: =IF(ISNUMBER(CSVデータ1!L11),CSVデータ1!L11,0)+IF(ISNUMBER(CSVデータ2!L11),CSVデータ2!L11,0)+IF(ISNUMBER(CSVデータ3!L11),CSVデータ3!L11,0)+IF(ISNUMBER(CSVデータ4!L11),CSVデータ4!L11,0) -> 891 | N11: =IF(ISNUMBER(CSVデータ1!N11),CSVデータ1!N11,0)+IF(ISNUMBER(CSVデータ2!N11),CSVデータ2!N11,0)+IF(ISNUMBER(CSVデータ3!N11),CSVデータ3!N11,0)+IF(ISNUMBER(CSVデータ4!N11),CSVデータ4!N11,0) -> 200 | P11: =IF(ISNUMBER(CSVデータ1!P11),CSVデータ1!P11,0)+IF(ISNUMBER(CSVデータ2!P11),CSVデータ2!P11,0)+IF(ISNUMBER(CSVデータ3!P11),CSVデータ3!P11,0)+IF(ISNUMBER(CSVデータ4!P11),CSVデータ4!P11,0) -> 507 | R11: =IF(ISNUMBER(CSVデータ1!R11),CSVデータ1!R11,0)+IF(ISNUMBER(CSVデータ2!R11),CSVデータ2!R11,0)+IF(ISNUMBER(CSVデータ3!R11),CSVデータ3!R11,0)+IF(ISNUMBER(CSVデータ4!R11),CSVデータ4!R11,0) -> 1049 | T11: =IF(ISNUMBER(CSVデータ1!T11),CSVデータ1!T11,0)+IF(ISNUMBER(CSVデータ2!T11),CSVデータ2!T11,0)+IF(ISNUMBER(CSVデータ3!T11),CSVデータ3!T11,0)+IF(ISNUMBER(CSVデータ4!T11),CSVデータ4!T11,0) -> 403 | V11: =IF(ISNUMBER(CSVデータ1!V11),CSVデータ1!V11,0)+IF(ISNUMBER(CSVデータ2!V11),CSVデータ2!V11,0)+IF(ISNUMBER(CSVデータ3!V11),CSVデータ3!V11,0)+IF(ISNUMBER(CSVデータ4!V11),CSVデータ4!V11,0) -> 790 | X11: =IF(ISNUMBER(CSVデータ1!X11),CSVデータ1!X11,0)+IF(ISNUMBER(CSVデータ2!X11),CSVデータ2!X11,0)+IF(ISNUMBER(CSVデータ3!X11),CSVデータ3!X11,0)+IF(ISNUMBER(CSVデータ4!X11),CSVデータ4!X11,0) -> 708 | Z11: =IF(ISNUMBER(CSVデータ1!Z11),CSVデータ1!Z11,0)+IF(ISNUMBER(CSVデータ2!Z11),CSVデータ2!Z11,0)+IF(ISNUMBER(CSVデータ3!Z11),CSVデータ3!Z11,0)+IF(ISNUMBER(CSVデータ4!Z11),CSVデータ4!Z11,0) -> 1459 | AB11: =IF(ISNUMBER(CSVデータ1!AB11),CSVデータ1!AB11,0)+IF(ISNUMBER(CSVデータ2!AB11),CSVデータ2!AB11,0)+IF(ISNUMBER(CSVデータ3!AB11),CSVデータ3!AB11,0)+IF(ISNUMBER(CSVデータ4!AB11),CSVデータ4!AB11,0) -> 9 | AD11: =IF(ISNUMBER(CSVデータ1!AD11),CSVデータ1!AD11,0)+IF(ISNUMBER(CSVデータ2!AD11),CSVデータ2!AD11,0)+IF(ISNUMBER(CSVデータ3!AD11),CSVデータ3!AD11,0)+IF(ISNUMBER(CSVデータ4!AD11),CSVデータ4!AD11,0) -> 353 | AF11: =IF(ISNUMBER(CSVデータ1!AF11),CSVデータ1!AF11,0)+IF(ISNUMBER(CSVデータ2!AF11),CSVデータ2!AF11,0)+IF(ISNUMBER(CSVデータ3!AF11),CSVデータ3!AF11,0)+IF(ISNUMBER(CSVデータ4!AF11),CSVデータ4!AF11,0) -> 576 | AH11: =IF(ISNUMBER(CSVデータ1!AH11),CSVデータ1!AH11,0)+IF(ISNUMBER(CSVデータ2!AH11),CSVデータ2!AH11,0)+IF(ISNUMBER(CSVデータ3!AH11),CSVデータ3!AH11,0)+IF(ISNUMBER(CSVデータ4!AH11),CSVデータ4!AH11,0) -> 48 | AJ11: =IF(ISNUMBER(CSVデータ1!AJ11),CSVデータ1!AJ11,0)+IF(ISNUMBER(CSVデータ2!AJ11),CSVデータ2!AJ11,0)+IF(ISNUMBER(CSVデータ3!AJ11),CSVデータ3!AJ11,0)+IF(ISNUMBER(CSVデータ4!AJ11),CSVデータ4!AJ11,0) -> 246 | AL11: =IF(ISNUMBER(CSVデータ1!AL11),CSVデータ1!AL11,0)+IF(ISNUMBER(CSVデータ2!AL11),CSVデータ2!AL11,0)+IF(ISNUMBER(CSVデータ3!AL11),CSVデータ3!AL11,0)+IF(ISNUMBER(CSVデータ4!AL11),CSVデータ4!AL11,0) -> 107 | AN11: =IF(ISNUMBER(CSVデータ1!AN11),CSVデータ1!AN11,0)+IF(ISNUMBER(CSVデータ2!AN11),CSVデータ2!AN11,0)+IF(ISNUMBER(CSVデータ3!AN11),CSVデータ3!AN11,0)+IF(ISNUMBER(CSVデータ4!AN11),CSVデータ4!AN11,0) -> 172
A12: =CSVデータ1!A12 -> 明細部 | B12: =CSVデータ1!B12 -> 国 | C12: =CSVデータ1!C12 -> 48 | D12: =CSVデータ1!D12 -> 男 | E12: =IF(ISNUMBER(CSVデータ1!E12),CSVデータ1!E12,0)+IF(ISNUMBER(CSVデータ2!E12),CSVデータ2!E12,0)+IF(ISNUMBER(CSVデータ3!E12),CSVデータ3!E12,0)+IF(ISNUMBER(CSVデータ4!E12),CSVデータ4!E12,0) -> 2703 | F12: =IF(ISNUMBER(CSVデータ1!F12),CSVデータ1!F12,0)+IF(ISNUMBER(CSVデータ2!F12),CSVデータ2!F12,0)+IF(ISNUMBER(CSVデータ3!F12),CSVデータ3!F12,0)+IF(ISNUMBER(CSVデータ4!F12),CSVデータ4!F12,0) -> 1080 | H12: =IF(ISNUMBER(CSVデータ1!H12),CSVデータ1!H12,0)+IF(ISNUMBER(CSVデータ2!H12),CSVデータ2!H12,0)+IF(ISNUMBER(CSVデータ3!H12),CSVデータ3!H12,0)+IF(ISNUMBER(CSVデータ4!H12),CSVデータ4!H12,0) -> 1371 | J12: =IF(ISNUMBER(CSVデータ1!J12),CSVデータ1!J12,0)+IF(ISNUMBER(CSVデータ2!J12),CSVデータ2!J12,0)+IF(ISNUMBER(CSVデータ3!J12),CSVデータ3!J12,0)+IF(ISNUMBER(CSVデータ4!J12),CSVデータ4!J12,0) -> 680 | L12: =IF(ISNUMBER(CSVデータ1!L12),CSVデータ1!L12,0)+IF(ISNUMBER(CSVデータ2!L12),CSVデータ2!L12,0)+IF(ISNUMBER(CSVデータ3!L12),CSVデータ3!L12,0)+IF(ISNUMBER(CSVデータ4!L12),CSVデータ4!L12,0) -> 861 | N12: =IF(ISNUMBER(CSVデータ1!N12),CSVデータ1!N12,0)+IF(ISNUMBER(CSVデータ2!N12),CSVデータ2!N12,0)+IF(ISNUMBER(CSVデータ3!N12),CSVデータ3!N12,0)+IF(ISNUMBER(CSVデータ4!N12),CSVデータ4!N12,0) -> 201 | P12: =IF(ISNUMBER(CSVデータ1!P12),CSVデータ1!P12,0)+IF(ISNUMBER(CSVデータ2!P12),CSVデータ2!P12,0)+IF(ISNUMBER(CSVデータ3!P12),CSVデータ3!P12,0)+IF(ISNUMBER(CSVデータ4!P12),CSVデータ4!P12,0) -> 572 | R12: =IF(ISNUMBER(CSVデータ1!R12),CSVデータ1!R12,0)+IF(ISNUMBER(CSVデータ2!R12),CSVデータ2!R12,0)+IF(ISNUMBER(CSVデータ3!R12),CSVデータ3!R12,0)+IF(ISNUMBER(CSVデータ4!R12),CSVデータ4!R12,0) -> 1131 | T12: =IF(ISNUMBER(CSVデータ1!T12),CSVデータ1!T12,0)+IF(ISNUMBER(CSVデータ2!T12),CSVデータ2!T12,0)+IF(ISNUMBER(CSVデータ3!T12),CSVデータ3!T12,0)+IF(ISNUMBER(CSVデータ4!T12),CSVデータ4!T12,0) -> 410 | V12: =IF(ISNUMBER(CSVデータ1!V12),CSVデータ1!V12,0)+IF(ISNUMBER(CSVデータ2!V12),CSVデータ2!V12,0)+IF(ISNUMBER(CSVデータ3!V12),CSVデータ3!V12,0)+IF(ISNUMBER(CSVデータ4!V12),CSVデータ4!V12,0) -> 878 | X12: =IF(ISNUMBER(CSVデータ1!X12),CSVデータ1!X12,0)+IF(ISNUMBER(CSVデータ2!X12),CSVデータ2!X12,0)+IF(ISNUMBER(CSVデータ3!X12),CSVデータ3!X12,0)+IF(ISNUMBER(CSVデータ4!X12),CSVデータ4!X12,0) -> 821 | Z12: =IF(ISNUMBER(CSVデータ1!Z12),CSVデータ1!Z12,0)+IF(ISNUMBER(CSVデータ2!Z12),CSVデータ2!Z12,0)+IF(ISNUMBER(CSVデータ3!Z12),CSVデータ3!Z12,0)+IF(ISNUMBER(CSVデータ4!Z12),CSVデータ4!Z12,0) -> 1455 | AB12: =IF(ISNUMBER(CSVデータ1!AB12),CSVデータ1!AB12,0)+IF(ISNUMBER(CSVデータ2!AB12),CSVデータ2!AB12,0)+IF(ISNUMBER(CSVデータ3!AB12),CSVデータ3!AB12,0)+IF(ISNUMBER(CSVデータ4!AB12),CSVデータ4!AB12,0) -> 13 | AD12: =IF(ISNUMBER(CSVデータ1!AD12),CSVデータ1!AD12,0)+IF(ISNUMBER(CSVデータ2!AD12),CSVデータ2!AD12,0)+IF(ISNUMBER(CSVデータ3!AD12),CSVデータ3!AD12,0)+IF(ISNUMBER(CSVデータ4!AD12),CSVデータ4!AD12,0) -> 382 | AF12: =IF(ISNUMBER(CSVデータ1!AF12),CSVデータ1!AF12,0)+IF(ISNUMBER(CSVデータ2!AF12),CSVデータ2!AF12,0)+IF(ISNUMBER(CSVデータ3!AF12),CSVデータ3!AF12,0)+IF(ISNUMBER(CSVデータ4!AF12),CSVデータ4!AF12,0) -> 563 | AH12: =IF(ISNUMBER(CSVデータ1!AH12),CSVデータ1!AH12,0)+IF(ISNUMBER(CSVデータ2!AH12),CSVデータ2!AH12,0)+IF(ISNUMBER(CSVデータ3!AH12),CSVデータ3!AH12,0)+IF(ISNUMBER(CSVデータ4!AH12),CSVデータ4!AH12,0) -> 49 | AJ12: =IF(ISNUMBER(CSVデータ1!AJ12),CSVデータ1!AJ12,0)+IF(ISNUMBER(CSVデータ2!AJ12),CSVデータ2!AJ12,0)+IF(ISNUMBER(CSVデータ3!AJ12),CSVデータ3!AJ12,0)+IF(ISNUMBER(CSVデータ4!AJ12),CSVデータ4!AJ12,0) -> 241 | AL12: =IF(ISNUMBER(CSVデータ1!AL12),CSVデータ1!AL12,0)+IF(ISNUMBER(CSVデータ2!AL12),CSVデータ2!AL12,0)+IF(ISNUMBER(CSVデータ3!AL12),CSVデータ3!AL12,0)+IF(ISNUMBER(CSVデータ4!AL12),CSVデータ4!AL12,0) -> 134 | AN12: =IF(ISNUMBER(CSVデータ1!AN12),CSVデータ1!AN12,0)+IF(ISNUMBER(CSVデータ2!AN12),CSVデータ2!AN12,0)+IF(ISNUMBER(CSVデータ3!AN12),CSVデータ3!AN12,0)+IF(ISNUMBER(CSVデータ4!AN12),CSVデータ4!AN12,0) -> 159
A13: =CSVデータ1!A13 -> 明細部 | B13: =CSVデータ1!B13 -> 国 | C13: =CSVデータ1!C13 -> 49 | D13: =CSVデータ1!D13 -> 男 | E13: =IF(ISNUMBER(CSVデータ1!E13),CSVデータ1!E13,0)+IF(ISNUMBER(CSVデータ2!E13),CSVデータ2!E13,0)+IF(ISNUMBER(CSVデータ3!E13),CSVデータ3!E13,0)+IF(ISNUMBER(CSVデータ4!E13),CSVデータ4!E13,0) -> 2984 | F13: =IF(ISNUMBER(CSVデータ1!F13),CSVデータ1!F13,0)+IF(ISNUMBER(CSVデータ2!F13),CSVデータ2!F13,0)+IF(ISNUMBER(CSVデータ3!F13),CSVデータ3!F13,0)+IF(ISNUMBER(CSVデータ4!F13),CSVデータ4!F13,0) -> 1209 | H13: =IF(ISNUMBER(CSVデータ1!H13),CSVデータ1!H13,0)+IF(ISNUMBER(CSVデータ2!H13),CSVデータ2!H13,0)+IF(ISNUMBER(CSVデータ3!H13),CSVデータ3!H13,0)+IF(ISNUMBER(CSVデータ4!H13),CSVデータ4!H13,0) -> 1497 | J13: =IF(ISNUMBER(CSVデータ1!J13),CSVデータ1!J13,0)+IF(ISNUMBER(CSVデータ2!J13),CSVデータ2!J13,0)+IF(ISNUMBER(CSVデータ3!J13),CSVデータ3!J13,0)+IF(ISNUMBER(CSVデータ4!J13),CSVデータ4!J13,0) -> 734 | L13: =IF(ISNUMBER(CSVデータ1!L13),CSVデータ1!L13,0)+IF(ISNUMBER(CSVデータ2!L13),CSVデータ2!L13,0)+IF(ISNUMBER(CSVデータ3!L13),CSVデータ3!L13,0)+IF(ISNUMBER(CSVデータ4!L13),CSVデータ4!L13,0) -> 951 | N13: =IF(ISNUMBER(CSVデータ1!N13),CSVデータ1!N13,0)+IF(ISNUMBER(CSVデータ2!N13),CSVデータ2!N13,0)+IF(ISNUMBER(CSVデータ3!N13),CSVデータ3!N13,0)+IF(ISNUMBER(CSVデータ4!N13),CSVデータ4!N13,0) -> 221 | P13: =IF(ISNUMBER(CSVデータ1!P13),CSVデータ1!P13,0)+IF(ISNUMBER(CSVデータ2!P13),CSVデータ2!P13,0)+IF(ISNUMBER(CSVデータ3!P13),CSVデータ3!P13,0)+IF(ISNUMBER(CSVデータ4!P13),CSVデータ4!P13,0) -> 627 | R13: =IF(ISNUMBER(CSVデータ1!R13),CSVデータ1!R13,0)+IF(ISNUMBER(CSVデータ2!R13),CSVデータ2!R13,0)+IF(ISNUMBER(CSVデータ3!R13),CSVデータ3!R13,0)+IF(ISNUMBER(CSVデータ4!R13),CSVデータ4!R13,0) -> 1274 | T13: =IF(ISNUMBER(CSVデータ1!T13),CSVデータ1!T13,0)+IF(ISNUMBER(CSVデータ2!T13),CSVデータ2!T13,0)+IF(ISNUMBER(CSVデータ3!T13),CSVデータ3!T13,0)+IF(ISNUMBER(CSVデータ4!T13),CSVデータ4!T13,0) -> 421 | V13: =IF(ISNUMBER(CSVデータ1!V13),CSVデータ1!V13,0)+IF(ISNUMBER(CSVデータ2!V13),CSVデータ2!V13,0)+IF(ISNUMBER(CSVデータ3!V13),CSVデータ3!V13,0)+IF(ISNUMBER(CSVデータ4!V13),CSVデータ4!V13,0) -> 1014 | X13: =IF(ISNUMBER(CSVデータ1!X13),CSVデータ1!X13,0)+IF(ISNUMBER(CSVデータ2!X13),CSVデータ2!X13,0)+IF(ISNUMBER(CSVデータ3!X13),CSVデータ3!X13,0)+IF(ISNUMBER(CSVデータ4!X13),CSVデータ4!X13,0) -> 936 | Z13: =IF(ISNUMBER(CSVデータ1!Z13),CSVデータ1!Z13,0)+IF(ISNUMBER(CSVデータ2!Z13),CSVデータ2!Z13,0)+IF(ISNUMBER(CSVデータ3!Z13),CSVデータ3!Z13,0)+IF(ISNUMBER(CSVデータ4!Z13),CSVデータ4!Z13,0) -> 1640 | AB13: =IF(ISNUMBER(CSVデータ1!AB13),CSVデータ1!AB13,0)+IF(ISNUMBER(CSVデータ2!AB13),CSVデータ2!AB13,0)+IF(ISNUMBER(CSVデータ3!AB13),CSVデータ3!AB13,0)+IF(ISNUMBER(CSVデータ4!AB13),CSVデータ4!AB13,0) -> 12 | AD13: =IF(ISNUMBER(CSVデータ1!AD13),CSVデータ1!AD13,0)+IF(ISNUMBER(CSVデータ2!AD13),CSVデータ2!AD13,0)+IF(ISNUMBER(CSVデータ3!AD13),CSVデータ3!AD13,0)+IF(ISNUMBER(CSVデータ4!AD13),CSVデータ4!AD13,0) -> 417 | AF13: =IF(ISNUMBER(CSVデータ1!AF13),CSVデータ1!AF13,0)+IF(ISNUMBER(CSVデータ2!AF13),CSVデータ2!AF13,0)+IF(ISNUMBER(CSVデータ3!AF13),CSVデータ3!AF13,0)+IF(ISNUMBER(CSVデータ4!AF13),CSVデータ4!AF13,0) -> 646 | AH13: =IF(ISNUMBER(CSVデータ1!AH13),CSVデータ1!AH13,0)+IF(ISNUMBER(CSVデータ2!AH13),CSVデータ2!AH13,0)+IF(ISNUMBER(CSVデータ3!AH13),CSVデータ3!AH13,0)+IF(ISNUMBER(CSVデータ4!AH13),CSVデータ4!AH13,0) -> 54 | AJ13: =IF(ISNUMBER(CSVデータ1!AJ13),CSVデータ1!AJ13,0)+IF(ISNUMBER(CSVデータ2!AJ13),CSVデータ2!AJ13,0)+IF(ISNUMBER(CSVデータ3!AJ13),CSVデータ3!AJ13,0)+IF(ISNUMBER(CSVデータ4!AJ13),CSVデータ4!AJ13,0) -> 272 | AL13: =IF(ISNUMBER(CSVデータ1!AL13),CSVデータ1!AL13,0)+IF(ISNUMBER(CSVデータ2!AL13),CSVデータ2!AL13,0)+IF(ISNUMBER(CSVデータ3!AL13),CSVデータ3!AL13,0)+IF(ISNUMBER(CSVデータ4!AL13),CSVデータ4!AL13,0) -> 164 | AN13: =IF(ISNUMBER(CSVデータ1!AN13),CSVデータ1!AN13,0)+IF(ISNUMBER(CSVデータ2!AN13),CSVデータ2!AN13,0)+IF(ISNUMBER(CSVデータ3!AN13),CSVデータ3!AN13,0)+IF(ISNUMBER(CSVデータ4!AN13),CSVデータ4!AN13,0) -> 186
A14: =CSVデータ1!A14 -> 明細部 | B14: =CSVデータ1!B14 -> 国 | C14: =CSVデータ1!C14 -> 50 | D14: =CSVデータ1!D14 -> 男 | E14: =IF(ISNUMBER(CSVデータ1!E14),CSVデータ1!E14,0)+IF(ISNUMBER(CSVデータ2!E14),CSVデータ2!E14,0)+IF(ISNUMBER(CSVデータ3!E14),CSVデータ3!E14,0)+IF(ISNUMBER(CSVデータ4!E14),CSVデータ4!E14,0) -> 3341 | F14: =IF(ISNUMBER(CSVデータ1!F14),CSVデータ1!F14,0)+IF(ISNUMBER(CSVデータ2!F14),CSVデータ2!F14,0)+IF(ISNUMBER(CSVデータ3!F14),CSVデータ3!F14,0)+IF(ISNUMBER(CSVデータ4!F14),CSVデータ4!F14,0) -> 1347 | H14: =IF(ISNUMBER(CSVデータ1!H14),CSVデータ1!H14,0)+IF(ISNUMBER(CSVデータ2!H14),CSVデータ2!H14,0)+IF(ISNUMBER(CSVデータ3!H14),CSVデータ3!H14,0)+IF(ISNUMBER(CSVデータ4!H14),CSVデータ4!H14,0) -> 1727 | J14: =IF(ISNUMBER(CSVデータ1!J14),CSVデータ1!J14,0)+IF(ISNUMBER(CSVデータ2!J14),CSVデータ2!J14,0)+IF(ISNUMBER(CSVデータ3!J14),CSVデータ3!J14,0)+IF(ISNUMBER(CSVデータ4!J14),CSVデータ4!J14,0) -> 797 | L14: =IF(ISNUMBER(CSVデータ1!L14),CSVデータ1!L14,0)+IF(ISNUMBER(CSVデータ2!L14),CSVデータ2!L14,0)+IF(ISNUMBER(CSVデータ3!L14),CSVデータ3!L14,0)+IF(ISNUMBER(CSVデータ4!L14),CSVデータ4!L14,0) -> 998 | N14: =IF(ISNUMBER(CSVデータ1!N14),CSVデータ1!N14,0)+IF(ISNUMBER(CSVデータ2!N14),CSVデータ2!N14,0)+IF(ISNUMBER(CSVデータ3!N14),CSVデータ3!N14,0)+IF(ISNUMBER(CSVデータ4!N14),CSVデータ4!N14,0) -> 247 | P14: =IF(ISNUMBER(CSVデータ1!P14),CSVデータ1!P14,0)+IF(ISNUMBER(CSVデータ2!P14),CSVデータ2!P14,0)+IF(ISNUMBER(CSVデータ3!P14),CSVデータ3!P14,0)+IF(ISNUMBER(CSVデータ4!P14),CSVデータ4!P14,0) -> 739 | R14: =IF(ISNUMBER(CSVデータ1!R14),CSVデータ1!R14,0)+IF(ISNUMBER(CSVデータ2!R14),CSVデータ2!R14,0)+IF(ISNUMBER(CSVデータ3!R14),CSVデータ3!R14,0)+IF(ISNUMBER(CSVデータ4!R14),CSVデータ4!R14,0) -> 1460 | T14: =IF(ISNUMBER(CSVデータ1!T14),CSVデータ1!T14,0)+IF(ISNUMBER(CSVデータ2!T14),CSVデータ2!T14,0)+IF(ISNUMBER(CSVデータ3!T14),CSVデータ3!T14,0)+IF(ISNUMBER(CSVデータ4!T14),CSVデータ4!T14,0) -> 464 | V14: =IF(ISNUMBER(CSVデータ1!V14),CSVデータ1!V14,0)+IF(ISNUMBER(CSVデータ2!V14),CSVデータ2!V14,0)+IF(ISNUMBER(CSVデータ3!V14),CSVデータ3!V14,0)+IF(ISNUMBER(CSVデータ4!V14),CSVデータ4!V14,0) -> 1155 | X14: =IF(ISNUMBER(CSVデータ1!X14),CSVデータ1!X14,0)+IF(ISNUMBER(CSVデータ2!X14),CSVデータ2!X14,0)+IF(ISNUMBER(CSVデータ3!X14),CSVデータ3!X14,0)+IF(ISNUMBER(CSVデータ4!X14),CSVデータ4!X14,0) -> 1065 | Z14: =IF(ISNUMBER(CSVデータ1!Z14),CSVデータ1!Z14,0)+IF(ISNUMBER(CSVデータ2!Z14),CSVデータ2!Z14,0)+IF(ISNUMBER(CSVデータ3!Z14),CSVデータ3!Z14,0)+IF(ISNUMBER(CSVデータ4!Z14),CSVデータ4!Z14,0) -> 1827 | AB14: =IF(ISNUMBER(CSVデータ1!AB14),CSVデータ1!AB14,0)+IF(ISNUMBER(CSVデータ2!AB14),CSVデータ2!AB14,0)+IF(ISNUMBER(CSVデータ3!AB14),CSVデータ3!AB14,0)+IF(ISNUMBER(CSVデータ4!AB14),CSVデータ4!AB14,0) -> 28 | AD14: =IF(ISNUMBER(CSVデータ1!AD14),CSVデータ1!AD14,0)+IF(ISNUMBER(CSVデータ2!AD14),CSVデータ2!AD14,0)+IF(ISNUMBER(CSVデータ3!AD14),CSVデータ3!AD14,0)+IF(ISNUMBER(CSVデータ4!AD14),CSVデータ4!AD14,0) -> 496 | AF14: =IF(ISNUMBER(CSVデータ1!AF14),CSVデータ1!AF14,0)+IF(ISNUMBER(CSVデータ2!AF14),CSVデータ2!AF14,0)+IF(ISNUMBER(CSVデータ3!AF14),CSVデータ3!AF14,0)+IF(ISNUMBER(CSVデータ4!AF14),CSVデータ4!AF14,0) -> 738 | AH14: =IF(ISNUMBER(CSVデータ1!AH14),CSVデータ1!AH14,0)+IF(ISNUMBER(CSVデータ2!AH14),CSVデータ2!AH14,0)+IF(ISNUMBER(CSVデータ3!AH14),CSVデータ3!AH14,0)+IF(ISNUMBER(CSVデータ4!AH14),CSVデータ4!AH14,0) -> 63 | AJ14: =IF(ISNUMBER(CSVデータ1!AJ14),CSVデータ1!AJ14,0)+IF(ISNUMBER(CSVデータ2!AJ14),CSVデータ2!AJ14,0)+IF(ISNUMBER(CSVデータ3!AJ14),CSVデータ3!AJ14,0)+IF(ISNUMBER(CSVデータ4!AJ14),CSVデータ4!AJ14,0) -> 289 | AL14: =IF(ISNUMBER(CSVデータ1!AL14),CSVデータ1!AL14,0)+IF(ISNUMBER(CSVデータ2!AL14),CSVデータ2!AL14,0)+IF(ISNUMBER(CSVデータ3!AL14),CSVデータ3!AL14,0)+IF(ISNUMBER(CSVデータ4!AL14),CSVデータ4!AL14,0) -> 203 | AN14: =IF(ISNUMBER(CSVデータ1!AN14),CSVデータ1!AN14,0)+IF(ISNUMBER(CSVデータ2!AN14),CSVデータ2!AN14,0)+IF(ISNUMBER(CSVデータ3!AN14),CSVデータ3!AN14,0)+IF(ISNUMBER(CSVデータ4!AN14),CSVデータ4!AN14,0) -> 191
A15: =CSVデータ1!A15 -> 明細部 | B15: =CSVデータ1!B15 -> 国 | C15: =CSVデータ1!C15 -> 51 | D15: =CSVデータ1!D15 -> 男 | E15: =IF(ISNUMBER(CSVデータ1!E15),CSVデータ1!E15,0)+IF(ISNUMBER(CSVデータ2!E15),CSVデータ2!E15,0)+IF(ISNUMBER(CSVデータ3!E15),CSVデータ3!E15,0)+IF(ISNUMBER(CSVデータ4!E15),CSVデータ4!E15,0) -> 3366 | F15: =IF(ISNUMBER(CSVデータ1!F15),CSVデータ1!F15,0)+IF(ISNUMBER(CSVデータ2!F15),CSVデータ2!F15,0)+IF(ISNUMBER(CSVデータ3!F15),CSVデータ3!F15,0)+IF(ISNUMBER(CSVデータ4!F15),CSVデータ4!F15,0) -> 1398 | H15: =IF(ISNUMBER(CSVデータ1!H15),CSVデータ1!H15,0)+IF(ISNUMBER(CSVデータ2!H15),CSVデータ2!H15,0)+IF(ISNUMBER(CSVデータ3!H15),CSVデータ3!H15,0)+IF(ISNUMBER(CSVデータ4!H15),CSVデータ4!H15,0) -> 1809 | J15: =IF(ISNUMBER(CSVデータ1!J15),CSVデータ1!J15,0)+IF(ISNUMBER(CSVデータ2!J15),CSVデータ2!J15,0)+IF(ISNUMBER(CSVデータ3!J15),CSVデータ3!J15,0)+IF(ISNUMBER(CSVデータ4!J15),CSVデータ4!J15,0) -> 789 | L15: =IF(ISNUMBER(CSVデータ1!L15),CSVデータ1!L15,0)+IF(ISNUMBER(CSVデータ2!L15),CSVデータ2!L15,0)+IF(ISNUMBER(CSVデータ3!L15),CSVデータ3!L15,0)+IF(ISNUMBER(CSVデータ4!L15),CSVデータ4!L15,0) -> 1011 | N15: =IF(ISNUMBER(CSVデータ1!N15),CSVデータ1!N15,0)+IF(ISNUMBER(CSVデータ2!N15),CSVデータ2!N15,0)+IF(ISNUMBER(CSVデータ3!N15),CSVデータ3!N15,0)+IF(ISNUMBER(CSVデータ4!N15),CSVデータ4!N15,0) -> 258 | P15: =IF(ISNUMBER(CSVデータ1!P15),CSVデータ1!P15,0)+IF(ISNUMBER(CSVデータ2!P15),CSVデータ2!P15,0)+IF(ISNUMBER(CSVデータ3!P15),CSVデータ3!P15,0)+IF(ISNUMBER(CSVデータ4!P15),CSVデータ4!P15,0) -> 765 | R15: =IF(ISNUMBER(CSVデータ1!R15),CSVデータ1!R15,0)+IF(ISNUMBER(CSVデータ2!R15),CSVデータ2!R15,0)+IF(ISNUMBER(CSVデータ3!R15),CSVデータ3!R15,0)+IF(ISNUMBER(CSVデータ4!R15),CSVデータ4!R15,0) -> 1509 | T15: =IF(ISNUMBER(CSVデータ1!T15),CSVデータ1!T15,0)+IF(ISNUMBER(CSVデータ2!T15),CSVデータ2!T15,0)+IF(ISNUMBER(CSVデータ3!T15),CSVデータ3!T15,0)+IF(ISNUMBER(CSVデータ4!T15),CSVデータ4!T15,0) -> 478 | V15: =IF(ISNUMBER(CSVデータ1!V15),CSVデータ1!V15,0)+IF(ISNUMBER(CSVデータ2!V15),CSVデータ2!V15,0)+IF(ISNUMBER(CSVデータ3!V15),CSVデータ3!V15,0)+IF(ISNUMBER(CSVデータ4!V15),CSVデータ4!V15,0) -> 1210 | X15: =IF(ISNUMBER(CSVデータ1!X15),CSVデータ1!X15,0)+IF(ISNUMBER(CSVデータ2!X15),CSVデータ2!X15,0)+IF(ISNUMBER(CSVデータ3!X15),CSVデータ3!X15,0)+IF(ISNUMBER(CSVデータ4!X15),CSVデータ4!X15,0) -> 1106 | Z15: =IF(ISNUMBER(CSVデータ1!Z15),CSVデータ1!Z15,0)+IF(ISNUMBER(CSVデータ2!Z15),CSVデータ2!Z15,0)+IF(ISNUMBER(CSVデータ3!Z15),CSVデータ3!Z15,0)+IF(ISNUMBER(CSVデータ4!Z15),CSVデータ4!Z15,0) -> 1795 | AB15: =IF(ISNUMBER(CSVデータ1!AB15),CSVデータ1!AB15,0)+IF(ISNUMBER(CSVデータ2!AB15),CSVデータ2!AB15,0)+IF(ISNUMBER(CSVデータ3!AB15),CSVデータ3!AB15,0)+IF(ISNUMBER(CSVデータ4!AB15),CSVデータ4!AB15,0) -> 20 | AD15: =IF(ISNUMBER(CSVデータ1!AD15),CSVデータ1!AD15,0)+IF(ISNUMBER(CSVデータ2!AD15),CSVデータ2!AD15,0)+IF(ISNUMBER(CSVデータ3!AD15),CSVデータ3!AD15,0)+IF(ISNUMBER(CSVデータ4!AD15),CSVデータ4!AD15,0) -> 515 | AF15: =IF(ISNUMBER(CSVデータ1!AF15),CSVデータ1!AF15,0)+IF(ISNUMBER(CSVデータ2!AF15),CSVデータ2!AF15,0)+IF(ISNUMBER(CSVデータ3!AF15),CSVデータ3!AF15,0)+IF(ISNUMBER(CSVデータ4!AF15),CSVデータ4!AF15,0) -> 681 | AH15: =IF(ISNUMBER(CSVデータ1!AH15),CSVデータ1!AH15,0)+IF(ISNUMBER(CSVデータ2!AH15),CSVデータ2!AH15,0)+IF(ISNUMBER(CSVデータ3!AH15),CSVデータ3!AH15,0)+IF(ISNUMBER(CSVデータ4!AH15),CSVデータ4!AH15,0) -> 66 | AJ15: =IF(ISNUMBER(CSVデータ1!AJ15),CSVデータ1!AJ15,0)+IF(ISNUMBER(CSVデータ2!AJ15),CSVデータ2!AJ15,0)+IF(ISNUMBER(CSVデータ3!AJ15),CSVデータ3!AJ15,0)+IF(ISNUMBER(CSVデータ4!AJ15),CSVデータ4!AJ15,0) -> 317 | AL15: =IF(ISNUMBER(CSVデータ1!AL15),CSVデータ1!AL15,0)+IF(ISNUMBER(CSVデータ2!AL15),CSVデータ2!AL15,0)+IF(ISNUMBER(CSVデータ3!AL15),CSVデータ3!AL15,0)+IF(ISNUMBER(CSVデータ4!AL15),CSVデータ4!AL15,0) -> 243 | AN15: =IF(ISNUMBER(CSVデータ1!AN15),CSVデータ1!AN15,0)+IF(ISNUMBER(CSVデータ2!AN15),CSVデータ2!AN15,0)+IF(ISNUMBER(CSVデータ3!AN15),CSVデータ3!AN15,0)+IF(ISNUMBER(CSVデータ4!AN15),CSVデータ4!AN15,0) -> 208
A16: =CSVデータ1!A16 -> 明細部 | B16: =CSVデータ1!B16 -> 国 | C16: =CSVデータ1!C16 -> 52 | D16: =CSVデータ1!D16 -> 男 | E16: =IF(ISNUMBER(CSVデータ1!E16),CSVデータ1!E16,0)+IF(ISNUMBER(CSVデータ2!E16),CSVデータ2!E16,0)+IF(ISNUMBER(CSVデータ3!E16),CSVデータ3!E16,0)+IF(ISNUMBER(CSVデータ4!E16),CSVデータ4!E16,0) -> 3398 | F16: =IF(ISNUMBER(CSVデータ1!F16),CSVデータ1!F16,0)+IF(ISNUMBER(CSVデータ2!F16),CSVデータ2!F16,0)+IF(ISNUMBER(CSVデータ3!F16),CSVデータ3!F16,0)+IF(ISNUMBER(CSVデータ4!F16),CSVデータ4!F16,0) -> 1432 | H16: =IF(ISNUMBER(CSVデータ1!H16),CSVデータ1!H16,0)+IF(ISNUMBER(CSVデータ2!H16),CSVデータ2!H16,0)+IF(ISNUMBER(CSVデータ3!H16),CSVデータ3!H16,0)+IF(ISNUMBER(CSVデータ4!H16),CSVデータ4!H16,0) -> 1811 | J16: =IF(ISNUMBER(CSVデータ1!J16),CSVデータ1!J16,0)+IF(ISNUMBER(CSVデータ2!J16),CSVデータ2!J16,0)+IF(ISNUMBER(CSVデータ3!J16),CSVデータ3!J16,0)+IF(ISNUMBER(CSVデータ4!J16),CSVデータ4!J16,0) -> 808 | L16: =IF(ISNUMBER(CSVデータ1!L16),CSVデータ1!L16,0)+IF(ISNUMBER(CSVデータ2!L16),CSVデータ2!L16,0)+IF(ISNUMBER(CSVデータ3!L16),CSVデータ3!L16,0)+IF(ISNUMBER(CSVデータ4!L16),CSVデータ4!L16,0) -> 1030 | N16: =IF(ISNUMBER(CSVデータ1!N16),CSVデータ1!N16,0)+IF(ISNUMBER(CSVデータ2!N16),CSVデータ2!N16,0)+IF(ISNUMBER(CSVデータ3!N16),CSVデータ3!N16,0)+IF(ISNUMBER(CSVデータ4!N16),CSVデータ4!N16,0) -> 226 | P16: =IF(ISNUMBER(CSVデータ1!P16),CSVデータ1!P16,0)+IF(ISNUMBER(CSVデータ2!P16),CSVデータ2!P16,0)+IF(ISNUMBER(CSVデータ3!P16),CSVデータ3!P16,0)+IF(ISNUMBER(CSVデータ4!P16),CSVデータ4!P16,0) -> 839 | R16: =IF(ISNUMBER(CSVデータ1!R16),CSVデータ1!R16,0)+IF(ISNUMBER(CSVデータ2!R16),CSVデータ2!R16,0)+IF(ISNUMBER(CSVデータ3!R16),CSVデータ3!R16,0)+IF(ISNUMBER(CSVデータ4!R16),CSVデータ4!R16,0) -> 1611 | T16: =IF(ISNUMBER(CSVデータ1!T16),CSVデータ1!T16,0)+IF(ISNUMBER(CSVデータ2!T16),CSVデータ2!T16,0)+IF(ISNUMBER(CSVデータ3!T16),CSVデータ3!T16,0)+IF(ISNUMBER(CSVデータ4!T16),CSVデータ4!T16,0) -> 499 | V16: =IF(ISNUMBER(CSVデータ1!V16),CSVデータ1!V16,0)+IF(ISNUMBER(CSVデータ2!V16),CSVデータ2!V16,0)+IF(ISNUMBER(CSVデータ3!V16),CSVデータ3!V16,0)+IF(ISNUMBER(CSVデータ4!V16),CSVデータ4!V16,0) -> 1251 | X16: =IF(ISNUMBER(CSVデータ1!X16),CSVデータ1!X16,0)+IF(ISNUMBER(CSVデータ2!X16),CSVデータ2!X16,0)+IF(ISNUMBER(CSVデータ3!X16),CSVデータ3!X16,0)+IF(ISNUMBER(CSVデータ4!X16),CSVデータ4!X16,0) -> 1151 | Z16: =IF(ISNUMBER(CSVデータ1!Z16),CSVデータ1!Z16,0)+IF(ISNUMBER(CSVデータ2!Z16),CSVデータ2!Z16,0)+IF(ISNUMBER(CSVデータ3!Z16),CSVデータ3!Z16,0)+IF(ISNUMBER(CSVデータ4!Z16),CSVデータ4!Z16,0) -> 1830 | AB16: =IF(ISNUMBER(CSVデータ1!AB16),CSVデータ1!AB16,0)+IF(ISNUMBER(CSVデータ2!AB16),CSVデータ2!AB16,0)+IF(ISNUMBER(CSVデータ3!AB16),CSVデータ3!AB16,0)+IF(ISNUMBER(CSVデータ4!AB16),CSVデータ4!AB16,0) -> 24 | AD16: =IF(ISNUMBER(CSVデータ1!AD16),CSVデータ1!AD16,0)+IF(ISNUMBER(CSVデータ2!AD16),CSVデータ2!AD16,0)+IF(ISNUMBER(CSVデータ3!AD16),CSVデータ3!AD16,0)+IF(ISNUMBER(CSVデータ4!AD16),CSVデータ4!AD16,0) -> 523 | AF16: =IF(ISNUMBER(CSVデータ1!AF16),CSVデータ1!AF16,0)+IF(ISNUMBER(CSVデータ2!AF16),CSVデータ2!AF16,0)+IF(ISNUMBER(CSVデータ3!AF16),CSVデータ3!AF16,0)+IF(ISNUMBER(CSVデータ4!AF16),CSVデータ4!AF16,0) -> 785 | AH16: =IF(ISNUMBER(CSVデータ1!AH16),CSVデータ1!AH16,0)+IF(ISNUMBER(CSVデータ2!AH16),CSVデータ2!AH16,0)+IF(ISNUMBER(CSVデータ3!AH16),CSVデータ3!AH16,0)+IF(ISNUMBER(CSVデータ4!AH16),CSVデータ4!AH16,0) -> 68 | AJ16: =IF(ISNUMBER(CSVデータ1!AJ16),CSVデータ1!AJ16,0)+IF(ISNUMBER(CSVデータ2!AJ16),CSVデータ2!AJ16,0)+IF(ISNUMBER(CSVデータ3!AJ16),CSVデータ3!AJ16,0)+IF(ISNUMBER(CSVデータ4!AJ16),CSVデータ4!AJ16,0) -> 341 | AL16: =IF(ISNUMBER(CSVデータ1!AL16),CSVデータ1!AL16,0)+IF(ISNUMBER(CSVデータ2!AL16),CSVデータ2!AL16,0)+IF(ISNUMBER(CSVデータ3!AL16),CSVデータ3!AL16,0)+IF(ISNUMBER(CSVデータ4!AL16),CSVデータ4!AL16,0) -> 246 | AN16: =IF(ISNUMBER(CSVデータ1!AN16),CSVデータ1!AN16,0)+IF(ISNUMBER(CSVデータ2!AN16),CSVデータ2!AN16,0)+IF(ISNUMBER(CSVデータ3!AN16),CSVデータ3!AN16,0)+IF(ISNUMBER(CSVデータ4!AN16),CSVデータ4!AN16,0) -> 198
A17: =CSVデータ1!A17 -> 明細部 | B17: =CSVデータ1!B17 -> 国 | C17: =CSVデータ1!C17 -> 53 | D17: =CSVデータ1!D17 -> 男 | E17: =IF(ISNUMBER(CSVデータ1!E17),CSVデータ1!E17,0)+IF(ISNUMBER(CSVデータ2!E17),CSVデータ2!E17,0)+IF(ISNUMBER(CSVデータ3!E17),CSVデータ3!E17,0)+IF(ISNUMBER(CSVデータ4!E17),CSVデータ4!E17,0) -> 3360 | F17: =IF(ISNUMBER(CSVデータ1!F17),CSVデータ1!F17,0)+IF(ISNUMBER(CSVデータ2!F17),CSVデータ2!F17,0)+IF(ISNUMBER(CSVデータ3!F17),CSVデータ3!F17,0)+IF(ISNUMBER(CSVデータ4!F17),CSVデータ4!F17,0) -> 1404 | H17: =IF(ISNUMBER(CSVデータ1!H17),CSVデータ1!H17,0)+IF(ISNUMBER(CSVデータ2!H17),CSVデータ2!H17,0)+IF(ISNUMBER(CSVデータ3!H17),CSVデータ3!H17,0)+IF(ISNUMBER(CSVデータ4!H17),CSVデータ4!H17,0) -> 1823 | J17: =IF(ISNUMBER(CSVデータ1!J17),CSVデータ1!J17,0)+IF(ISNUMBER(CSVデータ2!J17),CSVデータ2!J17,0)+IF(ISNUMBER(CSVデータ3!J17),CSVデータ3!J17,0)+IF(ISNUMBER(CSVデータ4!J17),CSVデータ4!J17,0) -> 777 | L17: =IF(ISNUMBER(CSVデータ1!L17),CSVデータ1!L17,0)+IF(ISNUMBER(CSVデータ2!L17),CSVデータ2!L17,0)+IF(ISNUMBER(CSVデータ3!L17),CSVデータ3!L17,0)+IF(ISNUMBER(CSVデータ4!L17),CSVデータ4!L17,0) -> 965 | N17: =IF(ISNUMBER(CSVデータ1!N17),CSVデータ1!N17,0)+IF(ISNUMBER(CSVデータ2!N17),CSVデータ2!N17,0)+IF(ISNUMBER(CSVデータ3!N17),CSVデータ3!N17,0)+IF(ISNUMBER(CSVデータ4!N17),CSVデータ4!N17,0) -> 240 | P17: =IF(ISNUMBER(CSVデータ1!P17),CSVデータ1!P17,0)+IF(ISNUMBER(CSVデータ2!P17),CSVデータ2!P17,0)+IF(ISNUMBER(CSVデータ3!P17),CSVデータ3!P17,0)+IF(ISNUMBER(CSVデータ4!P17),CSVデータ4!P17,0) -> 780 | R17: =IF(ISNUMBER(CSVデータ1!R17),CSVデータ1!R17,0)+IF(ISNUMBER(CSVデータ2!R17),CSVデータ2!R17,0)+IF(ISNUMBER(CSVデータ3!R17),CSVデータ3!R17,0)+IF(ISNUMBER(CSVデータ4!R17),CSVデータ4!R17,0) -> 1605 | T17: =IF(ISNUMBER(CSVデータ1!T17),CSVデータ1!T17,0)+IF(ISNUMBER(CSVデータ2!T17),CSVデータ2!T17,0)+IF(ISNUMBER(CSVデータ3!T17),CSVデータ3!T17,0)+IF(ISNUMBER(CSVデータ4!T17),CSVデータ4!T17,0) -> 454 | V17: =IF(ISNUMBER(CSVデータ1!V17),CSVデータ1!V17,0)+IF(ISNUMBER(CSVデータ2!V17),CSVデータ2!V17,0)+IF(ISNUMBER(CSVデータ3!V17),CSVデータ3!V17,0)+IF(ISNUMBER(CSVデータ4!V17),CSVデータ4!V17,0) -> 1298 | X17: =IF(ISNUMBER(CSVデータ1!X17),CSVデータ1!X17,0)+IF(ISNUMBER(CSVデータ2!X17),CSVデータ2!X17,0)+IF(ISNUMBER(CSVデータ3!X17),CSVデータ3!X17,0)+IF(ISNUMBER(CSVデータ4!X17),CSVデータ4!X17,0) -> 1146 | Z17: =IF(ISNUMBER(CSVデータ1!Z17),CSVデータ1!Z17,0)+IF(ISNUMBER(CSVデータ2!Z17),CSVデータ2!Z17,0)+IF(ISNUMBER(CSVデータ3!Z17),CSVデータ3!Z17,0)+IF(ISNUMBER(CSVデータ4!Z17),CSVデータ4!Z17,0) -> 1807 | AB17: =IF(ISNUMBER(CSVデータ1!AB17),CSVデータ1!AB17,0)+IF(ISNUMBER(CSVデータ2!AB17),CSVデータ2!AB17,0)+IF(ISNUMBER(CSVデータ3!AB17),CSVデータ3!AB17,0)+IF(ISNUMBER(CSVデータ4!AB17),CSVデータ4!AB17,0) -> 34 | AD17: =IF(ISNUMBER(CSVデータ1!AD17),CSVデータ1!AD17,0)+IF(ISNUMBER(CSVデータ2!AD17),CSVデータ2!AD17,0)+IF(ISNUMBER(CSVデータ3!AD17),CSVデータ3!AD17,0)+IF(ISNUMBER(CSVデータ4!AD17),CSVデータ4!AD17,0) -> 565 | AF17: =IF(ISNUMBER(CSVデータ1!AF17),CSVデータ1!AF17,0)+IF(ISNUMBER(CSVデータ2!AF17),CSVデータ2!AF17,0)+IF(ISNUMBER(CSVデータ3!AF17),CSVデータ3!AF17,0)+IF(ISNUMBER(CSVデータ4!AF17),CSVデータ4!AF17,0) -> 758 | AH17: =IF(ISNUMBER(CSVデータ1!AH17),CSVデータ1!AH17,0)+IF(ISNUMBER(CSVデータ2!AH17),CSVデータ2!AH17,0)+IF(ISNUMBER(CSVデータ3!AH17),CSVデータ3!AH17,0)+IF(ISNUMBER(CSVデータ4!AH17),CSVデータ4!AH17,0) -> 51 | AJ17: =IF(ISNUMBER(CSVデータ1!AJ17),CSVデータ1!AJ17,0)+IF(ISNUMBER(CSVデータ2!AJ17),CSVデータ2!AJ17,0)+IF(ISNUMBER(CSVデータ3!AJ17),CSVデータ3!AJ17,0)+IF(ISNUMBER(CSVデータ4!AJ17),CSVデータ4!AJ17,0) -> 288 | AL17: =IF(ISNUMBER(CSVデータ1!AL17),CSVデータ1!AL17,0)+IF(ISNUMBER(CSVデータ2!AL17),CSVデータ2!AL17,0)+IF(ISNUMBER(CSVデータ3!AL17),CSVデータ3!AL17,0)+IF(ISNUMBER(CSVデータ4!AL17),CSVデータ4!AL17,0) -> 250 | AN17: =IF(ISNUMBER(CSVデータ1!AN17),CSVデータ1!AN17,0)+IF(ISNUMBER(CSVデータ2!AN17),CSVデータ2!AN17,0)+IF(ISNUMBER(CSVデータ3!AN17),CSVデータ3!AN17,0)+IF(ISNUMBER(CSVデータ4!AN17),CSVデータ4!AN17,0) -> 193
A18: =CSVデータ1!A18 -> 明細部 | B18: =CSVデータ1!B18 -> 国 | C18: =CSVデータ1!C18 -> 54 | D18: =CSVデータ1!D18 -> 男 | E18: =IF(ISNUMBER(CSVデータ1!E18),CSVデータ1!E18,0)+IF(ISNUMBER(CSVデータ2!E18),CSVデータ2!E18,0)+IF(ISNUMBER(CSVデータ3!E18),CSVデータ3!E18,0)+IF(ISNUMBER(CSVデータ4!E18),CSVデータ4!E18,0) -> 3318 | F18: =IF(ISNUMBER(CSVデータ1!F18),CSVデータ1!F18,0)+IF(ISNUMBER(CSVデータ2!F18),CSVデータ2!F18,0)+IF(ISNUMBER(CSVデータ3!F18),CSVデータ3!F18,0)+IF(ISNUMBER(CSVデータ4!F18),CSVデータ4!F18,0) -> 1303 | H18: =IF(ISNUMBER(CSVデータ1!H18),CSVデータ1!H18,0)+IF(ISNUMBER(CSVデータ2!H18),CSVデータ2!H18,0)+IF(ISNUMBER(CSVデータ3!H18),CSVデータ3!H18,0)+IF(ISNUMBER(CSVデータ4!H18),CSVデータ4!H18,0) -> 1807 | J18: =IF(ISNUMBER(CSVデータ1!J18),CSVデータ1!J18,0)+IF(ISNUMBER(CSVデータ2!J18),CSVデータ2!J18,0)+IF(ISNUMBER(CSVデータ3!J18),CSVデータ3!J18,0)+IF(ISNUMBER(CSVデータ4!J18),CSVデータ4!J18,0) -> 763 | L18: =IF(ISNUMBER(CSVデータ1!L18),CSVデータ1!L18,0)+IF(ISNUMBER(CSVデータ2!L18),CSVデータ2!L18,0)+IF(ISNUMBER(CSVデータ3!L18),CSVデータ3!L18,0)+IF(ISNUMBER(CSVデータ4!L18),CSVデータ4!L18,0) -> 949 | N18: =IF(ISNUMBER(CSVデータ1!N18),CSVデータ1!N18,0)+IF(ISNUMBER(CSVデータ2!N18),CSVデータ2!N18,0)+IF(ISNUMBER(CSVデータ3!N18),CSVデータ3!N18,0)+IF(ISNUMBER(CSVデータ4!N18),CSVデータ4!N18,0) -> 225 | P18: =IF(ISNUMBER(CSVデータ1!P18),CSVデータ1!P18,0)+IF(ISNUMBER(CSVデータ2!P18),CSVデータ2!P18,0)+IF(ISNUMBER(CSVデータ3!P18),CSVデータ3!P18,0)+IF(ISNUMBER(CSVデータ4!P18),CSVデータ4!P18,0) -> 834 | R18: =IF(ISNUMBER(CSVデータ1!R18),CSVデータ1!R18,0)+IF(ISNUMBER(CSVデータ2!R18),CSVデータ2!R18,0)+IF(ISNUMBER(CSVデータ3!R18),CSVデータ3!R18,0)+IF(ISNUMBER(CSVデータ4!R18),CSVデータ4!R18,0) -> 1662 | T18: =IF(ISNUMBER(CSVデータ1!T18),CSVデータ1!T18,0)+IF(ISNUMBER(CSVデータ2!T18),CSVデータ2!T18,0)+IF(ISNUMBER(CSVデータ3!T18),CSVデータ3!T18,0)+IF(ISNUMBER(CSVデータ4!T18),CSVデータ4!T18,0) -> 485 | V18: =IF(ISNUMBER(CSVデータ1!V18),CSVデータ1!V18,0)+IF(ISNUMBER(CSVデータ2!V18),CSVデータ2!V18,0)+IF(ISNUMBER(CSVデータ3!V18),CSVデータ3!V18,0)+IF(ISNUMBER(CSVデータ4!V18),CSVデータ4!V18,0) -> 1294 | X18: =IF(ISNUMBER(CSVデータ1!X18),CSVデータ1!X18,0)+IF(ISNUMBER(CSVデータ2!X18),CSVデータ2!X18,0)+IF(ISNUMBER(CSVデータ3!X18),CSVデータ3!X18,0)+IF(ISNUMBER(CSVデータ4!X18),CSVデータ4!X18,0) -> 1125 | Z18: =IF(ISNUMBER(CSVデータ1!Z18),CSVデータ1!Z18,0)+IF(ISNUMBER(CSVデータ2!Z18),CSVデータ2!Z18,0)+IF(ISNUMBER(CSVデータ3!Z18),CSVデータ3!Z18,0)+IF(ISNUMBER(CSVデータ4!Z18),CSVデータ4!Z18,0) -> 1734 | AB18: =IF(ISNUMBER(CSVデータ1!AB18),CSVデータ1!AB18,0)+IF(ISNUMBER(CSVデータ2!AB18),CSVデータ2!AB18,0)+IF(ISNUMBER(CSVデータ3!AB18),CSVデータ3!AB18,0)+IF(ISNUMBER(CSVデータ4!AB18),CSVデータ4!AB18,0) -> 39 | AD18: =IF(ISNUMBER(CSVデータ1!AD18),CSVデータ1!AD18,0)+IF(ISNUMBER(CSVデータ2!AD18),CSVデータ2!AD18,0)+IF(ISNUMBER(CSVデータ3!AD18),CSVデータ3!AD18,0)+IF(ISNUMBER(CSVデータ4!AD18),CSVデータ4!AD18,0) -> 516 | AF18: =IF(ISNUMBER(CSVデータ1!AF18),CSVデータ1!AF18,0)+IF(ISNUMBER(CSVデータ2!AF18),CSVデータ2!AF18,0)+IF(ISNUMBER(CSVデータ3!AF18),CSVデータ3!AF18,0)+IF(ISNUMBER(CSVデータ4!AF18),CSVデータ4!AF18,0) -> 752 | AH18: =IF(ISNUMBER(CSVデータ1!AH18),CSVデータ1!AH18,0)+IF(ISNUMBER(CSVデータ2!AH18),CSVデータ2!AH18,0)+IF(ISNUMBER(CSVデータ3!AH18),CSVデータ3!AH18,0)+IF(ISNUMBER(CSVデータ4!AH18),CSVデータ4!AH18,0) -> 73 | AJ18: =IF(ISNUMBER(CSVデータ1!AJ18),CSVデータ1!AJ18,0)+IF(ISNUMBER(CSVデータ2!AJ18),CSVデータ2!AJ18,0)+IF(ISNUMBER(CSVデータ3!AJ18),CSVデータ3!AJ18,0)+IF(ISNUMBER(CSVデータ4!AJ18),CSVデータ4!AJ18,0) -> 287 | AL18: =IF(ISNUMBER(CSVデータ1!AL18),CSVデータ1!AL18,0)+IF(ISNUMBER(CSVデータ2!AL18),CSVデータ2!AL18,0)+IF(ISNUMBER(CSVデータ3!AL18),CSVデータ3!AL18,0)+IF(ISNUMBER(CSVデータ4!AL18),CSVデータ4!AL18,0) -> 322 | AN18: =IF(ISNUMBER(CSVデータ1!AN18),CSVデータ1!AN18,0)+IF(ISNUMBER(CSVデータ2!AN18),CSVデータ2!AN18,0)+IF(ISNUMBER(CSVデータ3!AN18),CSVデータ3!AN18,0)+IF(ISNUMBER(CSVデータ4!AN18),CSVデータ4!AN18,0) -> 196
A19: =CSVデータ1!A19 -> 明細部 | B19: =CSVデータ1!B19 -> 国 | C19: =CSVデータ1!C19 -> 55 | D19: =CSVデータ1!D19 -> 男 | E19: =IF(ISNUMBER(CSVデータ1!E19),CSVデータ1!E19,0)+IF(ISNUMBER(CSVデータ2!E19),CSVデータ2!E19,0)+IF(ISNUMBER(CSVデータ3!E19),CSVデータ3!E19,0)+IF(ISNUMBER(CSVデータ4!E19),CSVデータ4!E19,0) -> 3340 | F19: =IF(ISNUMBER(CSVデータ1!F19),CSVデータ1!F19,0)+IF(ISNUMBER(CSVデータ2!F19),CSVデータ2!F19,0)+IF(ISNUMBER(CSVデータ3!F19),CSVデータ3!F19,0)+IF(ISNUMBER(CSVデータ4!F19),CSVデータ4!F19,0) -> 1327 | H19: =IF(ISNUMBER(CSVデータ1!H19),CSVデータ1!H19,0)+IF(ISNUMBER(CSVデータ2!H19),CSVデータ2!H19,0)+IF(ISNUMBER(CSVデータ3!H19),CSVデータ3!H19,0)+IF(ISNUMBER(CSVデータ4!H19),CSVデータ4!H19,0) -> 1807 | J19: =IF(ISNUMBER(CSVデータ1!J19),CSVデータ1!J19,0)+IF(ISNUMBER(CSVデータ2!J19),CSVデータ2!J19,0)+IF(ISNUMBER(CSVデータ3!J19),CSVデータ3!J19,0)+IF(ISNUMBER(CSVデータ4!J19),CSVデータ4!J19,0) -> 736 | L19: =IF(ISNUMBER(CSVデータ1!L19),CSVデータ1!L19,0)+IF(ISNUMBER(CSVデータ2!L19),CSVデータ2!L19,0)+IF(ISNUMBER(CSVデータ3!L19),CSVデータ3!L19,0)+IF(ISNUMBER(CSVデータ4!L19),CSVデータ4!L19,0) -> 957 | N19: =IF(ISNUMBER(CSVデータ1!N19),CSVデータ1!N19,0)+IF(ISNUMBER(CSVデータ2!N19),CSVデータ2!N19,0)+IF(ISNUMBER(CSVデータ3!N19),CSVデータ3!N19,0)+IF(ISNUMBER(CSVデータ4!N19),CSVデータ4!N19,0) -> 232 | P19: =IF(ISNUMBER(CSVデータ1!P19),CSVデータ1!P19,0)+IF(ISNUMBER(CSVデータ2!P19),CSVデータ2!P19,0)+IF(ISNUMBER(CSVデータ3!P19),CSVデータ3!P19,0)+IF(ISNUMBER(CSVデータ4!P19),CSVデータ4!P19,0) -> 890 | R19: =IF(ISNUMBER(CSVデータ1!R19),CSVデータ1!R19,0)+IF(ISNUMBER(CSVデータ2!R19),CSVデータ2!R19,0)+IF(ISNUMBER(CSVデータ3!R19),CSVデータ3!R19,0)+IF(ISNUMBER(CSVデータ4!R19),CSVデータ4!R19,0) -> 1679 | T19: =IF(ISNUMBER(CSVデータ1!T19),CSVデータ1!T19,0)+IF(ISNUMBER(CSVデータ2!T19),CSVデータ2!T19,0)+IF(ISNUMBER(CSVデータ3!T19),CSVデータ3!T19,0)+IF(ISNUMBER(CSVデータ4!T19),CSVデータ4!T19,0) -> 431 | V19: =IF(ISNUMBER(CSVデータ1!V19),CSVデータ1!V19,0)+IF(ISNUMBER(CSVデータ2!V19),CSVデータ2!V19,0)+IF(ISNUMBER(CSVデータ3!V19),CSVデータ3!V19,0)+IF(ISNUMBER(CSVデータ4!V19),CSVデータ4!V19,0) -> 1316 | X19: =IF(ISNUMBER(CSVデータ1!X19),CSVデータ1!X19,0)+IF(ISNUMBER(CSVデータ2!X19),CSVデータ2!X19,0)+IF(ISNUMBER(CSVデータ3!X19),CSVデータ3!X19,0)+IF(ISNUMBER(CSVデータ4!X19),CSVデータ4!X19,0) -> 1113 | Z19: =IF(ISNUMBER(CSVデータ1!Z19),CSVデータ1!Z19,0)+IF(ISNUMBER(CSVデータ2!Z19),CSVデータ2!Z19,0)+IF(ISNUMBER(CSVデータ3!Z19),CSVデータ3!Z19,0)+IF(ISNUMBER(CSVデータ4!Z19),CSVデータ4!Z19,0) -> 1775 | AB19: =IF(ISNUMBER(CSVデータ1!AB19),CSVデータ1!AB19,0)+IF(ISNUMBER(CSVデータ2!AB19),CSVデータ2!AB19,0)+IF(ISNUMBER(CSVデータ3!AB19),CSVデータ3!AB19,0)+IF(ISNUMBER(CSVデータ4!AB19),CSVデータ4!AB19,0) -> 28 | AD19: =IF(ISNUMBER(CSVデータ1!AD19),CSVデータ1!AD19,0)+IF(ISNUMBER(CSVデータ2!AD19),CSVデータ2!AD19,0)+IF(ISNUMBER(CSVデータ3!AD19),CSVデータ3!AD19,0)+IF(ISNUMBER(CSVデータ4!AD19),CSVデータ4!AD19,0) -> 564 | AF19: =IF(ISNUMBER(CSVデータ1!AF19),CSVデータ1!AF19,0)+IF(ISNUMBER(CSVデータ2!AF19),CSVデータ2!AF19,0)+IF(ISNUMBER(CSVデータ3!AF19),CSVデータ3!AF19,0)+IF(ISNUMBER(CSVデータ4!AF19),CSVデータ4!AF19,0) -> 750 | AH19: =IF(ISNUMBER(CSVデータ1!AH19),CSVデータ1!AH19,0)+IF(ISNUMBER(CSVデータ2!AH19),CSVデータ2!AH19,0)+IF(ISNUMBER(CSVデータ3!AH19),CSVデータ3!AH19,0)+IF(ISNUMBER(CSVデータ4!AH19),CSVデータ4!AH19,0) -> 68 | AJ19: =IF(ISNUMBER(CSVデータ1!AJ19),CSVデータ1!AJ19,0)+IF(ISNUMBER(CSVデータ2!AJ19),CSVデータ2!AJ19,0)+IF(ISNUMBER(CSVデータ3!AJ19),CSVデータ3!AJ19,0)+IF(ISNUMBER(CSVデータ4!AJ19),CSVデータ4!AJ19,0) -> 272 | AL19: =IF(ISNUMBER(CSVデータ1!AL19),CSVデータ1!AL19,0)+IF(ISNUMBER(CSVデータ2!AL19),CSVデータ2!AL19,0)+IF(ISNUMBER(CSVデータ3!AL19),CSVデータ3!AL19,0)+IF(ISNUMBER(CSVデータ4!AL19),CSVデータ4!AL19,0) -> 307 | AN19: =IF(ISNUMBER(CSVデータ1!AN19),CSVデータ1!AN19,0)+IF(ISNUMBER(CSVデータ2!AN19),CSVデータ2!AN19,0)+IF(ISNUMBER(CSVデータ3!AN19),CSVデータ3!AN19,0)+IF(ISNUMBER(CSVデータ4!AN19),CSVデータ4!AN19,0) -> 199
A20: =CSVデータ1!A20 -> 明細部 | B20: =CSVデータ1!B20 -> 国 | C20: =CSVデータ1!C20 -> 56 | D20: =CSVデータ1!D20 -> 男 | E20: =IF(ISNUMBER(CSVデータ1!E20),CSVデータ1!E20,0)+IF(ISNUMBER(CSVデータ2!E20),CSVデータ2!E20,0)+IF(ISNUMBER(CSVデータ3!E20),CSVデータ3!E20,0)+IF(ISNUMBER(CSVデータ4!E20),CSVデータ4!E20,0) -> 3274 | F20: =IF(ISNUMBER(CSVデータ1!F20),CSVデータ1!F20,0)+IF(ISNUMBER(CSVデータ2!F20),CSVデータ2!F20,0)+IF(ISNUMBER(CSVデータ3!F20),CSVデータ3!F20,0)+IF(ISNUMBER(CSVデータ4!F20),CSVデータ4!F20,0) -> 1287 | H20: =IF(ISNUMBER(CSVデータ1!H20),CSVデータ1!H20,0)+IF(ISNUMBER(CSVデータ2!H20),CSVデータ2!H20,0)+IF(ISNUMBER(CSVデータ3!H20),CSVデータ3!H20,0)+IF(ISNUMBER(CSVデータ4!H20),CSVデータ4!H20,0) -> 1812 | J20: =IF(ISNUMBER(CSVデータ1!J20),CSVデータ1!J20,0)+IF(ISNUMBER(CSVデータ2!J20),CSVデータ2!J20,0)+IF(ISNUMBER(CSVデータ3!J20),CSVデータ3!J20,0)+IF(ISNUMBER(CSVデータ4!J20),CSVデータ4!J20,0) -> 729 | L20: =IF(ISNUMBER(CSVデータ1!L20),CSVデータ1!L20,0)+IF(ISNUMBER(CSVデータ2!L20),CSVデータ2!L20,0)+IF(ISNUMBER(CSVデータ3!L20),CSVデータ3!L20,0)+IF(ISNUMBER(CSVデータ4!L20),CSVデータ4!L20,0) -> 810 | N20: =IF(ISNUMBER(CSVデータ1!N20),CSVデータ1!N20,0)+IF(ISNUMBER(CSVデータ2!N20),CSVデータ2!N20,0)+IF(ISNUMBER(CSVデータ3!N20),CSVデータ3!N20,0)+IF(ISNUMBER(CSVデータ4!N20),CSVデータ4!N20,0) -> 241 | P20: =IF(ISNUMBER(CSVデータ1!P20),CSVデータ1!P20,0)+IF(ISNUMBER(CSVデータ2!P20),CSVデータ2!P20,0)+IF(ISNUMBER(CSVデータ3!P20),CSVデータ3!P20,0)+IF(ISNUMBER(CSVデータ4!P20),CSVデータ4!P20,0) -> 820 | R20: =IF(ISNUMBER(CSVデータ1!R20),CSVデータ1!R20,0)+IF(ISNUMBER(CSVデータ2!R20),CSVデータ2!R20,0)+IF(ISNUMBER(CSVデータ3!R20),CSVデータ3!R20,0)+IF(ISNUMBER(CSVデータ4!R20),CSVデータ4!R20,0) -> 1681 | T20: =IF(ISNUMBER(CSVデータ1!T20),CSVデータ1!T20,0)+IF(ISNUMBER(CSVデータ2!T20),CSVデータ2!T20,0)+IF(ISNUMBER(CSVデータ3!T20),CSVデータ3!T20,0)+IF(ISNUMBER(CSVデータ4!T20),CSVデータ4!T20,0) -> 463 | V20: =IF(ISNUMBER(CSVデータ1!V20),CSVデータ1!V20,0)+IF(ISNUMBER(CSVデータ2!V20),CSVデータ2!V20,0)+IF(ISNUMBER(CSVデータ3!V20),CSVデータ3!V20,0)+IF(ISNUMBER(CSVデータ4!V20),CSVデータ4!V20,0) -> 1309 | X20: =IF(ISNUMBER(CSVデータ1!X20),CSVデータ1!X20,0)+IF(ISNUMBER(CSVデータ2!X20),CSVデータ2!X20,0)+IF(ISNUMBER(CSVデータ3!X20),CSVデータ3!X20,0)+IF(ISNUMBER(CSVデータ4!X20),CSVデータ4!X20,0) -> 1101 | Z20: =IF(ISNUMBER(CSVデータ1!Z20),CSVデータ1!Z20,0)+IF(ISNUMBER(CSVデータ2!Z20),CSVデータ2!Z20,0)+IF(ISNUMBER(CSVデータ3!Z20),CSVデータ3!Z20,0)+IF(ISNUMBER(CSVデータ4!Z20),CSVデータ4!Z20,0) -> 1655 | AB20: =IF(ISNUMBER(CSVデータ1!AB20),CSVデータ1!AB20,0)+IF(ISNUMBER(CSVデータ2!AB20),CSVデータ2!AB20,0)+IF(ISNUMBER(CSVデータ3!AB20),CSVデータ3!AB20,0)+IF(ISNUMBER(CSVデータ4!AB20),CSVデータ4!AB20,0) -> 40 | AD20: =IF(ISNUMBER(CSVデータ1!AD20),CSVデータ1!AD20,0)+IF(ISNUMBER(CSVデータ2!AD20),CSVデータ2!AD20,0)+IF(ISNUMBER(CSVデータ3!AD20),CSVデータ3!AD20,0)+IF(ISNUMBER(CSVデータ4!AD20),CSVデータ4!AD20,0) -> 539 | AF20: =IF(ISNUMBER(CSVデータ1!AF20),CSVデータ1!AF20,0)+IF(ISNUMBER(CSVデータ2!AF20),CSVデータ2!AF20,0)+IF(ISNUMBER(CSVデータ3!AF20),CSVデータ3!AF20,0)+IF(ISNUMBER(CSVデータ4!AF20),CSVデータ4!AF20,0) -> 711 | AH20: =IF(ISNUMBER(CSVデータ1!AH20),CSVデータ1!AH20,0)+IF(ISNUMBER(CSVデータ2!AH20),CSVデータ2!AH20,0)+IF(ISNUMBER(CSVデータ3!AH20),CSVデータ3!AH20,0)+IF(ISNUMBER(CSVデータ4!AH20),CSVデータ4!AH20,0) -> 75 | AJ20: =IF(ISNUMBER(CSVデータ1!AJ20),CSVデータ1!AJ20,0)+IF(ISNUMBER(CSVデータ2!AJ20),CSVデータ2!AJ20,0)+IF(ISNUMBER(CSVデータ3!AJ20),CSVデータ3!AJ20,0)+IF(ISNUMBER(CSVデータ4!AJ20),CSVデータ4!AJ20,0) -> 252 | AL20: =IF(ISNUMBER(CSVデータ1!AL20),CSVデータ1!AL20,0)+IF(ISNUMBER(CSVデータ2!AL20),CSVデータ2!AL20,0)+IF(ISNUMBER(CSVデータ3!AL20),CSVデータ3!AL20,0)+IF(ISNUMBER(CSVデータ4!AL20),CSVデータ4!AL20,0) -> 336 | AN20: =IF(ISNUMBER(CSVデータ1!AN20),CSVデータ1!AN20,0)+IF(ISNUMBER(CSVデータ2!AN20),CSVデータ2!AN20,0)+IF(ISNUMBER(CSVデータ3!AN20),CSVデータ3!AN20,0)+IF(ISNUMBER(CSVデータ4!AN20),CSVデータ4!AN20,0) -> 194
A21: =CSVデータ1!A21 -> 明細部 | B21: =CSVデータ1!B21 -> 国 | C21: =CSVデータ1!C21 -> 57 | D21: =CSVデータ1!D21 -> 男 | E21: =IF(ISNUMBER(CSVデータ1!E21),CSVデータ1!E21,0)+IF(ISNUMBER(CSVデータ2!E21),CSVデータ2!E21,0)+IF(ISNUMBER(CSVデータ3!E21),CSVデータ3!E21,0)+IF(ISNUMBER(CSVデータ4!E21),CSVデータ4!E21,0) -> 3341 | F21: =IF(ISNUMBER(CSVデータ1!F21),CSVデータ1!F21,0)+IF(ISNUMBER(CSVデータ2!F21),CSVデータ2!F21,0)+IF(ISNUMBER(CSVデータ3!F21),CSVデータ3!F21,0)+IF(ISNUMBER(CSVデータ4!F21),CSVデータ4!F21,0) -> 1367 | H21: =IF(ISNUMBER(CSVデータ1!H21),CSVデータ1!H21,0)+IF(ISNUMBER(CSVデータ2!H21),CSVデータ2!H21,0)+IF(ISNUMBER(CSVデータ3!H21),CSVデータ3!H21,0)+IF(ISNUMBER(CSVデータ4!H21),CSVデータ4!H21,0) -> 1878 | J21: =IF(ISNUMBER(CSVデータ1!J21),CSVデータ1!J21,0)+IF(ISNUMBER(CSVデータ2!J21),CSVデータ2!J21,0)+IF(ISNUMBER(CSVデータ3!J21),CSVデータ3!J21,0)+IF(ISNUMBER(CSVデータ4!J21),CSVデータ4!J21,0) -> 790 | L21: =IF(ISNUMBER(CSVデータ1!L21),CSVデータ1!L21,0)+IF(ISNUMBER(CSVデータ2!L21),CSVデータ2!L21,0)+IF(ISNUMBER(CSVデータ3!L21),CSVデータ3!L21,0)+IF(ISNUMBER(CSVデータ4!L21),CSVデータ4!L21,0) -> 887 | N21: =IF(ISNUMBER(CSVデータ1!N21),CSVデータ1!N21,0)+IF(ISNUMBER(CSVデータ2!N21),CSVデータ2!N21,0)+IF(ISNUMBER(CSVデータ3!N21),CSVデータ3!N21,0)+IF(ISNUMBER(CSVデータ4!N21),CSVデータ4!N21,0) -> 242 | P21: =IF(ISNUMBER(CSVデータ1!P21),CSVデータ1!P21,0)+IF(ISNUMBER(CSVデータ2!P21),CSVデータ2!P21,0)+IF(ISNUMBER(CSVデータ3!P21),CSVデータ3!P21,0)+IF(ISNUMBER(CSVデータ4!P21),CSVデータ4!P21,0) -> 917 | R21: =IF(ISNUMBER(CSVデータ1!R21),CSVデータ1!R21,0)+IF(ISNUMBER(CSVデータ2!R21),CSVデータ2!R21,0)+IF(ISNUMBER(CSVデータ3!R21),CSVデータ3!R21,0)+IF(ISNUMBER(CSVデータ4!R21),CSVデータ4!R21,0) -> 1816 | T21: =IF(ISNUMBER(CSVデータ1!T21),CSVデータ1!T21,0)+IF(ISNUMBER(CSVデータ2!T21),CSVデータ2!T21,0)+IF(ISNUMBER(CSVデータ3!T21),CSVデータ3!T21,0)+IF(ISNUMBER(CSVデータ4!T21),CSVデータ4!T21,0) -> 445 | V21: =IF(ISNUMBER(CSVデータ1!V21),CSVデータ1!V21,0)+IF(ISNUMBER(CSVデータ2!V21),CSVデータ2!V21,0)+IF(ISNUMBER(CSVデータ3!V21),CSVデータ3!V21,0)+IF(ISNUMBER(CSVデータ4!V21),CSVデータ4!V21,0) -> 1411 | X21: =IF(ISNUMBER(CSVデータ1!X21),CSVデータ1!X21,0)+IF(ISNUMBER(CSVデータ2!X21),CSVデータ2!X21,0)+IF(ISNUMBER(CSVデータ3!X21),CSVデータ3!X21,0)+IF(ISNUMBER(CSVデータ4!X21),CSVデータ4!X21,0) -> 1169 | Z21: =IF(ISNUMBER(CSVデータ1!Z21),CSVデータ1!Z21,0)+IF(ISNUMBER(CSVデータ2!Z21),CSVデータ2!Z21,0)+IF(ISNUMBER(CSVデータ3!Z21),CSVデータ3!Z21,0)+IF(ISNUMBER(CSVデータ4!Z21),CSVデータ4!Z21,0) -> 1708 | AB21: =IF(ISNUMBER(CSVデータ1!AB21),CSVデータ1!AB21,0)+IF(ISNUMBER(CSVデータ2!AB21),CSVデータ2!AB21,0)+IF(ISNUMBER(CSVデータ3!AB21),CSVデータ3!AB21,0)+IF(ISNUMBER(CSVデータ4!AB21),CSVデータ4!AB21,0) -> 43 | AD21: =IF(ISNUMBER(CSVデータ1!AD21),CSVデータ1!AD21,0)+IF(ISNUMBER(CSVデータ2!AD21),CSVデータ2!AD21,0)+IF(ISNUMBER(CSVデータ3!AD21),CSVデータ3!AD21,0)+IF(ISNUMBER(CSVデータ4!AD21),CSVデータ4!AD21,0) -> 598 | AF21: =IF(ISNUMBER(CSVデータ1!AF21),CSVデータ1!AF21,0)+IF(ISNUMBER(CSVデータ2!AF21),CSVデータ2!AF21,0)+IF(ISNUMBER(CSVデータ3!AF21),CSVデータ3!AF21,0)+IF(ISNUMBER(CSVデータ4!AF21),CSVデータ4!AF21,0) -> 740 | AH21: =IF(ISNUMBER(CSVデータ1!AH21),CSVデータ1!AH21,0)+IF(ISNUMBER(CSVデータ2!AH21),CSVデータ2!AH21,0)+IF(ISNUMBER(CSVデータ3!AH21),CSVデータ3!AH21,0)+IF(ISNUMBER(CSVデータ4!AH21),CSVデータ4!AH21,0) -> 77 | AJ21: =IF(ISNUMBER(CSVデータ1!AJ21),CSVデータ1!AJ21,0)+IF(ISNUMBER(CSVデータ2!AJ21),CSVデータ2!AJ21,0)+IF(ISNUMBER(CSVデータ3!AJ21),CSVデータ3!AJ21,0)+IF(ISNUMBER(CSVデータ4!AJ21),CSVデータ4!AJ21,0) -> 295 | AL21: =IF(ISNUMBER(CSVデータ1!AL21),CSVデータ1!AL21,0)+IF(ISNUMBER(CSVデータ2!AL21),CSVデータ2!AL21,0)+IF(ISNUMBER(CSVデータ3!AL21),CSVデータ3!AL21,0)+IF(ISNUMBER(CSVデータ4!AL21),CSVデータ4!AL21,0) -> 394 | AN21: =IF(ISNUMBER(CSVデータ1!AN21),CSVデータ1!AN21,0)+IF(ISNUMBER(CSVデータ2!AN21),CSVデータ2!AN21,0)+IF(ISNUMBER(CSVデータ3!AN21),CSVデータ3!AN21,0)+IF(ISNUMBER(CSVデータ4!AN21),CSVデータ4!AN21,0) -> 204
A22: =CSVデータ1!A22 -> 明細部 | B22: =CSVデータ1!B22 -> 国 | C22: =CSVデータ1!C22 -> 58 | D22: =CSVデータ1!D22 -> 男 | E22: =IF(ISNUMBER(CSVデータ1!E22),CSVデータ1!E22,0)+IF(ISNUMBER(CSVデータ2!E22),CSVデータ2!E22,0)+IF(ISNUMBER(CSVデータ3!E22),CSVデータ3!E22,0)+IF(ISNUMBER(CSVデータ4!E22),CSVデータ4!E22,0) -> 2830 | F22: =IF(ISNUMBER(CSVデータ1!F22),CSVデータ1!F22,0)+IF(ISNUMBER(CSVデータ2!F22),CSVデータ2!F22,0)+IF(ISNUMBER(CSVデータ3!F22),CSVデータ3!F22,0)+IF(ISNUMBER(CSVデータ4!F22),CSVデータ4!F22,0) -> 1171 | H22: =IF(ISNUMBER(CSVデータ1!H22),CSVデータ1!H22,0)+IF(ISNUMBER(CSVデータ2!H22),CSVデータ2!H22,0)+IF(ISNUMBER(CSVデータ3!H22),CSVデータ3!H22,0)+IF(ISNUMBER(CSVデータ4!H22),CSVデータ4!H22,0) -> 1578 | J22: =IF(ISNUMBER(CSVデータ1!J22),CSVデータ1!J22,0)+IF(ISNUMBER(CSVデータ2!J22),CSVデータ2!J22,0)+IF(ISNUMBER(CSVデータ3!J22),CSVデータ3!J22,0)+IF(ISNUMBER(CSVデータ4!J22),CSVデータ4!J22,0) -> 629 | L22: =IF(ISNUMBER(CSVデータ1!L22),CSVデータ1!L22,0)+IF(ISNUMBER(CSVデータ2!L22),CSVデータ2!L22,0)+IF(ISNUMBER(CSVデータ3!L22),CSVデータ3!L22,0)+IF(ISNUMBER(CSVデータ4!L22),CSVデータ4!L22,0) -> 732 | N22: =IF(ISNUMBER(CSVデータ1!N22),CSVデータ1!N22,0)+IF(ISNUMBER(CSVデータ2!N22),CSVデータ2!N22,0)+IF(ISNUMBER(CSVデータ3!N22),CSVデータ3!N22,0)+IF(ISNUMBER(CSVデータ4!N22),CSVデータ4!N22,0) -> 219 | P22: =IF(ISNUMBER(CSVデータ1!P22),CSVデータ1!P22,0)+IF(ISNUMBER(CSVデータ2!P22),CSVデータ2!P22,0)+IF(ISNUMBER(CSVデータ3!P22),CSVデータ3!P22,0)+IF(ISNUMBER(CSVデータ4!P22),CSVデータ4!P22,0) -> 793 | R22: =IF(ISNUMBER(CSVデータ1!R22),CSVデータ1!R22,0)+IF(ISNUMBER(CSVデータ2!R22),CSVデータ2!R22,0)+IF(ISNUMBER(CSVデータ3!R22),CSVデータ3!R22,0)+IF(ISNUMBER(CSVデータ4!R22),CSVデータ4!R22,0) -> 1582 | T22: =IF(ISNUMBER(CSVデータ1!T22),CSVデータ1!T22,0)+IF(ISNUMBER(CSVデータ2!T22),CSVデータ2!T22,0)+IF(ISNUMBER(CSVデータ3!T22),CSVデータ3!T22,0)+IF(ISNUMBER(CSVデータ4!T22),CSVデータ4!T22,0) -> 375 | V22: =IF(ISNUMBER(CSVデータ1!V22),CSVデータ1!V22,0)+IF(ISNUMBER(CSVデータ2!V22),CSVデータ2!V22,0)+IF(ISNUMBER(CSVデータ3!V22),CSVデータ3!V22,0)+IF(ISNUMBER(CSVデータ4!V22),CSVデータ4!V22,0) -> 1218 | X22: =IF(ISNUMBER(CSVデータ1!X22),CSVデータ1!X22,0)+IF(ISNUMBER(CSVデータ2!X22),CSVデータ2!X22,0)+IF(ISNUMBER(CSVデータ3!X22),CSVデータ3!X22,0)+IF(ISNUMBER(CSVデータ4!X22),CSVデータ4!X22,0) -> 960 | Z22: =IF(ISNUMBER(CSVデータ1!Z22),CSVデータ1!Z22,0)+IF(ISNUMBER(CSVデータ2!Z22),CSVデータ2!Z22,0)+IF(ISNUMBER(CSVデータ3!Z22),CSVデータ3!Z22,0)+IF(ISNUMBER(CSVデータ4!Z22),CSVデータ4!Z22,0) -> 1473 | AB22: =IF(ISNUMBER(CSVデータ1!AB22),CSVデータ1!AB22,0)+IF(ISNUMBER(CSVデータ2!AB22),CSVデータ2!AB22,0)+IF(ISNUMBER(CSVデータ3!AB22),CSVデータ3!AB22,0)+IF(ISNUMBER(CSVデータ4!AB22),CSVデータ4!AB22,0) -> 40 | AD22: =IF(ISNUMBER(CSVデータ1!AD22),CSVデータ1!AD22,0)+IF(ISNUMBER(CSVデータ2!AD22),CSVデータ2!AD22,0)+IF(ISNUMBER(CSVデータ3!AD22),CSVデータ3!AD22,0)+IF(ISNUMBER(CSVデータ4!AD22),CSVデータ4!AD22,0) -> 539 | AF22: =IF(ISNUMBER(CSVデータ1!AF22),CSVデータ1!AF22,0)+IF(ISNUMBER(CSVデータ2!AF22),CSVデータ2!AF22,0)+IF(ISNUMBER(CSVデータ3!AF22),CSVデータ3!AF22,0)+IF(ISNUMBER(CSVデータ4!AF22),CSVデータ4!AF22,0) -> 658 | AH22: =IF(ISNUMBER(CSVデータ1!AH22),CSVデータ1!AH22,0)+IF(ISNUMBER(CSVデータ2!AH22),CSVデータ2!AH22,0)+IF(ISNUMBER(CSVデータ3!AH22),CSVデータ3!AH22,0)+IF(ISNUMBER(CSVデータ4!AH22),CSVデータ4!AH22,0) -> 73 | AJ22: =IF(ISNUMBER(CSVデータ1!AJ22),CSVデータ1!AJ22,0)+IF(ISNUMBER(CSVデータ2!AJ22),CSVデータ2!AJ22,0)+IF(ISNUMBER(CSVデータ3!AJ22),CSVデータ3!AJ22,0)+IF(ISNUMBER(CSVデータ4!AJ22),CSVデータ4!AJ22,0) -> 235 | AL22: =IF(ISNUMBER(CSVデータ1!AL22),CSVデータ1!AL22,0)+IF(ISNUMBER(CSVデータ2!AL22),CSVデータ2!AL22,0)+IF(ISNUMBER(CSVデータ3!AL22),CSVデータ3!AL22,0)+IF(ISNUMBER(CSVデータ4!AL22),CSVデータ4!AL22,0) -> 352 | AN22: =IF(ISNUMBER(CSVデータ1!AN22),CSVデータ1!AN22,0)+IF(ISNUMBER(CSVデータ2!AN22),CSVデータ2!AN22,0)+IF(ISNUMBER(CSVデータ3!AN22),CSVデータ3!AN22,0)+IF(ISNUMBER(CSVデータ4!AN22),CSVデータ4!AN22,0) -> 179
A23: =CSVデータ1!A23 -> 明細部 | B23: =CSVデータ1!B23 -> 国 | C23: =CSVデータ1!C23 -> 59 | D23: =CSVデータ1!D23 -> 男 | E23: =IF(ISNUMBER(CSVデータ1!E23),CSVデータ1!E23,0)+IF(ISNUMBER(CSVデータ2!E23),CSVデータ2!E23,0)+IF(ISNUMBER(CSVデータ3!E23),CSVデータ3!E23,0)+IF(ISNUMBER(CSVデータ4!E23),CSVデータ4!E23,0) -> 3125 | F23: =IF(ISNUMBER(CSVデータ1!F23),CSVデータ1!F23,0)+IF(ISNUMBER(CSVデータ2!F23),CSVデータ2!F23,0)+IF(ISNUMBER(CSVデータ3!F23),CSVデータ3!F23,0)+IF(ISNUMBER(CSVデータ4!F23),CSVデータ4!F23,0) -> 1228 | H23: =IF(ISNUMBER(CSVデータ1!H23),CSVデータ1!H23,0)+IF(ISNUMBER(CSVデータ2!H23),CSVデータ2!H23,0)+IF(ISNUMBER(CSVデータ3!H23),CSVデータ3!H23,0)+IF(ISNUMBER(CSVデータ4!H23),CSVデータ4!H23,0) -> 1774 | J23: =IF(ISNUMBER(CSVデータ1!J23),CSVデータ1!J23,0)+IF(ISNUMBER(CSVデータ2!J23),CSVデータ2!J23,0)+IF(ISNUMBER(CSVデータ3!J23),CSVデータ3!J23,0)+IF(ISNUMBER(CSVデータ4!J23),CSVデータ4!J23,0) -> 705 | L23: =IF(ISNUMBER(CSVデータ1!L23),CSVデータ1!L23,0)+IF(ISNUMBER(CSVデータ2!L23),CSVデータ2!L23,0)+IF(ISNUMBER(CSVデータ3!L23),CSVデータ3!L23,0)+IF(ISNUMBER(CSVデータ4!L23),CSVデータ4!L23,0) -> 769 | N23: =IF(ISNUMBER(CSVデータ1!N23),CSVデータ1!N23,0)+IF(ISNUMBER(CSVデータ2!N23),CSVデータ2!N23,0)+IF(ISNUMBER(CSVデータ3!N23),CSVデータ3!N23,0)+IF(ISNUMBER(CSVデータ4!N23),CSVデータ4!N23,0) -> 208 | P23: =IF(ISNUMBER(CSVデータ1!P23),CSVデータ1!P23,0)+IF(ISNUMBER(CSVデータ2!P23),CSVデータ2!P23,0)+IF(ISNUMBER(CSVデータ3!P23),CSVデータ3!P23,0)+IF(ISNUMBER(CSVデータ4!P23),CSVデータ4!P23,0) -> 916 | R23: =IF(ISNUMBER(CSVデータ1!R23),CSVデータ1!R23,0)+IF(ISNUMBER(CSVデータ2!R23),CSVデータ2!R23,0)+IF(ISNUMBER(CSVデータ3!R23),CSVデータ3!R23,0)+IF(ISNUMBER(CSVデータ4!R23),CSVデータ4!R23,0) -> 1749 | T23: =IF(ISNUMBER(CSVデータ1!T23),CSVデータ1!T23,0)+IF(ISNUMBER(CSVデータ2!T23),CSVデータ2!T23,0)+IF(ISNUMBER(CSVデータ3!T23),CSVデータ3!T23,0)+IF(ISNUMBER(CSVデータ4!T23),CSVデータ4!T23,0) -> 439 | V23: =IF(ISNUMBER(CSVデータ1!V23),CSVデータ1!V23,0)+IF(ISNUMBER(CSVデータ2!V23),CSVデータ2!V23,0)+IF(ISNUMBER(CSVデータ3!V23),CSVデータ3!V23,0)+IF(ISNUMBER(CSVデータ4!V23),CSVデータ4!V23,0) -> 1370 | X23: =IF(ISNUMBER(CSVデータ1!X23),CSVデータ1!X23,0)+IF(ISNUMBER(CSVデータ2!X23),CSVデータ2!X23,0)+IF(ISNUMBER(CSVデータ3!X23),CSVデータ3!X23,0)+IF(ISNUMBER(CSVデータ4!X23),CSVデータ4!X23,0) -> 1073 | Z23: =IF(ISNUMBER(CSVデータ1!Z23),CSVデータ1!Z23,0)+IF(ISNUMBER(CSVデータ2!Z23),CSVデータ2!Z23,0)+IF(ISNUMBER(CSVデータ3!Z23),CSVデータ3!Z23,0)+IF(ISNUMBER(CSVデータ4!Z23),CSVデータ4!Z23,0) -> 1607 | AB23: =IF(ISNUMBER(CSVデータ1!AB23),CSVデータ1!AB23,0)+IF(ISNUMBER(CSVデータ2!AB23),CSVデータ2!AB23,0)+IF(ISNUMBER(CSVデータ3!AB23),CSVデータ3!AB23,0)+IF(ISNUMBER(CSVデータ4!AB23),CSVデータ4!AB23,0) -> 47 | AD23: =IF(ISNUMBER(CSVデータ1!AD23),CSVデータ1!AD23,0)+IF(ISNUMBER(CSVデータ2!AD23),CSVデータ2!AD23,0)+IF(ISNUMBER(CSVデータ3!AD23),CSVデータ3!AD23,0)+IF(ISNUMBER(CSVデータ4!AD23),CSVデータ4!AD23,0) -> 550 | AF23: =IF(ISNUMBER(CSVデータ1!AF23),CSVデータ1!AF23,0)+IF(ISNUMBER(CSVデータ2!AF23),CSVデータ2!AF23,0)+IF(ISNUMBER(CSVデータ3!AF23),CSVデータ3!AF23,0)+IF(ISNUMBER(CSVデータ4!AF23),CSVデータ4!AF23,0) -> 713 | AH23: =IF(ISNUMBER(CSVデータ1!AH23),CSVデータ1!AH23,0)+IF(ISNUMBER(CSVデータ2!AH23),CSVデータ2!AH23,0)+IF(ISNUMBER(CSVデータ3!AH23),CSVデータ3!AH23,0)+IF(ISNUMBER(CSVデータ4!AH23),CSVデータ4!AH23,0) -> 86 | AJ23: =IF(ISNUMBER(CSVデータ1!AJ23),CSVデータ1!AJ23,0)+IF(ISNUMBER(CSVデータ2!AJ23),CSVデータ2!AJ23,0)+IF(ISNUMBER(CSVデータ3!AJ23),CSVデータ3!AJ23,0)+IF(ISNUMBER(CSVデータ4!AJ23),CSVデータ4!AJ23,0) -> 257 | AL23: =IF(ISNUMBER(CSVデータ1!AL23),CSVデータ1!AL23,0)+IF(ISNUMBER(CSVデータ2!AL23),CSVデータ2!AL23,0)+IF(ISNUMBER(CSVデータ3!AL23),CSVデータ3!AL23,0)+IF(ISNUMBER(CSVデータ4!AL23),CSVデータ4!AL23,0) -> 432 | AN23: =IF(ISNUMBER(CSVデータ1!AN23),CSVデータ1!AN23,0)+IF(ISNUMBER(CSVデータ2!AN23),CSVデータ2!AN23,0)+IF(ISNUMBER(CSVデータ3!AN23),CSVデータ3!AN23,0)+IF(ISNUMBER(CSVデータ4!AN23),CSVデータ4!AN23,0) -> 205
A24: =CSVデータ1!A24 -> 明細部 | B24: =CSVデータ1!B24 -> 国 | C24: =CSVデータ1!C24 -> 60 | D24: =CSVデータ1!D24 -> 男 | E24: =IF(ISNUMBER(CSVデータ1!E24),CSVデータ1!E24,0)+IF(ISNUMBER(CSVデータ2!E24),CSVデータ2!E24,0)+IF(ISNUMBER(CSVデータ3!E24),CSVデータ3!E24,0)+IF(ISNUMBER(CSVデータ4!E24),CSVデータ4!E24,0) -> 3572 | F24: =IF(ISNUMBER(CSVデータ1!F24),CSVデータ1!F24,0)+IF(ISNUMBER(CSVデータ2!F24),CSVデータ2!F24,0)+IF(ISNUMBER(CSVデータ3!F24),CSVデータ3!F24,0)+IF(ISNUMBER(CSVデータ4!F24),CSVデータ4!F24,0) -> 1367 | H24: =IF(ISNUMBER(CSVデータ1!H24),CSVデータ1!H24,0)+IF(ISNUMBER(CSVデータ2!H24),CSVデータ2!H24,0)+IF(ISNUMBER(CSVデータ3!H24),CSVデータ3!H24,0)+IF(ISNUMBER(CSVデータ4!H24),CSVデータ4!H24,0) -> 1978 | J24: =IF(ISNUMBER(CSVデータ1!J24),CSVデータ1!J24,0)+IF(ISNUMBER(CSVデータ2!J24),CSVデータ2!J24,0)+IF(ISNUMBER(CSVデータ3!J24),CSVデータ3!J24,0)+IF(ISNUMBER(CSVデータ4!J24),CSVデータ4!J24,0) -> 748 | L24: =IF(ISNUMBER(CSVデータ1!L24),CSVデータ1!L24,0)+IF(ISNUMBER(CSVデータ2!L24),CSVデータ2!L24,0)+IF(ISNUMBER(CSVデータ3!L24),CSVデータ3!L24,0)+IF(ISNUMBER(CSVデータ4!L24),CSVデータ4!L24,0) -> 827 | N24: =IF(ISNUMBER(CSVデータ1!N24),CSVデータ1!N24,0)+IF(ISNUMBER(CSVデータ2!N24),CSVデータ2!N24,0)+IF(ISNUMBER(CSVデータ3!N24),CSVデータ3!N24,0)+IF(ISNUMBER(CSVデータ4!N24),CSVデータ4!N24,0) -> 230 | P24: =IF(ISNUMBER(CSVデータ1!P24),CSVデータ1!P24,0)+IF(ISNUMBER(CSVデータ2!P24),CSVデータ2!P24,0)+IF(ISNUMBER(CSVデータ3!P24),CSVデータ3!P24,0)+IF(ISNUMBER(CSVデータ4!P24),CSVデータ4!P24,0) -> 1076 | R24: =IF(ISNUMBER(CSVデータ1!R24),CSVデータ1!R24,0)+IF(ISNUMBER(CSVデータ2!R24),CSVデータ2!R24,0)+IF(ISNUMBER(CSVデータ3!R24),CSVデータ3!R24,0)+IF(ISNUMBER(CSVデータ4!R24),CSVデータ4!R24,0) -> 2048 | T24: =IF(ISNUMBER(CSVデータ1!T24),CSVデータ1!T24,0)+IF(ISNUMBER(CSVデータ2!T24),CSVデータ2!T24,0)+IF(ISNUMBER(CSVデータ3!T24),CSVデータ3!T24,0)+IF(ISNUMBER(CSVデータ4!T24),CSVデータ4!T24,0) -> 473 | V24: =IF(ISNUMBER(CSVデータ1!V24),CSVデータ1!V24,0)+IF(ISNUMBER(CSVデータ2!V24),CSVデータ2!V24,0)+IF(ISNUMBER(CSVデータ3!V24),CSVデータ3!V24,0)+IF(ISNUMBER(CSVデータ4!V24),CSVデータ4!V24,0) -> 1537 | X24: =IF(ISNUMBER(CSVデータ1!X24),CSVデータ1!X24,0)+IF(ISNUMBER(CSVデータ2!X24),CSVデータ2!X24,0)+IF(ISNUMBER(CSVデータ3!X24),CSVデータ3!X24,0)+IF(ISNUMBER(CSVデータ4!X24),CSVデータ4!X24,0) -> 1156 | Z24: =IF(ISNUMBER(CSVデータ1!Z24),CSVデータ1!Z24,0)+IF(ISNUMBER(CSVデータ2!Z24),CSVデータ2!Z24,0)+IF(ISNUMBER(CSVデータ3!Z24),CSVデータ3!Z24,0)+IF(ISNUMBER(CSVデータ4!Z24),CSVデータ4!Z24,0) -> 1771 | AB24: =IF(ISNUMBER(CSVデータ1!AB24),CSVデータ1!AB24,0)+IF(ISNUMBER(CSVデータ2!AB24),CSVデータ2!AB24,0)+IF(ISNUMBER(CSVデータ3!AB24),CSVデータ3!AB24,0)+IF(ISNUMBER(CSVデータ4!AB24),CSVデータ4!AB24,0) -> 76 | AD24: =IF(ISNUMBER(CSVデータ1!AD24),CSVデータ1!AD24,0)+IF(ISNUMBER(CSVデータ2!AD24),CSVデータ2!AD24,0)+IF(ISNUMBER(CSVデータ3!AD24),CSVデータ3!AD24,0)+IF(ISNUMBER(CSVデータ4!AD24),CSVデータ4!AD24,0) -> 648 | AF24: =IF(ISNUMBER(CSVデータ1!AF24),CSVデータ1!AF24,0)+IF(ISNUMBER(CSVデータ2!AF24),CSVデータ2!AF24,0)+IF(ISNUMBER(CSVデータ3!AF24),CSVデータ3!AF24,0)+IF(ISNUMBER(CSVデータ4!AF24),CSVデータ4!AF24,0) -> 805 | AH24: =IF(ISNUMBER(CSVデータ1!AH24),CSVデータ1!AH24,0)+IF(ISNUMBER(CSVデータ2!AH24),CSVデータ2!AH24,0)+IF(ISNUMBER(CSVデータ3!AH24),CSVデータ3!AH24,0)+IF(ISNUMBER(CSVデータ4!AH24),CSVデータ4!AH24,0) -> 74 | AJ24: =IF(ISNUMBER(CSVデータ1!AJ24),CSVデータ1!AJ24,0)+IF(ISNUMBER(CSVデータ2!AJ24),CSVデータ2!AJ24,0)+IF(ISNUMBER(CSVデータ3!AJ24),CSVデータ3!AJ24,0)+IF(ISNUMBER(CSVデータ4!AJ24),CSVデータ4!AJ24,0) -> 280 | AL24: =IF(ISNUMBER(CSVデータ1!AL24),CSVデータ1!AL24,0)+IF(ISNUMBER(CSVデータ2!AL24),CSVデータ2!AL24,0)+IF(ISNUMBER(CSVデータ3!AL24),CSVデータ3!AL24,0)+IF(ISNUMBER(CSVデータ4!AL24),CSVデータ4!AL24,0) -> 514 | AN24: =IF(ISNUMBER(CSVデータ1!AN24),CSVデータ1!AN24,0)+IF(ISNUMBER(CSVデータ2!AN24),CSVデータ2!AN24,0)+IF(ISNUMBER(CSVデータ3!AN24),CSVデータ3!AN24,0)+IF(ISNUMBER(CSVデータ4!AN24),CSVデータ4!AN24,0) -> 207
A25: =CSVデータ1!A25 -> 明細部 | B25: =CSVデータ1!B25 -> 国 | C25: =CSVデータ1!C25 -> 61 | D25: =CSVデータ1!D25 -> 男 | E25: =IF(ISNUMBER(CSVデータ1!E25),CSVデータ1!E25,0)+IF(ISNUMBER(CSVデータ2!E25),CSVデータ2!E25,0)+IF(ISNUMBER(CSVデータ3!E25),CSVデータ3!E25,0)+IF(ISNUMBER(CSVデータ4!E25),CSVデータ4!E25,0) -> 3769 | F25: =IF(ISNUMBER(CSVデータ1!F25),CSVデータ1!F25,0)+IF(ISNUMBER(CSVデータ2!F25),CSVデータ2!F25,0)+IF(ISNUMBER(CSVデータ3!F25),CSVデータ3!F25,0)+IF(ISNUMBER(CSVデータ4!F25),CSVデータ4!F25,0) -> 1433 | H25: =IF(ISNUMBER(CSVデータ1!H25),CSVデータ1!H25,0)+IF(ISNUMBER(CSVデータ2!H25),CSVデータ2!H25,0)+IF(ISNUMBER(CSVデータ3!H25),CSVデータ3!H25,0)+IF(ISNUMBER(CSVデータ4!H25),CSVデータ4!H25,0) -> 2041 | J25: =IF(ISNUMBER(CSVデータ1!J25),CSVデータ1!J25,0)+IF(ISNUMBER(CSVデータ2!J25),CSVデータ2!J25,0)+IF(ISNUMBER(CSVデータ3!J25),CSVデータ3!J25,0)+IF(ISNUMBER(CSVデータ4!J25),CSVデータ4!J25,0) -> 780 | L25: =IF(ISNUMBER(CSVデータ1!L25),CSVデータ1!L25,0)+IF(ISNUMBER(CSVデータ2!L25),CSVデータ2!L25,0)+IF(ISNUMBER(CSVデータ3!L25),CSVデータ3!L25,0)+IF(ISNUMBER(CSVデータ4!L25),CSVデータ4!L25,0) -> 883 | N25: =IF(ISNUMBER(CSVデータ1!N25),CSVデータ1!N25,0)+IF(ISNUMBER(CSVデータ2!N25),CSVデータ2!N25,0)+IF(ISNUMBER(CSVデータ3!N25),CSVデータ3!N25,0)+IF(ISNUMBER(CSVデータ4!N25),CSVデータ4!N25,0) -> 254 | P25: =IF(ISNUMBER(CSVデータ1!P25),CSVデータ1!P25,0)+IF(ISNUMBER(CSVデータ2!P25),CSVデータ2!P25,0)+IF(ISNUMBER(CSVデータ3!P25),CSVデータ3!P25,0)+IF(ISNUMBER(CSVデータ4!P25),CSVデータ4!P25,0) -> 1166 | R25: =IF(ISNUMBER(CSVデータ1!R25),CSVデータ1!R25,0)+IF(ISNUMBER(CSVデータ2!R25),CSVデータ2!R25,0)+IF(ISNUMBER(CSVデータ3!R25),CSVデータ3!R25,0)+IF(ISNUMBER(CSVデータ4!R25),CSVデータ4!R25,0) -> 2177 | T25: =IF(ISNUMBER(CSVデータ1!T25),CSVデータ1!T25,0)+IF(ISNUMBER(CSVデータ2!T25),CSVデータ2!T25,0)+IF(ISNUMBER(CSVデータ3!T25),CSVデータ3!T25,0)+IF(ISNUMBER(CSVデータ4!T25),CSVデータ4!T25,0) -> 477 | V25: =IF(ISNUMBER(CSVデータ1!V25),CSVデータ1!V25,0)+IF(ISNUMBER(CSVデータ2!V25),CSVデータ2!V25,0)+IF(ISNUMBER(CSVデータ3!V25),CSVデータ3!V25,0)+IF(ISNUMBER(CSVデータ4!V25),CSVデータ4!V25,0) -> 1710 | X25: =IF(ISNUMBER(CSVデータ1!X25),CSVデータ1!X25,0)+IF(ISNUMBER(CSVデータ2!X25),CSVデータ2!X25,0)+IF(ISNUMBER(CSVデータ3!X25),CSVデータ3!X25,0)+IF(ISNUMBER(CSVデータ4!X25),CSVデータ4!X25,0) -> 1285 | Z25: =IF(ISNUMBER(CSVデータ1!Z25),CSVデータ1!Z25,0)+IF(ISNUMBER(CSVデータ2!Z25),CSVデータ2!Z25,0)+IF(ISNUMBER(CSVデータ3!Z25),CSVデータ3!Z25,0)+IF(ISNUMBER(CSVデータ4!Z25),CSVデータ4!Z25,0) -> 1856 | AB25: =IF(ISNUMBER(CSVデータ1!AB25),CSVデータ1!AB25,0)+IF(ISNUMBER(CSVデータ2!AB25),CSVデータ2!AB25,0)+IF(ISNUMBER(CSVデータ3!AB25),CSVデータ3!AB25,0)+IF(ISNUMBER(CSVデータ4!AB25),CSVデータ4!AB25,0) -> 69 | AD25: =IF(ISNUMBER(CSVデータ1!AD25),CSVデータ1!AD25,0)+IF(ISNUMBER(CSVデータ2!AD25),CSVデータ2!AD25,0)+IF(ISNUMBER(CSVデータ3!AD25),CSVデータ3!AD25,0)+IF(ISNUMBER(CSVデータ4!AD25),CSVデータ4!AD25,0) -> 765 | AF25: =IF(ISNUMBER(CSVデータ1!AF25),CSVデータ1!AF25,0)+IF(ISNUMBER(CSVデータ2!AF25),CSVデータ2!AF25,0)+IF(ISNUMBER(CSVデータ3!AF25),CSVデータ3!AF25,0)+IF(ISNUMBER(CSVデータ4!AF25),CSVデータ4!AF25,0) -> 914 | AH25: =IF(ISNUMBER(CSVデータ1!AH25),CSVデータ1!AH25,0)+IF(ISNUMBER(CSVデータ2!AH25),CSVデータ2!AH25,0)+IF(ISNUMBER(CSVデータ3!AH25),CSVデータ3!AH25,0)+IF(ISNUMBER(CSVデータ4!AH25),CSVデータ4!AH25,0) -> 106 | AJ25: =IF(ISNUMBER(CSVデータ1!AJ25),CSVデータ1!AJ25,0)+IF(ISNUMBER(CSVデータ2!AJ25),CSVデータ2!AJ25,0)+IF(ISNUMBER(CSVデータ3!AJ25),CSVデータ3!AJ25,0)+IF(ISNUMBER(CSVデータ4!AJ25),CSVデータ4!AJ25,0) -> 286 | AL25: =IF(ISNUMBER(CSVデータ1!AL25),CSVデータ1!AL25,0)+IF(ISNUMBER(CSVデータ2!AL25),CSVデータ2!AL25,0)+IF(ISNUMBER(CSVデータ3!AL25),CSVデータ3!AL25,0)+IF(ISNUMBER(CSVデータ4!AL25),CSVデータ4!AL25,0) -> 627 | AN25: =IF(ISNUMBER(CSVデータ1!AN25),CSVデータ1!AN25,0)+IF(ISNUMBER(CSVデータ2!AN25),CSVデータ2!AN25,0)+IF(ISNUMBER(CSVデータ3!AN25),CSVデータ3!AN25,0)+IF(ISNUMBER(CSVデータ4!AN25),CSVデータ4!AN25,0) -> 235
A26: =CSVデータ1!A26 -> 明細部 | B26: =CSVデータ1!B26 -> 国 | C26: =CSVデータ1!C26 -> 62 | D26: =CSVデータ1!D26 -> 男 | E26: =IF(ISNUMBER(CSVデータ1!E26),CSVデータ1!E26,0)+IF(ISNUMBER(CSVデータ2!E26),CSVデータ2!E26,0)+IF(ISNUMBER(CSVデータ3!E26),CSVデータ3!E26,0)+IF(ISNUMBER(CSVデータ4!E26),CSVデータ4!E26,0) -> 4116 | F26: =IF(ISNUMBER(CSVデータ1!F26),CSVデータ1!F26,0)+IF(ISNUMBER(CSVデータ2!F26),CSVデータ2!F26,0)+IF(ISNUMBER(CSVデータ3!F26),CSVデータ3!F26,0)+IF(ISNUMBER(CSVデータ4!F26),CSVデータ4!F26,0) -> 1560 | H26: =IF(ISNUMBER(CSVデータ1!H26),CSVデータ1!H26,0)+IF(ISNUMBER(CSVデータ2!H26),CSVデータ2!H26,0)+IF(ISNUMBER(CSVデータ3!H26),CSVデータ3!H26,0)+IF(ISNUMBER(CSVデータ4!H26),CSVデータ4!H26,0) -> 2256 | J26: =IF(ISNUMBER(CSVデータ1!J26),CSVデータ1!J26,0)+IF(ISNUMBER(CSVデータ2!J26),CSVデータ2!J26,0)+IF(ISNUMBER(CSVデータ3!J26),CSVデータ3!J26,0)+IF(ISNUMBER(CSVデータ4!J26),CSVデータ4!J26,0) -> 829 | L26: =IF(ISNUMBER(CSVデータ1!L26),CSVデータ1!L26,0)+IF(ISNUMBER(CSVデータ2!L26),CSVデータ2!L26,0)+IF(ISNUMBER(CSVデータ3!L26),CSVデータ3!L26,0)+IF(ISNUMBER(CSVデータ4!L26),CSVデータ4!L26,0) -> 934 | N26: =IF(ISNUMBER(CSVデータ1!N26),CSVデータ1!N26,0)+IF(ISNUMBER(CSVデータ2!N26),CSVデータ2!N26,0)+IF(ISNUMBER(CSVデータ3!N26),CSVデータ3!N26,0)+IF(ISNUMBER(CSVデータ4!N26),CSVデータ4!N26,0) -> 241 | P26: =IF(ISNUMBER(CSVデータ1!P26),CSVデータ1!P26,0)+IF(ISNUMBER(CSVデータ2!P26),CSVデータ2!P26,0)+IF(ISNUMBER(CSVデータ3!P26),CSVデータ3!P26,0)+IF(ISNUMBER(CSVデータ4!P26),CSVデータ4!P26,0) -> 1287 | R26: =IF(ISNUMBER(CSVデータ1!R26),CSVデータ1!R26,0)+IF(ISNUMBER(CSVデータ2!R26),CSVデータ2!R26,0)+IF(ISNUMBER(CSVデータ3!R26),CSVデータ3!R26,0)+IF(ISNUMBER(CSVデータ4!R26),CSVデータ4!R26,0) -> 2437 | T26: =IF(ISNUMBER(CSVデータ1!T26),CSVデータ1!T26,0)+IF(ISNUMBER(CSVデータ2!T26),CSVデータ2!T26,0)+IF(ISNUMBER(CSVデータ3!T26),CSVデータ3!T26,0)+IF(ISNUMBER(CSVデータ4!T26),CSVデータ4!T26,0) -> 577 | V26: =IF(ISNUMBER(CSVデータ1!V26),CSVデータ1!V26,0)+IF(ISNUMBER(CSVデータ2!V26),CSVデータ2!V26,0)+IF(ISNUMBER(CSVデータ3!V26),CSVデータ3!V26,0)+IF(ISNUMBER(CSVデータ4!V26),CSVデータ4!V26,0) -> 1884 | X26: =IF(ISNUMBER(CSVデータ1!X26),CSVデータ1!X26,0)+IF(ISNUMBER(CSVデータ2!X26),CSVデータ2!X26,0)+IF(ISNUMBER(CSVデータ3!X26),CSVデータ3!X26,0)+IF(ISNUMBER(CSVデータ4!X26),CSVデータ4!X26,0) -> 1384 | Z26: =IF(ISNUMBER(CSVデータ1!Z26),CSVデータ1!Z26,0)+IF(ISNUMBER(CSVデータ2!Z26),CSVデータ2!Z26,0)+IF(ISNUMBER(CSVデータ3!Z26),CSVデータ3!Z26,0)+IF(ISNUMBER(CSVデータ4!Z26),CSVデータ4!Z26,0) -> 1951 | AB26: =IF(ISNUMBER(CSVデータ1!AB26),CSVデータ1!AB26,0)+IF(ISNUMBER(CSVデータ2!AB26),CSVデータ2!AB26,0)+IF(ISNUMBER(CSVデータ3!AB26),CSVデータ3!AB26,0)+IF(ISNUMBER(CSVデータ4!AB26),CSVデータ4!AB26,0) -> 81 | AD26: =IF(ISNUMBER(CSVデータ1!AD26),CSVデータ1!AD26,0)+IF(ISNUMBER(CSVデータ2!AD26),CSVデータ2!AD26,0)+IF(ISNUMBER(CSVデータ3!AD26),CSVデータ3!AD26,0)+IF(ISNUMBER(CSVデータ4!AD26),CSVデータ4!AD26,0) -> 849 | AF26: =IF(ISNUMBER(CSVデータ1!AF26),CSVデータ1!AF26,0)+IF(ISNUMBER(CSVデータ2!AF26),CSVデータ2!AF26,0)+IF(ISNUMBER(CSVデータ3!AF26),CSVデータ3!AF26,0)+IF(ISNUMBER(CSVデータ4!AF26),CSVデータ4!AF26,0) -> 961 | AH26: =IF(ISNUMBER(CSVデータ1!AH26),CSVデータ1!AH26,0)+IF(ISNUMBER(CSVデータ2!AH26),CSVデータ2!AH26,0)+IF(ISNUMBER(CSVデータ3!AH26),CSVデータ3!AH26,0)+IF(ISNUMBER(CSVデータ4!AH26),CSVデータ4!AH26,0) -> 98 | AJ26: =IF(ISNUMBER(CSVデータ1!AJ26),CSVデータ1!AJ26,0)+IF(ISNUMBER(CSVデータ2!AJ26),CSVデータ2!AJ26,0)+IF(ISNUMBER(CSVデータ3!AJ26),CSVデータ3!AJ26,0)+IF(ISNUMBER(CSVデータ4!AJ26),CSVデータ4!AJ26,0) -> 276 | AL26: =IF(ISNUMBER(CSVデータ1!AL26),CSVデータ1!AL26,0)+IF(ISNUMBER(CSVデータ2!AL26),CSVデータ2!AL26,0)+IF(ISNUMBER(CSVデータ3!AL26),CSVデータ3!AL26,0)+IF(ISNUMBER(CSVデータ4!AL26),CSVデータ4!AL26,0) -> 735 | AN26: =IF(ISNUMBER(CSVデータ1!AN26),CSVデータ1!AN26,0)+IF(ISNUMBER(CSVデータ2!AN26),CSVデータ2!AN26,0)+IF(ISNUMBER(CSVデータ3!AN26),CSVデータ3!AN26,0)+IF(ISNUMBER(CSVデータ4!AN26),CSVデータ4!AN26,0) -> 251
A27: =CSVデータ1!A27 -> 明細部 | B27: =CSVデータ1!B27 -> 国 | C27: =CSVデータ1!C27 -> 63 | D27: =CSVデータ1!D27 -> 男 | E27: =IF(ISNUMBER(CSVデータ1!E27),CSVデータ1!E27,0)+IF(ISNUMBER(CSVデータ2!E27),CSVデータ2!E27,0)+IF(ISNUMBER(CSVデータ3!E27),CSVデータ3!E27,0)+IF(ISNUMBER(CSVデータ4!E27),CSVデータ4!E27,0) -> 4785 | F27: =IF(ISNUMBER(CSVデータ1!F27),CSVデータ1!F27,0)+IF(ISNUMBER(CSVデータ2!F27),CSVデータ2!F27,0)+IF(ISNUMBER(CSVデータ3!F27),CSVデータ3!F27,0)+IF(ISNUMBER(CSVデータ4!F27),CSVデータ4!F27,0) -> 1667 | H27: =IF(ISNUMBER(CSVデータ1!H27),CSVデータ1!H27,0)+IF(ISNUMBER(CSVデータ2!H27),CSVデータ2!H27,0)+IF(ISNUMBER(CSVデータ3!H27),CSVデータ3!H27,0)+IF(ISNUMBER(CSVデータ4!H27),CSVデータ4!H27,0) -> 2515 | J27: =IF(ISNUMBER(CSVデータ1!J27),CSVデータ1!J27,0)+IF(ISNUMBER(CSVデータ2!J27),CSVデータ2!J27,0)+IF(ISNUMBER(CSVデータ3!J27),CSVデータ3!J27,0)+IF(ISNUMBER(CSVデータ4!J27),CSVデータ4!J27,0) -> 911 | L27: =IF(ISNUMBER(CSVデータ1!L27),CSVデータ1!L27,0)+IF(ISNUMBER(CSVデータ2!L27),CSVデータ2!L27,0)+IF(ISNUMBER(CSVデータ3!L27),CSVデータ3!L27,0)+IF(ISNUMBER(CSVデータ4!L27),CSVデータ4!L27,0) -> 1009 | N27: =IF(ISNUMBER(CSVデータ1!N27),CSVデータ1!N27,0)+IF(ISNUMBER(CSVデータ2!N27),CSVデータ2!N27,0)+IF(ISNUMBER(CSVデータ3!N27),CSVデータ3!N27,0)+IF(ISNUMBER(CSVデータ4!N27),CSVデータ4!N27,0) -> 292 | P27: =IF(ISNUMBER(CSVデータ1!P27),CSVデータ1!P27,0)+IF(ISNUMBER(CSVデータ2!P27),CSVデータ2!P27,0)+IF(ISNUMBER(CSVデータ3!P27),CSVデータ3!P27,0)+IF(ISNUMBER(CSVデータ4!P27),CSVデータ4!P27,0) -> 1480 | R27: =IF(ISNUMBER(CSVデータ1!R27),CSVデータ1!R27,0)+IF(ISNUMBER(CSVデータ2!R27),CSVデータ2!R27,0)+IF(ISNUMBER(CSVデータ3!R27),CSVデータ3!R27,0)+IF(ISNUMBER(CSVデータ4!R27),CSVデータ4!R27,0) -> 2728 | T27: =IF(ISNUMBER(CSVデータ1!T27),CSVデータ1!T27,0)+IF(ISNUMBER(CSVデータ2!T27),CSVデータ2!T27,0)+IF(ISNUMBER(CSVデータ3!T27),CSVデータ3!T27,0)+IF(ISNUMBER(CSVデータ4!T27),CSVデータ4!T27,0) -> 617 | V27: =IF(ISNUMBER(CSVデータ1!V27),CSVデータ1!V27,0)+IF(ISNUMBER(CSVデータ2!V27),CSVデータ2!V27,0)+IF(ISNUMBER(CSVデータ3!V27),CSVデータ3!V27,0)+IF(ISNUMBER(CSVデータ4!V27),CSVデータ4!V27,0) -> 2196 | X27: =IF(ISNUMBER(CSVデータ1!X27),CSVデータ1!X27,0)+IF(ISNUMBER(CSVデータ2!X27),CSVデータ2!X27,0)+IF(ISNUMBER(CSVデータ3!X27),CSVデータ3!X27,0)+IF(ISNUMBER(CSVデータ4!X27),CSVデータ4!X27,0) -> 1518 | Z27: =IF(ISNUMBER(CSVデータ1!Z27),CSVデータ1!Z27,0)+IF(ISNUMBER(CSVデータ2!Z27),CSVデータ2!Z27,0)+IF(ISNUMBER(CSVデータ3!Z27),CSVデータ3!Z27,0)+IF(ISNUMBER(CSVデータ4!Z27),CSVデータ4!Z27,0) -> 2264 | AB27: =IF(ISNUMBER(CSVデータ1!AB27),CSVデータ1!AB27,0)+IF(ISNUMBER(CSVデータ2!AB27),CSVデータ2!AB27,0)+IF(ISNUMBER(CSVデータ3!AB27),CSVデータ3!AB27,0)+IF(ISNUMBER(CSVデータ4!AB27),CSVデータ4!AB27,0) -> 94 | AD27: =IF(ISNUMBER(CSVデータ1!AD27),CSVデータ1!AD27,0)+IF(ISNUMBER(CSVデータ2!AD27),CSVデータ2!AD27,0)+IF(ISNUMBER(CSVデータ3!AD27),CSVデータ3!AD27,0)+IF(ISNUMBER(CSVデータ4!AD27),CSVデータ4!AD27,0) -> 989 | AF27: =IF(ISNUMBER(CSVデータ1!AF27),CSVデータ1!AF27,0)+IF(ISNUMBER(CSVデータ2!AF27),CSVデータ2!AF27,0)+IF(ISNUMBER(CSVデータ3!AF27),CSVデータ3!AF27,0)+IF(ISNUMBER(CSVデータ4!AF27),CSVデータ4!AF27,0) -> 1153 | AH27: =IF(ISNUMBER(CSVデータ1!AH27),CSVデータ1!AH27,0)+IF(ISNUMBER(CSVデータ2!AH27),CSVデータ2!AH27,0)+IF(ISNUMBER(CSVデータ3!AH27),CSVデータ3!AH27,0)+IF(ISNUMBER(CSVデータ4!AH27),CSVデータ4!AH27,0) -> 132 | AJ27: =IF(ISNUMBER(CSVデータ1!AJ27),CSVデータ1!AJ27,0)+IF(ISNUMBER(CSVデータ2!AJ27),CSVデータ2!AJ27,0)+IF(ISNUMBER(CSVデータ3!AJ27),CSVデータ3!AJ27,0)+IF(ISNUMBER(CSVデータ4!AJ27),CSVデータ4!AJ27,0) -> 317 | AL27: =IF(ISNUMBER(CSVデータ1!AL27),CSVデータ1!AL27,0)+IF(ISNUMBER(CSVデータ2!AL27),CSVデータ2!AL27,0)+IF(ISNUMBER(CSVデータ3!AL27),CSVデータ3!AL27,0)+IF(ISNUMBER(CSVデータ4!AL27),CSVデータ4!AL27,0) -> 827 | AN27: =IF(ISNUMBER(CSVデータ1!AN27),CSVデータ1!AN27,0)+IF(ISNUMBER(CSVデータ2!AN27),CSVデータ2!AN27,0)+IF(ISNUMBER(CSVデータ3!AN27),CSVデータ3!AN27,0)+IF(ISNUMBER(CSVデータ4!AN27),CSVデータ4!AN27,0) -> 280
A28: =CSVデータ1!A28 -> 明細部 | B28: =CSVデータ1!B28 -> 国 | C28: =CSVデータ1!C28 -> 64 | D28: =CSVデータ1!D28 -> 男 | E28: =IF(ISNUMBER(CSVデータ1!E28),CSVデータ1!E28,0)+IF(ISNUMBER(CSVデータ2!E28),CSVデータ2!E28,0)+IF(ISNUMBER(CSVデータ3!E28),CSVデータ3!E28,0)+IF(ISNUMBER(CSVデータ4!E28),CSVデータ4!E28,0) -> 5199 | F28: =IF(ISNUMBER(CSVデータ1!F28),CSVデータ1!F28,0)+IF(ISNUMBER(CSVデータ2!F28),CSVデータ2!F28,0)+IF(ISNUMBER(CSVデータ3!F28),CSVデータ3!F28,0)+IF(ISNUMBER(CSVデータ4!F28),CSVデータ4!F28,0) -> 1813 | H28: =IF(ISNUMBER(CSVデータ1!H28),CSVデータ1!H28,0)+IF(ISNUMBER(CSVデータ2!H28),CSVデータ2!H28,0)+IF(ISNUMBER(CSVデータ3!H28),CSVデータ3!H28,0)+IF(ISNUMBER(CSVデータ4!H28),CSVデータ4!H28,0) -> 2792 | J28: =IF(ISNUMBER(CSVデータ1!J28),CSVデータ1!J28,0)+IF(ISNUMBER(CSVデータ2!J28),CSVデータ2!J28,0)+IF(ISNUMBER(CSVデータ3!J28),CSVデータ3!J28,0)+IF(ISNUMBER(CSVデータ4!J28),CSVデータ4!J28,0) -> 956 | L28: =IF(ISNUMBER(CSVデータ1!L28),CSVデータ1!L28,0)+IF(ISNUMBER(CSVデータ2!L28),CSVデータ2!L28,0)+IF(ISNUMBER(CSVデータ3!L28),CSVデータ3!L28,0)+IF(ISNUMBER(CSVデータ4!L28),CSVデータ4!L28,0) -> 1108 | N28: =IF(ISNUMBER(CSVデータ1!N28),CSVデータ1!N28,0)+IF(ISNUMBER(CSVデータ2!N28),CSVデータ2!N28,0)+IF(ISNUMBER(CSVデータ3!N28),CSVデータ3!N28,0)+IF(ISNUMBER(CSVデータ4!N28),CSVデータ4!N28,0) -> 301 | P28: =IF(ISNUMBER(CSVデータ1!P28),CSVデータ1!P28,0)+IF(ISNUMBER(CSVデータ2!P28),CSVデータ2!P28,0)+IF(ISNUMBER(CSVデータ3!P28),CSVデータ3!P28,0)+IF(ISNUMBER(CSVデータ4!P28),CSVデータ4!P28,0) -> 1622 | R28: =IF(ISNUMBER(CSVデータ1!R28),CSVデータ1!R28,0)+IF(ISNUMBER(CSVデータ2!R28),CSVデータ2!R28,0)+IF(ISNUMBER(CSVデータ3!R28),CSVデータ3!R28,0)+IF(ISNUMBER(CSVデータ4!R28),CSVデータ4!R28,0) -> 3083 | T28: =IF(ISNUMBER(CSVデータ1!T28),CSVデータ1!T28,0)+IF(ISNUMBER(CSVデータ2!T28),CSVデータ2!T28,0)+IF(ISNUMBER(CSVデータ3!T28),CSVデータ3!T28,0)+IF(ISNUMBER(CSVデータ4!T28),CSVデータ4!T28,0) -> 677 | V28: =IF(ISNUMBER(CSVデータ1!V28),CSVデータ1!V28,0)+IF(ISNUMBER(CSVデータ2!V28),CSVデータ2!V28,0)+IF(ISNUMBER(CSVデータ3!V28),CSVデータ3!V28,0)+IF(ISNUMBER(CSVデータ4!V28),CSVデータ4!V28,0) -> 2466 | X28: =IF(ISNUMBER(CSVデータ1!X28),CSVデータ1!X28,0)+IF(ISNUMBER(CSVデータ2!X28),CSVデータ2!X28,0)+IF(ISNUMBER(CSVデータ3!X28),CSVデータ3!X28,0)+IF(ISNUMBER(CSVデータ4!X28),CSVデータ4!X28,0) -> 1638 | Z28: =IF(ISNUMBER(CSVデータ1!Z28),CSVデータ1!Z28,0)+IF(ISNUMBER(CSVデータ2!Z28),CSVデータ2!Z28,0)+IF(ISNUMBER(CSVデータ3!Z28),CSVデータ3!Z28,0)+IF(ISNUMBER(CSVデータ4!Z28),CSVデータ4!Z28,0) -> 2367 | AB28: =IF(ISNUMBER(CSVデータ1!AB28),CSVデータ1!AB28,0)+IF(ISNUMBER(CSVデータ2!AB28),CSVデータ2!AB28,0)+IF(ISNUMBER(CSVデータ3!AB28),CSVデータ3!AB28,0)+IF(ISNUMBER(CSVデータ4!AB28),CSVデータ4!AB28,0) -> 112 | AD28: =IF(ISNUMBER(CSVデータ1!AD28),CSVデータ1!AD28,0)+IF(ISNUMBER(CSVデータ2!AD28),CSVデータ2!AD28,0)+IF(ISNUMBER(CSVデータ3!AD28),CSVデータ3!AD28,0)+IF(ISNUMBER(CSVデータ4!AD28),CSVデータ4!AD28,0) -> 1122 | AF28: =IF(ISNUMBER(CSVデータ1!AF28),CSVデータ1!AF28,0)+IF(ISNUMBER(CSVデータ2!AF28),CSVデータ2!AF28,0)+IF(ISNUMBER(CSVデータ3!AF28),CSVデータ3!AF28,0)+IF(ISNUMBER(CSVデータ4!AF28),CSVデータ4!AF28,0) -> 1209 | AH28: =IF(ISNUMBER(CSVデータ1!AH28),CSVデータ1!AH28,0)+IF(ISNUMBER(CSVデータ2!AH28),CSVデータ2!AH28,0)+IF(ISNUMBER(CSVデータ3!AH28),CSVデータ3!AH28,0)+IF(ISNUMBER(CSVデータ4!AH28),CSVデータ4!AH28,0) -> 145 | AJ28: =IF(ISNUMBER(CSVデータ1!AJ28),CSVデータ1!AJ28,0)+IF(ISNUMBER(CSVデータ2!AJ28),CSVデータ2!AJ28,0)+IF(ISNUMBER(CSVデータ3!AJ28),CSVデータ3!AJ28,0)+IF(ISNUMBER(CSVデータ4!AJ28),CSVデータ4!AJ28,0) -> 341 | AL28: =IF(ISNUMBER(CSVデータ1!AL28),CSVデータ1!AL28,0)+IF(ISNUMBER(CSVデータ2!AL28),CSVデータ2!AL28,0)+IF(ISNUMBER(CSVデータ3!AL28),CSVデータ3!AL28,0)+IF(ISNUMBER(CSVデータ4!AL28),CSVデータ4!AL28,0) -> 1016 | AN28: =IF(ISNUMBER(CSVデータ1!AN28),CSVデータ1!AN28,0)+IF(ISNUMBER(CSVデータ2!AN28),CSVデータ2!AN28,0)+IF(ISNUMBER(CSVデータ3!AN28),CSVデータ3!AN28,0)+IF(ISNUMBER(CSVデータ4!AN28),CSVデータ4!AN28,0) -> 321
A29: =CSVデータ1!A29 -> 明細部 | B29: =CSVデータ1!B29 -> 国 | C29: =CSVデータ1!C29 -> 65 | D29: =CSVデータ1!D29 -> 男 | E29: =IF(ISNUMBER(CSVデータ1!E29),CSVデータ1!E29,0)+IF(ISNUMBER(CSVデータ2!E29),CSVデータ2!E29,0)+IF(ISNUMBER(CSVデータ3!E29),CSVデータ3!E29,0)+IF(ISNUMBER(CSVデータ4!E29),CSVデータ4!E29,0) -> 5998 | F29: =IF(ISNUMBER(CSVデータ1!F29),CSVデータ1!F29,0)+IF(ISNUMBER(CSVデータ2!F29),CSVデータ2!F29,0)+IF(ISNUMBER(CSVデータ3!F29),CSVデータ3!F29,0)+IF(ISNUMBER(CSVデータ4!F29),CSVデータ4!F29,0) -> 2223 | H29: =IF(ISNUMBER(CSVデータ1!H29),CSVデータ1!H29,0)+IF(ISNUMBER(CSVデータ2!H29),CSVデータ2!H29,0)+IF(ISNUMBER(CSVデータ3!H29),CSVデータ3!H29,0)+IF(ISNUMBER(CSVデータ4!H29),CSVデータ4!H29,0) -> 3369 | J29: =IF(ISNUMBER(CSVデータ1!J29),CSVデータ1!J29,0)+IF(ISNUMBER(CSVデータ2!J29),CSVデータ2!J29,0)+IF(ISNUMBER(CSVデータ3!J29),CSVデータ3!J29,0)+IF(ISNUMBER(CSVデータ4!J29),CSVデータ4!J29,0) -> 1193 | L29: =IF(ISNUMBER(CSVデータ1!L29),CSVデータ1!L29,0)+IF(ISNUMBER(CSVデータ2!L29),CSVデータ2!L29,0)+IF(ISNUMBER(CSVデータ3!L29),CSVデータ3!L29,0)+IF(ISNUMBER(CSVデータ4!L29),CSVデータ4!L29,0) -> 1255 | N29: =IF(ISNUMBER(CSVデータ1!N29),CSVデータ1!N29,0)+IF(ISNUMBER(CSVデータ2!N29),CSVデータ2!N29,0)+IF(ISNUMBER(CSVデータ3!N29),CSVデータ3!N29,0)+IF(ISNUMBER(CSVデータ4!N29),CSVデータ4!N29,0) -> 377 | P29: =IF(ISNUMBER(CSVデータ1!P29),CSVデータ1!P29,0)+IF(ISNUMBER(CSVデータ2!P29),CSVデータ2!P29,0)+IF(ISNUMBER(CSVデータ3!P29),CSVデータ3!P29,0)+IF(ISNUMBER(CSVデータ4!P29),CSVデータ4!P29,0) -> 2036 | R29: =IF(ISNUMBER(CSVデータ1!R29),CSVデータ1!R29,0)+IF(ISNUMBER(CSVデータ2!R29),CSVデータ2!R29,0)+IF(ISNUMBER(CSVデータ3!R29),CSVデータ3!R29,0)+IF(ISNUMBER(CSVデータ4!R29),CSVデータ4!R29,0) -> 3782 | T29: =IF(ISNUMBER(CSVデータ1!T29),CSVデータ1!T29,0)+IF(ISNUMBER(CSVデータ2!T29),CSVデータ2!T29,0)+IF(ISNUMBER(CSVデータ3!T29),CSVデータ3!T29,0)+IF(ISNUMBER(CSVデータ4!T29),CSVデータ4!T29,0) -> 801 | V29: =IF(ISNUMBER(CSVデータ1!V29),CSVデータ1!V29,0)+IF(ISNUMBER(CSVデータ2!V29),CSVデータ2!V29,0)+IF(ISNUMBER(CSVデータ3!V29),CSVデータ3!V29,0)+IF(ISNUMBER(CSVデータ4!V29),CSVデータ4!V29,0) -> 2913 | X29: =IF(ISNUMBER(CSVデータ1!X29),CSVデータ1!X29,0)+IF(ISNUMBER(CSVデータ2!X29),CSVデータ2!X29,0)+IF(ISNUMBER(CSVデータ3!X29),CSVデータ3!X29,0)+IF(ISNUMBER(CSVデータ4!X29),CSVデータ4!X29,0) -> 1887 | Z29: =IF(ISNUMBER(CSVデータ1!Z29),CSVデータ1!Z29,0)+IF(ISNUMBER(CSVデータ2!Z29),CSVデータ2!Z29,0)+IF(ISNUMBER(CSVデータ3!Z29),CSVデータ3!Z29,0)+IF(ISNUMBER(CSVデータ4!Z29),CSVデータ4!Z29,0) -> 2804 | AB29: =IF(ISNUMBER(CSVデータ1!AB29),CSVデータ1!AB29,0)+IF(ISNUMBER(CSVデータ2!AB29),CSVデータ2!AB29,0)+IF(ISNUMBER(CSVデータ3!AB29),CSVデータ3!AB29,0)+IF(ISNUMBER(CSVデータ4!AB29),CSVデータ4!AB29,0) -> 131 | AD29: =IF(ISNUMBER(CSVデータ1!AD29),CSVデータ1!AD29,0)+IF(ISNUMBER(CSVデータ2!AD29),CSVデータ2!AD29,0)+IF(ISNUMBER(CSVデータ3!AD29),CSVデータ3!AD29,0)+IF(ISNUMBER(CSVデータ4!AD29),CSVデータ4!AD29,0) -> 1362 | AF29: =IF(ISNUMBER(CSVデータ1!AF29),CSVデータ1!AF29,0)+IF(ISNUMBER(CSVデータ2!AF29),CSVデータ2!AF29,0)+IF(ISNUMBER(CSVデータ3!AF29),CSVデータ3!AF29,0)+IF(ISNUMBER(CSVデータ4!AF29),CSVデータ4!AF29,0) -> 1493 | AH29: =IF(ISNUMBER(CSVデータ1!AH29),CSVデータ1!AH29,0)+IF(ISNUMBER(CSVデータ2!AH29),CSVデータ2!AH29,0)+IF(ISNUMBER(CSVデータ3!AH29),CSVデータ3!AH29,0)+IF(ISNUMBER(CSVデータ4!AH29),CSVデータ4!AH29,0) -> 151 | AJ29: =IF(ISNUMBER(CSVデータ1!AJ29),CSVデータ1!AJ29,0)+IF(ISNUMBER(CSVデータ2!AJ29),CSVデータ2!AJ29,0)+IF(ISNUMBER(CSVデータ3!AJ29),CSVデータ3!AJ29,0)+IF(ISNUMBER(CSVデータ4!AJ29),CSVデータ4!AJ29,0) -> 412 | AL29: =IF(ISNUMBER(CSVデータ1!AL29),CSVデータ1!AL29,0)+IF(ISNUMBER(CSVデータ2!AL29),CSVデータ2!AL29,0)+IF(ISNUMBER(CSVデータ3!AL29),CSVデータ3!AL29,0)+IF(ISNUMBER(CSVデータ4!AL29),CSVデータ4!AL29,0) -> 1305 | AN29: =IF(ISNUMBER(CSVデータ1!AN29),CSVデータ1!AN29,0)+IF(ISNUMBER(CSVデータ2!AN29),CSVデータ2!AN29,0)+IF(ISNUMBER(CSVデータ3!AN29),CSVデータ3!AN29,0)+IF(ISNUMBER(CSVデータ4!AN29),CSVデータ4!AN29,0) -> 376
A30: =CSVデータ1!A30 -> 明細部 | B30: =CSVデータ1!B30 -> 国 | C30: =CSVデータ1!C30 -> 66 | D30: =CSVデータ1!D30 -> 男 | E30: =IF(ISNUMBER(CSVデータ1!E30),CSVデータ1!E30,0)+IF(ISNUMBER(CSVデータ2!E30),CSVデータ2!E30,0)+IF(ISNUMBER(CSVデータ3!E30),CSVデータ3!E30,0)+IF(ISNUMBER(CSVデータ4!E30),CSVデータ4!E30,0) -> 8024 | F30: =IF(ISNUMBER(CSVデータ1!F30),CSVデータ1!F30,0)+IF(ISNUMBER(CSVデータ2!F30),CSVデータ2!F30,0)+IF(ISNUMBER(CSVデータ3!F30),CSVデータ3!F30,0)+IF(ISNUMBER(CSVデータ4!F30),CSVデータ4!F30,0) -> 2757 | H30: =IF(ISNUMBER(CSVデータ1!H30),CSVデータ1!H30,0)+IF(ISNUMBER(CSVデータ2!H30),CSVデータ2!H30,0)+IF(ISNUMBER(CSVデータ3!H30),CSVデータ3!H30,0)+IF(ISNUMBER(CSVデータ4!H30),CSVデータ4!H30,0) -> 4431 | J30: =IF(ISNUMBER(CSVデータ1!J30),CSVデータ1!J30,0)+IF(ISNUMBER(CSVデータ2!J30),CSVデータ2!J30,0)+IF(ISNUMBER(CSVデータ3!J30),CSVデータ3!J30,0)+IF(ISNUMBER(CSVデータ4!J30),CSVデータ4!J30,0) -> 1561 | L30: =IF(ISNUMBER(CSVデータ1!L30),CSVデータ1!L30,0)+IF(ISNUMBER(CSVデータ2!L30),CSVデータ2!L30,0)+IF(ISNUMBER(CSVデータ3!L30),CSVデータ3!L30,0)+IF(ISNUMBER(CSVデータ4!L30),CSVデータ4!L30,0) -> 1602 | N30: =IF(ISNUMBER(CSVデータ1!N30),CSVデータ1!N30,0)+IF(ISNUMBER(CSVデータ2!N30),CSVデータ2!N30,0)+IF(ISNUMBER(CSVデータ3!N30),CSVデータ3!N30,0)+IF(ISNUMBER(CSVデータ4!N30),CSVデータ4!N30,0) -> 503 | P30: =IF(ISNUMBER(CSVデータ1!P30),CSVデータ1!P30,0)+IF(ISNUMBER(CSVデータ2!P30),CSVデータ2!P30,0)+IF(ISNUMBER(CSVデータ3!P30),CSVデータ3!P30,0)+IF(ISNUMBER(CSVデータ4!P30),CSVデータ4!P30,0) -> 2732 | R30: =IF(ISNUMBER(CSVデータ1!R30),CSVデータ1!R30,0)+IF(ISNUMBER(CSVデータ2!R30),CSVデータ2!R30,0)+IF(ISNUMBER(CSVデータ3!R30),CSVデータ3!R30,0)+IF(ISNUMBER(CSVデータ4!R30),CSVデータ4!R30,0) -> 5069 | T30: =IF(ISNUMBER(CSVデータ1!T30),CSVデータ1!T30,0)+IF(ISNUMBER(CSVデータ2!T30),CSVデータ2!T30,0)+IF(ISNUMBER(CSVデータ3!T30),CSVデータ3!T30,0)+IF(ISNUMBER(CSVデータ4!T30),CSVデータ4!T30,0) -> 1018 | V30: =IF(ISNUMBER(CSVデータ1!V30),CSVデータ1!V30,0)+IF(ISNUMBER(CSVデータ2!V30),CSVデータ2!V30,0)+IF(ISNUMBER(CSVデータ3!V30),CSVデータ3!V30,0)+IF(ISNUMBER(CSVデータ4!V30),CSVデータ4!V30,0) -> 4064 | X30: =IF(ISNUMBER(CSVデータ1!X30),CSVデータ1!X30,0)+IF(ISNUMBER(CSVデータ2!X30),CSVデータ2!X30,0)+IF(ISNUMBER(CSVデータ3!X30),CSVデータ3!X30,0)+IF(ISNUMBER(CSVデータ4!X30),CSVデータ4!X30,0) -> 2477 | Z30: =IF(ISNUMBER(CSVデータ1!Z30),CSVデータ1!Z30,0)+IF(ISNUMBER(CSVデータ2!Z30),CSVデータ2!Z30,0)+IF(ISNUMBER(CSVデータ3!Z30),CSVデータ3!Z30,0)+IF(ISNUMBER(CSVデータ4!Z30),CSVデータ4!Z30,0) -> 3599 | AB30: =IF(ISNUMBER(CSVデータ1!AB30),CSVデータ1!AB30,0)+IF(ISNUMBER(CSVデータ2!AB30),CSVデータ2!AB30,0)+IF(ISNUMBER(CSVデータ3!AB30),CSVデータ3!AB30,0)+IF(ISNUMBER(CSVデータ4!AB30),CSVデータ4!AB30,0) -> 198 | AD30: =IF(ISNUMBER(CSVデータ1!AD30),CSVデータ1!AD30,0)+IF(ISNUMBER(CSVデータ2!AD30),CSVデータ2!AD30,0)+IF(ISNUMBER(CSVデータ3!AD30),CSVデータ3!AD30,0)+IF(ISNUMBER(CSVデータ4!AD30),CSVデータ4!AD30,0) -> 1939 | AF30: =IF(ISNUMBER(CSVデータ1!AF30),CSVデータ1!AF30,0)+IF(ISNUMBER(CSVデータ2!AF30),CSVデータ2!AF30,0)+IF(ISNUMBER(CSVデータ3!AF30),CSVデータ3!AF30,0)+IF(ISNUMBER(CSVデータ4!AF30),CSVデータ4!AF30,0) -> 2128 | AH30: =IF(ISNUMBER(CSVデータ1!AH30),CSVデータ1!AH30,0)+IF(ISNUMBER(CSVデータ2!AH30),CSVデータ2!AH30,0)+IF(ISNUMBER(CSVデータ3!AH30),CSVデータ3!AH30,0)+IF(ISNUMBER(CSVデータ4!AH30),CSVデータ4!AH30,0) -> 251 | AJ30: =IF(ISNUMBER(CSVデータ1!AJ30),CSVデータ1!AJ30,0)+IF(ISNUMBER(CSVデータ2!AJ30),CSVデータ2!AJ30,0)+IF(ISNUMBER(CSVデータ3!AJ30),CSVデータ3!AJ30,0)+IF(ISNUMBER(CSVデータ4!AJ30),CSVデータ4!AJ30,0) -> 538 | AL30: =IF(ISNUMBER(CSVデータ1!AL30),CSVデータ1!AL30,0)+IF(ISNUMBER(CSVデータ2!AL30),CSVデータ2!AL30,0)+IF(ISNUMBER(CSVデータ3!AL30),CSVデータ3!AL30,0)+IF(ISNUMBER(CSVデータ4!AL30),CSVデータ4!AL30,0) -> 1893 | AN30: =IF(ISNUMBER(CSVデータ1!AN30),CSVデータ1!AN30,0)+IF(ISNUMBER(CSVデータ2!AN30),CSVデータ2!AN30,0)+IF(ISNUMBER(CSVデータ3!AN30),CSVデータ3!AN30,0)+IF(ISNUMBER(CSVデータ4!AN30),CSVデータ4!AN30,0) -> 540
A31: =CSVデータ1!A31 -> 明細部 | B31: =CSVデータ1!B31 -> 国 | C31: =CSVデータ1!C31 -> 67 | D31: =CSVデータ1!D31 -> 男 | E31: =IF(ISNUMBER(CSVデータ1!E31),CSVデータ1!E31,0)+IF(ISNUMBER(CSVデータ2!E31),CSVデータ2!E31,0)+IF(ISNUMBER(CSVデータ3!E31),CSVデータ3!E31,0)+IF(ISNUMBER(CSVデータ4!E31),CSVデータ4!E31,0) -> 9381 | F31: =IF(ISNUMBER(CSVデータ1!F31),CSVデータ1!F31,0)+IF(ISNUMBER(CSVデータ2!F31),CSVデータ2!F31,0)+IF(ISNUMBER(CSVデータ3!F31),CSVデータ3!F31,0)+IF(ISNUMBER(CSVデータ4!F31),CSVデータ4!F31,0) -> 3281 | H31: =IF(ISNUMBER(CSVデータ1!H31),CSVデータ1!H31,0)+IF(ISNUMBER(CSVデータ2!H31),CSVデータ2!H31,0)+IF(ISNUMBER(CSVデータ3!H31),CSVデータ3!H31,0)+IF(ISNUMBER(CSVデータ4!H31),CSVデータ4!H31,0) -> 5307 | J31: =IF(ISNUMBER(CSVデータ1!J31),CSVデータ1!J31,0)+IF(ISNUMBER(CSVデータ2!J31),CSVデータ2!J31,0)+IF(ISNUMBER(CSVデータ3!J31),CSVデータ3!J31,0)+IF(ISNUMBER(CSVデータ4!J31),CSVデータ4!J31,0) -> 1749 | L31: =IF(ISNUMBER(CSVデータ1!L31),CSVデータ1!L31,0)+IF(ISNUMBER(CSVデータ2!L31),CSVデータ2!L31,0)+IF(ISNUMBER(CSVデータ3!L31),CSVデータ3!L31,0)+IF(ISNUMBER(CSVデータ4!L31),CSVデータ4!L31,0) -> 1743 | N31: =IF(ISNUMBER(CSVデータ1!N31),CSVデータ1!N31,0)+IF(ISNUMBER(CSVデータ2!N31),CSVデータ2!N31,0)+IF(ISNUMBER(CSVデータ3!N31),CSVデータ3!N31,0)+IF(ISNUMBER(CSVデータ4!N31),CSVデータ4!N31,0) -> 560 | P31: =IF(ISNUMBER(CSVデータ1!P31),CSVデータ1!P31,0)+IF(ISNUMBER(CSVデータ2!P31),CSVデータ2!P31,0)+IF(ISNUMBER(CSVデータ3!P31),CSVデータ3!P31,0)+IF(ISNUMBER(CSVデータ4!P31),CSVデータ4!P31,0) -> 3166 | R31: =IF(ISNUMBER(CSVデータ1!R31),CSVデータ1!R31,0)+IF(ISNUMBER(CSVデータ2!R31),CSVデータ2!R31,0)+IF(ISNUMBER(CSVデータ3!R31),CSVデータ3!R31,0)+IF(ISNUMBER(CSVデータ4!R31),CSVデータ4!R31,0) -> 5861 | T31: =IF(ISNUMBER(CSVデータ1!T31),CSVデータ1!T31,0)+IF(ISNUMBER(CSVデータ2!T31),CSVデータ2!T31,0)+IF(ISNUMBER(CSVデータ3!T31),CSVデータ3!T31,0)+IF(ISNUMBER(CSVデータ4!T31),CSVデータ4!T31,0) -> 1109 | V31: =IF(ISNUMBER(CSVデータ1!V31),CSVデータ1!V31,0)+IF(ISNUMBER(CSVデータ2!V31),CSVデータ2!V31,0)+IF(ISNUMBER(CSVデータ3!V31),CSVデータ3!V31,0)+IF(ISNUMBER(CSVデータ4!V31),CSVデータ4!V31,0) -> 4690 | X31: =IF(ISNUMBER(CSVデータ1!X31),CSVデータ1!X31,0)+IF(ISNUMBER(CSVデータ2!X31),CSVデータ2!X31,0)+IF(ISNUMBER(CSVデータ3!X31),CSVデータ3!X31,0)+IF(ISNUMBER(CSVデータ4!X31),CSVデータ4!X31,0) -> 2642 | Z31: =IF(ISNUMBER(CSVデータ1!Z31),CSVデータ1!Z31,0)+IF(ISNUMBER(CSVデータ2!Z31),CSVデータ2!Z31,0)+IF(ISNUMBER(CSVデータ3!Z31),CSVデータ3!Z31,0)+IF(ISNUMBER(CSVデータ4!Z31),CSVデータ4!Z31,0) -> 4210 | AB31: =IF(ISNUMBER(CSVデータ1!AB31),CSVデータ1!AB31,0)+IF(ISNUMBER(CSVデータ2!AB31),CSVデータ2!AB31,0)+IF(ISNUMBER(CSVデータ3!AB31),CSVデータ3!AB31,0)+IF(ISNUMBER(CSVデータ4!AB31),CSVデータ4!AB31,0) -> 226 | AD31: =IF(ISNUMBER(CSVデータ1!AD31),CSVデータ1!AD31,0)+IF(ISNUMBER(CSVデータ2!AD31),CSVデータ2!AD31,0)+IF(ISNUMBER(CSVデータ3!AD31),CSVデータ3!AD31,0)+IF(ISNUMBER(CSVデータ4!AD31),CSVデータ4!AD31,0) -> 2256 | AF31: =IF(ISNUMBER(CSVデータ1!AF31),CSVデータ1!AF31,0)+IF(ISNUMBER(CSVデータ2!AF31),CSVデータ2!AF31,0)+IF(ISNUMBER(CSVデータ3!AF31),CSVデータ3!AF31,0)+IF(ISNUMBER(CSVデータ4!AF31),CSVデータ4!AF31,0) -> 2393 | AH31: =IF(ISNUMBER(CSVデータ1!AH31),CSVデータ1!AH31,0)+IF(ISNUMBER(CSVデータ2!AH31),CSVデータ2!AH31,0)+IF(ISNUMBER(CSVデータ3!AH31),CSVデータ3!AH31,0)+IF(ISNUMBER(CSVデータ4!AH31),CSVデータ4!AH31,0) -> 255 | AJ31: =IF(ISNUMBER(CSVデータ1!AJ31),CSVデータ1!AJ31,0)+IF(ISNUMBER(CSVデータ2!AJ31),CSVデータ2!AJ31,0)+IF(ISNUMBER(CSVデータ3!AJ31),CSVデータ3!AJ31,0)+IF(ISNUMBER(CSVデータ4!AJ31),CSVデータ4!AJ31,0) -> 589 | AL31: =IF(ISNUMBER(CSVデータ1!AL31),CSVデータ1!AL31,0)+IF(ISNUMBER(CSVデータ2!AL31),CSVデータ2!AL31,0)+IF(ISNUMBER(CSVデータ3!AL31),CSVデータ3!AL31,0)+IF(ISNUMBER(CSVデータ4!AL31),CSVデータ4!AL31,0) -> 2280 | AN31: =IF(ISNUMBER(CSVデータ1!AN31),CSVデータ1!AN31,0)+IF(ISNUMBER(CSVデータ2!AN31),CSVデータ2!AN31,0)+IF(ISNUMBER(CSVデータ3!AN31),CSVデータ3!AN31,0)+IF(ISNUMBER(CSVデータ4!AN31),CSVデータ4!AN31,0) -> 581
A32: =CSVデータ1!A32 -> 明細部 | B32: =CSVデータ1!B32 -> 国 | C32: =CSVデータ1!C32 -> 68 | D32: =CSVデータ1!D32 -> 男 | E32: =IF(ISNUMBER(CSVデータ1!E32),CSVデータ1!E32,0)+IF(ISNUMBER(CSVデータ2!E32),CSVデータ2!E32,0)+IF(ISNUMBER(CSVデータ3!E32),CSVデータ3!E32,0)+IF(ISNUMBER(CSVデータ4!E32),CSVデータ4!E32,0) -> 11160 | F32: =IF(ISNUMBER(CSVデータ1!F32),CSVデータ1!F32,0)+IF(ISNUMBER(CSVデータ2!F32),CSVデータ2!F32,0)+IF(ISNUMBER(CSVデータ3!F32),CSVデータ3!F32,0)+IF(ISNUMBER(CSVデータ4!F32),CSVデータ4!F32,0) -> 3790 | H32: =IF(ISNUMBER(CSVデータ1!H32),CSVデータ1!H32,0)+IF(ISNUMBER(CSVデータ2!H32),CSVデータ2!H32,0)+IF(ISNUMBER(CSVデータ3!H32),CSVデータ3!H32,0)+IF(ISNUMBER(CSVデータ4!H32),CSVデータ4!H32,0) -> 6148 | J32: =IF(ISNUMBER(CSVデータ1!J32),CSVデータ1!J32,0)+IF(ISNUMBER(CSVデータ2!J32),CSVデータ2!J32,0)+IF(ISNUMBER(CSVデータ3!J32),CSVデータ3!J32,0)+IF(ISNUMBER(CSVデータ4!J32),CSVデータ4!J32,0) -> 2025 | L32: =IF(ISNUMBER(CSVデータ1!L32),CSVデータ1!L32,0)+IF(ISNUMBER(CSVデータ2!L32),CSVデータ2!L32,0)+IF(ISNUMBER(CSVデータ3!L32),CSVデータ3!L32,0)+IF(ISNUMBER(CSVデータ4!L32),CSVデータ4!L32,0) -> 2016 | N32: =IF(ISNUMBER(CSVデータ1!N32),CSVデータ1!N32,0)+IF(ISNUMBER(CSVデータ2!N32),CSVデータ2!N32,0)+IF(ISNUMBER(CSVデータ3!N32),CSVデータ3!N32,0)+IF(ISNUMBER(CSVデータ4!N32),CSVデータ4!N32,0) -> 687 | P32: =IF(ISNUMBER(CSVデータ1!P32),CSVデータ1!P32,0)+IF(ISNUMBER(CSVデータ2!P32),CSVデータ2!P32,0)+IF(ISNUMBER(CSVデータ3!P32),CSVデータ3!P32,0)+IF(ISNUMBER(CSVデータ4!P32),CSVデータ4!P32,0) -> 3843 | R32: =IF(ISNUMBER(CSVデータ1!R32),CSVデータ1!R32,0)+IF(ISNUMBER(CSVデータ2!R32),CSVデータ2!R32,0)+IF(ISNUMBER(CSVデータ3!R32),CSVデータ3!R32,0)+IF(ISNUMBER(CSVデータ4!R32),CSVデータ4!R32,0) -> 7170 | T32: =IF(ISNUMBER(CSVデータ1!T32),CSVデータ1!T32,0)+IF(ISNUMBER(CSVデータ2!T32),CSVデータ2!T32,0)+IF(ISNUMBER(CSVデータ3!T32),CSVデータ3!T32,0)+IF(ISNUMBER(CSVデータ4!T32),CSVデータ4!T32,0) -> 1285 | V32: =IF(ISNUMBER(CSVデータ1!V32),CSVデータ1!V32,0)+IF(ISNUMBER(CSVデータ2!V32),CSVデータ2!V32,0)+IF(ISNUMBER(CSVデータ3!V32),CSVデータ3!V32,0)+IF(ISNUMBER(CSVデータ4!V32),CSVデータ4!V32,0) -> 5791 | X32: =IF(ISNUMBER(CSVデータ1!X32),CSVデータ1!X32,0)+IF(ISNUMBER(CSVデータ2!X32),CSVデータ2!X32,0)+IF(ISNUMBER(CSVデータ3!X32),CSVデータ3!X32,0)+IF(ISNUMBER(CSVデータ4!X32),CSVデータ4!X32,0) -> 2991 | Z32: =IF(ISNUMBER(CSVデータ1!Z32),CSVデータ1!Z32,0)+IF(ISNUMBER(CSVデータ2!Z32),CSVデータ2!Z32,0)+IF(ISNUMBER(CSVデータ3!Z32),CSVデータ3!Z32,0)+IF(ISNUMBER(CSVデータ4!Z32),CSVデータ4!Z32,0) -> 4937 | AB32: =IF(ISNUMBER(CSVデータ1!AB32),CSVデータ1!AB32,0)+IF(ISNUMBER(CSVデータ2!AB32),CSVデータ2!AB32,0)+IF(ISNUMBER(CSVデータ3!AB32),CSVデータ3!AB32,0)+IF(ISNUMBER(CSVデータ4!AB32),CSVデータ4!AB32,0) -> 311 | AD32: =IF(ISNUMBER(CSVデータ1!AD32),CSVデータ1!AD32,0)+IF(ISNUMBER(CSVデータ2!AD32),CSVデータ2!AD32,0)+IF(ISNUMBER(CSVデータ3!AD32),CSVデータ3!AD32,0)+IF(ISNUMBER(CSVデータ4!AD32),CSVデータ4!AD32,0) -> 2779 | AF32: =IF(ISNUMBER(CSVデータ1!AF32),CSVデータ1!AF32,0)+IF(ISNUMBER(CSVデータ2!AF32),CSVデータ2!AF32,0)+IF(ISNUMBER(CSVデータ3!AF32),CSVデータ3!AF32,0)+IF(ISNUMBER(CSVデータ4!AF32),CSVデータ4!AF32,0) -> 2775 | AH32: =IF(ISNUMBER(CSVデータ1!AH32),CSVデータ1!AH32,0)+IF(ISNUMBER(CSVデータ2!AH32),CSVデータ2!AH32,0)+IF(ISNUMBER(CSVデータ3!AH32),CSVデータ3!AH32,0)+IF(ISNUMBER(CSVデータ4!AH32),CSVデータ4!AH32,0) -> 330 | AJ32: =IF(ISNUMBER(CSVデータ1!AJ32),CSVデータ1!AJ32,0)+IF(ISNUMBER(CSVデータ2!AJ32),CSVデータ2!AJ32,0)+IF(ISNUMBER(CSVデータ3!AJ32),CSVデータ3!AJ32,0)+IF(ISNUMBER(CSVデータ4!AJ32),CSVデータ4!AJ32,0) -> 684 | AL32: =IF(ISNUMBER(CSVデータ1!AL32),CSVデータ1!AL32,0)+IF(ISNUMBER(CSVデータ2!AL32),CSVデータ2!AL32,0)+IF(ISNUMBER(CSVデータ3!AL32),CSVデータ3!AL32,0)+IF(ISNUMBER(CSVデータ4!AL32),CSVデータ4!AL32,0) -> 2812 | AN32: =IF(ISNUMBER(CSVデータ1!AN32),CSVデータ1!AN32,0)+IF(ISNUMBER(CSVデータ2!AN32),CSVデータ2!AN32,0)+IF(ISNUMBER(CSVデータ3!AN32),CSVデータ3!AN32,0)+IF(ISNUMBER(CSVデータ4!AN32),CSVデータ4!AN32,0) -> 696
A33: =CSVデータ1!A33 -> 明細部 | B33: =CSVデータ1!B33 -> 国 | C33: =CSVデータ1!C33 -> 69 | D33: =CSVデータ1!D33 -> 男 | E33: =IF(ISNUMBER(CSVデータ1!E33),CSVデータ1!E33,0)+IF(ISNUMBER(CSVデータ2!E33),CSVデータ2!E33,0)+IF(ISNUMBER(CSVデータ3!E33),CSVデータ3!E33,0)+IF(ISNUMBER(CSVデータ4!E33),CSVデータ4!E33,0) -> 12759 | F33: =IF(ISNUMBER(CSVデータ1!F33),CSVデータ1!F33,0)+IF(ISNUMBER(CSVデータ2!F33),CSVデータ2!F33,0)+IF(ISNUMBER(CSVデータ3!F33),CSVデータ3!F33,0)+IF(ISNUMBER(CSVデータ4!F33),CSVデータ4!F33,0) -> 4173 | H33: =IF(ISNUMBER(CSVデータ1!H33),CSVデータ1!H33,0)+IF(ISNUMBER(CSVデータ2!H33),CSVデータ2!H33,0)+IF(ISNUMBER(CSVデータ3!H33),CSVデータ3!H33,0)+IF(ISNUMBER(CSVデータ4!H33),CSVデータ4!H33,0) -> 7048 | J33: =IF(ISNUMBER(CSVデータ1!J33),CSVデータ1!J33,0)+IF(ISNUMBER(CSVデータ2!J33),CSVデータ2!J33,0)+IF(ISNUMBER(CSVデータ3!J33),CSVデータ3!J33,0)+IF(ISNUMBER(CSVデータ4!J33),CSVデータ4!J33,0) -> 2192 | L33: =IF(ISNUMBER(CSVデータ1!L33),CSVデータ1!L33,0)+IF(ISNUMBER(CSVデータ2!L33),CSVデータ2!L33,0)+IF(ISNUMBER(CSVデータ3!L33),CSVデータ3!L33,0)+IF(ISNUMBER(CSVデータ4!L33),CSVデータ4!L33,0) -> 2100 | N33: =IF(ISNUMBER(CSVデータ1!N33),CSVデータ1!N33,0)+IF(ISNUMBER(CSVデータ2!N33),CSVデータ2!N33,0)+IF(ISNUMBER(CSVデータ3!N33),CSVデータ3!N33,0)+IF(ISNUMBER(CSVデータ4!N33),CSVデータ4!N33,0) -> 755 | P33: =IF(ISNUMBER(CSVデータ1!P33),CSVデータ1!P33,0)+IF(ISNUMBER(CSVデータ2!P33),CSVデータ2!P33,0)+IF(ISNUMBER(CSVデータ3!P33),CSVデータ3!P33,0)+IF(ISNUMBER(CSVデータ4!P33),CSVデータ4!P33,0) -> 4489 | R33: =IF(ISNUMBER(CSVデータ1!R33),CSVデータ1!R33,0)+IF(ISNUMBER(CSVデータ2!R33),CSVデータ2!R33,0)+IF(ISNUMBER(CSVデータ3!R33),CSVデータ3!R33,0)+IF(ISNUMBER(CSVデータ4!R33),CSVデータ4!R33,0) -> 8188 | T33: =IF(ISNUMBER(CSVデータ1!T33),CSVデータ1!T33,0)+IF(ISNUMBER(CSVデータ2!T33),CSVデータ2!T33,0)+IF(ISNUMBER(CSVデータ3!T33),CSVデータ3!T33,0)+IF(ISNUMBER(CSVデータ4!T33),CSVデータ4!T33,0) -> 1398 | V33: =IF(ISNUMBER(CSVデータ1!V33),CSVデータ1!V33,0)+IF(ISNUMBER(CSVデータ2!V33),CSVデータ2!V33,0)+IF(ISNUMBER(CSVデータ3!V33),CSVデータ3!V33,0)+IF(ISNUMBER(CSVデータ4!V33),CSVデータ4!V33,0) -> 6455 | X33: =IF(ISNUMBER(CSVデータ1!X33),CSVデータ1!X33,0)+IF(ISNUMBER(CSVデータ2!X33),CSVデータ2!X33,0)+IF(ISNUMBER(CSVデータ3!X33),CSVデータ3!X33,0)+IF(ISNUMBER(CSVデータ4!X33),CSVデータ4!X33,0) -> 3172 | Z33: =IF(ISNUMBER(CSVデータ1!Z33),CSVデータ1!Z33,0)+IF(ISNUMBER(CSVデータ2!Z33),CSVデータ2!Z33,0)+IF(ISNUMBER(CSVデータ3!Z33),CSVデータ3!Z33,0)+IF(ISNUMBER(CSVデータ4!Z33),CSVデータ4!Z33,0) -> 5429 | AB33: =IF(ISNUMBER(CSVデータ1!AB33),CSVデータ1!AB33,0)+IF(ISNUMBER(CSVデータ2!AB33),CSVデータ2!AB33,0)+IF(ISNUMBER(CSVデータ3!AB33),CSVデータ3!AB33,0)+IF(ISNUMBER(CSVデータ4!AB33),CSVデータ4!AB33,0) -> 359 | AD33: =IF(ISNUMBER(CSVデータ1!AD33),CSVデータ1!AD33,0)+IF(ISNUMBER(CSVデータ2!AD33),CSVデータ2!AD33,0)+IF(ISNUMBER(CSVデータ3!AD33),CSVデータ3!AD33,0)+IF(ISNUMBER(CSVデータ4!AD33),CSVデータ4!AD33,0) -> 3187 | AF33: =IF(ISNUMBER(CSVデータ1!AF33),CSVデータ1!AF33,0)+IF(ISNUMBER(CSVデータ2!AF33),CSVデータ2!AF33,0)+IF(ISNUMBER(CSVデータ3!AF33),CSVデータ3!AF33,0)+IF(ISNUMBER(CSVデータ4!AF33),CSVデータ4!AF33,0) -> 3092 | AH33: =IF(ISNUMBER(CSVデータ1!AH33),CSVデータ1!AH33,0)+IF(ISNUMBER(CSVデータ2!AH33),CSVデータ2!AH33,0)+IF(ISNUMBER(CSVデータ3!AH33),CSVデータ3!AH33,0)+IF(ISNUMBER(CSVデータ4!AH33),CSVデータ4!AH33,0) -> 398 | AJ33: =IF(ISNUMBER(CSVデータ1!AJ33),CSVデータ1!AJ33,0)+IF(ISNUMBER(CSVデータ2!AJ33),CSVデータ2!AJ33,0)+IF(ISNUMBER(CSVデータ3!AJ33),CSVデータ3!AJ33,0)+IF(ISNUMBER(CSVデータ4!AJ33),CSVデータ4!AJ33,0) -> 752 | AL33: =IF(ISNUMBER(CSVデータ1!AL33),CSVデータ1!AL33,0)+IF(ISNUMBER(CSVデータ2!AL33),CSVデータ2!AL33,0)+IF(ISNUMBER(CSVデータ3!AL33),CSVデータ3!AL33,0)+IF(ISNUMBER(CSVデータ4!AL33),CSVデータ4!AL33,0) -> 3356 | AN33: =IF(ISNUMBER(CSVデータ1!AN33),CSVデータ1!AN33,0)+IF(ISNUMBER(CSVデータ2!AN33),CSVデータ2!AN33,0)+IF(ISNUMBER(CSVデータ3!AN33),CSVデータ3!AN33,0)+IF(ISNUMBER(CSVデータ4!AN33),CSVデータ4!AN33,0) -> 798
A34: =CSVデータ1!A34 -> 明細部 | B34: =CSVデータ1!B34 -> 国 | C34: =CSVデータ1!C34 -> 70 | D34: =CSVデータ1!D34 -> 男 | E34: =IF(ISNUMBER(CSVデータ1!E34),CSVデータ1!E34,0)+IF(ISNUMBER(CSVデータ2!E34),CSVデータ2!E34,0)+IF(ISNUMBER(CSVデータ3!E34),CSVデータ3!E34,0)+IF(ISNUMBER(CSVデータ4!E34),CSVデータ4!E34,0) -> 13370 | F34: =IF(ISNUMBER(CSVデータ1!F34),CSVデータ1!F34,0)+IF(ISNUMBER(CSVデータ2!F34),CSVデータ2!F34,0)+IF(ISNUMBER(CSVデータ3!F34),CSVデータ3!F34,0)+IF(ISNUMBER(CSVデータ4!F34),CSVデータ4!F34,0) -> 4370 | H34: =IF(ISNUMBER(CSVデータ1!H34),CSVデータ1!H34,0)+IF(ISNUMBER(CSVデータ2!H34),CSVデータ2!H34,0)+IF(ISNUMBER(CSVデータ3!H34),CSVデータ3!H34,0)+IF(ISNUMBER(CSVデータ4!H34),CSVデータ4!H34,0) -> 7410 | J34: =IF(ISNUMBER(CSVデータ1!J34),CSVデータ1!J34,0)+IF(ISNUMBER(CSVデータ2!J34),CSVデータ2!J34,0)+IF(ISNUMBER(CSVデータ3!J34),CSVデータ3!J34,0)+IF(ISNUMBER(CSVデータ4!J34),CSVデータ4!J34,0) -> 2272 | L34: =IF(ISNUMBER(CSVデータ1!L34),CSVデータ1!L34,0)+IF(ISNUMBER(CSVデータ2!L34),CSVデータ2!L34,0)+IF(ISNUMBER(CSVデータ3!L34),CSVデータ3!L34,0)+IF(ISNUMBER(CSVデータ4!L34),CSVデータ4!L34,0) -> 2251 | N34: =IF(ISNUMBER(CSVデータ1!N34),CSVデータ1!N34,0)+IF(ISNUMBER(CSVデータ2!N34),CSVデータ2!N34,0)+IF(ISNUMBER(CSVデータ3!N34),CSVデータ3!N34,0)+IF(ISNUMBER(CSVデータ4!N34),CSVデータ4!N34,0) -> 826 | P34: =IF(ISNUMBER(CSVデータ1!P34),CSVデータ1!P34,0)+IF(ISNUMBER(CSVデータ2!P34),CSVデータ2!P34,0)+IF(ISNUMBER(CSVデータ3!P34),CSVデータ3!P34,0)+IF(ISNUMBER(CSVデータ4!P34),CSVデータ4!P34,0) -> 4731 | R34: =IF(ISNUMBER(CSVデータ1!R34),CSVデータ1!R34,0)+IF(ISNUMBER(CSVデータ2!R34),CSVデータ2!R34,0)+IF(ISNUMBER(CSVデータ3!R34),CSVデータ3!R34,0)+IF(ISNUMBER(CSVデータ4!R34),CSVデータ4!R34,0) -> 9118 | T34: =IF(ISNUMBER(CSVデータ1!T34),CSVデータ1!T34,0)+IF(ISNUMBER(CSVデータ2!T34),CSVデータ2!T34,0)+IF(ISNUMBER(CSVデータ3!T34),CSVデータ3!T34,0)+IF(ISNUMBER(CSVデータ4!T34),CSVデータ4!T34,0) -> 1550 | V34: =IF(ISNUMBER(CSVデータ1!V34),CSVデータ1!V34,0)+IF(ISNUMBER(CSVデータ2!V34),CSVデータ2!V34,0)+IF(ISNUMBER(CSVデータ3!V34),CSVデータ3!V34,0)+IF(ISNUMBER(CSVデータ4!V34),CSVデータ4!V34,0) -> 7167 | X34: =IF(ISNUMBER(CSVデータ1!X34),CSVデータ1!X34,0)+IF(ISNUMBER(CSVデータ2!X34),CSVデータ2!X34,0)+IF(ISNUMBER(CSVデータ3!X34),CSVデータ3!X34,0)+IF(ISNUMBER(CSVデータ4!X34),CSVデータ4!X34,0) -> 3361 | Z34: =IF(ISNUMBER(CSVデータ1!Z34),CSVデータ1!Z34,0)+IF(ISNUMBER(CSVデータ2!Z34),CSVデータ2!Z34,0)+IF(ISNUMBER(CSVデータ3!Z34),CSVデータ3!Z34,0)+IF(ISNUMBER(CSVデータ4!Z34),CSVデータ4!Z34,0) -> 5823 | AB34: =IF(ISNUMBER(CSVデータ1!AB34),CSVデータ1!AB34,0)+IF(ISNUMBER(CSVデータ2!AB34),CSVデータ2!AB34,0)+IF(ISNUMBER(CSVデータ3!AB34),CSVデータ3!AB34,0)+IF(ISNUMBER(CSVデータ4!AB34),CSVデータ4!AB34,0) -> 441 | AD34: =IF(ISNUMBER(CSVデータ1!AD34),CSVデータ1!AD34,0)+IF(ISNUMBER(CSVデータ2!AD34),CSVデータ2!AD34,0)+IF(ISNUMBER(CSVデータ3!AD34),CSVデータ3!AD34,0)+IF(ISNUMBER(CSVデータ4!AD34),CSVデータ4!AD34,0) -> 3547 | AF34: =IF(ISNUMBER(CSVデータ1!AF34),CSVデータ1!AF34,0)+IF(ISNUMBER(CSVデータ2!AF34),CSVデータ2!AF34,0)+IF(ISNUMBER(CSVデータ3!AF34),CSVデータ3!AF34,0)+IF(ISNUMBER(CSVデータ4!AF34),CSVデータ4!AF34,0) -> 3397 | AH34: =IF(ISNUMBER(CSVデータ1!AH34),CSVデータ1!AH34,0)+IF(ISNUMBER(CSVデータ2!AH34),CSVデータ2!AH34,0)+IF(ISNUMBER(CSVデータ3!AH34),CSVデータ3!AH34,0)+IF(ISNUMBER(CSVデータ4!AH34),CSVデータ4!AH34,0) -> 443 | AJ34: =IF(ISNUMBER(CSVデータ1!AJ34),CSVデータ1!AJ34,0)+IF(ISNUMBER(CSVデータ2!AJ34),CSVデータ2!AJ34,0)+IF(ISNUMBER(CSVデータ3!AJ34),CSVデータ3!AJ34,0)+IF(ISNUMBER(CSVデータ4!AJ34),CSVデータ4!AJ34,0) -> 835 | AL34: =IF(ISNUMBER(CSVデータ1!AL34),CSVデータ1!AL34,0)+IF(ISNUMBER(CSVデータ2!AL34),CSVデータ2!AL34,0)+IF(ISNUMBER(CSVデータ3!AL34),CSVデータ3!AL34,0)+IF(ISNUMBER(CSVデータ4!AL34),CSVデータ4!AL34,0) -> 3893 | AN34: =IF(ISNUMBER(CSVデータ1!AN34),CSVデータ1!AN34,0)+IF(ISNUMBER(CSVデータ2!AN34),CSVデータ2!AN34,0)+IF(ISNUMBER(CSVデータ3!AN34),CSVデータ3!AN34,0)+IF(ISNUMBER(CSVデータ4!AN34),CSVデータ4!AN34,0) -> 847
A35: =CSVデータ1!A35 -> 明細部 | B35: =CSVデータ1!B35 -> 国 | C35: =CSVデータ1!C35 -> 71 | D35: =CSVデータ1!D35 -> 男 | E35: =IF(ISNUMBER(CSVデータ1!E35),CSVデータ1!E35,0)+IF(ISNUMBER(CSVデータ2!E35),CSVデータ2!E35,0)+IF(ISNUMBER(CSVデータ3!E35),CSVデータ3!E35,0)+IF(ISNUMBER(CSVデータ4!E35),CSVデータ4!E35,0) -> 14768 | F35: =IF(ISNUMBER(CSVデータ1!F35),CSVデータ1!F35,0)+IF(ISNUMBER(CSVデータ2!F35),CSVデータ2!F35,0)+IF(ISNUMBER(CSVデータ3!F35),CSVデータ3!F35,0)+IF(ISNUMBER(CSVデータ4!F35),CSVデータ4!F35,0) -> 4706 | H35: =IF(ISNUMBER(CSVデータ1!H35),CSVデータ1!H35,0)+IF(ISNUMBER(CSVデータ2!H35),CSVデータ2!H35,0)+IF(ISNUMBER(CSVデータ3!H35),CSVデータ3!H35,0)+IF(ISNUMBER(CSVデータ4!H35),CSVデータ4!H35,0) -> 7920 | J35: =IF(ISNUMBER(CSVデータ1!J35),CSVデータ1!J35,0)+IF(ISNUMBER(CSVデータ2!J35),CSVデータ2!J35,0)+IF(ISNUMBER(CSVデータ3!J35),CSVデータ3!J35,0)+IF(ISNUMBER(CSVデータ4!J35),CSVデータ4!J35,0) -> 2308 | L35: =IF(ISNUMBER(CSVデータ1!L35),CSVデータ1!L35,0)+IF(ISNUMBER(CSVデータ2!L35),CSVデータ2!L35,0)+IF(ISNUMBER(CSVデータ3!L35),CSVデータ3!L35,0)+IF(ISNUMBER(CSVデータ4!L35),CSVデータ4!L35,0) -> 2303 | N35: =IF(ISNUMBER(CSVデータ1!N35),CSVデータ1!N35,0)+IF(ISNUMBER(CSVデータ2!N35),CSVデータ2!N35,0)+IF(ISNUMBER(CSVデータ3!N35),CSVデータ3!N35,0)+IF(ISNUMBER(CSVデータ4!N35),CSVデータ4!N35,0) -> 876 | P35: =IF(ISNUMBER(CSVデータ1!P35),CSVデータ1!P35,0)+IF(ISNUMBER(CSVデータ2!P35),CSVデータ2!P35,0)+IF(ISNUMBER(CSVデータ3!P35),CSVデータ3!P35,0)+IF(ISNUMBER(CSVデータ4!P35),CSVデータ4!P35,0) -> 5082 | R35: =IF(ISNUMBER(CSVデータ1!R35),CSVデータ1!R35,0)+IF(ISNUMBER(CSVデータ2!R35),CSVデータ2!R35,0)+IF(ISNUMBER(CSVデータ3!R35),CSVデータ3!R35,0)+IF(ISNUMBER(CSVデータ4!R35),CSVデータ4!R35,0) -> 9600 | T35: =IF(ISNUMBER(CSVデータ1!T35),CSVデータ1!T35,0)+IF(ISNUMBER(CSVデータ2!T35),CSVデータ2!T35,0)+IF(ISNUMBER(CSVデータ3!T35),CSVデータ3!T35,0)+IF(ISNUMBER(CSVデータ4!T35),CSVデータ4!T35,0) -> 1515 | V35: =IF(ISNUMBER(CSVデータ1!V35),CSVデータ1!V35,0)+IF(ISNUMBER(CSVデータ2!V35),CSVデータ2!V35,0)+IF(ISNUMBER(CSVデータ3!V35),CSVデータ3!V35,0)+IF(ISNUMBER(CSVデータ4!V35),CSVデータ4!V35,0) -> 7548 | X35: =IF(ISNUMBER(CSVデータ1!X35),CSVデータ1!X35,0)+IF(ISNUMBER(CSVデータ2!X35),CSVデータ2!X35,0)+IF(ISNUMBER(CSVデータ3!X35),CSVデータ3!X35,0)+IF(ISNUMBER(CSVデータ4!X35),CSVデータ4!X35,0) -> 3345 | Z35: =IF(ISNUMBER(CSVデータ1!Z35),CSVデータ1!Z35,0)+IF(ISNUMBER(CSVデータ2!Z35),CSVデータ2!Z35,0)+IF(ISNUMBER(CSVデータ3!Z35),CSVデータ3!Z35,0)+IF(ISNUMBER(CSVデータ4!Z35),CSVデータ4!Z35,0) -> 6030 | AB35: =IF(ISNUMBER(CSVデータ1!AB35),CSVデータ1!AB35,0)+IF(ISNUMBER(CSVデータ2!AB35),CSVデータ2!AB35,0)+IF(ISNUMBER(CSVデータ3!AB35),CSVデータ3!AB35,0)+IF(ISNUMBER(CSVデータ4!AB35),CSVデータ4!AB35,0) -> 492 | AD35: =IF(ISNUMBER(CSVデータ1!AD35),CSVデータ1!AD35,0)+IF(ISNUMBER(CSVデータ2!AD35),CSVデータ2!AD35,0)+IF(ISNUMBER(CSVデータ3!AD35),CSVデータ3!AD35,0)+IF(ISNUMBER(CSVデータ4!AD35),CSVデータ4!AD35,0) -> 3822 | AF35: =IF(ISNUMBER(CSVデータ1!AF35),CSVデータ1!AF35,0)+IF(ISNUMBER(CSVデータ2!AF35),CSVデータ2!AF35,0)+IF(ISNUMBER(CSVデータ3!AF35),CSVデータ3!AF35,0)+IF(ISNUMBER(CSVデータ4!AF35),CSVデータ4!AF35,0) -> 3518 | AH35: =IF(ISNUMBER(CSVデータ1!AH35),CSVデータ1!AH35,0)+IF(ISNUMBER(CSVデータ2!AH35),CSVデータ2!AH35,0)+IF(ISNUMBER(CSVデータ3!AH35),CSVデータ3!AH35,0)+IF(ISNUMBER(CSVデータ4!AH35),CSVデータ4!AH35,0) -> 468 | AJ35: =IF(ISNUMBER(CSVデータ1!AJ35),CSVデータ1!AJ35,0)+IF(ISNUMBER(CSVデータ2!AJ35),CSVデータ2!AJ35,0)+IF(ISNUMBER(CSVデータ3!AJ35),CSVデータ3!AJ35,0)+IF(ISNUMBER(CSVデータ4!AJ35),CSVデータ4!AJ35,0) -> 827 | AL35: =IF(ISNUMBER(CSVデータ1!AL35),CSVデータ1!AL35,0)+IF(ISNUMBER(CSVデータ2!AL35),CSVデータ2!AL35,0)+IF(ISNUMBER(CSVデータ3!AL35),CSVデータ3!AL35,0)+IF(ISNUMBER(CSVデータ4!AL35),CSVデータ4!AL35,0) -> 4382 | AN35: =IF(ISNUMBER(CSVデータ1!AN35),CSVデータ1!AN35,0)+IF(ISNUMBER(CSVデータ2!AN35),CSVデータ2!AN35,0)+IF(ISNUMBER(CSVデータ3!AN35),CSVデータ3!AN35,0)+IF(ISNUMBER(CSVデータ4!AN35),CSVデータ4!AN35,0) -> 894
A36: =CSVデータ1!A36 -> 明細部 | B36: =CSVデータ1!B36 -> 国 | C36: =CSVデータ1!C36 -> 72 | D36: =CSVデータ1!D36 -> 男 | E36: =IF(ISNUMBER(CSVデータ1!E36),CSVデータ1!E36,0)+IF(ISNUMBER(CSVデータ2!E36),CSVデータ2!E36,0)+IF(ISNUMBER(CSVデータ3!E36),CSVデータ3!E36,0)+IF(ISNUMBER(CSVデータ4!E36),CSVデータ4!E36,0) -> 15940 | F36: =IF(ISNUMBER(CSVデータ1!F36),CSVデータ1!F36,0)+IF(ISNUMBER(CSVデータ2!F36),CSVデータ2!F36,0)+IF(ISNUMBER(CSVデータ3!F36),CSVデータ3!F36,0)+IF(ISNUMBER(CSVデータ4!F36),CSVデータ4!F36,0) -> 5185 | H36: =IF(ISNUMBER(CSVデータ1!H36),CSVデータ1!H36,0)+IF(ISNUMBER(CSVデータ2!H36),CSVデータ2!H36,0)+IF(ISNUMBER(CSVデータ3!H36),CSVデータ3!H36,0)+IF(ISNUMBER(CSVデータ4!H36),CSVデータ4!H36,0) -> 9022 | J36: =IF(ISNUMBER(CSVデータ1!J36),CSVデータ1!J36,0)+IF(ISNUMBER(CSVデータ2!J36),CSVデータ2!J36,0)+IF(ISNUMBER(CSVデータ3!J36),CSVデータ3!J36,0)+IF(ISNUMBER(CSVデータ4!J36),CSVデータ4!J36,0) -> 2418 | L36: =IF(ISNUMBER(CSVデータ1!L36),CSVデータ1!L36,0)+IF(ISNUMBER(CSVデータ2!L36),CSVデータ2!L36,0)+IF(ISNUMBER(CSVデータ3!L36),CSVデータ3!L36,0)+IF(ISNUMBER(CSVデータ4!L36),CSVデータ4!L36,0) -> 2414 | N36: =IF(ISNUMBER(CSVデータ1!N36),CSVデータ1!N36,0)+IF(ISNUMBER(CSVデータ2!N36),CSVデータ2!N36,0)+IF(ISNUMBER(CSVデータ3!N36),CSVデータ3!N36,0)+IF(ISNUMBER(CSVデータ4!N36),CSVデータ4!N36,0) -> 1044 | P36: =IF(ISNUMBER(CSVデータ1!P36),CSVデータ1!P36,0)+IF(ISNUMBER(CSVデータ2!P36),CSVデータ2!P36,0)+IF(ISNUMBER(CSVデータ3!P36),CSVデータ3!P36,0)+IF(ISNUMBER(CSVデータ4!P36),CSVデータ4!P36,0) -> 5706 | R36: =IF(ISNUMBER(CSVデータ1!R36),CSVデータ1!R36,0)+IF(ISNUMBER(CSVデータ2!R36),CSVデータ2!R36,0)+IF(ISNUMBER(CSVデータ3!R36),CSVデータ3!R36,0)+IF(ISNUMBER(CSVデータ4!R36),CSVデータ4!R36,0) -> 10869 | T36: =IF(ISNUMBER(CSVデータ1!T36),CSVデータ1!T36,0)+IF(ISNUMBER(CSVデータ2!T36),CSVデータ2!T36,0)+IF(ISNUMBER(CSVデータ3!T36),CSVデータ3!T36,0)+IF(ISNUMBER(CSVデータ4!T36),CSVデータ4!T36,0) -> 1631 | V36: =IF(ISNUMBER(CSVデータ1!V36),CSVデータ1!V36,0)+IF(ISNUMBER(CSVデータ2!V36),CSVデータ2!V36,0)+IF(ISNUMBER(CSVデータ3!V36),CSVデータ3!V36,0)+IF(ISNUMBER(CSVデータ4!V36),CSVデータ4!V36,0) -> 8782 | X36: =IF(ISNUMBER(CSVデータ1!X36),CSVデータ1!X36,0)+IF(ISNUMBER(CSVデータ2!X36),CSVデータ2!X36,0)+IF(ISNUMBER(CSVデータ3!X36),CSVデータ3!X36,0)+IF(ISNUMBER(CSVデータ4!X36),CSVデータ4!X36,0) -> 3545 | Z36: =IF(ISNUMBER(CSVデータ1!Z36),CSVデータ1!Z36,0)+IF(ISNUMBER(CSVデータ2!Z36),CSVデータ2!Z36,0)+IF(ISNUMBER(CSVデータ3!Z36),CSVデータ3!Z36,0)+IF(ISNUMBER(CSVデータ4!Z36),CSVデータ4!Z36,0) -> 6611 | AB36: =IF(ISNUMBER(CSVデータ1!AB36),CSVデータ1!AB36,0)+IF(ISNUMBER(CSVデータ2!AB36),CSVデータ2!AB36,0)+IF(ISNUMBER(CSVデータ3!AB36),CSVデータ3!AB36,0)+IF(ISNUMBER(CSVデータ4!AB36),CSVデータ4!AB36,0) -> 555 | AD36: =IF(ISNUMBER(CSVデータ1!AD36),CSVデータ1!AD36,0)+IF(ISNUMBER(CSVデータ2!AD36),CSVデータ2!AD36,0)+IF(ISNUMBER(CSVデータ3!AD36),CSVデータ3!AD36,0)+IF(ISNUMBER(CSVデータ4!AD36),CSVデータ4!AD36,0) -> 4478 | AF36: =IF(ISNUMBER(CSVデータ1!AF36),CSVデータ1!AF36,0)+IF(ISNUMBER(CSVデータ2!AF36),CSVデータ2!AF36,0)+IF(ISNUMBER(CSVデータ3!AF36),CSVデータ3!AF36,0)+IF(ISNUMBER(CSVデータ4!AF36),CSVデータ4!AF36,0) -> 3888 | AH36: =IF(ISNUMBER(CSVデータ1!AH36),CSVデータ1!AH36,0)+IF(ISNUMBER(CSVデータ2!AH36),CSVデータ2!AH36,0)+IF(ISNUMBER(CSVデータ3!AH36),CSVデータ3!AH36,0)+IF(ISNUMBER(CSVデータ4!AH36),CSVデータ4!AH36,0) -> 582 | AJ36: =IF(ISNUMBER(CSVデータ1!AJ36),CSVデータ1!AJ36,0)+IF(ISNUMBER(CSVデータ2!AJ36),CSVデータ2!AJ36,0)+IF(ISNUMBER(CSVデータ3!AJ36),CSVデータ3!AJ36,0)+IF(ISNUMBER(CSVデータ4!AJ36),CSVデータ4!AJ36,0) -> 866 | AL36: =IF(ISNUMBER(CSVデータ1!AL36),CSVデータ1!AL36,0)+IF(ISNUMBER(CSVデータ2!AL36),CSVデータ2!AL36,0)+IF(ISNUMBER(CSVデータ3!AL36),CSVデータ3!AL36,0)+IF(ISNUMBER(CSVデータ4!AL36),CSVデータ4!AL36,0) -> 4811 | AN36: =IF(ISNUMBER(CSVデータ1!AN36),CSVデータ1!AN36,0)+IF(ISNUMBER(CSVデータ2!AN36),CSVデータ2!AN36,0)+IF(ISNUMBER(CSVデータ3!AN36),CSVデータ3!AN36,0)+IF(ISNUMBER(CSVデータ4!AN36),CSVデータ4!AN36,0) -> 958
A37: =CSVデータ1!A37 -> 明細部 | B37: =CSVデータ1!B37 -> 国 | C37: =CSVデータ1!C37 -> 73 | D37: =CSVデータ1!D37 -> 男 | E37: =IF(ISNUMBER(CSVデータ1!E37),CSVデータ1!E37,0)+IF(ISNUMBER(CSVデータ2!E37),CSVデータ2!E37,0)+IF(ISNUMBER(CSVデータ3!E37),CSVデータ3!E37,0)+IF(ISNUMBER(CSVデータ4!E37),CSVデータ4!E37,0) -> 17277 | F37: =IF(ISNUMBER(CSVデータ1!F37),CSVデータ1!F37,0)+IF(ISNUMBER(CSVデータ2!F37),CSVデータ2!F37,0)+IF(ISNUMBER(CSVデータ3!F37),CSVデータ3!F37,0)+IF(ISNUMBER(CSVデータ4!F37),CSVデータ4!F37,0) -> 5334 | H37: =IF(ISNUMBER(CSVデータ1!H37),CSVデータ1!H37,0)+IF(ISNUMBER(CSVデータ2!H37),CSVデータ2!H37,0)+IF(ISNUMBER(CSVデータ3!H37),CSVデータ3!H37,0)+IF(ISNUMBER(CSVデータ4!H37),CSVデータ4!H37,0) -> 9328 | J37: =IF(ISNUMBER(CSVデータ1!J37),CSVデータ1!J37,0)+IF(ISNUMBER(CSVデータ2!J37),CSVデータ2!J37,0)+IF(ISNUMBER(CSVデータ3!J37),CSVデータ3!J37,0)+IF(ISNUMBER(CSVデータ4!J37),CSVデータ4!J37,0) -> 2579 | L37: =IF(ISNUMBER(CSVデータ1!L37),CSVデータ1!L37,0)+IF(ISNUMBER(CSVデータ2!L37),CSVデータ2!L37,0)+IF(ISNUMBER(CSVデータ3!L37),CSVデータ3!L37,0)+IF(ISNUMBER(CSVデータ4!L37),CSVデータ4!L37,0) -> 2411 | N37: =IF(ISNUMBER(CSVデータ1!N37),CSVデータ1!N37,0)+IF(ISNUMBER(CSVデータ2!N37),CSVデータ2!N37,0)+IF(ISNUMBER(CSVデータ3!N37),CSVデータ3!N37,0)+IF(ISNUMBER(CSVデータ4!N37),CSVデータ4!N37,0) -> 1198 | P37: =IF(ISNUMBER(CSVデータ1!P37),CSVデータ1!P37,0)+IF(ISNUMBER(CSVデータ2!P37),CSVデータ2!P37,0)+IF(ISNUMBER(CSVデータ3!P37),CSVデータ3!P37,0)+IF(ISNUMBER(CSVデータ4!P37),CSVデータ4!P37,0) -> 6058 | R37: =IF(ISNUMBER(CSVデータ1!R37),CSVデータ1!R37,0)+IF(ISNUMBER(CSVデータ2!R37),CSVデータ2!R37,0)+IF(ISNUMBER(CSVデータ3!R37),CSVデータ3!R37,0)+IF(ISNUMBER(CSVデータ4!R37),CSVデータ4!R37,0) -> 12109 | T37: =IF(ISNUMBER(CSVデータ1!T37),CSVデータ1!T37,0)+IF(ISNUMBER(CSVデータ2!T37),CSVデータ2!T37,0)+IF(ISNUMBER(CSVデータ3!T37),CSVデータ3!T37,0)+IF(ISNUMBER(CSVデータ4!T37),CSVデータ4!T37,0) -> 1861 | V37: =IF(ISNUMBER(CSVデータ1!V37),CSVデータ1!V37,0)+IF(ISNUMBER(CSVデータ2!V37),CSVデータ2!V37,0)+IF(ISNUMBER(CSVデータ3!V37),CSVデータ3!V37,0)+IF(ISNUMBER(CSVデータ4!V37),CSVデータ4!V37,0) -> 9317 | X37: =IF(ISNUMBER(CSVデータ1!X37),CSVデータ1!X37,0)+IF(ISNUMBER(CSVデータ2!X37),CSVデータ2!X37,0)+IF(ISNUMBER(CSVデータ3!X37),CSVデータ3!X37,0)+IF(ISNUMBER(CSVデータ4!X37),CSVデータ4!X37,0) -> 3689 | Z37: =IF(ISNUMBER(CSVデータ1!Z37),CSVデータ1!Z37,0)+IF(ISNUMBER(CSVデータ2!Z37),CSVデータ2!Z37,0)+IF(ISNUMBER(CSVデータ3!Z37),CSVデータ3!Z37,0)+IF(ISNUMBER(CSVデータ4!Z37),CSVデータ4!Z37,0) -> 7032 | AB37: =IF(ISNUMBER(CSVデータ1!AB37),CSVデータ1!AB37,0)+IF(ISNUMBER(CSVデータ2!AB37),CSVデータ2!AB37,0)+IF(ISNUMBER(CSVデータ3!AB37),CSVデータ3!AB37,0)+IF(ISNUMBER(CSVデータ4!AB37),CSVデータ4!AB37,0) -> 700 | AD37: =IF(ISNUMBER(CSVデータ1!AD37),CSVデータ1!AD37,0)+IF(ISNUMBER(CSVデータ2!AD37),CSVデータ2!AD37,0)+IF(ISNUMBER(CSVデータ3!AD37),CSVデータ3!AD37,0)+IF(ISNUMBER(CSVデータ4!AD37),CSVデータ4!AD37,0) -> 4990 | AF37: =IF(ISNUMBER(CSVデータ1!AF37),CSVデータ1!AF37,0)+IF(ISNUMBER(CSVデータ2!AF37),CSVデータ2!AF37,0)+IF(ISNUMBER(CSVデータ3!AF37),CSVデータ3!AF37,0)+IF(ISNUMBER(CSVデータ4!AF37),CSVデータ4!AF37,0) -> 4121 | AH37: =IF(ISNUMBER(CSVデータ1!AH37),CSVデータ1!AH37,0)+IF(ISNUMBER(CSVデータ2!AH37),CSVデータ2!AH37,0)+IF(ISNUMBER(CSVデータ3!AH37),CSVデータ3!AH37,0)+IF(ISNUMBER(CSVデータ4!AH37),CSVデータ4!AH37,0) -> 629 | AJ37: =IF(ISNUMBER(CSVデータ1!AJ37),CSVデータ1!AJ37,0)+IF(ISNUMBER(CSVデータ2!AJ37),CSVデータ2!AJ37,0)+IF(ISNUMBER(CSVデータ3!AJ37),CSVデータ3!AJ37,0)+IF(ISNUMBER(CSVデータ4!AJ37),CSVデータ4!AJ37,0) -> 864 | AL37: =IF(ISNUMBER(CSVデータ1!AL37),CSVデータ1!AL37,0)+IF(ISNUMBER(CSVデータ2!AL37),CSVデータ2!AL37,0)+IF(ISNUMBER(CSVデータ3!AL37),CSVデータ3!AL37,0)+IF(ISNUMBER(CSVデータ4!AL37),CSVデータ4!AL37,0) -> 5764 | AN37: =IF(ISNUMBER(CSVデータ1!AN37),CSVデータ1!AN37,0)+IF(ISNUMBER(CSVデータ2!AN37),CSVデータ2!AN37,0)+IF(ISNUMBER(CSVデータ3!AN37),CSVデータ3!AN37,0)+IF(ISNUMBER(CSVデータ4!AN37),CSVデータ4!AN37,0) -> 1035
A38: =CSVデータ1!A38 -> 明細部 | B38: =CSVデータ1!B38 -> 国 | C38: =CSVデータ1!C38 -> 74 | D38: =CSVデータ1!D38 -> 男 | E38: =IF(ISNUMBER(CSVデータ1!E38),CSVデータ1!E38,0)+IF(ISNUMBER(CSVデータ2!E38),CSVデータ2!E38,0)+IF(ISNUMBER(CSVデータ3!E38),CSVデータ3!E38,0)+IF(ISNUMBER(CSVデータ4!E38),CSVデータ4!E38,0) -> 19491 | F38: =IF(ISNUMBER(CSVデータ1!F38),CSVデータ1!F38,0)+IF(ISNUMBER(CSVデータ2!F38),CSVデータ2!F38,0)+IF(ISNUMBER(CSVデータ3!F38),CSVデータ3!F38,0)+IF(ISNUMBER(CSVデータ4!F38),CSVデータ4!F38,0) -> 5764 | H38: =IF(ISNUMBER(CSVデータ1!H38),CSVデータ1!H38,0)+IF(ISNUMBER(CSVデータ2!H38),CSVデータ2!H38,0)+IF(ISNUMBER(CSVデータ3!H38),CSVデータ3!H38,0)+IF(ISNUMBER(CSVデータ4!H38),CSVデータ4!H38,0) -> 10426 | J38: =IF(ISNUMBER(CSVデータ1!J38),CSVデータ1!J38,0)+IF(ISNUMBER(CSVデータ2!J38),CSVデータ2!J38,0)+IF(ISNUMBER(CSVデータ3!J38),CSVデータ3!J38,0)+IF(ISNUMBER(CSVデータ4!J38),CSVデータ4!J38,0) -> 2599 | L38: =IF(ISNUMBER(CSVデータ1!L38),CSVデータ1!L38,0)+IF(ISNUMBER(CSVデータ2!L38),CSVデータ2!L38,0)+IF(ISNUMBER(CSVデータ3!L38),CSVデータ3!L38,0)+IF(ISNUMBER(CSVデータ4!L38),CSVデータ4!L38,0) -> 2551 | N38: =IF(ISNUMBER(CSVデータ1!N38),CSVデータ1!N38,0)+IF(ISNUMBER(CSVデータ2!N38),CSVデータ2!N38,0)+IF(ISNUMBER(CSVデータ3!N38),CSVデータ3!N38,0)+IF(ISNUMBER(CSVデータ4!N38),CSVデータ4!N38,0) -> 1311 | P38: =IF(ISNUMBER(CSVデータ1!P38),CSVデータ1!P38,0)+IF(ISNUMBER(CSVデータ2!P38),CSVデータ2!P38,0)+IF(ISNUMBER(CSVデータ3!P38),CSVデータ3!P38,0)+IF(ISNUMBER(CSVデータ4!P38),CSVデータ4!P38,0) -> 6649 | R38: =IF(ISNUMBER(CSVデータ1!R38),CSVデータ1!R38,0)+IF(ISNUMBER(CSVデータ2!R38),CSVデータ2!R38,0)+IF(ISNUMBER(CSVデータ3!R38),CSVデータ3!R38,0)+IF(ISNUMBER(CSVデータ4!R38),CSVデータ4!R38,0) -> 13115 | T38: =IF(ISNUMBER(CSVデータ1!T38),CSVデータ1!T38,0)+IF(ISNUMBER(CSVデータ2!T38),CSVデータ2!T38,0)+IF(ISNUMBER(CSVデータ3!T38),CSVデータ3!T38,0)+IF(ISNUMBER(CSVデータ4!T38),CSVデータ4!T38,0) -> 1868 | V38: =IF(ISNUMBER(CSVデータ1!V38),CSVデータ1!V38,0)+IF(ISNUMBER(CSVデータ2!V38),CSVデータ2!V38,0)+IF(ISNUMBER(CSVデータ3!V38),CSVデータ3!V38,0)+IF(ISNUMBER(CSVデータ4!V38),CSVデータ4!V38,0) -> 10455 | X38: =IF(ISNUMBER(CSVデータ1!X38),CSVデータ1!X38,0)+IF(ISNUMBER(CSVデータ2!X38),CSVデータ2!X38,0)+IF(ISNUMBER(CSVデータ3!X38),CSVデータ3!X38,0)+IF(ISNUMBER(CSVデータ4!X38),CSVデータ4!X38,0) -> 3785 | Z38: =IF(ISNUMBER(CSVデータ1!Z38),CSVデータ1!Z38,0)+IF(ISNUMBER(CSVデータ2!Z38),CSVデータ2!Z38,0)+IF(ISNUMBER(CSVデータ3!Z38),CSVデータ3!Z38,0)+IF(ISNUMBER(CSVデータ4!Z38),CSVデータ4!Z38,0) -> 7593 | AB38: =IF(ISNUMBER(CSVデータ1!AB38),CSVデータ1!AB38,0)+IF(ISNUMBER(CSVデータ2!AB38),CSVデータ2!AB38,0)+IF(ISNUMBER(CSVデータ3!AB38),CSVデータ3!AB38,0)+IF(ISNUMBER(CSVデータ4!AB38),CSVデータ4!AB38,0) -> 778 | AD38: =IF(ISNUMBER(CSVデータ1!AD38),CSVデータ1!AD38,0)+IF(ISNUMBER(CSVデータ2!AD38),CSVデータ2!AD38,0)+IF(ISNUMBER(CSVデータ3!AD38),CSVデータ3!AD38,0)+IF(ISNUMBER(CSVデータ4!AD38),CSVデータ4!AD38,0) -> 5637 | AF38: =IF(ISNUMBER(CSVデータ1!AF38),CSVデータ1!AF38,0)+IF(ISNUMBER(CSVデータ2!AF38),CSVデータ2!AF38,0)+IF(ISNUMBER(CSVデータ3!AF38),CSVデータ3!AF38,0)+IF(ISNUMBER(CSVデータ4!AF38),CSVデータ4!AF38,0) -> 4588 | AH38: =IF(ISNUMBER(CSVデータ1!AH38),CSVデータ1!AH38,0)+IF(ISNUMBER(CSVデータ2!AH38),CSVデータ2!AH38,0)+IF(ISNUMBER(CSVデータ3!AH38),CSVデータ3!AH38,0)+IF(ISNUMBER(CSVデータ4!AH38),CSVデータ4!AH38,0) -> 685 | AJ38: =IF(ISNUMBER(CSVデータ1!AJ38),CSVデータ1!AJ38,0)+IF(ISNUMBER(CSVデータ2!AJ38),CSVデータ2!AJ38,0)+IF(ISNUMBER(CSVデータ3!AJ38),CSVデータ3!AJ38,0)+IF(ISNUMBER(CSVデータ4!AJ38),CSVデータ4!AJ38,0) -> 914 | AL38: =IF(ISNUMBER(CSVデータ1!AL38),CSVデータ1!AL38,0)+IF(ISNUMBER(CSVデータ2!AL38),CSVデータ2!AL38,0)+IF(ISNUMBER(CSVデータ3!AL38),CSVデータ3!AL38,0)+IF(ISNUMBER(CSVデータ4!AL38),CSVデータ4!AL38,0) -> 6565 | AN38: =IF(ISNUMBER(CSVデータ1!AN38),CSVデータ1!AN38,0)+IF(ISNUMBER(CSVデータ2!AN38),CSVデータ2!AN38,0)+IF(ISNUMBER(CSVデータ3!AN38),CSVデータ3!AN38,0)+IF(ISNUMBER(CSVデータ4!AN38),CSVデータ4!AN38,0) -> 1201
A39: =CSVデータ1!A39 -> 明細部 | B39: =CSVデータ1!B39 -> 国 | C39: =CSVデータ1!C39 -> 40 | D39: =CSVデータ1!D39 -> 女 | E39: =IF(ISNUMBER(CSVデータ1!E39),CSVデータ1!E39,0)+IF(ISNUMBER(CSVデータ2!E39),CSVデータ2!E39,0)+IF(ISNUMBER(CSVデータ3!E39),CSVデータ3!E39,0)+IF(ISNUMBER(CSVデータ4!E39),CSVデータ4!E39,0) -> 1680 | F39: =IF(ISNUMBER(CSVデータ1!F39),CSVデータ1!F39,0)+IF(ISNUMBER(CSVデータ2!F39),CSVデータ2!F39,0)+IF(ISNUMBER(CSVデータ3!F39),CSVデータ3!F39,0)+IF(ISNUMBER(CSVデータ4!F39),CSVデータ4!F39,0) -> 323 | H39: =IF(ISNUMBER(CSVデータ1!H39),CSVデータ1!H39,0)+IF(ISNUMBER(CSVデータ2!H39),CSVデータ2!H39,0)+IF(ISNUMBER(CSVデータ3!H39),CSVデータ3!H39,0)+IF(ISNUMBER(CSVデータ4!H39),CSVデータ4!H39,0) -> 220 | J39: =IF(ISNUMBER(CSVデータ1!J39),CSVデータ1!J39,0)+IF(ISNUMBER(CSVデータ2!J39),CSVデータ2!J39,0)+IF(ISNUMBER(CSVデータ3!J39),CSVデータ3!J39,0)+IF(ISNUMBER(CSVデータ4!J39),CSVデータ4!J39,0) -> 101 | L39: =IF(ISNUMBER(CSVデータ1!L39),CSVデータ1!L39,0)+IF(ISNUMBER(CSVデータ2!L39),CSVデータ2!L39,0)+IF(ISNUMBER(CSVデータ3!L39),CSVデータ3!L39,0)+IF(ISNUMBER(CSVデータ4!L39),CSVデータ4!L39,0) -> 106 | N39: =IF(ISNUMBER(CSVデータ1!N39),CSVデータ1!N39,0)+IF(ISNUMBER(CSVデータ2!N39),CSVデータ2!N39,0)+IF(ISNUMBER(CSVデータ3!N39),CSVデータ3!N39,0)+IF(ISNUMBER(CSVデータ4!N39),CSVデータ4!N39,0) -> 27 | P39: =IF(ISNUMBER(CSVデータ1!P39),CSVデータ1!P39,0)+IF(ISNUMBER(CSVデータ2!P39),CSVデータ2!P39,0)+IF(ISNUMBER(CSVデータ3!P39),CSVデータ3!P39,0)+IF(ISNUMBER(CSVデータ4!P39),CSVデータ4!P39,0) -> 85 | R39: =IF(ISNUMBER(CSVデータ1!R39),CSVデータ1!R39,0)+IF(ISNUMBER(CSVデータ2!R39),CSVデータ2!R39,0)+IF(ISNUMBER(CSVデータ3!R39),CSVデータ3!R39,0)+IF(ISNUMBER(CSVデータ4!R39),CSVデータ4!R39,0) -> 366 | T39: =IF(ISNUMBER(CSVデータ1!T39),CSVデータ1!T39,0)+IF(ISNUMBER(CSVデータ2!T39),CSVデータ2!T39,0)+IF(ISNUMBER(CSVデータ3!T39),CSVデータ3!T39,0)+IF(ISNUMBER(CSVデータ4!T39),CSVデータ4!T39,0) -> 17 | V39: =IF(ISNUMBER(CSVデータ1!V39),CSVデータ1!V39,0)+IF(ISNUMBER(CSVデータ2!V39),CSVデータ2!V39,0)+IF(ISNUMBER(CSVデータ3!V39),CSVデータ3!V39,0)+IF(ISNUMBER(CSVデータ4!V39),CSVデータ4!V39,0) -> 146 | X39: =IF(ISNUMBER(CSVデータ1!X39),CSVデータ1!X39,0)+IF(ISNUMBER(CSVデータ2!X39),CSVデータ2!X39,0)+IF(ISNUMBER(CSVデータ3!X39),CSVデータ3!X39,0)+IF(ISNUMBER(CSVデータ4!X39),CSVデータ4!X39,0) -> 127 | Z39: =IF(ISNUMBER(CSVデータ1!Z39),CSVデータ1!Z39,0)+IF(ISNUMBER(CSVデータ2!Z39),CSVデータ2!Z39,0)+IF(ISNUMBER(CSVデータ3!Z39),CSVデータ3!Z39,0)+IF(ISNUMBER(CSVデータ4!Z39),CSVデータ4!Z39,0) -> 543 | AB39: =IF(ISNUMBER(CSVデータ1!AB39),CSVデータ1!AB39,0)+IF(ISNUMBER(CSVデータ2!AB39),CSVデータ2!AB39,0)+IF(ISNUMBER(CSVデータ3!AB39),CSVデータ3!AB39,0)+IF(ISNUMBER(CSVデータ4!AB39),CSVデータ4!AB39,0) -> 1 | AD39: =IF(ISNUMBER(CSVデータ1!AD39),CSVデータ1!AD39,0)+IF(ISNUMBER(CSVデータ2!AD39),CSVデータ2!AD39,0)+IF(ISNUMBER(CSVデータ3!AD39),CSVデータ3!AD39,0)+IF(ISNUMBER(CSVデータ4!AD39),CSVデータ4!AD39,0) -> 182 | AF39: =IF(ISNUMBER(CSVデータ1!AF39),CSVデータ1!AF39,0)+IF(ISNUMBER(CSVデータ2!AF39),CSVデータ2!AF39,0)+IF(ISNUMBER(CSVデータ3!AF39),CSVデータ3!AF39,0)+IF(ISNUMBER(CSVデータ4!AF39),CSVデータ4!AF39,0) -> 295 | AH39: =IF(ISNUMBER(CSVデータ1!AH39),CSVデータ1!AH39,0)+IF(ISNUMBER(CSVデータ2!AH39),CSVデータ2!AH39,0)+IF(ISNUMBER(CSVデータ3!AH39),CSVデータ3!AH39,0)+IF(ISNUMBER(CSVデータ4!AH39),CSVデータ4!AH39,0) -> 7 | AJ39: =IF(ISNUMBER(CSVデータ1!AJ39),CSVデータ1!AJ39,0)+IF(ISNUMBER(CSVデータ2!AJ39),CSVデータ2!AJ39,0)+IF(ISNUMBER(CSVデータ3!AJ39),CSVデータ3!AJ39,0)+IF(ISNUMBER(CSVデータ4!AJ39),CSVデータ4!AJ39,0) -> 56 | AL39: =IF(ISNUMBER(CSVデータ1!AL39),CSVデータ1!AL39,0)+IF(ISNUMBER(CSVデータ2!AL39),CSVデータ2!AL39,0)+IF(ISNUMBER(CSVデータ3!AL39),CSVデータ3!AL39,0)+IF(ISNUMBER(CSVデータ4!AL39),CSVデータ4!AL39,0) -> 29 | AN39: =IF(ISNUMBER(CSVデータ1!AN39),CSVデータ1!AN39,0)+IF(ISNUMBER(CSVデータ2!AN39),CSVデータ2!AN39,0)+IF(ISNUMBER(CSVデータ3!AN39),CSVデータ3!AN39,0)+IF(ISNUMBER(CSVデータ4!AN39),CSVデータ4!AN39,0) -> 23
A40: =CSVデータ1!A40 -> 明細部 | B40: =CSVデータ1!B40 -> 国 | C40: =CSVデータ1!C40 -> 41 | D40: =CSVデータ1!D40 -> 女 | E40: =IF(ISNUMBER(CSVデータ1!E40),CSVデータ1!E40,0)+IF(ISNUMBER(CSVデータ2!E40),CSVデータ2!E40,0)+IF(ISNUMBER(CSVデータ3!E40),CSVデータ3!E40,0)+IF(ISNUMBER(CSVデータ4!E40),CSVデータ4!E40,0) -> 1463 | F40: =IF(ISNUMBER(CSVデータ1!F40),CSVデータ1!F40,0)+IF(ISNUMBER(CSVデータ2!F40),CSVデータ2!F40,0)+IF(ISNUMBER(CSVデータ3!F40),CSVデータ3!F40,0)+IF(ISNUMBER(CSVデータ4!F40),CSVデータ4!F40,0) -> 297 | H40: =IF(ISNUMBER(CSVデータ1!H40),CSVデータ1!H40,0)+IF(ISNUMBER(CSVデータ2!H40),CSVデータ2!H40,0)+IF(ISNUMBER(CSVデータ3!H40),CSVデータ3!H40,0)+IF(ISNUMBER(CSVデータ4!H40),CSVデータ4!H40,0) -> 201 | J40: =IF(ISNUMBER(CSVデータ1!J40),CSVデータ1!J40,0)+IF(ISNUMBER(CSVデータ2!J40),CSVデータ2!J40,0)+IF(ISNUMBER(CSVデータ3!J40),CSVデータ3!J40,0)+IF(ISNUMBER(CSVデータ4!J40),CSVデータ4!J40,0) -> 102 | L40: =IF(ISNUMBER(CSVデータ1!L40),CSVデータ1!L40,0)+IF(ISNUMBER(CSVデータ2!L40),CSVデータ2!L40,0)+IF(ISNUMBER(CSVデータ3!L40),CSVデータ3!L40,0)+IF(ISNUMBER(CSVデータ4!L40),CSVデータ4!L40,0) -> 96 | N40: =IF(ISNUMBER(CSVデータ1!N40),CSVデータ1!N40,0)+IF(ISNUMBER(CSVデータ2!N40),CSVデータ2!N40,0)+IF(ISNUMBER(CSVデータ3!N40),CSVデータ3!N40,0)+IF(ISNUMBER(CSVデータ4!N40),CSVデータ4!N40,0) -> 23 | P40: =IF(ISNUMBER(CSVデータ1!P40),CSVデータ1!P40,0)+IF(ISNUMBER(CSVデータ2!P40),CSVデータ2!P40,0)+IF(ISNUMBER(CSVデータ3!P40),CSVデータ3!P40,0)+IF(ISNUMBER(CSVデータ4!P40),CSVデータ4!P40,0) -> 94 | R40: =IF(ISNUMBER(CSVデータ1!R40),CSVデータ1!R40,0)+IF(ISNUMBER(CSVデータ2!R40),CSVデータ2!R40,0)+IF(ISNUMBER(CSVデータ3!R40),CSVデータ3!R40,0)+IF(ISNUMBER(CSVデータ4!R40),CSVデータ4!R40,0) -> 333 | T40: =IF(ISNUMBER(CSVデータ1!T40),CSVデータ1!T40,0)+IF(ISNUMBER(CSVデータ2!T40),CSVデータ2!T40,0)+IF(ISNUMBER(CSVデータ3!T40),CSVデータ3!T40,0)+IF(ISNUMBER(CSVデータ4!T40),CSVデータ4!T40,0) -> 15 | V40: =IF(ISNUMBER(CSVデータ1!V40),CSVデータ1!V40,0)+IF(ISNUMBER(CSVデータ2!V40),CSVデータ2!V40,0)+IF(ISNUMBER(CSVデータ3!V40),CSVデータ3!V40,0)+IF(ISNUMBER(CSVデータ4!V40),CSVデータ4!V40,0) -> 147 | X40: =IF(ISNUMBER(CSVデータ1!X40),CSVデータ1!X40,0)+IF(ISNUMBER(CSVデータ2!X40),CSVデータ2!X40,0)+IF(ISNUMBER(CSVデータ3!X40),CSVデータ3!X40,0)+IF(ISNUMBER(CSVデータ4!X40),CSVデータ4!X40,0) -> 121 | Z40: =IF(ISNUMBER(CSVデータ1!Z40),CSVデータ1!Z40,0)+IF(ISNUMBER(CSVデータ2!Z40),CSVデータ2!Z40,0)+IF(ISNUMBER(CSVデータ3!Z40),CSVデータ3!Z40,0)+IF(ISNUMBER(CSVデータ4!Z40),CSVデータ4!Z40,0) -> 500 | AB40: =IF(ISNUMBER(CSVデータ1!AB40),CSVデータ1!AB40,0)+IF(ISNUMBER(CSVデータ2!AB40),CSVデータ2!AB40,0)+IF(ISNUMBER(CSVデータ3!AB40),CSVデータ3!AB40,0)+IF(ISNUMBER(CSVデータ4!AB40),CSVデータ4!AB40,0) -> 0 | AD40: =IF(ISNUMBER(CSVデータ1!AD40),CSVデータ1!AD40,0)+IF(ISNUMBER(CSVデータ2!AD40),CSVデータ2!AD40,0)+IF(ISNUMBER(CSVデータ3!AD40),CSVデータ3!AD40,0)+IF(ISNUMBER(CSVデータ4!AD40),CSVデータ4!AD40,0) -> 167 | AF40: =IF(ISNUMBER(CSVデータ1!AF40),CSVデータ1!AF40,0)+IF(ISNUMBER(CSVデータ2!AF40),CSVデータ2!AF40,0)+IF(ISNUMBER(CSVデータ3!AF40),CSVデータ3!AF40,0)+IF(ISNUMBER(CSVデータ4!AF40),CSVデータ4!AF40,0) -> 279 | AH40: =IF(ISNUMBER(CSVデータ1!AH40),CSVデータ1!AH40,0)+IF(ISNUMBER(CSVデータ2!AH40),CSVデータ2!AH40,0)+IF(ISNUMBER(CSVデータ3!AH40),CSVデータ3!AH40,0)+IF(ISNUMBER(CSVデータ4!AH40),CSVデータ4!AH40,0) -> 9 | AJ40: =IF(ISNUMBER(CSVデータ1!AJ40),CSVデータ1!AJ40,0)+IF(ISNUMBER(CSVデータ2!AJ40),CSVデータ2!AJ40,0)+IF(ISNUMBER(CSVデータ3!AJ40),CSVデータ3!AJ40,0)+IF(ISNUMBER(CSVデータ4!AJ40),CSVデータ4!AJ40,0) -> 52 | AL40: =IF(ISNUMBER(CSVデータ1!AL40),CSVデータ1!AL40,0)+IF(ISNUMBER(CSVデータ2!AL40),CSVデータ2!AL40,0)+IF(ISNUMBER(CSVデータ3!AL40),CSVデータ3!AL40,0)+IF(ISNUMBER(CSVデータ4!AL40),CSVデータ4!AL40,0) -> 31 | AN40: =IF(ISNUMBER(CSVデータ1!AN40),CSVデータ1!AN40,0)+IF(ISNUMBER(CSVデータ2!AN40),CSVデータ2!AN40,0)+IF(ISNUMBER(CSVデータ3!AN40),CSVデータ3!AN40,0)+IF(ISNUMBER(CSVデータ4!AN40),CSVデータ4!AN40,0) -> 35
A41: =CSVデータ1!A41 -> 明細部 | B41: =CSVデータ1!B41 -> 国 | C41: =CSVデータ1!C41 -> 42 | D41: =CSVデータ1!D41 -> 女 | E41: =IF(ISNUMBER(CSVデータ1!E41),CSVデータ1!E41,0)+IF(ISNUMBER(CSVデータ2!E41),CSVデータ2!E41,0)+IF(ISNUMBER(CSVデータ3!E41),CSVデータ3!E41,0)+IF(ISNUMBER(CSVデータ4!E41),CSVデータ4!E41,0) -> 1515 | F41: =IF(ISNUMBER(CSVデータ1!F41),CSVデータ1!F41,0)+IF(ISNUMBER(CSVデータ2!F41),CSVデータ2!F41,0)+IF(ISNUMBER(CSVデータ3!F41),CSVデータ3!F41,0)+IF(ISNUMBER(CSVデータ4!F41),CSVデータ4!F41,0) -> 279 | H41: =IF(ISNUMBER(CSVデータ1!H41),CSVデータ1!H41,0)+IF(ISNUMBER(CSVデータ2!H41),CSVデータ2!H41,0)+IF(ISNUMBER(CSVデータ3!H41),CSVデータ3!H41,0)+IF(ISNUMBER(CSVデータ4!H41),CSVデータ4!H41,0) -> 180 | J41: =IF(ISNUMBER(CSVデータ1!J41),CSVデータ1!J41,0)+IF(ISNUMBER(CSVデータ2!J41),CSVデータ2!J41,0)+IF(ISNUMBER(CSVデータ3!J41),CSVデータ3!J41,0)+IF(ISNUMBER(CSVデータ4!J41),CSVデータ4!J41,0) -> 92 | L41: =IF(ISNUMBER(CSVデータ1!L41),CSVデータ1!L41,0)+IF(ISNUMBER(CSVデータ2!L41),CSVデータ2!L41,0)+IF(ISNUMBER(CSVデータ3!L41),CSVデータ3!L41,0)+IF(ISNUMBER(CSVデータ4!L41),CSVデータ4!L41,0) -> 97 | N41: =IF(ISNUMBER(CSVデータ1!N41),CSVデータ1!N41,0)+IF(ISNUMBER(CSVデータ2!N41),CSVデータ2!N41,0)+IF(ISNUMBER(CSVデータ3!N41),CSVデータ3!N41,0)+IF(ISNUMBER(CSVデータ4!N41),CSVデータ4!N41,0) -> 18 | P41: =IF(ISNUMBER(CSVデータ1!P41),CSVデータ1!P41,0)+IF(ISNUMBER(CSVデータ2!P41),CSVデータ2!P41,0)+IF(ISNUMBER(CSVデータ3!P41),CSVデータ3!P41,0)+IF(ISNUMBER(CSVデータ4!P41),CSVデータ4!P41,0) -> 82 | R41: =IF(ISNUMBER(CSVデータ1!R41),CSVデータ1!R41,0)+IF(ISNUMBER(CSVデータ2!R41),CSVデータ2!R41,0)+IF(ISNUMBER(CSVデータ3!R41),CSVデータ3!R41,0)+IF(ISNUMBER(CSVデータ4!R41),CSVデータ4!R41,0) -> 341 | T41: =IF(ISNUMBER(CSVデータ1!T41),CSVデータ1!T41,0)+IF(ISNUMBER(CSVデータ2!T41),CSVデータ2!T41,0)+IF(ISNUMBER(CSVデータ3!T41),CSVデータ3!T41,0)+IF(ISNUMBER(CSVデータ4!T41),CSVデータ4!T41,0) -> 16 | V41: =IF(ISNUMBER(CSVデータ1!V41),CSVデータ1!V41,0)+IF(ISNUMBER(CSVデータ2!V41),CSVデータ2!V41,0)+IF(ISNUMBER(CSVデータ3!V41),CSVデータ3!V41,0)+IF(ISNUMBER(CSVデータ4!V41),CSVデータ4!V41,0) -> 162 | X41: =IF(ISNUMBER(CSVデータ1!X41),CSVデータ1!X41,0)+IF(ISNUMBER(CSVデータ2!X41),CSVデータ2!X41,0)+IF(ISNUMBER(CSVデータ3!X41),CSVデータ3!X41,0)+IF(ISNUMBER(CSVデータ4!X41),CSVデータ4!X41,0) -> 145 | Z41: =IF(ISNUMBER(CSVデータ1!Z41),CSVデータ1!Z41,0)+IF(ISNUMBER(CSVデータ2!Z41),CSVデータ2!Z41,0)+IF(ISNUMBER(CSVデータ3!Z41),CSVデータ3!Z41,0)+IF(ISNUMBER(CSVデータ4!Z41),CSVデータ4!Z41,0) -> 495 | AB41: =IF(ISNUMBER(CSVデータ1!AB41),CSVデータ1!AB41,0)+IF(ISNUMBER(CSVデータ2!AB41),CSVデータ2!AB41,0)+IF(ISNUMBER(CSVデータ3!AB41),CSVデータ3!AB41,0)+IF(ISNUMBER(CSVデータ4!AB41),CSVデータ4!AB41,0) -> 0 | AD41: =IF(ISNUMBER(CSVデータ1!AD41),CSVデータ1!AD41,0)+IF(ISNUMBER(CSVデータ2!AD41),CSVデータ2!AD41,0)+IF(ISNUMBER(CSVデータ3!AD41),CSVデータ3!AD41,0)+IF(ISNUMBER(CSVデータ4!AD41),CSVデータ4!AD41,0) -> 174 | AF41: =IF(ISNUMBER(CSVデータ1!AF41),CSVデータ1!AF41,0)+IF(ISNUMBER(CSVデータ2!AF41),CSVデータ2!AF41,0)+IF(ISNUMBER(CSVデータ3!AF41),CSVデータ3!AF41,0)+IF(ISNUMBER(CSVデータ4!AF41),CSVデータ4!AF41,0) -> 286 | AH41: =IF(ISNUMBER(CSVデータ1!AH41),CSVデータ1!AH41,0)+IF(ISNUMBER(CSVデータ2!AH41),CSVデータ2!AH41,0)+IF(ISNUMBER(CSVデータ3!AH41),CSVデータ3!AH41,0)+IF(ISNUMBER(CSVデータ4!AH41),CSVデータ4!AH41,0) -> 7 | AJ41: =IF(ISNUMBER(CSVデータ1!AJ41),CSVデータ1!AJ41,0)+IF(ISNUMBER(CSVデータ2!AJ41),CSVデータ2!AJ41,0)+IF(ISNUMBER(CSVデータ3!AJ41),CSVデータ3!AJ41,0)+IF(ISNUMBER(CSVデータ4!AJ41),CSVデータ4!AJ41,0) -> 51 | AL41: =IF(ISNUMBER(CSVデータ1!AL41),CSVデータ1!AL41,0)+IF(ISNUMBER(CSVデータ2!AL41),CSVデータ2!AL41,0)+IF(ISNUMBER(CSVデータ3!AL41),CSVデータ3!AL41,0)+IF(ISNUMBER(CSVデータ4!AL41),CSVデータ4!AL41,0) -> 35 | AN41: =IF(ISNUMBER(CSVデータ1!AN41),CSVデータ1!AN41,0)+IF(ISNUMBER(CSVデータ2!AN41),CSVデータ2!AN41,0)+IF(ISNUMBER(CSVデータ3!AN41),CSVデータ3!AN41,0)+IF(ISNUMBER(CSVデータ4!AN41),CSVデータ4!AN41,0) -> 26
A42: =CSVデータ1!A42 -> 明細部 | B42: =CSVデータ1!B42 -> 国 | C42: =CSVデータ1!C42 -> 43 | D42: =CSVデータ1!D42 -> 女 | E42: =IF(ISNUMBER(CSVデータ1!E42),CSVデータ1!E42,0)+IF(ISNUMBER(CSVデータ2!E42),CSVデータ2!E42,0)+IF(ISNUMBER(CSVデータ3!E42),CSVデータ3!E42,0)+IF(ISNUMBER(CSVデータ4!E42),CSVデータ4!E42,0) -> 1517 | F42: =IF(ISNUMBER(CSVデータ1!F42),CSVデータ1!F42,0)+IF(ISNUMBER(CSVデータ2!F42),CSVデータ2!F42,0)+IF(ISNUMBER(CSVデータ3!F42),CSVデータ3!F42,0)+IF(ISNUMBER(CSVデータ4!F42),CSVデータ4!F42,0) -> 327 | H42: =IF(ISNUMBER(CSVデータ1!H42),CSVデータ1!H42,0)+IF(ISNUMBER(CSVデータ2!H42),CSVデータ2!H42,0)+IF(ISNUMBER(CSVデータ3!H42),CSVデータ3!H42,0)+IF(ISNUMBER(CSVデータ4!H42),CSVデータ4!H42,0) -> 212 | J42: =IF(ISNUMBER(CSVデータ1!J42),CSVデータ1!J42,0)+IF(ISNUMBER(CSVデータ2!J42),CSVデータ2!J42,0)+IF(ISNUMBER(CSVデータ3!J42),CSVデータ3!J42,0)+IF(ISNUMBER(CSVデータ4!J42),CSVデータ4!J42,0) -> 94 | L42: =IF(ISNUMBER(CSVデータ1!L42),CSVデータ1!L42,0)+IF(ISNUMBER(CSVデータ2!L42),CSVデータ2!L42,0)+IF(ISNUMBER(CSVデータ3!L42),CSVデータ3!L42,0)+IF(ISNUMBER(CSVデータ4!L42),CSVデータ4!L42,0) -> 99 | N42: =IF(ISNUMBER(CSVデータ1!N42),CSVデータ1!N42,0)+IF(ISNUMBER(CSVデータ2!N42),CSVデータ2!N42,0)+IF(ISNUMBER(CSVデータ3!N42),CSVデータ3!N42,0)+IF(ISNUMBER(CSVデータ4!N42),CSVデータ4!N42,0) -> 23 | P42: =IF(ISNUMBER(CSVデータ1!P42),CSVデータ1!P42,0)+IF(ISNUMBER(CSVデータ2!P42),CSVデータ2!P42,0)+IF(ISNUMBER(CSVデータ3!P42),CSVデータ3!P42,0)+IF(ISNUMBER(CSVデータ4!P42),CSVデータ4!P42,0) -> 102 | R42: =IF(ISNUMBER(CSVデータ1!R42),CSVデータ1!R42,0)+IF(ISNUMBER(CSVデータ2!R42),CSVデータ2!R42,0)+IF(ISNUMBER(CSVデータ3!R42),CSVデータ3!R42,0)+IF(ISNUMBER(CSVデータ4!R42),CSVデータ4!R42,0) -> 411 | T42: =IF(ISNUMBER(CSVデータ1!T42),CSVデータ1!T42,0)+IF(ISNUMBER(CSVデータ2!T42),CSVデータ2!T42,0)+IF(ISNUMBER(CSVデータ3!T42),CSVデータ3!T42,0)+IF(ISNUMBER(CSVデータ4!T42),CSVデータ4!T42,0) -> 16 | V42: =IF(ISNUMBER(CSVデータ1!V42),CSVデータ1!V42,0)+IF(ISNUMBER(CSVデータ2!V42),CSVデータ2!V42,0)+IF(ISNUMBER(CSVデータ3!V42),CSVデータ3!V42,0)+IF(ISNUMBER(CSVデータ4!V42),CSVデータ4!V42,0) -> 177 | X42: =IF(ISNUMBER(CSVデータ1!X42),CSVデータ1!X42,0)+IF(ISNUMBER(CSVデータ2!X42),CSVデータ2!X42,0)+IF(ISNUMBER(CSVデータ3!X42),CSVデータ3!X42,0)+IF(ISNUMBER(CSVデータ4!X42),CSVデータ4!X42,0) -> 147 | Z42: =IF(ISNUMBER(CSVデータ1!Z42),CSVデータ1!Z42,0)+IF(ISNUMBER(CSVデータ2!Z42),CSVデータ2!Z42,0)+IF(ISNUMBER(CSVデータ3!Z42),CSVデータ3!Z42,0)+IF(ISNUMBER(CSVデータ4!Z42),CSVデータ4!Z42,0) -> 534 | AB42: =IF(ISNUMBER(CSVデータ1!AB42),CSVデータ1!AB42,0)+IF(ISNUMBER(CSVデータ2!AB42),CSVデータ2!AB42,0)+IF(ISNUMBER(CSVデータ3!AB42),CSVデータ3!AB42,0)+IF(ISNUMBER(CSVデータ4!AB42),CSVデータ4!AB42,0) -> 2 | AD42: =IF(ISNUMBER(CSVデータ1!AD42),CSVデータ1!AD42,0)+IF(ISNUMBER(CSVデータ2!AD42),CSVデータ2!AD42,0)+IF(ISNUMBER(CSVデータ3!AD42),CSVデータ3!AD42,0)+IF(ISNUMBER(CSVデータ4!AD42),CSVデータ4!AD42,0) -> 169 | AF42: =IF(ISNUMBER(CSVデータ1!AF42),CSVデータ1!AF42,0)+IF(ISNUMBER(CSVデータ2!AF42),CSVデータ2!AF42,0)+IF(ISNUMBER(CSVデータ3!AF42),CSVデータ3!AF42,0)+IF(ISNUMBER(CSVデータ4!AF42),CSVデータ4!AF42,0) -> 282 | AH42: =IF(ISNUMBER(CSVデータ1!AH42),CSVデータ1!AH42,0)+IF(ISNUMBER(CSVデータ2!AH42),CSVデータ2!AH42,0)+IF(ISNUMBER(CSVデータ3!AH42),CSVデータ3!AH42,0)+IF(ISNUMBER(CSVデータ4!AH42),CSVデータ4!AH42,0) -> 20 | AJ42: =IF(ISNUMBER(CSVデータ1!AJ42),CSVデータ1!AJ42,0)+IF(ISNUMBER(CSVデータ2!AJ42),CSVデータ2!AJ42,0)+IF(ISNUMBER(CSVデータ3!AJ42),CSVデータ3!AJ42,0)+IF(ISNUMBER(CSVデータ4!AJ42),CSVデータ4!AJ42,0) -> 57 | AL42: =IF(ISNUMBER(CSVデータ1!AL42),CSVデータ1!AL42,0)+IF(ISNUMBER(CSVデータ2!AL42),CSVデータ2!AL42,0)+IF(ISNUMBER(CSVデータ3!AL42),CSVデータ3!AL42,0)+IF(ISNUMBER(CSVデータ4!AL42),CSVデータ4!AL42,0) -> 50 | AN42: =IF(ISNUMBER(CSVデータ1!AN42),CSVデータ1!AN42,0)+IF(ISNUMBER(CSVデータ2!AN42),CSVデータ2!AN42,0)+IF(ISNUMBER(CSVデータ3!AN42),CSVデータ3!AN42,0)+IF(ISNUMBER(CSVデータ4!AN42),CSVデータ4!AN42,0) -> 27
A43: =CSVデータ1!A43 -> 明細部 | B43: =CSVデータ1!B43 -> 国 | C43: =CSVデータ1!C43 -> 44 | D43: =CSVデータ1!D43 -> 女 | E43: =IF(ISNUMBER(CSVデータ1!E43),CSVデータ1!E43,0)+IF(ISNUMBER(CSVデータ2!E43),CSVデータ2!E43,0)+IF(ISNUMBER(CSVデータ3!E43),CSVデータ3!E43,0)+IF(ISNUMBER(CSVデータ4!E43),CSVデータ4!E43,0) -> 1473 | F43: =IF(ISNUMBER(CSVデータ1!F43),CSVデータ1!F43,0)+IF(ISNUMBER(CSVデータ2!F43),CSVデータ2!F43,0)+IF(ISNUMBER(CSVデータ3!F43),CSVデータ3!F43,0)+IF(ISNUMBER(CSVデータ4!F43),CSVデータ4!F43,0) -> 281 | H43: =IF(ISNUMBER(CSVデータ1!H43),CSVデータ1!H43,0)+IF(ISNUMBER(CSVデータ2!H43),CSVデータ2!H43,0)+IF(ISNUMBER(CSVデータ3!H43),CSVデータ3!H43,0)+IF(ISNUMBER(CSVデータ4!H43),CSVデータ4!H43,0) -> 185 | J43: =IF(ISNUMBER(CSVデータ1!J43),CSVデータ1!J43,0)+IF(ISNUMBER(CSVデータ2!J43),CSVデータ2!J43,0)+IF(ISNUMBER(CSVデータ3!J43),CSVデータ3!J43,0)+IF(ISNUMBER(CSVデータ4!J43),CSVデータ4!J43,0) -> 87 | L43: =IF(ISNUMBER(CSVデータ1!L43),CSVデータ1!L43,0)+IF(ISNUMBER(CSVデータ2!L43),CSVデータ2!L43,0)+IF(ISNUMBER(CSVデータ3!L43),CSVデータ3!L43,0)+IF(ISNUMBER(CSVデータ4!L43),CSVデータ4!L43,0) -> 99 | N43: =IF(ISNUMBER(CSVデータ1!N43),CSVデータ1!N43,0)+IF(ISNUMBER(CSVデータ2!N43),CSVデータ2!N43,0)+IF(ISNUMBER(CSVデータ3!N43),CSVデータ3!N43,0)+IF(ISNUMBER(CSVデータ4!N43),CSVデータ4!N43,0) -> 14 | P43: =IF(ISNUMBER(CSVデータ1!P43),CSVデータ1!P43,0)+IF(ISNUMBER(CSVデータ2!P43),CSVデータ2!P43,0)+IF(ISNUMBER(CSVデータ3!P43),CSVデータ3!P43,0)+IF(ISNUMBER(CSVデータ4!P43),CSVデータ4!P43,0) -> 81 | R43: =IF(ISNUMBER(CSVデータ1!R43),CSVデータ1!R43,0)+IF(ISNUMBER(CSVデータ2!R43),CSVデータ2!R43,0)+IF(ISNUMBER(CSVデータ3!R43),CSVデータ3!R43,0)+IF(ISNUMBER(CSVデータ4!R43),CSVデータ4!R43,0) -> 355 | T43: =IF(ISNUMBER(CSVデータ1!T43),CSVデータ1!T43,0)+IF(ISNUMBER(CSVデータ2!T43),CSVデータ2!T43,0)+IF(ISNUMBER(CSVデータ3!T43),CSVデータ3!T43,0)+IF(ISNUMBER(CSVデータ4!T43),CSVデータ4!T43,0) -> 12 | V43: =IF(ISNUMBER(CSVデータ1!V43),CSVデータ1!V43,0)+IF(ISNUMBER(CSVデータ2!V43),CSVデータ2!V43,0)+IF(ISNUMBER(CSVデータ3!V43),CSVデータ3!V43,0)+IF(ISNUMBER(CSVデータ4!V43),CSVデータ4!V43,0) -> 187 | X43: =IF(ISNUMBER(CSVデータ1!X43),CSVデータ1!X43,0)+IF(ISNUMBER(CSVデータ2!X43),CSVデータ2!X43,0)+IF(ISNUMBER(CSVデータ3!X43),CSVデータ3!X43,0)+IF(ISNUMBER(CSVデータ4!X43),CSVデータ4!X43,0) -> 163 | Z43: =IF(ISNUMBER(CSVデータ1!Z43),CSVデータ1!Z43,0)+IF(ISNUMBER(CSVデータ2!Z43),CSVデータ2!Z43,0)+IF(ISNUMBER(CSVデータ3!Z43),CSVデータ3!Z43,0)+IF(ISNUMBER(CSVデータ4!Z43),CSVデータ4!Z43,0) -> 577 | AB43: =IF(ISNUMBER(CSVデータ1!AB43),CSVデータ1!AB43,0)+IF(ISNUMBER(CSVデータ2!AB43),CSVデータ2!AB43,0)+IF(ISNUMBER(CSVデータ3!AB43),CSVデータ3!AB43,0)+IF(ISNUMBER(CSVデータ4!AB43),CSVデータ4!AB43,0) -> 2 | AD43: =IF(ISNUMBER(CSVデータ1!AD43),CSVデータ1!AD43,0)+IF(ISNUMBER(CSVデータ2!AD43),CSVデータ2!AD43,0)+IF(ISNUMBER(CSVデータ3!AD43),CSVデータ3!AD43,0)+IF(ISNUMBER(CSVデータ4!AD43),CSVデータ4!AD43,0) -> 179 | AF43: =IF(ISNUMBER(CSVデータ1!AF43),CSVデータ1!AF43,0)+IF(ISNUMBER(CSVデータ2!AF43),CSVデータ2!AF43,0)+IF(ISNUMBER(CSVデータ3!AF43),CSVデータ3!AF43,0)+IF(ISNUMBER(CSVデータ4!AF43),CSVデータ4!AF43,0) -> 275 | AH43: =IF(ISNUMBER(CSVデータ1!AH43),CSVデータ1!AH43,0)+IF(ISNUMBER(CSVデータ2!AH43),CSVデータ2!AH43,0)+IF(ISNUMBER(CSVデータ3!AH43),CSVデータ3!AH43,0)+IF(ISNUMBER(CSVデータ4!AH43),CSVデータ4!AH43,0) -> 15 | AJ43: =IF(ISNUMBER(CSVデータ1!AJ43),CSVデータ1!AJ43,0)+IF(ISNUMBER(CSVデータ2!AJ43),CSVデータ2!AJ43,0)+IF(ISNUMBER(CSVデータ3!AJ43),CSVデータ3!AJ43,0)+IF(ISNUMBER(CSVデータ4!AJ43),CSVデータ4!AJ43,0) -> 58 | AL43: =IF(ISNUMBER(CSVデータ1!AL43),CSVデータ1!AL43,0)+IF(ISNUMBER(CSVデータ2!AL43),CSVデータ2!AL43,0)+IF(ISNUMBER(CSVデータ3!AL43),CSVデータ3!AL43,0)+IF(ISNUMBER(CSVデータ4!AL43),CSVデータ4!AL43,0) -> 49 | AN43: =IF(ISNUMBER(CSVデータ1!AN43),CSVデータ1!AN43,0)+IF(ISNUMBER(CSVデータ2!AN43),CSVデータ2!AN43,0)+IF(ISNUMBER(CSVデータ3!AN43),CSVデータ3!AN43,0)+IF(ISNUMBER(CSVデータ4!AN43),CSVデータ4!AN43,0) -> 21
A44: =CSVデータ1!A44 -> 明細部 | B44: =CSVデータ1!B44 -> 国 | C44: =CSVデータ1!C44 -> 45 | D44: =CSVデータ1!D44 -> 女 | E44: =IF(ISNUMBER(CSVデータ1!E44),CSVデータ1!E44,0)+IF(ISNUMBER(CSVデータ2!E44),CSVデータ2!E44,0)+IF(ISNUMBER(CSVデータ3!E44),CSVデータ3!E44,0)+IF(ISNUMBER(CSVデータ4!E44),CSVデータ4!E44,0) -> 1729 | F44: =IF(ISNUMBER(CSVデータ1!F44),CSVデータ1!F44,0)+IF(ISNUMBER(CSVデータ2!F44),CSVデータ2!F44,0)+IF(ISNUMBER(CSVデータ3!F44),CSVデータ3!F44,0)+IF(ISNUMBER(CSVデータ4!F44),CSVデータ4!F44,0) -> 347 | H44: =IF(ISNUMBER(CSVデータ1!H44),CSVデータ1!H44,0)+IF(ISNUMBER(CSVデータ2!H44),CSVデータ2!H44,0)+IF(ISNUMBER(CSVデータ3!H44),CSVデータ3!H44,0)+IF(ISNUMBER(CSVデータ4!H44),CSVデータ4!H44,0) -> 228 | J44: =IF(ISNUMBER(CSVデータ1!J44),CSVデータ1!J44,0)+IF(ISNUMBER(CSVデータ2!J44),CSVデータ2!J44,0)+IF(ISNUMBER(CSVデータ3!J44),CSVデータ3!J44,0)+IF(ISNUMBER(CSVデータ4!J44),CSVデータ4!J44,0) -> 111 | L44: =IF(ISNUMBER(CSVデータ1!L44),CSVデータ1!L44,0)+IF(ISNUMBER(CSVデータ2!L44),CSVデータ2!L44,0)+IF(ISNUMBER(CSVデータ3!L44),CSVデータ3!L44,0)+IF(ISNUMBER(CSVデータ4!L44),CSVデータ4!L44,0) -> 112 | N44: =IF(ISNUMBER(CSVデータ1!N44),CSVデータ1!N44,0)+IF(ISNUMBER(CSVデータ2!N44),CSVデータ2!N44,0)+IF(ISNUMBER(CSVデータ3!N44),CSVデータ3!N44,0)+IF(ISNUMBER(CSVデータ4!N44),CSVデータ4!N44,0) -> 28 | P44: =IF(ISNUMBER(CSVデータ1!P44),CSVデータ1!P44,0)+IF(ISNUMBER(CSVデータ2!P44),CSVデータ2!P44,0)+IF(ISNUMBER(CSVデータ3!P44),CSVデータ3!P44,0)+IF(ISNUMBER(CSVデータ4!P44),CSVデータ4!P44,0) -> 123 | R44: =IF(ISNUMBER(CSVデータ1!R44),CSVデータ1!R44,0)+IF(ISNUMBER(CSVデータ2!R44),CSVデータ2!R44,0)+IF(ISNUMBER(CSVデータ3!R44),CSVデータ3!R44,0)+IF(ISNUMBER(CSVデータ4!R44),CSVデータ4!R44,0) -> 448 | T44: =IF(ISNUMBER(CSVデータ1!T44),CSVデータ1!T44,0)+IF(ISNUMBER(CSVデータ2!T44),CSVデータ2!T44,0)+IF(ISNUMBER(CSVデータ3!T44),CSVデータ3!T44,0)+IF(ISNUMBER(CSVデータ4!T44),CSVデータ4!T44,0) -> 16 | V44: =IF(ISNUMBER(CSVデータ1!V44),CSVデータ1!V44,0)+IF(ISNUMBER(CSVデータ2!V44),CSVデータ2!V44,0)+IF(ISNUMBER(CSVデータ3!V44),CSVデータ3!V44,0)+IF(ISNUMBER(CSVデータ4!V44),CSVデータ4!V44,0) -> 250 | X44: =IF(ISNUMBER(CSVデータ1!X44),CSVデータ1!X44,0)+IF(ISNUMBER(CSVデータ2!X44),CSVデータ2!X44,0)+IF(ISNUMBER(CSVデータ3!X44),CSVデータ3!X44,0)+IF(ISNUMBER(CSVデータ4!X44),CSVデータ4!X44,0) -> 179 | Z44: =IF(ISNUMBER(CSVデータ1!Z44),CSVデータ1!Z44,0)+IF(ISNUMBER(CSVデータ2!Z44),CSVデータ2!Z44,0)+IF(ISNUMBER(CSVデータ3!Z44),CSVデータ3!Z44,0)+IF(ISNUMBER(CSVデータ4!Z44),CSVデータ4!Z44,0) -> 666 | AB44: =IF(ISNUMBER(CSVデータ1!AB44),CSVデータ1!AB44,0)+IF(ISNUMBER(CSVデータ2!AB44),CSVデータ2!AB44,0)+IF(ISNUMBER(CSVデータ3!AB44),CSVデータ3!AB44,0)+IF(ISNUMBER(CSVデータ4!AB44),CSVデータ4!AB44,0) -> 2 | AD44: =IF(ISNUMBER(CSVデータ1!AD44),CSVデータ1!AD44,0)+IF(ISNUMBER(CSVデータ2!AD44),CSVデータ2!AD44,0)+IF(ISNUMBER(CSVデータ3!AD44),CSVデータ3!AD44,0)+IF(ISNUMBER(CSVデータ4!AD44),CSVデータ4!AD44,0) -> 204 | AF44: =IF(ISNUMBER(CSVデータ1!AF44),CSVデータ1!AF44,0)+IF(ISNUMBER(CSVデータ2!AF44),CSVデータ2!AF44,0)+IF(ISNUMBER(CSVデータ3!AF44),CSVデータ3!AF44,0)+IF(ISNUMBER(CSVデータ4!AF44),CSVデータ4!AF44,0) -> 341 | AH44: =IF(ISNUMBER(CSVデータ1!AH44),CSVデータ1!AH44,0)+IF(ISNUMBER(CSVデータ2!AH44),CSVデータ2!AH44,0)+IF(ISNUMBER(CSVデータ3!AH44),CSVデータ3!AH44,0)+IF(ISNUMBER(CSVデータ4!AH44),CSVデータ4!AH44,0) -> 21 | AJ44: =IF(ISNUMBER(CSVデータ1!AJ44),CSVデータ1!AJ44,0)+IF(ISNUMBER(CSVデータ2!AJ44),CSVデータ2!AJ44,0)+IF(ISNUMBER(CSVデータ3!AJ44),CSVデータ3!AJ44,0)+IF(ISNUMBER(CSVデータ4!AJ44),CSVデータ4!AJ44,0) -> 83 | AL44: =IF(ISNUMBER(CSVデータ1!AL44),CSVデータ1!AL44,0)+IF(ISNUMBER(CSVデータ2!AL44),CSVデータ2!AL44,0)+IF(ISNUMBER(CSVデータ3!AL44),CSVデータ3!AL44,0)+IF(ISNUMBER(CSVデータ4!AL44),CSVデータ4!AL44,0) -> 68 | AN44: =IF(ISNUMBER(CSVデータ1!AN44),CSVデータ1!AN44,0)+IF(ISNUMBER(CSVデータ2!AN44),CSVデータ2!AN44,0)+IF(ISNUMBER(CSVデータ3!AN44),CSVデータ3!AN44,0)+IF(ISNUMBER(CSVデータ4!AN44),CSVデータ4!AN44,0) -> 27
A45: =CSVデータ1!A45 -> 明細部 | B45: =CSVデータ1!B45 -> 国 | C45: =CSVデータ1!C45 -> 46 | D45: =CSVデータ1!D45 -> 女 | E45: =IF(ISNUMBER(CSVデータ1!E45),CSVデータ1!E45,0)+IF(ISNUMBER(CSVデータ2!E45),CSVデータ2!E45,0)+IF(ISNUMBER(CSVデータ3!E45),CSVデータ3!E45,0)+IF(ISNUMBER(CSVデータ4!E45),CSVデータ4!E45,0) -> 1754 | F45: =IF(ISNUMBER(CSVデータ1!F45),CSVデータ1!F45,0)+IF(ISNUMBER(CSVデータ2!F45),CSVデータ2!F45,0)+IF(ISNUMBER(CSVデータ3!F45),CSVデータ3!F45,0)+IF(ISNUMBER(CSVデータ4!F45),CSVデータ4!F45,0) -> 367 | H45: =IF(ISNUMBER(CSVデータ1!H45),CSVデータ1!H45,0)+IF(ISNUMBER(CSVデータ2!H45),CSVデータ2!H45,0)+IF(ISNUMBER(CSVデータ3!H45),CSVデータ3!H45,0)+IF(ISNUMBER(CSVデータ4!H45),CSVデータ4!H45,0) -> 237 | J45: =IF(ISNUMBER(CSVデータ1!J45),CSVデータ1!J45,0)+IF(ISNUMBER(CSVデータ2!J45),CSVデータ2!J45,0)+IF(ISNUMBER(CSVデータ3!J45),CSVデータ3!J45,0)+IF(ISNUMBER(CSVデータ4!J45),CSVデータ4!J45,0) -> 126 | L45: =IF(ISNUMBER(CSVデータ1!L45),CSVデータ1!L45,0)+IF(ISNUMBER(CSVデータ2!L45),CSVデータ2!L45,0)+IF(ISNUMBER(CSVデータ3!L45),CSVデータ3!L45,0)+IF(ISNUMBER(CSVデータ4!L45),CSVデータ4!L45,0) -> 128 | N45: =IF(ISNUMBER(CSVデータ1!N45),CSVデータ1!N45,0)+IF(ISNUMBER(CSVデータ2!N45),CSVデータ2!N45,0)+IF(ISNUMBER(CSVデータ3!N45),CSVデータ3!N45,0)+IF(ISNUMBER(CSVデータ4!N45),CSVデータ4!N45,0) -> 26 | P45: =IF(ISNUMBER(CSVデータ1!P45),CSVデータ1!P45,0)+IF(ISNUMBER(CSVデータ2!P45),CSVデータ2!P45,0)+IF(ISNUMBER(CSVデータ3!P45),CSVデータ3!P45,0)+IF(ISNUMBER(CSVデータ4!P45),CSVデータ4!P45,0) -> 134 | R45: =IF(ISNUMBER(CSVデータ1!R45),CSVデータ1!R45,0)+IF(ISNUMBER(CSVデータ2!R45),CSVデータ2!R45,0)+IF(ISNUMBER(CSVデータ3!R45),CSVデータ3!R45,0)+IF(ISNUMBER(CSVデータ4!R45),CSVデータ4!R45,0) -> 457 | T45: =IF(ISNUMBER(CSVデータ1!T45),CSVデータ1!T45,0)+IF(ISNUMBER(CSVデータ2!T45),CSVデータ2!T45,0)+IF(ISNUMBER(CSVデータ3!T45),CSVデータ3!T45,0)+IF(ISNUMBER(CSVデータ4!T45),CSVデータ4!T45,0) -> 21 | V45: =IF(ISNUMBER(CSVデータ1!V45),CSVデータ1!V45,0)+IF(ISNUMBER(CSVデータ2!V45),CSVデータ2!V45,0)+IF(ISNUMBER(CSVデータ3!V45),CSVデータ3!V45,0)+IF(ISNUMBER(CSVデータ4!V45),CSVデータ4!V45,0) -> 266 | X45: =IF(ISNUMBER(CSVデータ1!X45),CSVデータ1!X45,0)+IF(ISNUMBER(CSVデータ2!X45),CSVデータ2!X45,0)+IF(ISNUMBER(CSVデータ3!X45),CSVデータ3!X45,0)+IF(ISNUMBER(CSVデータ4!X45),CSVデータ4!X45,0) -> 201 | Z45: =IF(ISNUMBER(CSVデータ1!Z45),CSVデータ1!Z45,0)+IF(ISNUMBER(CSVデータ2!Z45),CSVデータ2!Z45,0)+IF(ISNUMBER(CSVデータ3!Z45),CSVデータ3!Z45,0)+IF(ISNUMBER(CSVデータ4!Z45),CSVデータ4!Z45,0) -> 690 | AB45: =IF(ISNUMBER(CSVデータ1!AB45),CSVデータ1!AB45,0)+IF(ISNUMBER(CSVデータ2!AB45),CSVデータ2!AB45,0)+IF(ISNUMBER(CSVデータ3!AB45),CSVデータ3!AB45,0)+IF(ISNUMBER(CSVデータ4!AB45),CSVデータ4!AB45,0) -> 1 | AD45: =IF(ISNUMBER(CSVデータ1!AD45),CSVデータ1!AD45,0)+IF(ISNUMBER(CSVデータ2!AD45),CSVデータ2!AD45,0)+IF(ISNUMBER(CSVデータ3!AD45),CSVデータ3!AD45,0)+IF(ISNUMBER(CSVデータ4!AD45),CSVデータ4!AD45,0) -> 200 | AF45: =IF(ISNUMBER(CSVデータ1!AF45),CSVデータ1!AF45,0)+IF(ISNUMBER(CSVデータ2!AF45),CSVデータ2!AF45,0)+IF(ISNUMBER(CSVデータ3!AF45),CSVデータ3!AF45,0)+IF(ISNUMBER(CSVデータ4!AF45),CSVデータ4!AF45,0) -> 331 | AH45: =IF(ISNUMBER(CSVデータ1!AH45),CSVデータ1!AH45,0)+IF(ISNUMBER(CSVデータ2!AH45),CSVデータ2!AH45,0)+IF(ISNUMBER(CSVデータ3!AH45),CSVデータ3!AH45,0)+IF(ISNUMBER(CSVデータ4!AH45),CSVデータ4!AH45,0) -> 13 | AJ45: =IF(ISNUMBER(CSVデータ1!AJ45),CSVデータ1!AJ45,0)+IF(ISNUMBER(CSVデータ2!AJ45),CSVデータ2!AJ45,0)+IF(ISNUMBER(CSVデータ3!AJ45),CSVデータ3!AJ45,0)+IF(ISNUMBER(CSVデータ4!AJ45),CSVデータ4!AJ45,0) -> 89 | AL45: =IF(ISNUMBER(CSVデータ1!AL45),CSVデータ1!AL45,0)+IF(ISNUMBER(CSVデータ2!AL45),CSVデータ2!AL45,0)+IF(ISNUMBER(CSVデータ3!AL45),CSVデータ3!AL45,0)+IF(ISNUMBER(CSVデータ4!AL45),CSVデータ4!AL45,0) -> 88 | AN45: =IF(ISNUMBER(CSVデータ1!AN45),CSVデータ1!AN45,0)+IF(ISNUMBER(CSVデータ2!AN45),CSVデータ2!AN45,0)+IF(ISNUMBER(CSVデータ3!AN45),CSVデータ3!AN45,0)+IF(ISNUMBER(CSVデータ4!AN45),CSVデータ4!AN45,0) -> 36
A46: =CSVデータ1!A46 -> 明細部 | B46: =CSVデータ1!B46 -> 国 | C46: =CSVデータ1!C46 -> 47 | D46: =CSVデータ1!D46 -> 女 | E46: =IF(ISNUMBER(CSVデータ1!E46),CSVデータ1!E46,0)+IF(ISNUMBER(CSVデータ2!E46),CSVデータ2!E46,0)+IF(ISNUMBER(CSVデータ3!E46),CSVデータ3!E46,0)+IF(ISNUMBER(CSVデータ4!E46),CSVデータ4!E46,0) -> 1826 | F46: =IF(ISNUMBER(CSVデータ1!F46),CSVデータ1!F46,0)+IF(ISNUMBER(CSVデータ2!F46),CSVデータ2!F46,0)+IF(ISNUMBER(CSVデータ3!F46),CSVデータ3!F46,0)+IF(ISNUMBER(CSVデータ4!F46),CSVデータ4!F46,0) -> 382 | H46: =IF(ISNUMBER(CSVデータ1!H46),CSVデータ1!H46,0)+IF(ISNUMBER(CSVデータ2!H46),CSVデータ2!H46,0)+IF(ISNUMBER(CSVデータ3!H46),CSVデータ3!H46,0)+IF(ISNUMBER(CSVデータ4!H46),CSVデータ4!H46,0) -> 235 | J46: =IF(ISNUMBER(CSVデータ1!J46),CSVデータ1!J46,0)+IF(ISNUMBER(CSVデータ2!J46),CSVデータ2!J46,0)+IF(ISNUMBER(CSVデータ3!J46),CSVデータ3!J46,0)+IF(ISNUMBER(CSVデータ4!J46),CSVデータ4!J46,0) -> 127 | L46: =IF(ISNUMBER(CSVデータ1!L46),CSVデータ1!L46,0)+IF(ISNUMBER(CSVデータ2!L46),CSVデータ2!L46,0)+IF(ISNUMBER(CSVデータ3!L46),CSVデータ3!L46,0)+IF(ISNUMBER(CSVデータ4!L46),CSVデータ4!L46,0) -> 138 | N46: =IF(ISNUMBER(CSVデータ1!N46),CSVデータ1!N46,0)+IF(ISNUMBER(CSVデータ2!N46),CSVデータ2!N46,0)+IF(ISNUMBER(CSVデータ3!N46),CSVデータ3!N46,0)+IF(ISNUMBER(CSVデータ4!N46),CSVデータ4!N46,0) -> 31 | P46: =IF(ISNUMBER(CSVデータ1!P46),CSVデータ1!P46,0)+IF(ISNUMBER(CSVデータ2!P46),CSVデータ2!P46,0)+IF(ISNUMBER(CSVデータ3!P46),CSVデータ3!P46,0)+IF(ISNUMBER(CSVデータ4!P46),CSVデータ4!P46,0) -> 147 | R46: =IF(ISNUMBER(CSVデータ1!R46),CSVデータ1!R46,0)+IF(ISNUMBER(CSVデータ2!R46),CSVデータ2!R46,0)+IF(ISNUMBER(CSVデータ3!R46),CSVデータ3!R46,0)+IF(ISNUMBER(CSVデータ4!R46),CSVデータ4!R46,0) -> 523 | T46: =IF(ISNUMBER(CSVデータ1!T46),CSVデータ1!T46,0)+IF(ISNUMBER(CSVデータ2!T46),CSVデータ2!T46,0)+IF(ISNUMBER(CSVデータ3!T46),CSVデータ3!T46,0)+IF(ISNUMBER(CSVデータ4!T46),CSVデータ4!T46,0) -> 22 | V46: =IF(ISNUMBER(CSVデータ1!V46),CSVデータ1!V46,0)+IF(ISNUMBER(CSVデータ2!V46),CSVデータ2!V46,0)+IF(ISNUMBER(CSVデータ3!V46),CSVデータ3!V46,0)+IF(ISNUMBER(CSVデータ4!V46),CSVデータ4!V46,0) -> 313 | X46: =IF(ISNUMBER(CSVデータ1!X46),CSVデータ1!X46,0)+IF(ISNUMBER(CSVデータ2!X46),CSVデータ2!X46,0)+IF(ISNUMBER(CSVデータ3!X46),CSVデータ3!X46,0)+IF(ISNUMBER(CSVデータ4!X46),CSVデータ4!X46,0) -> 237 | Z46: =IF(ISNUMBER(CSVデータ1!Z46),CSVデータ1!Z46,0)+IF(ISNUMBER(CSVデータ2!Z46),CSVデータ2!Z46,0)+IF(ISNUMBER(CSVデータ3!Z46),CSVデータ3!Z46,0)+IF(ISNUMBER(CSVデータ4!Z46),CSVデータ4!Z46,0) -> 726 | AB46: =IF(ISNUMBER(CSVデータ1!AB46),CSVデータ1!AB46,0)+IF(ISNUMBER(CSVデータ2!AB46),CSVデータ2!AB46,0)+IF(ISNUMBER(CSVデータ3!AB46),CSVデータ3!AB46,0)+IF(ISNUMBER(CSVデータ4!AB46),CSVデータ4!AB46,0) -> 1 | AD46: =IF(ISNUMBER(CSVデータ1!AD46),CSVデータ1!AD46,0)+IF(ISNUMBER(CSVデータ2!AD46),CSVデータ2!AD46,0)+IF(ISNUMBER(CSVデータ3!AD46),CSVデータ3!AD46,0)+IF(ISNUMBER(CSVデータ4!AD46),CSVデータ4!AD46,0) -> 209 | AF46: =IF(ISNUMBER(CSVデータ1!AF46),CSVデータ1!AF46,0)+IF(ISNUMBER(CSVデータ2!AF46),CSVデータ2!AF46,0)+IF(ISNUMBER(CSVデータ3!AF46),CSVデータ3!AF46,0)+IF(ISNUMBER(CSVデータ4!AF46),CSVデータ4!AF46,0) -> 339 | AH46: =IF(ISNUMBER(CSVデータ1!AH46),CSVデータ1!AH46,0)+IF(ISNUMBER(CSVデータ2!AH46),CSVデータ2!AH46,0)+IF(ISNUMBER(CSVデータ3!AH46),CSVデータ3!AH46,0)+IF(ISNUMBER(CSVデータ4!AH46),CSVデータ4!AH46,0) -> 12 | AJ46: =IF(ISNUMBER(CSVデータ1!AJ46),CSVデータ1!AJ46,0)+IF(ISNUMBER(CSVデータ2!AJ46),CSVデータ2!AJ46,0)+IF(ISNUMBER(CSVデータ3!AJ46),CSVデータ3!AJ46,0)+IF(ISNUMBER(CSVデータ4!AJ46),CSVデータ4!AJ46,0) -> 82 | AL46: =IF(ISNUMBER(CSVデータ1!AL46),CSVデータ1!AL46,0)+IF(ISNUMBER(CSVデータ2!AL46),CSVデータ2!AL46,0)+IF(ISNUMBER(CSVデータ3!AL46),CSVデータ3!AL46,0)+IF(ISNUMBER(CSVデータ4!AL46),CSVデータ4!AL46,0) -> 70 | AN46: =IF(ISNUMBER(CSVデータ1!AN46),CSVデータ1!AN46,0)+IF(ISNUMBER(CSVデータ2!AN46),CSVデータ2!AN46,0)+IF(ISNUMBER(CSVデータ3!AN46),CSVデータ3!AN46,0)+IF(ISNUMBER(CSVデータ4!AN46),CSVデータ4!AN46,0) -> 40
A47: =CSVデータ1!A47 -> 明細部 | B47: =CSVデータ1!B47 -> 国 | C47: =CSVデータ1!C47 -> 48 | D47: =CSVデータ1!D47 -> 女 | E47: =IF(ISNUMBER(CSVデータ1!E47),CSVデータ1!E47,0)+IF(ISNUMBER(CSVデータ2!E47),CSVデータ2!E47,0)+IF(ISNUMBER(CSVデータ3!E47),CSVデータ3!E47,0)+IF(ISNUMBER(CSVデータ4!E47),CSVデータ4!E47,0) -> 1842 | F47: =IF(ISNUMBER(CSVデータ1!F47),CSVデータ1!F47,0)+IF(ISNUMBER(CSVデータ2!F47),CSVデータ2!F47,0)+IF(ISNUMBER(CSVデータ3!F47),CSVデータ3!F47,0)+IF(ISNUMBER(CSVデータ4!F47),CSVデータ4!F47,0) -> 421 | H47: =IF(ISNUMBER(CSVデータ1!H47),CSVデータ1!H47,0)+IF(ISNUMBER(CSVデータ2!H47),CSVデータ2!H47,0)+IF(ISNUMBER(CSVデータ3!H47),CSVデータ3!H47,0)+IF(ISNUMBER(CSVデータ4!H47),CSVデータ4!H47,0) -> 281 | J47: =IF(ISNUMBER(CSVデータ1!J47),CSVデータ1!J47,0)+IF(ISNUMBER(CSVデータ2!J47),CSVデータ2!J47,0)+IF(ISNUMBER(CSVデータ3!J47),CSVデータ3!J47,0)+IF(ISNUMBER(CSVデータ4!J47),CSVデータ4!J47,0) -> 137 | L47: =IF(ISNUMBER(CSVデータ1!L47),CSVデータ1!L47,0)+IF(ISNUMBER(CSVデータ2!L47),CSVデータ2!L47,0)+IF(ISNUMBER(CSVデータ3!L47),CSVデータ3!L47,0)+IF(ISNUMBER(CSVデータ4!L47),CSVデータ4!L47,0) -> 138 | N47: =IF(ISNUMBER(CSVデータ1!N47),CSVデータ1!N47,0)+IF(ISNUMBER(CSVデータ2!N47),CSVデータ2!N47,0)+IF(ISNUMBER(CSVデータ3!N47),CSVデータ3!N47,0)+IF(ISNUMBER(CSVデータ4!N47),CSVデータ4!N47,0) -> 24 | P47: =IF(ISNUMBER(CSVデータ1!P47),CSVデータ1!P47,0)+IF(ISNUMBER(CSVデータ2!P47),CSVデータ2!P47,0)+IF(ISNUMBER(CSVデータ3!P47),CSVデータ3!P47,0)+IF(ISNUMBER(CSVデータ4!P47),CSVデータ4!P47,0) -> 178 | R47: =IF(ISNUMBER(CSVデータ1!R47),CSVデータ1!R47,0)+IF(ISNUMBER(CSVデータ2!R47),CSVデータ2!R47,0)+IF(ISNUMBER(CSVデータ3!R47),CSVデータ3!R47,0)+IF(ISNUMBER(CSVデータ4!R47),CSVデータ4!R47,0) -> 564 | T47: =IF(ISNUMBER(CSVデータ1!T47),CSVデータ1!T47,0)+IF(ISNUMBER(CSVデータ2!T47),CSVデータ2!T47,0)+IF(ISNUMBER(CSVデータ3!T47),CSVデータ3!T47,0)+IF(ISNUMBER(CSVデータ4!T47),CSVデータ4!T47,0) -> 25 | V47: =IF(ISNUMBER(CSVデータ1!V47),CSVデータ1!V47,0)+IF(ISNUMBER(CSVデータ2!V47),CSVデータ2!V47,0)+IF(ISNUMBER(CSVデータ3!V47),CSVデータ3!V47,0)+IF(ISNUMBER(CSVデータ4!V47),CSVデータ4!V47,0) -> 324 | X47: =IF(ISNUMBER(CSVデータ1!X47),CSVデータ1!X47,0)+IF(ISNUMBER(CSVデータ2!X47),CSVデータ2!X47,0)+IF(ISNUMBER(CSVデータ3!X47),CSVデータ3!X47,0)+IF(ISNUMBER(CSVデータ4!X47),CSVデータ4!X47,0) -> 240 | Z47: =IF(ISNUMBER(CSVデータ1!Z47),CSVデータ1!Z47,0)+IF(ISNUMBER(CSVデータ2!Z47),CSVデータ2!Z47,0)+IF(ISNUMBER(CSVデータ3!Z47),CSVデータ3!Z47,0)+IF(ISNUMBER(CSVデータ4!Z47),CSVデータ4!Z47,0) -> 809 | AB47: =IF(ISNUMBER(CSVデータ1!AB47),CSVデータ1!AB47,0)+IF(ISNUMBER(CSVデータ2!AB47),CSVデータ2!AB47,0)+IF(ISNUMBER(CSVデータ3!AB47),CSVデータ3!AB47,0)+IF(ISNUMBER(CSVデータ4!AB47),CSVデータ4!AB47,0) -> 0 | AD47: =IF(ISNUMBER(CSVデータ1!AD47),CSVデータ1!AD47,0)+IF(ISNUMBER(CSVデータ2!AD47),CSVデータ2!AD47,0)+IF(ISNUMBER(CSVデータ3!AD47),CSVデータ3!AD47,0)+IF(ISNUMBER(CSVデータ4!AD47),CSVデータ4!AD47,0) -> 244 | AF47: =IF(ISNUMBER(CSVデータ1!AF47),CSVデータ1!AF47,0)+IF(ISNUMBER(CSVデータ2!AF47),CSVデータ2!AF47,0)+IF(ISNUMBER(CSVデータ3!AF47),CSVデータ3!AF47,0)+IF(ISNUMBER(CSVデータ4!AF47),CSVデータ4!AF47,0) -> 342 | AH47: =IF(ISNUMBER(CSVデータ1!AH47),CSVデータ1!AH47,0)+IF(ISNUMBER(CSVデータ2!AH47),CSVデータ2!AH47,0)+IF(ISNUMBER(CSVデータ3!AH47),CSVデータ3!AH47,0)+IF(ISNUMBER(CSVデータ4!AH47),CSVデータ4!AH47,0) -> 14 | AJ47: =IF(ISNUMBER(CSVデータ1!AJ47),CSVデータ1!AJ47,0)+IF(ISNUMBER(CSVデータ2!AJ47),CSVデータ2!AJ47,0)+IF(ISNUMBER(CSVデータ3!AJ47),CSVデータ3!AJ47,0)+IF(ISNUMBER(CSVデータ4!AJ47),CSVデータ4!AJ47,0) -> 99 | AL47: =IF(ISNUMBER(CSVデータ1!AL47),CSVデータ1!AL47,0)+IF(ISNUMBER(CSVデータ2!AL47),CSVデータ2!AL47,0)+IF(ISNUMBER(CSVデータ3!AL47),CSVデータ3!AL47,0)+IF(ISNUMBER(CSVデータ4!AL47),CSVデータ4!AL47,0) -> 83 | AN47: =IF(ISNUMBER(CSVデータ1!AN47),CSVデータ1!AN47,0)+IF(ISNUMBER(CSVデータ2!AN47),CSVデータ2!AN47,0)+IF(ISNUMBER(CSVデータ3!AN47),CSVデータ3!AN47,0)+IF(ISNUMBER(CSVデータ4!AN47),CSVデータ4!AN47,0) -> 48
A48: =CSVデータ1!A48 -> 明細部 | B48: =CSVデータ1!B48 -> 国 | C48: =CSVデータ1!C48 -> 49 | D48: =CSVデータ1!D48 -> 女 | E48: =IF(ISNUMBER(CSVデータ1!E48),CSVデータ1!E48,0)+IF(ISNUMBER(CSVデータ2!E48),CSVデータ2!E48,0)+IF(ISNUMBER(CSVデータ3!E48),CSVデータ3!E48,0)+IF(ISNUMBER(CSVデータ4!E48),CSVデータ4!E48,0) -> 2066 | F48: =IF(ISNUMBER(CSVデータ1!F48),CSVデータ1!F48,0)+IF(ISNUMBER(CSVデータ2!F48),CSVデータ2!F48,0)+IF(ISNUMBER(CSVデータ3!F48),CSVデータ3!F48,0)+IF(ISNUMBER(CSVデータ4!F48),CSVデータ4!F48,0) -> 440 | H48: =IF(ISNUMBER(CSVデータ1!H48),CSVデータ1!H48,0)+IF(ISNUMBER(CSVデータ2!H48),CSVデータ2!H48,0)+IF(ISNUMBER(CSVデータ3!H48),CSVデータ3!H48,0)+IF(ISNUMBER(CSVデータ4!H48),CSVデータ4!H48,0) -> 294 | J48: =IF(ISNUMBER(CSVデータ1!J48),CSVデータ1!J48,0)+IF(ISNUMBER(CSVデータ2!J48),CSVデータ2!J48,0)+IF(ISNUMBER(CSVデータ3!J48),CSVデータ3!J48,0)+IF(ISNUMBER(CSVデータ4!J48),CSVデータ4!J48,0) -> 177 | L48: =IF(ISNUMBER(CSVデータ1!L48),CSVデータ1!L48,0)+IF(ISNUMBER(CSVデータ2!L48),CSVデータ2!L48,0)+IF(ISNUMBER(CSVデータ3!L48),CSVデータ3!L48,0)+IF(ISNUMBER(CSVデータ4!L48),CSVデータ4!L48,0) -> 162 | N48: =IF(ISNUMBER(CSVデータ1!N48),CSVデータ1!N48,0)+IF(ISNUMBER(CSVデータ2!N48),CSVデータ2!N48,0)+IF(ISNUMBER(CSVデータ3!N48),CSVデータ3!N48,0)+IF(ISNUMBER(CSVデータ4!N48),CSVデータ4!N48,0) -> 30 | P48: =IF(ISNUMBER(CSVデータ1!P48),CSVデータ1!P48,0)+IF(ISNUMBER(CSVデータ2!P48),CSVデータ2!P48,0)+IF(ISNUMBER(CSVデータ3!P48),CSVデータ3!P48,0)+IF(ISNUMBER(CSVデータ4!P48),CSVデータ4!P48,0) -> 161 | R48: =IF(ISNUMBER(CSVデータ1!R48),CSVデータ1!R48,0)+IF(ISNUMBER(CSVデータ2!R48),CSVデータ2!R48,0)+IF(ISNUMBER(CSVデータ3!R48),CSVデータ3!R48,0)+IF(ISNUMBER(CSVデータ4!R48),CSVデータ4!R48,0) -> 651 | T48: =IF(ISNUMBER(CSVデータ1!T48),CSVデータ1!T48,0)+IF(ISNUMBER(CSVデータ2!T48),CSVデータ2!T48,0)+IF(ISNUMBER(CSVデータ3!T48),CSVデータ3!T48,0)+IF(ISNUMBER(CSVデータ4!T48),CSVデータ4!T48,0) -> 26 | V48: =IF(ISNUMBER(CSVデータ1!V48),CSVデータ1!V48,0)+IF(ISNUMBER(CSVデータ2!V48),CSVデータ2!V48,0)+IF(ISNUMBER(CSVデータ3!V48),CSVデータ3!V48,0)+IF(ISNUMBER(CSVデータ4!V48),CSVデータ4!V48,0) -> 393 | X48: =IF(ISNUMBER(CSVデータ1!X48),CSVデータ1!X48,0)+IF(ISNUMBER(CSVデータ2!X48),CSVデータ2!X48,0)+IF(ISNUMBER(CSVデータ3!X48),CSVデータ3!X48,0)+IF(ISNUMBER(CSVデータ4!X48),CSVデータ4!X48,0) -> 292 | Z48: =IF(ISNUMBER(CSVデータ1!Z48),CSVデータ1!Z48,0)+IF(ISNUMBER(CSVデータ2!Z48),CSVデータ2!Z48,0)+IF(ISNUMBER(CSVデータ3!Z48),CSVデータ3!Z48,0)+IF(ISNUMBER(CSVデータ4!Z48),CSVデータ4!Z48,0) -> 936 | AB48: =IF(ISNUMBER(CSVデータ1!AB48),CSVデータ1!AB48,0)+IF(ISNUMBER(CSVデータ2!AB48),CSVデータ2!AB48,0)+IF(ISNUMBER(CSVデータ3!AB48),CSVデータ3!AB48,0)+IF(ISNUMBER(CSVデータ4!AB48),CSVデータ4!AB48,0) -> 4 | AD48: =IF(ISNUMBER(CSVデータ1!AD48),CSVデータ1!AD48,0)+IF(ISNUMBER(CSVデータ2!AD48),CSVデータ2!AD48,0)+IF(ISNUMBER(CSVデータ3!AD48),CSVデータ3!AD48,0)+IF(ISNUMBER(CSVデータ4!AD48),CSVデータ4!AD48,0) -> 243 | AF48: =IF(ISNUMBER(CSVデータ1!AF48),CSVデータ1!AF48,0)+IF(ISNUMBER(CSVデータ2!AF48),CSVデータ2!AF48,0)+IF(ISNUMBER(CSVデータ3!AF48),CSVデータ3!AF48,0)+IF(ISNUMBER(CSVデータ4!AF48),CSVデータ4!AF48,0) -> 382 | AH48: =IF(ISNUMBER(CSVデータ1!AH48),CSVデータ1!AH48,0)+IF(ISNUMBER(CSVデータ2!AH48),CSVデータ2!AH48,0)+IF(ISNUMBER(CSVデータ3!AH48),CSVデータ3!AH48,0)+IF(ISNUMBER(CSVデータ4!AH48),CSVデータ4!AH48,0) -> 18 | AJ48: =IF(ISNUMBER(CSVデータ1!AJ48),CSVデータ1!AJ48,0)+IF(ISNUMBER(CSVデータ2!AJ48),CSVデータ2!AJ48,0)+IF(ISNUMBER(CSVデータ3!AJ48),CSVデータ3!AJ48,0)+IF(ISNUMBER(CSVデータ4!AJ48),CSVデータ4!AJ48,0) -> 103 | AL48: =IF(ISNUMBER(CSVデータ1!AL48),CSVデータ1!AL48,0)+IF(ISNUMBER(CSVデータ2!AL48),CSVデータ2!AL48,0)+IF(ISNUMBER(CSVデータ3!AL48),CSVデータ3!AL48,0)+IF(ISNUMBER(CSVデータ4!AL48),CSVデータ4!AL48,0) -> 127 | AN48: =IF(ISNUMBER(CSVデータ1!AN48),CSVデータ1!AN48,0)+IF(ISNUMBER(CSVデータ2!AN48),CSVデータ2!AN48,0)+IF(ISNUMBER(CSVデータ3!AN48),CSVデータ3!AN48,0)+IF(ISNUMBER(CSVデータ4!AN48),CSVデータ4!AN48,0) -> 46
A49: =CSVデータ1!A49 -> 明細部 | B49: =CSVデータ1!B49 -> 国 | C49: =CSVデータ1!C49 -> 50 | D49: =CSVデータ1!D49 -> 女 | E49: =IF(ISNUMBER(CSVデータ1!E49),CSVデータ1!E49,0)+IF(ISNUMBER(CSVデータ2!E49),CSVデータ2!E49,0)+IF(ISNUMBER(CSVデータ3!E49),CSVデータ3!E49,0)+IF(ISNUMBER(CSVデータ4!E49),CSVデータ4!E49,0) -> 2252 | F49: =IF(ISNUMBER(CSVデータ1!F49),CSVデータ1!F49,0)+IF(ISNUMBER(CSVデータ2!F49),CSVデータ2!F49,0)+IF(ISNUMBER(CSVデータ3!F49),CSVデータ3!F49,0)+IF(ISNUMBER(CSVデータ4!F49),CSVデータ4!F49,0) -> 480 | H49: =IF(ISNUMBER(CSVデータ1!H49),CSVデータ1!H49,0)+IF(ISNUMBER(CSVデータ2!H49),CSVデータ2!H49,0)+IF(ISNUMBER(CSVデータ3!H49),CSVデータ3!H49,0)+IF(ISNUMBER(CSVデータ4!H49),CSVデータ4!H49,0) -> 332 | J49: =IF(ISNUMBER(CSVデータ1!J49),CSVデータ1!J49,0)+IF(ISNUMBER(CSVデータ2!J49),CSVデータ2!J49,0)+IF(ISNUMBER(CSVデータ3!J49),CSVデータ3!J49,0)+IF(ISNUMBER(CSVデータ4!J49),CSVデータ4!J49,0) -> 193 | L49: =IF(ISNUMBER(CSVデータ1!L49),CSVデータ1!L49,0)+IF(ISNUMBER(CSVデータ2!L49),CSVデータ2!L49,0)+IF(ISNUMBER(CSVデータ3!L49),CSVデータ3!L49,0)+IF(ISNUMBER(CSVデータ4!L49),CSVデータ4!L49,0) -> 196 | N49: =IF(ISNUMBER(CSVデータ1!N49),CSVデータ1!N49,0)+IF(ISNUMBER(CSVデータ2!N49),CSVデータ2!N49,0)+IF(ISNUMBER(CSVデータ3!N49),CSVデータ3!N49,0)+IF(ISNUMBER(CSVデータ4!N49),CSVデータ4!N49,0) -> 26 | P49: =IF(ISNUMBER(CSVデータ1!P49),CSVデータ1!P49,0)+IF(ISNUMBER(CSVデータ2!P49),CSVデータ2!P49,0)+IF(ISNUMBER(CSVデータ3!P49),CSVデータ3!P49,0)+IF(ISNUMBER(CSVデータ4!P49),CSVデータ4!P49,0) -> 230 | R49: =IF(ISNUMBER(CSVデータ1!R49),CSVデータ1!R49,0)+IF(ISNUMBER(CSVデータ2!R49),CSVデータ2!R49,0)+IF(ISNUMBER(CSVデータ3!R49),CSVデータ3!R49,0)+IF(ISNUMBER(CSVデータ4!R49),CSVデータ4!R49,0) -> 793 | T49: =IF(ISNUMBER(CSVデータ1!T49),CSVデータ1!T49,0)+IF(ISNUMBER(CSVデータ2!T49),CSVデータ2!T49,0)+IF(ISNUMBER(CSVデータ3!T49),CSVデータ3!T49,0)+IF(ISNUMBER(CSVデータ4!T49),CSVデータ4!T49,0) -> 28 | V49: =IF(ISNUMBER(CSVデータ1!V49),CSVデータ1!V49,0)+IF(ISNUMBER(CSVデータ2!V49),CSVデータ2!V49,0)+IF(ISNUMBER(CSVデータ3!V49),CSVデータ3!V49,0)+IF(ISNUMBER(CSVデータ4!V49),CSVデータ4!V49,0) -> 466 | X49: =IF(ISNUMBER(CSVデータ1!X49),CSVデータ1!X49,0)+IF(ISNUMBER(CSVデータ2!X49),CSVデータ2!X49,0)+IF(ISNUMBER(CSVデータ3!X49),CSVデータ3!X49,0)+IF(ISNUMBER(CSVデータ4!X49),CSVデータ4!X49,0) -> 316 | Z49: =IF(ISNUMBER(CSVデータ1!Z49),CSVデータ1!Z49,0)+IF(ISNUMBER(CSVデータ2!Z49),CSVデータ2!Z49,0)+IF(ISNUMBER(CSVデータ3!Z49),CSVデータ3!Z49,0)+IF(ISNUMBER(CSVデータ4!Z49),CSVデータ4!Z49,0) -> 1053 | AB49: =IF(ISNUMBER(CSVデータ1!AB49),CSVデータ1!AB49,0)+IF(ISNUMBER(CSVデータ2!AB49),CSVデータ2!AB49,0)+IF(ISNUMBER(CSVデータ3!AB49),CSVデータ3!AB49,0)+IF(ISNUMBER(CSVデータ4!AB49),CSVデータ4!AB49,0) -> 2 | AD49: =IF(ISNUMBER(CSVデータ1!AD49),CSVデータ1!AD49,0)+IF(ISNUMBER(CSVデータ2!AD49),CSVデータ2!AD49,0)+IF(ISNUMBER(CSVデータ3!AD49),CSVデータ3!AD49,0)+IF(ISNUMBER(CSVデータ4!AD49),CSVデータ4!AD49,0) -> 289 | AF49: =IF(ISNUMBER(CSVデータ1!AF49),CSVデータ1!AF49,0)+IF(ISNUMBER(CSVデータ2!AF49),CSVデータ2!AF49,0)+IF(ISNUMBER(CSVデータ3!AF49),CSVデータ3!AF49,0)+IF(ISNUMBER(CSVデータ4!AF49),CSVデータ4!AF49,0) -> 412 | AH49: =IF(ISNUMBER(CSVデータ1!AH49),CSVデータ1!AH49,0)+IF(ISNUMBER(CSVデータ2!AH49),CSVデータ2!AH49,0)+IF(ISNUMBER(CSVデータ3!AH49),CSVデータ3!AH49,0)+IF(ISNUMBER(CSVデータ4!AH49),CSVデータ4!AH49,0) -> 14 | AJ49: =IF(ISNUMBER(CSVデータ1!AJ49),CSVデータ1!AJ49,0)+IF(ISNUMBER(CSVデータ2!AJ49),CSVデータ2!AJ49,0)+IF(ISNUMBER(CSVデータ3!AJ49),CSVデータ3!AJ49,0)+IF(ISNUMBER(CSVデータ4!AJ49),CSVデータ4!AJ49,0) -> 155 | AL49: =IF(ISNUMBER(CSVデータ1!AL49),CSVデータ1!AL49,0)+IF(ISNUMBER(CSVデータ2!AL49),CSVデータ2!AL49,0)+IF(ISNUMBER(CSVデータ3!AL49),CSVデータ3!AL49,0)+IF(ISNUMBER(CSVデータ4!AL49),CSVデータ4!AL49,0) -> 143 | AN49: =IF(ISNUMBER(CSVデータ1!AN49),CSVデータ1!AN49,0)+IF(ISNUMBER(CSVデータ2!AN49),CSVデータ2!AN49,0)+IF(ISNUMBER(CSVデータ3!AN49),CSVデータ3!AN49,0)+IF(ISNUMBER(CSVデータ4!AN49),CSVデータ4!AN49,0) -> 47
